Workbook

Sheet Configuration (hidden)
A2: Validation Lists
A3: SetAside | C3: Yes/No | D3: Organization | E3: Report | G3: FedRep | I3: Payment | K3: #Funds | L3: Restricted
A4: None | K4: 0 | L4: 10020
A5: Minority Business Enterprise | C5: Yes | D5: Non-Profit | E5: Monthly | G5: Monthly | I5: Fixed Periodic | K5: 1 | L5: 16060
A6: Small Business Enterprise | C6: No | D6: Private | E6: Bi-Monthly | G6: Bi-Monthly | I6: Request - Cash Mng. | K6: 2 | L6: 21700
A7: Women Owned Business Ent. | D7: Public | E7: 4, 8 Month & Final | G7: 4, 8 Mnth & Final | I7: Expndtr - Cash Mng. | K7: 3
D8: Other | E8: 8 Month & Final | G8: 8 Mnth & Final | K8: 4
E9: Quarterly | G9: Quarterly | K9: 5
K10: 6
K11: 7
K12: 8
K13: 9
A14: FY End | C14: License | E14: Schedule A | H14: Passwords | K14: 10
A16: January | C16: APRN | E16: 25 Lines | H16: Admin: | I16: OPMUCOA
A17: February | C17: AS | E17: 50 Lines | H17: Accpt Budget: | I17: OPMBUDGET
A18: March | C18: BA / BS | E18: 100 Lines | H18: Accpt Revision: | I18: OPMREVISION
A19: April | C19: BSW | E19: 150 Lines | H19: Reset: | I19: FPRESET
A20: May | C20: CADC | E20: 200 Lines | H20: Sheet Prtct: | I20: pillage
A21: June | C21: LADC | E21: 250 Lines | H21: Budg Unlck: | I21: OPMBUDGET
A22: July | C22: LPN | E22: 300 Lines
A23: August | C23: LCSW
A24: September | C24: MA / MS
A25: October | C25: MD
A26: November | C26: MSW
A27: December | C27: PhD
C28: PsyD
C29: RN
C30: Other

Sheet Configuation-Agencies
A1: Agency Listing
A2: Agency Name | B2: Street 1 | C2: Street 2 | D2: City, State Zip
A3: Department of Aging | B3: 25 Sigourney Street | C3: 10th Floor | D3: Hartford, CT 06105
A4: Department of Children and Families | B4: 505 Hudson Street | D4: Hartford, CT 06106
A5: Department of Correction | B5: 24 Wolcott Hill Road | D5: Wethersfield, CT 06109
A6: Department of Developmental Services | B6: 460 Capitol Avenue | D6: Hartford, CT 06106
A7: Department of Education | B7: 165 Capitol Avenue | D7: Hartford, CT 06106
A8: Department of Energy and Environmental Protection | B8: 79 Elm Streeet | D8: Hartford, CT 06106-5127
A9: Department of Housing | B9: 505 Hudson Street | D9: Hartford, CT 06106
A10: Department of Labor | B10: 200 Folly Brook Boulevard | D10: Wethersfield, CT 06109
A11: Department of Mental Health and Addiction Services | B11: 410 Capitol Avenue | D11: Hartford, CT 06106
A12: Department of Public Health | B12: 410 Capitol Avenue | C12: PO Box 340308 | D12: Hartford, CT 06134-0308
A13: Department of Rehabilitation Services | B13: 25 Sigourney Street | D13: Hartford, CT 06106-5033
A14: Department of Social Services | B14: 25 Sigourney Street | D14: Hartford, CT 06106-5033
A15: Office of Early Childhood Education

Sheet COVER PAGE (hidden)
A2: STATE OF CONNECTICUT
A3: HUMAN SERVICE CONTRACTS
A4: UNIFORM FINANCIAL WORKBOOK
A8: Purpose:
A9: The purpose of this uniform financial workbook is to bring standardization and automation to budget development/management and financial reporting across POS agencies. This uniform financial workbook must be used for all Purchase of Service (POS) contracts with the State of Connecticut.

Sheet State Agency Instructions
B1: State Agency Instructions
B3: Agency Information Tab:
B4: This tab is utilized to identify the state agency issuing the contract for which this budget is being submitted. This tab, once completed will serve to populate any pre-chosen, agency-specific nuances within the budget workbook.
B6: Instructions:
B7: From the ‘Agency Name’ field, choose the applicable state agency from the dropdown list. Choosing your appropriate agency should populate the address field with your agency’s designated address of record.
B9: Contract Information Tab:
B10: This tab is utilized to identify budget-related information specific to the contract for which this budget is being submitted. This tab, once completed, will serve to pre-populate the Headers of each workbook tab, as well as establish the format for reporting and SID delineations.
B12: Instructions:
B14: 1. Contract Number: Enter the agency-assigned contract number for the contract that includes this budget.
B16: 2. Contract Period: Enter the start and end dates associated with the contract that includes this budget. Note: These dates should encompass the entire contract period/term.
B18: 3. Funding Period: Enter the start and end dates associated with the funding period for which this budget is being submitted. Note: These dates should only encompass the time period associated with the budget being submitted (i.e. an annual budget for a state fiscal year- July 1, 2013-June 30, 2014). Population of these cells will pre-populate cells D15-17 of this tab.
B19: 4. State Funds: From the dropdown, choose ‘Yes’ or ‘No’ depending on whether or not the budget being submitted includes state funding from the state agency.
B21: 5. Number of State Funds: If ‘Yes’ was chosen for State Funds, choose the number of individual SIDS comprising the total state funding. Note: Populating this field will open additional fields for the identification of the SIDS associated with the contract’s funding.
B22: 6. State SIDS: Populate these fields with the specific State SID coding associated with the contract’s funding. In accordance with agency-specific instructions, state agencies have the option of leaving these fields blank. If populated, this information will pre-populate Column E on the Budget Summary Tab.
B24: 7. Federal/Other Funds: From the dropdown, choose ‘Yes’ or ‘No’ depending on whether or not the budget being submitted includes federal funding from the state agency.
B26: 8. Number of Federal Funds: If ‘Yes’ was chosen for Federal Funds, choose the number of individual SIDS comprising the total federal funding. Note: Populating this field will open additional fields for the identification of the SIDS associated with the contract’s funding.
B27: 9. Federal SIDS: Populate these fields with the specific Federal SID coding associated with the contract’s funding. In accordance with agency-specific instructions, state agencies have the option of leaving these fields blank. If populated, this information will pre-populate Column E on the Budget Summary Tab
B29: 10. Restricted Funds: From the dropdown, choose ‘Yes’ or ‘No’ depending on whether or not the budget being submitted includes restricted funding from the state agency.
B31: 11. Number of Restricted Funds: If ‘Yes’ was chosen for Restricted Funds, choose the number of individual SIDS comprising the restricted funding. Note: Populating this field will open additional fields for the identification of the SIDS associated with the contract’s funding.
B33: 12. Restricted SIDS: From the dropdown, choose which of the pre-identified State or Federal SIDS are restricted funding. Note: Designation as a Restricted SID is limited to a choice of only the SIDS identified in either the State or Federal/Other Columns on this tab and you may need to use the scroll bar to move to the top of the list.
B35: 13. Reporting Periods: From the dropdown, choose the requirement for submission of financial reports submitted against this budget. This choice will setup the viewable columns and format of the Financial Report tab of the workbook.
B37: 14. Schedule A License/Degree: From the dropdown, choose ‘Yes’ or ‘No’ depending on whether or not the Schedule A Salaries and Salary Detail Reporting tabs of the workbook should include specific licensures for each staff member.
B39: 15. Other Funding Must be Budgeted: From the dropdown, choose ‘Yes’ or ‘No’ depending on whether or not the provider should include income not associated with the contract (i.e. funding not correlated to this contract, received from other sources, for other programs).
B41: 16. Include Level of Care: From the dropdown, choose ‘Yes’ or ‘No’ depending on whether or not the provider should include their agency’s (or program’s) level of care. This is a free form field that is utilized at the agency’s discretion. If the agency chooses to require this field, it will populate on the Program Listing Tab (column G), and on subsequent tabs of the workbook (where appropriate) directly beneath the program abbreviation in the column headers.
B43: 17. Payment Basis: From the dropdown, choose the method the state agency will utilize for payments made against this contract. Most agencies utilize ‘Fixed Periodic’ payments.
B45: 18. Revise Funding on Budget Revision: From the dropdown, choose whether or not the agency wishes to allow the funding amounts to be changed on the Budget Revision tab. Note: If the agency chooses ‘Yes’ to this field, be aware that the provider will then have the capability to manually change funding amounts provided by the agency (populated on the Budget Revision Tab). If the agency chooses ‘No’ to this field, there is no ability for agency or provider staff to change these amounts. This only applies to funding provided by the agency, it does not limit the provider’s ability to delineate funding allocations from other sources.
B47: 19. Include DDAP Code: From the dropdown, choose whether or not the provider should include their assigned program-specific DDAP codes. Note: This field is currently only applicable to DMHAS. Please consult your own agency for determination as to whether DDAP Codes are applicable for your providers.
B49: Budget Summary Tab:
B50: Each agency is responsible for delineating the funding being provided through this contract from their agency. Account code 4100 is the modality for this information. Agencies must complete the 4100 section of the Budget Summary tab to delineate the funding they are providing by program and by SID.
B52: Budget Justification Tab:
B53: Each agency must make the determination as to whether or not they wish to receive a budget narrative from their providers. If the decision is made to require such narrative explanation of funding allocations, the agency must establish specific parameters for completion of this tab.
B55: Contract Budget Tab:
B56: This tab does not require any action from either the agency or the provider. This tab summarizes the budget once completed and should be inserted as the budget information that is contained in the actual contract with the provider.
B58: Budget Revision Tab:
B59: This tab does not normally (absent an amendment process) require action from the agency. But, it should be noted that during review of provider budget revisions, to assist the agency, any program that contains revised funding, will be identified in red text in Row 14 (program name).
B61: Amendment Processing:
B62: For the purposes of this workbook, mid-year (or mid-budget cycle) amendments should be processed through the Budget Revision Tab. When requiring providers to modify this workbook to account for an amendment, prior to requesting the modification, the agency should complete the following steps:
B64: Instructions:
B66: 1. Establish Programs and Funding Period Dates for Amendment: On the Program Listing tab (columns D and E), update the Programs and funding periods for the modification (i.e. new programs established in March should be added to the program listing with a funding period of March 1-June 30). This is important as it serves to establish the future reporting requirements for the amended funding.
B68: 2. Revise Funding: If funding will change and the agency has set the option within the Workbook (Contract Information Tab / Revise Funding on Budget Revision) to ‘No’ this option must be changed to ‘Yes’ to allow funding to be changed.
B70: Actual input of the changes can be handled one of two (2) ways at discretion of the agency.
B72: a. Save the workbook with the option changed and send the workbook to the provider for update. This will allow the provider to change the funding amounts designated by the agency, or
B73: b. The agency can change the funding delineations on the Budget Revision Tab before sending to the provider for completion. It is then necessary to change the Revise Funding on Budget Revision back to ‘No’ before saving and sending to the provider to complete the expenditure portion of the amended budget.
B75: Budget Summary Tab: Amendments should not be processed through this tab. The procedure delineated above should be followed for all mid-year amendments that impact funding. The workbook is equipped with the capability to save historic versions of the budget, although attempting to address funding amendments through the Budget Summary Tab will negate this capability.

Sheet AGENCY INFORMATION
A2: STATE OF CONNECTICUT
A3: HUMAN SERVICE CONTRACT
A4: AGENCY INFORMATION
D7: Contracting State Agency
E9: Department of Mental Health and Addiction Services
D10: Address 1: | F10: =IF(ISBLANK(VLOOKUP($E$9, Agency_Address, 2, FALSE)), "", VLOOKUP($E$9, Agency_Address, 2, FALSE)) -> 410 Capitol Avenue
D11: Address 2: | F11: =IF(ISBLANK(VLOOKUP($E$9, Agency_Address, 3, FALSE)), "", VLOOKUP($E$9, Agency_Address, 3, FALSE)) -> 
D12: City, State, Zip: | F12: =IF(ISBLANK(VLOOKUP($E$9, Agency_Address, 4, FALSE)), "", VLOOKUP($E$9, Agency_Address, 4, FALSE)) -> Hartford, CT 06106

Sheet CONTRACT INFORMATION
A2: ='AGENCY INFORMATION'!$E$9 -> Department of Mental Health and Addiction Services
A3: ='AGENCY INFORMATION'!$F$10 & IF(ISBLANK(VLOOKUP('AGENCY INFORMATION'!$E$9, Agency_Address, 3, FALSE)),"",", " & 'AGENCY INFORMATION'!$F$11) & ", " & 'AGENCY INFORMATION'!$F$12 -> 410 Capitol Avenue, Hartford, CT 06106
A4: Human Service Contract Information
B7: Contract Number: | D7: MHA0000 | F7: Contract Period: | H7: 2011-07-01 | J7: through | K7: 2016-06-30
F8: Funding Period: | H8: 2014-07-01 | J8: through | K8: 2015-06-30
A10: Contract Funding
E12: State Funds: | G12: Yes | H12: Federal/Other Funds: | J12: Yes | K12: Restricted Funds: | M12: No
E13: Number of Funds: | G13: 1 | H13: Number of Funds: | J13: 2 | K13: Number of Funds: | M13: 0
F14: =IF(AND($G$13>0,$G$13<=10), "SID 1: ","") -> SID 1: | G14: 11111 | I14: =IF(AND($J$13>0,$J$13<=10), "SID 1: ","") -> SID 1: | J14: 22222 | L14: =IF(AND($M$13>0,$M$13<=10), "SID 1: ","") -> 
B15: =IF(G12="Yes", "State Fiscal Year: ","") -> State Fiscal Year: | D15: =IF(MONTH(H8)>=7,YEAR(H8)+1,YEAR(H8)) -> 2015 | F15: =IF(AND($G$13>1,$G$13<=10), "SID 2: ","") ->  | I15: =IF(AND($J$13>1,$J$13<=10), "SID 2: ","") -> SID 2: | J15: 33333 | L15: =IF(AND($M$13>1,$M$13<=10), "SID 2: ","") -> 
C16: =IF(B15<>"Fiscal Year: ","", "Start: ") ->  | D16: =IF(ISBLANK($D$15),"",DATEVALUE("07/1/"&(Fiscal_Year-1))) -> 2014-07-01 | F16: =IF(AND($G$13>2,$G$13<=10), "SID 3: ","") ->  | I16: =IF(AND($J$13>2,$J$13<=10), "SID 3: ","") ->  | L16: =IF(AND($M$13>2,$M$13<=10), "SID 3: ","") -> 
C17: =IF(B15<>"Fiscal Year: ","", "End: ") ->  | D17: =IF(ISBLANK($D$15),"",DATE(YEAR(D16),MONTH(D16)+12,0)) -> 2015-06-30 | F17: =IF(AND($G$13>3,$G$13<=10), "SID 4: ","") ->  | I17: =IF(AND($J$13>3,$J$13<=10), "SID 4: ","") ->  | L17: =IF(AND($M$13>3,$M$13<=10), "SID 4: ","") -> 
F18: =IF(AND($G$13>4,$G$13<=10), "SID 5: ","") ->  | I18: =IF(AND($J$13>4,$J$13<=10), "SID 5: ","") ->  | L18: =IF(AND($M$13>4,$M$13<=10), "SID 5: ","") -> 
F19: =IF(AND($G$13>5,$G$13<=10), "SID 6: ","") ->  | I19: =IF(AND($J$13>5,$J$13<=10), "SID 6: ","") ->  | L19: =IF(AND($M$13>5,$M$13<=10), "SID 6: ","") -> 
D20: =MID(Fiscal_Year,5,2) ->  | F20: =IF(AND($G$13>6,$G$13<=10), "SID 7: ","") ->  | I20: =IF(AND($J$13>6,$J$13<=10), "SID 7: ","") ->  | L20: =IF(AND($M$13>6,$M$13<=10), "SID 7: ","") -> 
F21: =IF(AND($G$13>7,$G$13<=10), "SID 8: ","") ->  | I21: =IF(AND($J$13>7,$J$13<=10), "SID 8: ","") ->  | L21: =IF(AND($M$13>7,$M$13<=10), "SID 8: ","") -> 
F22: =IF(AND($G$13>8,$G$13<=10), "SID 9: ","") ->  | I22: =IF(AND($J$13>8,$J$13<=10), "SID 9: ","") ->  | L22: =IF(AND($M$13>8,$M$13<=10), "SID 9: ","") -> 
F23: =IF(AND($G$13>9,$G$13<=10), "SID 10 ","") ->  | I23: =IF(AND($J$13>9,$J$13<=10), "SID 10 ","") ->  | L23: =IF(AND($M$13>9,$M$13<=10), "SID 10 ","") -> 
B25: Contract Budgeting, Reporting, and Payment Requirements
D27: Reporting Periods: | G27: 8 Mnth & Final | I27: Payment Basis: | L27: Fixed Periodic
B28: Schedule A Must Include License/Degree: | G28: Yes | I28: Revise Funding on Bud Rev.: | L28: No
B29: Other (non Contract) Funding Must be Budgeted: | G29: No | I29: Include Projections to Yr. End: | L29: No
D30: Include Level of Care: | G30: Yes | I30: Include DDAP Code: | L30: Yes

Sheet Provider Instructions (hidden)
B1: Provider Instructions
B3: Welcome to the State of Connecticut Purchase of Service contracts workbook. The purpose of this workbook is to streamline POS contract administration processes to include; budget formulation and approval, budget revisions/amendments and approvals, and financial reporting. The workbook is designed to provide a single point of entry for required contract information and once data is entered it automatically populates throughout the workbook utilizing formulas and macros.
B4: The new process requires one workbook per POS contract and the workbook will be transmitted back and forth between the state agency and provider throughout the term of the contract, as needed. The state agency will identify a standard naming convention for contract files. The workbook contains a Provider Instructions tab with state agency specific step-by-step instructions to guide you in completing the forms. An Accounts Definitions tab is also provided to assist you in completing the budget request.
B6: To function the workbook employs extensive VBA code, triggered by user action. Some of the code enabling the required funcitionality and formatting is not compatible with versions of MS Excel priot to Excel 2007. Do not attempt to use the workbook and save data to it unless using Excel 2007 or later.
B8: The state agency that you are contracting with has already pre-configured the workbook for you. Now that you (the provider) have received the workbook, there are several tabs (forms) that must be filled out. Please note that the provider is only responsible for filling out the fields/columns that are highlighted in two lighter yellows (as indicated below) or as otherwise instructed by the State Agency.
B10: Background shading for provider input
B11: Background shading for either provider or State Agency input depending on State Agency policy or contract needs
B12: Background shading for state agency input
B13: Background shading for optional state agency input
B15: PROVIDER INFORMATION TAB
B17: 1 SUBMISSION DATE Enter the date that you submit the completed workbook to the state agency
B18: 2 PROVIDER AGENCY Enter the legal name and address of the organization as filed with the Secretary of State. Also complete other requested information i.e., FEIN#,
B19: DUNS#, and the federal funding questions.
B20: 3 AGENCY DIRECTOR/CEO Enter the required fields
B21: 4 CONTACT PERSON - BOARD OF DIRECTORS Enter the required fields
B22: 5 CONTACT PERSON - PROGRAMMATIC Enter the required fields
B23: 6 CONTACT PERSON - FISCAL Enter the required fields
B24: 7 CONTACT PERSON - DATA REPORTING/MIS Enter the required fields
B25: 8 CONTACT PERSON - RFP Enter the required fields
B26: 9 AREA(S) SERVED Enter data as required in the agency specific instructions
B27: 10 IS LITIGATION PENDING? Select yes or no from the dropdown menu. If yes, provide an explanation in the space provided.
B28: 11 ACCREDITATION List
B29: 12 RELATED PARTY TRANSACTIONS? Select yes or no from the dropdown menu. If yes, provide an explanation in the space provided.
B31: PROGRAM LISTING TAB
B33: The state agency has already populated the list of program names/abbreviations included in the POS contract. For each program listed, provide the required information in the columns shaded in light yellow (columns to the right). Programs identified on this form automatically populate column(s) on the Budget Summary tab. Financial reporting tab(s) are also created for each program identified.
B35: SCHEDULE A SALARIES TAB
B37: This form is used to provide estimated salaries and wages information by program. Summary information from this form automatically populates fields (Salaries & Wages, Fringe Benefits) on the Budget Summary tab. This spreadsheet allows up to 300 lines.
B39: Select Maximum Required Schedule Lines (located in the upper left hand portion of the form) If the form does not have enough lines for you to enter all positions to be budgeted you may select the number of lines you wish to display in the work space from the dropdown list.
B41: Enter the following information for each position:
B42: POSITION: Enter position title.
B43: NAME: Enter employee name. If State Agency policy allows grouping of multiple positions enter text to indiate that multiple employees are included and the number of employees i.e., "Ten (10) total staff positions". Refer to specific State Agency direction.
B44: DEGREE/LICENSE: Enter degree(s) and licenses held by the employee from the dropdown list or if not available from the dropdown list, user can type in the field. This column will only appear if state agency configuration requires it.
B45: RATE PER HOUR: This is a display field and shows the calculated hourly rate of pay based on the information entered. The Rate per Hour is calculated using a metric of 52.14 weeks per calendar year unless a lower number of weeks worked per year is entered in the WKS/YR field.
B46: TOTAL HOURS PER WEEK: Enter total hours of work per week. If State Agency policy allows grouping of multiple positions enter the total hours of all positions in the group i.e., ten (10) Nurse Consultants each working 40 hours per week would be entered as 400 hours.
B47: WKS/YR: if less than full yr. Enter the number of total weeks per Funding Period that you anticipate the employee to work (if employee works a full year, then leave this blank).
B48: ANNUAL SALARY: Enter the annual base salary for the employee/position. The base salary does not include any Fringe Benefits, Overtime, or other non-wages compensation.
B49: FRINGE BENEFITS %: Enter the total fringe benefits percentage for the position.
B50: ANNUAL FRINGE BENEFITS: This is a display field and shows the calculated annual fringe benefits based on the percentage of annual salary entered.
B51: CONTRACT PROGRAM % OF TIME: Enter the percent of the position's time spent on each of the displayed contract programs.
B52: CONTRACT A & G % OF TIME: Enter the percent of the position's time allocable to Administrative & General charges, if any.
B53: OTHER NON-CONTRACT FUNDING column: Enter total non-contract funding for the position (column is optional by state agency and will only appear if the state agency configuration requires this information. Refer to specific agency policy or instructions).
B54: JUSTIFICATION: Enter justification for the position (see agency specific instructions).
B56: BUDGET SUMMARY TAB
B58: This budget form, utilizing the new POS uniform chart of accounts (UCOA), is used to build the provider budget request by program for the contract. The UCOA is a menu of detailed accounts available for use. The UCOA consists of three sections; Income, Direct Expenses and Indirect Expenses. The UCOA conforms with the OPM POS Cost Standards.
B60: Once the State Agency approves and accepts the budget request, the approved budget information will be final and columns on the financial reporting and other tab(s) will automatically display the correct budget amounts. The Contract Budget tab (suitable for printing) will also be completely populated.
B62: Enter the following information for each program within this contract:
B63: INCOME
B64: 4100 CONTRACT FUNDING: The state agency will normally have already populated data in this section. The subtotal of this income section should equal the total amount of this contract. If the State Agency allows provider allocation of funding this information may be entered by providers. Please refer to agency specific guidance.
B65: 4200 OTHER STATE AGENCY FUNDING: If required by the state agency for the contract, enter funding amounts from other state agencies that support the programs funded in this contract.
B66: 4300 OTHER FUNDING: If required by the state agency for the contract, enter funding amounts from other sources that support the programs funded in this contract
B67: DIRECT EXPENSES
B68: All Line Items: Enter estimated expenses in the appropriate expense accounts. Please note that 5101 Salaries and Wages and 5200 Fringe Benefits are populated automatically with data from Schedule A Salaries tab.
B69: INDIRECT EXPENSES
B70: 7111 A&G SALARIES AND WAGES: Enter the A&G Salary and Wages.
B71: 7120 A&G FRINGE BENEFITS: Enter the A&G Fringe Benefits.
B72: 7130 ALL OTHER A&G: Enter all other estimated A&G Expenses (not included in 7111 A&G Salaries and Wages and 7120 A&G Fringe Benefits.)
B74: OTHER NON-CONTRACT FUNDING column (located on the right side of the spreadsheet): Enter total non-contract funding and expenses for the provider (column is optional by state agency and will only appear if required by state agency)
B76: BUDGET JUSTIFICATION TAB
B77: The budget justification form serves as the budget narrative/justification for this contract. Only accounts that have budgeted amounts on the Budget Summary tab will be displayed on this form.
B79: Enter a justification for each budgeted account. Refer to State Agency specific guidance for a further explanation of what is required on this form.
B81: CONTRACT BUDGET TAB
B83: Once the contract budget has been negotiated and approved, state agency personnel run an approval process. The contract budget tab will be finalized, date stamped, and fully updated. The Contract Budget Tab is the approved Contract Budget that can be printed and included in the paper contract. This form will alway represent the current approved Contract Budget and only includes accounts (line items) that have dollar amounts associated with them.
B85: BUDGET REVISION TAB
B87: The budget revision form is used to submit budget revisions, as required by the OPM POS Budget Revision Policy. This form is also used to submit revised budgets required for the state agency to process contract amendments that include additions, reductions or changes to the contract budget.
B89: Enter proposed revision amounts in the CHANGE +/- column(s ) for each program(s) being revised. The overall net effect of the revision for each contract program must equal zero unless other specific instruction are provided by the state agency. If amounts are entered that do not equal zero, then the column calculated amounts will be displayed in red as an alert that something may need to be adjusted.
B91: Once the state agency receives and approves the budget revision, state agency personnel will run an approval program that automatically updates the budget column(s) on the Budget Summary tab, the approved budget column on the Financial Report tab(s), and the award amounts on the Contract Budget Tab. Each version of the budget (original and any subsequent revisions) is saved on its own tab as a history of budget versions.
B93: FR - FINANCIAL EXPENDITURE REPORT TAB(s)
B95: A Financial Expenditure Report tab is automatically created for each program listed on the Program Listing tab. The Financial Expenditure Rreports are designed to handle various reporting timeframes (e.g., monthly, quarterly, 8 month, final). The State agency will configure the workbook with the appropriate reporting timeframe based on the terms and conditions of the contract award.
B97: The approved budget column will be automatically populated from data on the Budget Summary tab.
B99: Enter the following information in the reporting period column when the Financial Expediture Report is due:
B100: 4100 CONTRACT FUNDING: Enter the amount of funding actually received from the state agency you are contracting with.
B101: 4200 OTHER STATE AGENCY FUNDING: If required by the state agency, enter the funding received from state agencies, other than the contracting agency, in support of program activities.
B102: 4300 OTHER INCOME: If required by the State Agency, enter the funding received from all other sources in support of program activities.
B103: 5000 DIRECT EXPENSES
B104: All Line Items: Enter actual direct expenses in the appropriate expense accounts.
B105: 7000 INDIRECT EXPENSES
B106: All Line Items: Enter actual indirect expenses in the appropriate expense accounts.
B107: ADDITIONAL INCOME/EXPENSE column
B108: Enter the projected income and expenses to the end of the reporting year. This amount does not include what is already reported and will be added to the reported actual income /expense amounts in the reporting period column and then subtracted from the approved budget column to calculate a projected surplus or deficit for each account and in total. This section is optional per State Agency Requirements and will only appear if required by the contracting State Agency.
B110: There are several calculated columns displayed on the right hand side of the spreadsheet. These are offered as monitoring/management tools for the provider and state agency. They will help alert for a needed budget revision and provide information about contract funding depletion rates.
B112: SALARY DETAIL REPORT TAB
B114: This form is used to provide actual salaries and wages information by program. When state agency personnel run the budget acceptance procedure, information transfers to the Salary Detail Report for the Position, Name, Rate of Pay, Hours per Week, Annual Salary, Fringe Benefit Rate, and Annual Fringe Benefits. The Provider must enter the actual total Salary and Fringe benefits only for the Reporting Period in question. This spreadsheet allows a maximun of 700 lines.
B116: The number of available lines is controled from the Schedule A Salaries tab. At least two lines will appear on the Salary Detail Report tab for each line available on the Schedule A Salary tab. This allows additional positions than those budgeted to be reported to be reported. If more lines are needed increase the number of lines as instructed on the Schedlue A Salaries tab.
B118: Enter the following information for each employee (automatically populated from the Schedule A Salaries tab):
B119: PROGRAM TOTAL SALARY: Enter total salary paid to employee during the reporting period for each of the contract programs.
B120: PROGRAM TOTAL FRINGE BENEFIT: Enter total fringe benefits paid to employee during the reporting period for each of the contract programs.
B121: A & G TOTAL SALARY: Enter total A & G salary paid to employee during the reporting period
B122: A & G TOTAL FRINGE BENEFIT: Enter total A & G fringe benefits paid to employee during the reporting period
B123: OTHER NON-CONTRACT FUNDING column: If required by the contracting state agency, enter total non-contract funding for this position (column is optional by state agency and will only appear if required by state agency)
B124: COMMENTS / NOTES Enter comments/notes for this position (see agency specific instructions)
B126: Enter the following information for each new employee (not previously recorded on Schedule A Salaries tab) after the last existing entry on the form:
B127: POSITION: Enter position title.
B128: NAME: Enter employee name. If State Agency policy allows reporting of multiple position on one line report as was done on Schedule A Salaries.
B129: RATE PER HOUR: This is a display field and shows the calculated rate of pay for the employee/position based on information entered. The formuala calcualtion uses a metric of 52.14 weeks per calendar year unless a lower number of weeks per year is entered in the WKS/YR field.
B130: TOTAL HOURS PER WEEK: Enter total hours of work per week. If State Agency policy allows grouping of multiple positions on a single line, enter as for Schedule A Salaries.
B131: WKS/YR: if less than full yr. Enter the number of total weeks you anticipate the employee/position to work (if employee works a full year, then leave this blank)
B132: ANNUAL SALARY: Enter the annual base salary for the employee/position. The base salary does not include any Fringe Benefits, Overtime, or other non-wages compensation.
B133: FRINGE BENEFITS %: Enter the total fringe benefits percentage.
B134: PROGRAM TOTAL SALARY: Enter total salary paid to employee during the reporting period for each of the contract programs.
B135: PROGRAM TOTAL FRINGE BENEFIT: Enter total fringe paid to employee during the reporting period for each of the contract programs.
B136: A & G TOTAL SALARY: Enter total A & G salary paid to employee during the reporting period.
B137: A & G TOTAL FRINGE BENEFIT: Enter total A & G fringe benefits paid to employee during the reporting period.
B138: OTHER NON-CONTRACT FUNDING column: If required by the contracting state agency, enter total non-contract funding for this position (column is optional by state agency and will only appear if required by state agency).
B139: COMMENTS / NOTES: Enter comments/notes for this position (see state agency specific instructions).
B141: RELATED PARTIES TAB
B143: This form is used to provide information regarding related parties transactions. Please refer to the OPM POS Cost Standards for additional information.
B145: Enter yes or no to the question regarding related party transactions. If yes, then provide the required information for associated costs reported on the Financial Report tab.
B147: Related parties disclosed on the Agency Information tab automatically populate the appropriate field on this form. If adjustments to the named related parties are required, the changes must be made on the Agency Information tab.
B149: Complete the remaining required information for each Related Party Transaction.

Sheet Provider Instructions - DOC (hidden)
B1: Provider Instructions
B3: Welcome to the State of Connecticut Purchase of Service contracts workbook. The purpose of this workbook is to streamline POS contract administration processes to include; budget formulation and approval, budget revisions/amendments and approvals, and financial reporting. The workbook is designed to provide a single point of entry for required contract information and once data is entered it automatically populates throughout the workbook utilizing formulas and macros.
B4: The new process requires one workbook per POS contract and the workbook will be transmitted back and forth between the state agency and provider throughout the term of the contract, as needed. The state agency will identify a standard naming convention for contract files. The workbook contains a Provider Instructions tab with state agency specific step-by-step instructions to guide you in completing the forms. An Accounts Definitions tab is also provided to assist you in completing the budget request.
B6: To function the workbook employs extensive VBA code, triggered by user action. Some of the code enabling the required funcitionality and formatting is not compatible with versions of MS Excel priot to Excel 2007. Do not attempt to use the workbook and save data to it unless using Excel 2007 or later.
B8: The state agency that you are contracting with has already pre-configured the workbook for you. Now that you (the provider) have received the workbook, there are several tabs (forms) that must be filled out. Please note that the provider is only responsible for filling out the fields/columns that are highlighted in two lighter yellows (as indicated below) or as otherwise instructed by the State Agency.
B10: Background shading for provider input
B11: Background shading for either provider or State Agency input depending on State Agency policy or contract needs
B12: Background shading for state agency input
B13: Background shading for optional state agency input
B15: PROVIDER INFORMATION TAB
B17: A. Section #1
B18: 1. Submission Date (Row 13): Enter the date that you began work on completion of this budget.
B19: 2. Funding Start Date (Row 13): Enter the start date for the funding being provided through this budget (this date is most often July 1).
B21: B. Section #2 (Provider Agency)
B22: 1. Legal Name (Row 15): Enter your agency’s full legal business name, as filed with the Secretary of State.
B23: 2. Street Address (Rows 16-17): Enter your agency’s administrative office street address.
B24: 3. FEIN (Row 18): Enter your agency’s Federal Employment Identification Number, as filed with the IRS.
B25: 4. DUNS (Row 19): If your agency has a registered Dun & Bradstreet number, enter it here. If not, leave this row blank.
B27: C. Section #3 (Agency Director/CEO)
B28: Using Rows 23-24, enter the contact information for the agency’s Executive Director. CTDOC does not require inclusion of a fax number.
B30: D. Section #4 (Contact Person: Board of Directors)
B31: Using Rows 26-27, enter the contact information for the agency’s Board of Director contact. This does not have to be the Board President, but should be a Board member qualified to speak with CTDOC staff, should it become necessary to do so. CTDOC does not require inclusion of a fax number.
B33: E. Section #5 (Contact Person: Programmatic)
B34: Using Rows 29-30, enter the contact information for the agency’s programmatic contact. This individual should have oversight of the agency’s Program Directors. CTDOC does not require inclusion of a fax number.
B36: F. Section #6 (Contact Person: Fiscal)
B37: Using Rows 32-33, enter the contact information for the agency’s designated fiscal contact. This does not have to be the CFO, but should be someone qualified to speak with CTDOC staff regarding budgeting, financial reporting, etc. CTDOC does not require inclusion of a fax number.
B39: G. Section #7 (Contact Person: Data Reporting)
B40: CTDOC does not require completion of this section.
B42: H. Section #8 (Contact Person: RFP)
B43: Using Rows 38-39, enter the contact information for the individual the agency would like to receive CTDOC RFP Notifications. Please note that CTDOC will always send notification to the Executive Director of the agency, but if you wish to designate an additional staff member to receive such notification, this section should be completed. If the agency only wishes for the Executive Director to receive CTDOC RFP notifications, leave this section blank. CTDOC does not require inclusion of a fax number.
B44: I. Section #9 (Areas Served)
B45: CTDOC does not require completion of this section. Rows 40-47 should be left blank.
B47: J. Section #10 (Litigation)
B48: From the dropdown in Cell I48, answer the question as to whether your agency has any pending litigation against it. If the answer is ‘Yes’, using the space in Rows 49-57, provide the case number, name and a brief narrative as to the nature of the claim.
B50: K. Section #11 (Accreditation)
B51: Using Row 59, list any accreditations or specific licensures that the agency holds.
B53: L. Section #12 (Related Party Transactions)
B54: From the dropdown in Cell K60, answer the question as to whether your agency has any related party transactions (refer to OPM Cost Standards). If the answer is ‘Yes’, using the space in Rows 61-66, provide the requested information about each individual related party transaction.
B56: PROGRAM LISTING TAB
B58: CTDOC will populate Columns B and C of this tab with the program names of each program funded through this budget. Please Note: Due to the implementation of a standardized Uniform Chart of Accounts and Budget Workbook for all Connecticut state human service agencies, CTDOC will no longer allow the fiscal consolidation of programs of like type. Each individual program contracted will be listed, delineated and budgeted separately.
B60: Columns D-F should remain blank, to be used by CTDOC during amendment processes.
B62: Columns I-L should be completed by you to delineate the physical address, the on-site Program Director and the Program Director’s phone number and email address for each program listed in Column B.
B64: Columns M-P should remain blank. These columns do not apply to CTDOC contracts.
B66: SCHEDULE A SALARIES TAB
B68: This form is used to provide estimated salaries and wages information by program. Summary information from this form automatically populates fields (Salaries & Wages, Fringe Benefits) on the Budget Summary tab. This spreadsheet allows up to 300 lines.
B70: Select Maximum Required Schedule Lines (located in the upper left hand portion of the form) If the form does not have enough lines for you to enter all positions to be budgeted you may select the number of lines you wish to display in the work space from the dropdown list.
B72: This tab is designated for the delineation of all job positions and fringe benefits allocated to CTDOC programs, to include administrative (A&G) staff allocations. Completion of this tab populates the Budget Summary tab with total Salary and Wages and Fringe Benefit costs by program.
B74: Notes:
B75: The primary focus of this tab is staff time allocation to CTDOC, based on CTDOC funding allocations.
B76: Columns B and C: Encompass every position funded by CTDOC within this contract (to include A/G staff).
B77: Columns E-J: Encompass total salary information, hours worked, fringe rates for the staff member. These columns are not specific to CTDOC-funded program allocations. They are the total costs to your agency for employing that individual.
B78: Column K: Beginning in Columns K-L, and continuing for the number of programs funded through this contract, the specific costs (by program) allocated to CTDOC for each employee are delineated.
B79: Row 7: Providers may increase the number of lines availabel for entry by choosing the number needed from the box in Row 7
B81: The Schedule A Salary tab must be completed in its entirety as follows:
B82: A. Column B (Position)
B83: Each individual position allocated to CTDOC programming/funding through this contract must be listed separately within this column.
B84: Notes:
B85: 1. Only positions funded with CTDOC and/or Inmate Rent funds should be listed in Column B.
B86: 2. Jobs of like type (i.e. 7 Case Managers) cannot be consolidated on 1 line, but must be listed separately.
B87: 3. Positions that are allocated to more than 1 CTDOC-funded program may be listed as 1 entry.
B88: 4. Use the formal position title when entering in this column (i.e. do not use ‘HSW’, use ‘Human Service Worker’).
B89: 5. It is recommended to enter staffing for 1 program at a time (i.e. enter all of the CTDOC-funded staffing for the program identified in Columns K-M before entering the staffing for
B90: the program identified in Columns N-P).
B91: 6. Do not enter funding allocated for non-payrolled (contract or per diem) staff on this tab, and do not enter funding allocated for overtime on this tab.
B93: B. Column C (Name)
B94: Enter the name of the person assigned to the position delineated in Column B. CTDOC would prefer that providers utilize position numbers in this column, due to the significant staff turnover experienced on an annual basis, but if your agency does not utilize position numbers, staff name is acceptable. Use of position number also negates additional data entry by your agency staff when preparing and submitting Financial Reports and Budget Revisions from this workbook.
B96: C. Column E (Rate per Hour)
B97: This column will self calculate as you enter information into subsequent columns of this tab. The provider should not perform any data entry in this column.
B99: D. Column F (Total Hours per Week)
B100: Enter the total number of hours each position works within the agency.
B101: Notes:
B102: 1. Hours worked are based on total hours the staff member works for the agency.
B103: 2. Column F is not based on total hours allocated to CTDOC.
B104: 3. Column F is not based on total hours allocated to individual programs.
B106: E. Column G
B107: This column should remain blank.
B109: F. Column H (Annual Salary)
B110: Enter the annual salary of the position delineated for this row.
B111: Notes:
B112: 1. Annual salary is the staff member’s total salary paid by the agency.
B113: 2. Column H is not based on total salary allocated to CTDOC.
B114: 3. Column H is not based on total salary allocated to individual programs.
B116: G. Column I (Fringe Benefits %)
B117: Enter the specific fringe rate of each staff member, in totality.
B118: Notes:
B119: 1. Fringe Rate is the staff member’s total fringe rate paid by the agency.
B120: 2. Column I is not based on fringe cost allocated to CTDOC.
B121: 3. Column I is not based on total fringe allocated to individual programs.
B123: H. Column J (Annual Fringe Benefits)
B124: This column will self calculate as you enter the fringe rate percentage in Column I. The provider should not perform any data entry in this column.
B126: I. Columns K-DZ (Program-Specific Salary Information)
B127: Beginning with Column K, each program funded through this contract (as identified on the Program Listing tab) is assigned 3 separate columns.
B129: The first column designated to each program is the only column that requires data entry (Contract Program % of Time). Enter the % of time that each employee is allocated to the specific program (i.e. if the employee works a total of 40 hours per week- designated in Column F- the percentage of that time which allocated to each of the identified CTDOC programs).
B130: Once this percentage is entered (decimals not required - 5% = .05 or 5 / 60% = .6 or 60), the following 2 columns (Contract Total Salary and Contract Total Fringe Benefits) will self-calculate. The subsequent self-calculation should total your agency’s allocations for that staff member to the specific program.
B131: Notes:
B132: 1. It is possible to allocate 1 staff member/position across multiple programs within the budget, if the staff member is split funded.
B133: 2. The % allocated should only account for the time that the individual is allocated to CTDOC duties/funding. If the program is dually funded by more than 1 agency
B134: (i.e. CSSD and CTDOC), the % allocated should only include the CTDOC portion of time/funding.
B136: J. Columns EA-EC (Administrative & General Expenses)
B137: Columns EA-EC are designated for the allocation of provider staff charged to A/G costs (see OPM Cost Standards). These staff (in limited capacities) may be directly allocated to individual programs listed in this budget if they are responsible for direct service provision within the program, but should be primarily limited to routine A/G duties performed in support of the programs funded through this contract.
B139: A separate entry must be completed in Columns B-J for each A/G position funded with CTDOC dollars within this contract. Beginning with Column EA (Contract A&G % of Time), the specific CTDOC % of total allocation for the A/G position must be entered. This is the only column that requires data entry.
B141: Once this percentage is entered (decimals not required - 5% = .05 or 5 / 60% = .6 or 60), the following 2 columns (Contract A&G Salary and Contract A&G Fringe Benefits) will self-calculate. The subsequent self-calculation should total your agency’s CTDOC allocations for that staff members total A/G cost.
B142: Notes:
B143: 1. The A&G columns are not designed to break out A&G costs by program. These columns are designed to break out A&G costs by state agency total.
B144: 2. The % allocated should only account for the time that the individual is allocated to CTDOC duties/funding.
B146: K. Column ED (Total Contract Allocation)
B147: This column does not require data entry. The column represents the total amount of time that each staff member is allocated to the CTDOC contract and self-calculates based on the data entered in the previous columns. The provider should not perform any data entry in this column. If data entered in the previous columns totals to more than 100%, this column will turn red to notify you that there is an error in your calculations.
B149: L. Column EE (Subtotal Contract Program Salary)
B150: This column does not require data entry. The column represents the total portion of each staff member’s salary that is allocated to the CTDOC contract and self-calculates based on the data entered in the previous columns. The provider should not perform any data entry in this column. If data entered in the previous columns totals to more than the annual salary listed in Column H, this column will turn red to notify you that there is an error in your calculations.
B152: M. Column EF (Subtotal Contract Program Fringe)
B153: This column does not require data entry. The column represents the total portion of each staff member’s fringe that is allocated to the CTDOC contract and self-calculates based on the data entered in the previous columns. The provider should not perform any data entry in this column. If data entered in the previous columns totals to more than 100%, this column will turn red to notify you that there is an error in your calculations.
B155: N. Column EG (Subtotal Program Personnel Expense)
B156: This column does not require data entry. The column represents the total personnel expenses (salary + fringe) for each staff member that is allocated to the CTDOC contract and self-calculates based on the data entered in the previous columns. The provider should not perform any data entry in this column. If data entered in the previous columns totals to more than 100%, this column will turn red to notify you that there is an error in your calculations.
B158: O. Column EH (Subtotal A&G Expense)
B159: This column does not require data entry. The column represents the total A&G expense for each staff member allocated to the CTDOC contract and self-calculates based on the data entered in the previous columns. The provider should not perform any data entry in this column. If data entered in the previous columns totals to more than 100%, this column will turn red to notify you that there is an error in your calculations.
B161: P. Column EI (Contract Total Expense)
B162: This column does not require data entry. The column totals all of the costs allocated to CTDOC for each listed staff member and self-calculates based on data entered in the previous columns. The provider should not perform any data entry in this column. If data entered in the previous columns totals to more than 100%, this column will turn red to notify you that there is an error in your calculations.
B164: Q. Column EJ (Other Non-Contract Funding)
B165: Enter the total amount of funding not provided by CTDOC through this contract that is allocated to payment of salary/fringe of each staff member listed on this tab. If data entered in the previous columns totals to more than 100%, this column will turn red to notify you that there is an error in your calculations.
B167: R. Column EK (Total Reported Expense)
B168: This column does not require data entry. The column totals all of the costs allocated to CTDOC for each listed staff member and self-calculates based on data entered in the previous columns. The provider should not perform any data entry in this column.
B170: S. Column EL (Justification)
B171: This column is free form and allows you to enter specific justifications for the allocations listed for each staff member. CTDOC does not require completion of this column, but providers should feel free to use the column if they feel it necessary.
B173: BUDGET SUMMARY TAB
B175: This budget form, utilizing the new POS uniform chart of accounts (UCOA), is used to build the provider budget request by program for the contract. The UCOA is a menu of detailed accounts available for use. The UCOA consists of three sections; Income, Direct Expenses and Indirect Expenses. The UCOA conforms with the OPM POS Cost Standards.
B177: Once the State Agency approves and accepts the budget request, the approved budget information will be final and columns on the financial reporting and other tab(s) will automatically display the correct budget amounts. The Contract Budget tab (suitable for printing) will also be completely populated.
B179: The Budget Summary tab delineates the CTDOC income and corresponding budget allocations for each program funded under this contract. This tab is formulated using a Uniform Chart of Accounts (to be implemented for all human service agency contracting purposes), and will have already partially pre-populated with information entered from other tabs in the workbook. All programs funded under this contract should be listed separately beginning in Column F; funding provided by CTDOC should be delineated separately by program beginning in Column F (Row 18); and preliminary expenditures should be listed beginning in Column F (Row 7). Note that salary and fringe benefit amounts are automatically transferred form Schedule A Salaries.
B181: For completion purposes, the only income listed under each contracted program, should be the income provided directly from CTDOC, and any projected income from offender rent (residential programs only). Correspondingly, when completing the budget expenses, this same methodology should be utilized. Income from other sources should NOT be included on this tab.
B183: A. Rows 18-37 (4100 Series: Contract Funding)
B184: This information is specific to the funding that CTDOC is transferring to you for operation of each program under this contract. This information has already been entered by CTDOC, so the provider should not make any data entries into this section.
B186: B. Rows 39-53 (4200 Series: Other State Agency Funding)
B187: CTDOC is not requiring the disclosure of other funding sources allocated to the CTDOC-contracted program. Regardless of what other funding (i.e. DMHAS or CSSD) is allocated to the specified program, providers are instructed to leave this section blank on the CTDOC program budget columns.
B189: C. Rows 55-73 (4300 Series: Other Income)
B190: CTDOC is not requiring the disclosure of other funding sources allocated to the CTDOC-contracted program. Regardless of what other funding (i.e. fundraising, private donations) is allocated to the specified program, providers are instructed to leave this section blank on the CTDOC program budget columns.
B192: The exception to this is account code 4305 (Client/Participant Fees). CTDOC is requiring that residential programs include projected offender rent income on this line.
B194: D. Rows 76-119 (5000 Series: Direct Expenses)
B195: Using the established account codes delineated in Column D/E, detail how the funding totaled in Row 74 (beginning in Column F) will be allocated. Allocations must be broken out be program and must equal the total funding being provided by CTDOC (and where applicable, offender rent). Specific definitions for each account will be included with this budget.
B196: Notes:
B197: 1. Salaries (5100): The total salary costs for each program will be pre-populated from your completion of the Schedule A tab. The only modification necessary
B198: to this section is data entry of overtime allocations and any non-routine compensation (bonuses, payouts, etc.).
B199: 2. Fringe Benefits (5200): No data entry is required in this section. Total fringe costs for each program will be pre-populated from the Schedule A tab.
B200: 3. Contractual Services (5300): Allocations within this section should be inclusive of non-payrolled workers, subcontractor relationships, etc. Allocations should
B201: not include contracts for services (i.e. trash removal, snow removal, copiers, etc.), which will be delineated in subsequent categories of this budget.
B202: 4. Transportation (5400): This section is reserved for staff travel reimbursement and transportation of offenders. It should not be inclusive of vehicle insurance
B203: and it should not be inclusive of bus tokens reserved for dissemination to offenders.
B204: 5. Materials and Supplies (5500): This section is for supplies needed to operate program components. Office supplies should be listed under account 5504.
B205: 6. Facilities (5600): This section is reserved for the costs of operating the physical plant. This section should include any contracts held for things like trash
B206: removal, snow removal, etc.
B207: 7. Capital Expenses (5700): See OPM Cost Standards for specific examples of capital expenses.
B208: 8. Other Expenses (5800): Account 5801 should include all telephone costs. Account 5803 should be limited to household supplies.
B209: 9. Client Subsidies (5900): All funding allocated for direct provision to offenders should be listed under this account (i.e. bus tokens, food vouchers, etc.).
B211: E. Rows 123-125 (7000 Series: Indirect Expenses)
B212: This section is reserved for allocation of A&G costs. These rows are free form and require delineation by the provider. This is the section that requires providers to allocate A/G Costs by program. The section is broken down into 3 rows- Staff Salary and Wages / Fringe Benefits / All Other A/G. The total Staff Salary and Fringe Benefits delineated for all CTDOC-funded programs must not exceed the delineations on the Schedule A Salaries Tab.
B214: F. Row 131 (Excess/Shortage)
B215: CTDOC requires that each budget balance to 0. Row 131 should not show a balance of any kind upon completion of the budget for each contracted program.
B217: G. Column AU (Other Funding)
B218: CTDOC requires completion of this column to detail all other (non-contract) funding received by the provider. Any funding not provided by CTDOC through this contract must be delineated in this column, both income and expense. This is the only column in the workbook that references or requires inclusion of non-CTDOC/non-offender rent funding.
B220: BUDGET JUSTIFICATION TAB
B222: CTDOC will require a narrative explanation of costs delineated on the Budget Summary Tab. Only those accounts that have budgeted expenses shold be visible and require a narrative explanation. If you see 'N/A' in Column A of this tab you are using an unsupported version of MS Excel and should contact CTDOC for direction. Use of an unsupported version may result in data corruption, presentation problems, and/or loss of functionality.
B224: Narratives should be detailed and should follow the examples listed below:
B225: 5301 (Medical Professionals): Access to psychiatrist at $75.00 per hour for 8 hours per week. Access to APRN at $50.00 per hour for 16 hours per week.
B227: 5501 (Food): 3 meals per day for 24 residents at $1.50 per meal.
B229: CONTRACT BUDGET TAB
B231: Once the contract budget has been negotiated and approved, state agency personnel run an approval macro. The contract budget tab will be finalized, date stamped, and fully updated. The Contract Budget Tab is the approved Contract Budget that can be printed and included in the paper contract. This form will alway represent the current approved Contract Budget and only includes accounts (line items) that have dollar amounts associated with them.
B233: BUDGET REVISION TAB
B235: The budget revision form is used to submit budget revisions, as required by the OPM POS Budget Revision Policy. This form is also used to submit revised budgets required for the state agency to process contract amendments that include additions, reductions or changes to the contract budget.
B237: Enter proposed revision amounts in the CHANGE +/- column(s ) for each program(s) being revised. The overall net effect of the revision for each contract program must equal zero unless other specific instruction are provided by the state agency. If amounts are entered that do not equal zero, then the column calculated amounts will be displayed in red as an alert that something may need to be adjusted.
B239: Once the state agency receives and approves the budget revision, state agency personnel will run an approval program that automatically updates the budget column(s) on the Budget Summary tab, the approved budget column on the Financial Report tab(s), and the award amounts on the Contract Budget Tab. Each version of the budget (original and any subsequent revisions) is saved on its own tab as a history of budget versions.
B241: FR - FINANCIAL EXPENDITURE REPORT TAB(s)
B243: A Financial Expenditure Report tab is automatically created for each program listed on the Program Listing tab. The Financial Expenditure Rreports are designed to handle various reporting timeframes (e.g., monthly, quarterly, 8 month, final). The State agency will configure the workbook with the appropriate reporting timeframe based on the terms and conditions of the contract award.
B245: The approved budget column will be automatically populated from data on the Budget Summary tab.
B247: Enter the following information in the reporting period column when the Financial Expediture Report is due:
B248: 4100 CONTRACT FUNDING: Enter the amount of funding actually received from the state agency you are contracting with.
B249: 4200 OTHER STATE AGENCY FUNDING: If required by the state agency, enter the funding received from state agencies, other than the contracting agency, in support of program activities.
B250: 4300 OTHER INCOME: If required by the State Agency, enter the funding received from all other sources in support of program activities.
B251: 5000 DIRECT EXPENSES
B252: All Line Items: Enter actual direct expenses in the appropriate expense accounts.
B253: 7000 INDIRECT EXPENSES
B254: All Line Items: Enter actual indirect expenses in the appropriate expense accounts.
B255: ADDITIONAL INCOME/EXPENSE column
B256: Enter the projected income and expenses to the end of the reporting year. This amount does not include what is already reported and will be added to the reported actual income /expense amounts in the reporting period column and then subtracted from the approved budget column to calculate a projected surplus or deficit for each account and in total. This section is optional per State Agency Requirements and will only appear if required by the contracting State Agency.
B258: There are several calculated columns displayed on the right hand side of the spreadsheet. These are offered as monitoring/management tools for the provider and state agency. They will help alert for a needed budget revision and provide information about contract funding depletion rates.
B260: SALARY DETAIL REPORT TAB
B262: This form is used to provide actual salaries and wages information by program. When state agency personnel run the budget acceptance procedure, information transfers to the Salary Detail Report for the Position, Name, Rate of Pay, Hours per Week, Annual Salary, Fringe Benefit Rate, and Annual Fringe Benefits. The Provider must enter the actual total Salary and Fringe benefits only for the Reporting Period in question. This spreadsheet allows a maximun of 700 lines.
B264: The number of available lines is controled from the Schedule A Salaries tab. At least two lines will appear on the Salary Detail Report tab for each line available on the Schedule A Salary tab. This allows additional positions than those budgeted to be reported to be reported. If more lines are needed increase the number of lines as instructed on the Schedlue A Salaries tab.
B266: Enter the following information for each employee (automatically populated from the Schedule A Salaries tab):
B267: PROGRAM TOTAL SALARY: Enter total salary paid to employee during the reporting period for each of the contract programs.
B268: PROGRAM TOTAL FRINGE BENEFIT: Enter total fringe benefits paid to employee during the reporting period for each of the contract programs.
B269: A & G TOTAL SALARY: Enter total A & G salary paid to employee during the reporting period
B270: A & G TOTAL FRINGE BENEFIT: Enter total A & G fringe benefits paid to employee during the reporting period
B271: OTHER NON-CONTRACT FUNDING column: If required by the contracting state agency, enter total non-contract funding for this position (column is optional by state agency and will only appear if required by state agency)
B272: COMMENTS / NOTES Enter comments/notes for this position (see agency specific instructions)
B274: Enter the following information for each new employee (not previously recorded on Schedule A Salaries tab) after the last existing entry on the form:
B275: POSITION: Enter position title.
B276: NAME: Enter employee name. If State Agency policy allows reporting of multiple position on one line report as was done on Schedule A Salaries.
B277: RATE PER HOUR: This is a display field and shows the calculated rate of pay for the employee/position based on information entered. The formuala calcualtion uses a metric of 52.14 weeks per calendar year unless a lower number of weeks per year is entered in the WKS/YR field.
B278: TOTAL HOURS PER WEEK: Enter total hours of work per week. If State Agency policy allows grouping of multiple positions on a single line, enter as for Schedule A Salaries.
B279: WKS/YR: if less than full yr. Enter the number of total weeks you anticipate the employee/position to work (if employee works a full year, then leave this blank)
B280: ANNUAL SALARY: Enter the annual base salary for the employee/position. The base salary does not include any Fringe Benefits, Overtime, or other non-wages compensation.
B281: FRINGE BENEFITS %: Enter the total fringe benefits percentage.
... 11 more rows

Sheet WARNING (hidden)
A3: Macros must be enabled for this Workbook to function!
A4: If this notice appears when opening the Workbook you must enable Macros!
A6: DO NOT use this Workbook with Macros disabled!!!!
D8: To Enable Macros:
E9: If a yellow banner appears at the top of this sheet with a button labelled "Enable Content", PRESS it.
E10: If a window then appears asking if you want the trust this document, select "Yes".
D12: Otherwise:
E13: From the File Tab, Select "Options"
E14: Click on the button or link labelled "Trust Center"
E15: Click on the button or link labelled "Trust Center Settings"
E16: Clink on the link for Macro "Settings"
E17: Select the radio button "Enable All Macros"
E18: Close and reopen the Workbook
E19: If you successfully enabled Macros, you will not see this message upon reopening the Workbook

Sheet Provider Instructions - DMHAS
B1: Provider Instructions
B3: Welcome to the State of Connecticut Purchase of Service contracts workbook. The purpose of this workbook is to streamline POS contract administration processes to include; budget formulation and approval, budget revisions/amendments and approvals, and financial reporting. The workbook is designed to provide a single point of entry for required contract information and once data is entered it automatically populates throughout the workbook utilizing formulas and macros.
B4: The new process requires one workbook per POS contract and the workbook will be transmitted back and forth between the state agency and provider throughout the term of the contract, as needed. The state agency will identify a standard naming convention for contract files. The workbook contains a Provider Instructions tab with state agency specific step-by-step instructions to guide you in completing the forms. An Accounts Definitions tab is also provided to assist you in completing the budget request.
B6: To function the workbook employs extensive VBA code, triggered by user action. Some of the code enabling the required funcitionality and formatting is not compatible with versions of MS Excel priot to Excel 2007. Do not attempt to use the workbook and save data to it unless using Excel 2007 or later.
B8: The state agency that you are contracting with has already pre-configured the workbook for you. Now that you (the provider) have received the workbook, there are several tabs (forms) that must be filled out. Please note that the provider is only responsible for filling out the fields/columns that are highlighted in two lighter yellows (as indicated below) or as otherwise instructed by the State Agency.
B10: Background shading for provider input
B11: Background shading for either provider or State Agency input depending on State Agency policy or contract needs
B12: Background shading for state agency input
B13: Background shading for optional state agency input
B15: PROVIDER INFORMATION TAB
B17: A. Section #1
B18: 1. Submission Date (Row 13): Enter the date that you began work on completion of this budget.
B19: 2. Funding Start Date (Row 13): Enter the start date for the funding being provided through this budget (this date is most often July 1).
B21: B. Section #2 (Provider Agency)
B22: 1. Legal Name (Row 15): Enter your agency’s full legal business name, as filed with the Secretary of State.
B23: 2. Street Address (Rows 16-17): Enter your agency’s administrative office street address.
B24: 3. Contract Number (Row 18): Enter DMHAS contract number
B25: 4. FEIN (Row 19): Enter your agency’s Federal Employment Identification Number, as filed with the IRS.
B26: 5. DUNS (Row 20): If your agency has a registered Dun & Bradstreet number, enter it here. If not, leave this row blank.
B28: C. Section #3 (Agency Director/CEO)
B29: Using Rows 21-23, enter the contact information for the agency’s Executive Director. DMHAS does not require inclusion of a fax number.
B31: D. Section #4 (Contact Person: Board of Directors)
B32: Using Rows 24-26, enter the contact information for the agency’s Board of Director contact. This should be the Board President. DMHAS does not require inclusion of a fax number.
B34: E. Section #5 (Contact Person: Programmatic)
B35: Using Rows 27-29, enter the contact information for the agency’s programmatic contact. This individual should have oversight of the agency’s Program Directors. DMHAS does not require inclusion of a fax number.
B37: F. Section #6 (Contact Person: Fiscal)
B38: Using Rows 30-32, enter the contact information for the agency’s designated fiscal contact. This does not have to be the CFO, but should be someone qualified to speak with DMHAS staff regarding budgeting, financial reporting, etc. DMHAS does not require inclusion of a fax number.
B40: G. Section #7 (Contact Person: Data Reporting)
B41: Using Rows 33-35, enter the contact information for the agency’s designated Data Reporting/MIS contact. This but should be someone qualified to speak with DMHAS staff regarding data reporting issues. DMHAS does not require inclusion of a fax number.
B43: H. Section #8 (Contact Person: RFP)
B44: Using Rows 36-38, enter the contact information for the individual the agency would like to receive DMHAS RFP Notifications. Please note that DMHAS will always send notification to the Executive Director of the agency, but if you wish to designate an additional staff member to receive such notification, this section should be completed. If the agency only wishes for the Executive Director to receive DMHAS RFP notifications, leave this section blank. DMHAS does not require inclusion of a fax number.
B46: I. Section #10 (Litigation)
B47: From the dropdown in Cell I47, answer the question as to whether your agency has any pending litigation against it. If the answer is ‘Yes’, using the space in Rows 48-56, provide a brief narrative as to the nature of the claim.
B49: J. Section #11 (Accreditation)
B50: Using Row 58, list any accreditations or specific licenses that the agency holds.
B52: K. Section #12 (Related Party Transactions)
B53: From the dropdown in Cell K59, answer the question as to whether your agency has any related party transactions (refer to OPM Cost Standards). If the answer is ‘Yes’, using the space in Rows 60-65, provide the requested information about each individual related party transaction.
B55: PROGRAM LISTING TAB
B57: DMHAS will populate Columns B and C of this tab with the program names of each program funded through this budget.
B59: Columns D-F should remain blank, to be used by CTDOC during amendment processes.
B61: Columns I-L should be completed by you to delineate the physical address, the on-site Program Director and the Program Director’s phone number and email address for each program listed in Column B.
B63: SCHEDULE A SALARIES TAB
B65: This form is used to provide estimated salaries and wages information by program. Summary information from this form automatically populates fields (Salaries & Wages, Fringe Benefits) on the Budget Summary tab. This spreadsheet allows up to 300 lines.
B67: Select Maximum Required Schedule Lines (located in the upper left hand portion of the form) If the form does not have enough lines for you to enter all positions to be budgeted you may select the number of lines you wish to display in the work space from the dropdown list.
B69: This tab is designated for the delineation of all job positions and fringe benefits allocated to DMHAS-funded programs, to include administrative (A&G) staff allocations. Completion of this tab populates the Budget Summary tab with total salary/wage/fringe/admin costs by program.
B70: Notes:
B71: The primary focus of this tab is staff time allocation to DMHAS, based on DMHAS funding allocations.
B72: Columns B and C: Encompass every position funded by DMHAS within this contract (to include A/G staff).
B73: Columns E-J: Encompass total salary information, hours worked, fringe rates for the staff member. These columns are not specific to DMHAS-funded program
B74: allocations. They are the total costs to your agency for employing that individual.
B75: Column K: Beginning in Columns K-L, and continuing for the number of programs funded through this contract, the specific costs (by program) allocated to DMHAS for each employee are delineated.
B77: The Schedule A Salary tab must be completed in its entirety as follows:
B78: A. Column B (Position)
B79: Each individual position allocated to DMHAS programming/funding through this contract must be listed separately within this column.
B80: Notes:
B81: 1. Only positions in DMHAS-funded programs should be listed in Column B.
B82: 2. Jobs of like type (i.e. 7 Case Managers) cannot be consolidated on one line, but must be listed separately.
B83: 3. Positions that are allocated to more than one DMHAS-funded program may be listed as one entry.
B84: 4. Use the formal position title when entering in this column (i.e. do not use ‘HSW’, use ‘Human Service Worker’).
B85: 5. It is simplest to only enter staffing for one program at a time (i.e. enter all of the staffing for the program identified in Columns K-M before entering the staffing for the
B86: program identified in Columns N-P).
B87: 6. Do not enter funding allocated for non-payroll (contract or per diem) staff on this tab, and do not enter funding allocated for overtime on this tab.
B89: B. Column C (Name)
B90: Enter the name of the person assigned to the position delineated in Column B.
B92: C. Column D (Degree/License)
B93: Using the drop-down menu, enter the degree/license for the person assigned to the position.
B95: D. Column E (Rate per Hour)
B96: This column will self calculate as you enter information into subsequent columns of this tab. The provider should not perform any data entry in this column.
B98: E. Column F (Total Hours per Week)
B99: Enter the total number of hours each position works within the agency.
B100: Notes:
B101: 1. Hours worked are based on total hours the staff member works for the agency.
B102: 2. Column F is not based on total hours allocated to DMHAS-funded programs.
B104: F. Column G (Weeks per Year)
B105: Use this column only if the position will not be in place for the full year.
B107: G. Column H (Annual Salary)
B108: Enter the annual salary of the position delineated for this row.
B109: Notes:
B110: 1. Annual salary is the staff member’s total salary paid by the agency.
B111: 2. Column H is not based on total salary allocated to DMHAS-funded programs.
B113: H. Column I (Fringe Benefits %)
B114: Enter the specific fringe rate of each staff member, in totality.
B115: Notes:
B116: 1. Fringe Rate is the staff member’s total fringe rate paid by the agency.
B117: 2. Column I is not based on fringe cost allocated to DMHAS-funded programs.
B119: I. Column J (Annual Fringe Benefits)
B120: This column will self calculate as you enter the fringe rate percentage in Column I. The provider should not perform any data entry in this column.
B122: J. Columns K-DZ (Program-Specific Salary Information)
B123: Beginning with Column K, each program funded through this contract (as identified on the Program Listing tab) is assigned 3 separate columns.
B125: The first column designated to each program is the only column that requires data entry (Contract Program % of Time). Enter the % of time that each employee is allocated to the specific program (i.e. if the employee works a total of 40 hours per week- designated in Column F- what percentage of that time is allocated to each of the identified DMHAS-funded programs).
B127: Once this percentage is entered (decimals are not required - 5% = .05 or 5 / 60% = .6 or 60), the following 2 columns (Contract Total Salary and Contract Total Fringe Benefits) will self-calculate. The subsequent self-calculation should total your agency’s allocations for that staff member to the specific program.
B128: Notes:
B129: It is possible to allocate 1 staff member/position across multiple programs within the budget, if the staff member is split funded.
B131: K. Columns EA-EC (Administrative & General Expenses)
B132: Columns EA-EC are designated for the allocation of provider staff charged to A/G costs (see OPM Cost Standards). These staff (in limited capacities) may be directly allocated to individual programs listed in this budget if they are responsible for direct service provision within the program, but should be primarily limited to routine A/G duties performed in support of the programs funded through this contract.
B134: A separate entry must be completed in Columns B-J for each A/G position funded within this contract. Beginning with Column EA (Contract A&G % of Time), the specific DMHAS % of total allocation for the A/G position must be entered. This is the only column that requires data entry.
B136: Once this percentage is entered (decimals are not required - 5% = .05 or 5 / 60% = .6 or 60), the following 2 columns (Contract A&G Salary and Contract A&G Fringe Benefits) will self-calculate. The subsequent self-calculation should total your agency’s DMHAS allocations for that staff members total A/G cost.
B137: Notes:
B138: 1. The A&G columns are not designed to break out A&G staff costs by program. These columns are designed to break out A&G costs as a whole for this contract.
B139: 2. The % allocated should only account for the time that the individual is allocated to DMHAS-funded programs.
B141: L. Column ED (Total Contract Allocation)
B142: This column does not require data entry. The column represents the total amount of time that each staff member is allocated to the DMHAS contract and self-calculates based on the data entered in the previous columns. The provider should not perform any data entry in this column. If data entered in the previous columns totals to more than 100%, this column will turn red to notify you that there is an error in your calculations.
B144: M. Column EE (Subtotal Contract Program Salary)
B145: This column does not require data entry. The column represents the total portion of each staff member’s salary that is allocated to the DMHAS contract and self-calculates based on the data entered in the previous columns. The provider should not perform any data entry in this column. If data entered in the previous columns totals to more than the annual salary listed in Column H, this column will turn red to notify you that there is an error in your calculations.
B147: N. Column EF (Subtotal Contract Program Fringe)
B148: This column does not require data entry. The column represents the total portion of each staff member’s fringe that is allocated to the DMHAS contract and self-calculates based on the data entered in the previous columns. The provider should not perform any data entry in this column. If data entered in the previous columns totals to more than 100%, this column will turn red to notify you that there is an error in your calculations.
B150: O. Column EG (Subtotal Program Personnel Expense)
B151: This column does not require data entry. The column represents the total personnel expenses (salary + fringe) for each staff member that is allocated to the DMHAS contract and self-calculates based on the data entered in the previous columns. The provider should not perform any data entry in this column. If data entered in the previous columns totals to more than 100%, this column will turn red to notify you that there is an error in your calculations.
B153: P. Column EH (Subtotal A&G Expense)
B154: This column does not require data entry. The column represents the total A&G expense for each staff member allocated to the DMHAS contract and self-calculates based on the data entered in the previous columns. The provider should not perform any data entry in this column. If data entered in the previous columns totals to more than 100%, this column will turn red to notify you that there is an error in your calculations.
B156: Q. Column EI (Contract Total Expense)
B157: This column does not require data entry. The column totals all of the costs allocated to DMHAS for each listed staff member and self-calculates based on data entered in the previous columns. The provider should not perform any data entry in this column. If data entered in the previous columns totals to more than 100%, this column will turn red to notify you that there is an error in your calculations.
B159: R. Column EJ (Other Non-Contract Funding)
B160: Enter the total amount of funding not provided by DMHAS through this contract that is allocated to payment of salary/fringe of each staff member listed on this tab. If data entered in the previous columns totals to more than 100%, this column will turn red to notify you that there is an error in your calculations.
B162: S. Column EK (Total Reported Expense)
B163: This column does not require data entry. The column totals all of the costs allocated to DMHAS-funded programs for each listed staff member and self-calculates based on data entered in the previous columns. The provider should not perform any data entry in this column.
B165: T. Column EL (Justification)
B166: This column is free form and allows you to enter specific justifications for the allocations listed for each staff member. DMHAS does not require completion of this column, but providers should feel free to use the column if they feel it necessary.
B168: BUDGET SUMMARY TAB
B170: This budget form, utilizing the new POS uniform chart of accounts (UCOA), is used to build the provider budget request by program for the contract. The UCOA is a menu of detailed accounts available for use. The UCOA consists of three sections; Income, Direct Expenses and Indirect Expenses. The UCOA conforms with the OPM POS Cost Standards.
B172: Once the State Agency approves and accepts the budget request, the approved budget information will be final and columns on the financial reporting and other tab(s) will automatically display the correct budget amounts. The Contract Budget tab (suitable for printing) will also be completely populated.
B174: Enter the following information for each program within this contract:
B175: INCOME
B176: 4100 CONTRACT FUNDING: The state agency will normally have already populated data in this section. The subtotal of this income section should equal the total amount of this contract. If the State Agency allows provider allocation of funding this information may be entered by providers. Please refer to agency specific guidance.
B177: 4200 OTHER STATE AGENCY FUNDING: If required by the state agency for the contract, enter funding amounts from other state agencies that support the programs funded in this contract.
B178: 4300 OTHER FUNDING: If required by the state agency for the contract, enter funding amounts from other sources that support the programs funded in this contract
B179: DIRECT EXPENSES
B180: All Line Items: Enter estimated expenses in the appropriate expense accounts. Please note that 5101 Salaries and Wages and 5200 Fringe Benefits are populated automatically with data from Schedule A Salaries tab.
B181: INDIRECT EXPENSES
B182: 7111 A&G SALARIES AND WAGES: Enter the A&G Salary and Wages.
B183: 7120 A&G FRINGE BENEFITS: Enter the A&G Fringe Benefits.
B184: 7130 ALL OTHER A&G: Enter all other estimated A&G Expenses (not included in 7111 A&G Salaries and Wages and 7120 A&G Fringe Benefits.)
B186: OTHER NON-CONTRACT FUNDING column (located on the right side of the spreadsheet): Enter total non-contract funding and expenses for the provider (column is optional by state agency and will only appear if required by state agency)
B188: BUDGET JUSTIFICATION TAB
B190: The budget justification form serves as the budget narrative/justification for this contract. Only accounts that have budgeted amounts on the Budget Summary tab will be displayed on this form.
B192: Enter a justification for each budgeted account. Refer to State Agency specific guidance for a further explanation of what is required on this form.
B194: CONTRACT BUDGET TAB
B196: Once the contract budget has been negotiated and approved, state agency personnel run an approval macro. The contract budget tab will be finalized, date stamped, and fully updated. The Contract Budget Tab is the approved Contract Budget that can be printed and included in the paper contract. This form will alway represent the current approved Contract Budget and only includes accounts (line items) that have dollar amounts associated with them.
B198: BUDGET REVISION TAB
B200: The budget revision form is used to submit budget revisions, as required by the OPM POS Budget Revision Policy. This form is also used to submit revised budgets required for the state agency to process contract amendments that include additions, reductions or changes to the contract budget.
B202: Enter proposed revision amounts in the CHANGE +/- column(s ) for each program(s) being revised. The overall net effect of the revision for each contract program must equal zero unless other specific instruction are provided by the state agency. If amounts are entered that do not equal zero, then the column calculated amounts will be displayed in red as an alert that something may need to be adjusted.
B204: Once the state agency receives and approves the budget revision, state agency personnel will run an approval program that automatically updates the budget column(s) on the Budget Summary tab, the approved budget column on the Financial Report tab(s), and the award amounts on the Contract Budget Tab. Each version of the budget (original and any subsequent revisions) is saved on its own tab as a history of budget versions.
B206: FR - FINANCIAL EXPENDITURE REPORT TAB(s)
B208: A Financial Expenditure Report tab is automatically created for each program listed on the Program Listing tab. The Financial Expenditure Rreports are designed to handle various reporting timeframes (e.g., monthly, quarterly, 8 month, final). The State agency will configure the workbook with the appropriate reporting timeframe based on the terms and conditions of the contract award.
B210: The approved budget column will be automatically populated from data on the Budget Summary tab.
B212: Enter the following information in the reporting period column when the Financial Expediture Report is due:
B213: 4100 CONTRACT FUNDING: Enter the amount of funding actually received from the state agency you are contracting with.
B214: 4200 OTHER STATE AGENCY FUNDING: If required by the state agency, enter the funding received from state agencies, other than the contracting agency, in support of program activities.
B215: 4300 OTHER INCOME: If required by the State Agency, enter the funding received from all other sources in support of program activities.
B216: 5000 DIRECT EXPENSES
B217: All Line Items: Enter actual direct expenses in the appropriate expense accounts.
B218: 7000 INDIRECT EXPENSES
B219: All Line Items: Enter actual indirect expenses in the appropriate expense accounts.
B220: ADDITIONAL INCOME/EXPENSE column
B221: Enter the projected income and expenses to the end of the reporting year. This amount does not include what is already reported and will be added to the reported actual income /expense amounts in the reporting period column and then subtracted from the approved budget column to calculate a projected surplus or deficit for each account and in total. This section is optional per State Agency Requirements and will only appear if required by the contracting State Agency.
B223: There are several calculated columns displayed on the right hand side of the spreadsheet. These are offered as monitoring/management tools for the provider and state agency. They will help alert for a needed budget revision and provide information about contract funding depletion rates.
B225: SALARY DETAIL REPORT TAB
B227: This form is used to provide actual salaries and wages information by program. When state agency personnel run the budget acceptance procedure, information transfers to the Salary Detail Report for the Position, Name, Rate of Pay, Hours per Week, Annual Salary, Fringe Benefit Rate, and Annual Fringe Benefits. The Provider must enter the actual total Salary and Fringe benefits only for the Reporting Period in question. This spreadsheet allows a maximun of 700 lines.
B229: The number of available lines is controled from the Schedule A Salaries tab. At least two lines will appear on the Salary Detail Report tab for each line available on the Schedule A Salary tab. This allows additional positions than those budgeted to be reported to be reported. If more lines are needed increase the number of lines as instructed on the Schedlue A Salaries tab.
B231: Enter the following information for each employee (automatically populated from the Schedule A Salaries tab):
B232: PROGRAM TOTAL SALARY: Enter total salary paid to employee during the reporting period for each of the contract programs.
B233: PROGRAM TOTAL FRINGE BENEFIT: Enter total fringe benefits paid to employee during the reporting period for each of the contract programs.
B234: A & G TOTAL SALARY: Enter total A & G salary paid to employee during the reporting period
B235: A & G TOTAL FRINGE BENEFIT: Enter total A & G fringe benefits paid to employee during the reporting period
B236: OTHER NON-CONTRACT FUNDING column: If required by the contracting state agency, enter total non-contract funding for this position (column is optional by state agency and will only appear if required by state agency)
B237: COMMENTS / NOTES Enter comments/notes for this position (see agency specific instructions)
B239: Enter the following information for each new employee (not previously recorded on Schedule A Salaries tab) after the last existing entry on the form:
B240: POSITION: Enter position title.
B241: NAME: Enter employee name. If State Agency policy allows reporting of multiple position on one line report as was done on Schedule A Salaries.
B242: RATE PER HOUR: This is a display field and shows the calculated rate of pay for the employee/position based on information entered. The formuala calcualtion uses a metric of 52.14 weeks per calendar year unless a lower number of weeks per year is entered in the WKS/YR field.
B243: TOTAL HOURS PER WEEK: Enter total hours of work per week. If State Agency policy allows grouping of multiple positions on a single line, enter as for Schedule A Salaries.
B244: WKS/YR: if less than full yr. Enter the number of total weeks you anticipate the employee/position to work (if employee works a full year, then leave this blank)
B245: ANNUAL SALARY: Enter the annual base salary for the employee/position. The base salary does not include any Fringe Benefits, Overtime, or other non-wages compensation.
B246: FRINGE BENEFITS %: Enter the total fringe benefits percentage.
B247: PROGRAM TOTAL SALARY: Enter total salary paid to employee during the reporting period for each of the contract programs.
B248: PROGRAM TOTAL FRINGE BENEFIT: Enter total fringe paid to employee during the reporting period for each of the contract programs.
B249: A & G TOTAL SALARY: Enter total A & G salary paid to employee during the reporting period.
B250: A & G TOTAL FRINGE BENEFIT: Enter total A & G fringe benefits paid to employee during the reporting period.
B251: OTHER NON-CONTRACT FUNDING column: If required by the contracting state agency, enter total non-contract funding for this position (column is optional by state agency and will only appear if required by state agency).
B252: COMMENTS / NOTES: Enter comments/notes for this position (see state agency specific instructions).
B254: RELATED PARTIES TAB
B256: This form is used to provide information regarding related parties transactions. Please refer to the OPM POS Cost Standards for additional information.
B258: Enter yes or no to the question regarding related party transactions. If yes, then provide the required information for associated costs reported on the Financial Report tab.
B260: Related parties disclosed on the Agency Information tab automatically populate the appropriate field on this form. If adjustments to the named related parties are required, the changes must be made on the Agency Information tab.
B262: Complete the remaining required information for each Related Party Transaction.

Sheet Provider Instructions - DPH (hidden)
B1: Provider Instructions
B3: Welcome to the State of Connecticut Purchase of Service contracts workbook. The purpose of this workbook is to streamline POS contract administration processes to include; budget formulation and approval, budget revisions/amendments and approvals, and financial reporting. The workbook is designed to provide a single point of entry for required contract information and once data is entered it automatically populates throughout the workbook utilizing formulas and macros.
B4: The new process requires one workbook per POS contract and the workbook will be transmitted back and forth between the state agency and provider throughout the term of the contract, as needed. The state agency will identify a standard naming convention for contract files. The workbook contains a Provider Instructions tab with state agency specific step-by-step instructions to guide you in completing the forms. An Accounts Definitions tab is also provided to assist you in completing the budget request.
B6: To function the workbook employs extensive VBA code, triggered by user action. Some of the code enabling the required funcitionality and formatting is not compatible with versions of MS Excel priot to Excel 2007. Do not attempt to use the workbook and save data to it unless using Excel 2007 or later.
B8: The state agency that you are contracting with has already pre-configured the workbook for you. Now that you (the provider) have received the workbook, there are several tabs (forms) that must be filled out. Please note that the provider is only responsible for filling out the fields/columns that are highlighted in two lighter yellows (as indicated below) or as otherwise instructed by the State Agency.
B10: Background shading for provider input
B11: Background shading for either provider or State Agency input depending on State Agency policy or contract needs
B12: Background shading for state agency input
B13: Background shading for optional state agency input
B15: PROVIDER INFORMATION TAB
B17: 1 SUBMISSION DATE Enter the date that you submit the completed workbook to the state agency
B18: 2 PROVIDER AGENCY Enter the legal name and address of the organization as filed with the Secretary of State. Also complete other requested information i.e., FEIN#,
B19: DUNS#, and the federal funding questions.
B20: 3 AGENCY DIRECTOR/CEO Enter the required fields
B21: 4 CONTACT PERSON - BOARD OF DIRECTORS Enter the required fields
B22: 5 CONTACT PERSON - PROGRAMMATIC Enter the required fields
B23: 6 CONTACT PERSON - FISCAL Enter the required fields
B24: 7 CONTACT PERSON - DATA REPORTING/MIS Enter the required fields
B25: 8 CONTACT PERSON - RFP Enter the required fields
B26: 9 AREA(S) SERVED Enter the appropriate data as indicated on the form.
B27: 10 IS LITIGATION PENDING? Select yes or no from the dropdown menu. If yes, provide an explanation in the space provided.
B28: 11 ACCREDITATION If held list them here.
B29: 12 RELATED PARTY TRANSACTIONS? Select yes or no from the dropdown menu. If yes, provide an explanation in the space provided.
B31: PROGRAM LISTING TAB
B33: The state agency has already populated the list of program names/abbreviations included in the POS contract. For each program listed, provide the required information in the columns shaded in light yellow (columns to the right). Programs identified on this form automatically populate column(s) on the Budget Summary tab. Financial reporting tab(s) are also created for each program identified.
B35: SCHEDULE A SALARIES TAB
B37: This form is used to provide estimated salaries and wages information by program. Summary information from this form automatically populates fields (Salaries & Wages, Fringe Benefits) on the Budget Summary tab. This spreadsheet allows up to 300 lines.
B39: Select Maximum Required Schedule Lines (located in the upper left hand portion of the form) If the form does not have enough lines for you to enter all positions to be budgeted you may select the number of lines you wish to display in the work space from the dropdown list.
B41: Enter the following information for each position:
B42: POSITION: Enter position title.
B43: NAME: Enter employee name. If employee name is not known at time of budget preparation enter TBD.
B44: DEGREE/LICENSE: Enter degree(s) and licenses held by the employee from the dropdown list or if not available from the dropdown list, user can type in the field. This column will only appear if DPH requires it for the contract.
B45: RATE PER HOUR: This is a display field and shows the calculated hourly rate of pay based on the information entered. The Rate per Hour is calculated using a metric of 52.14 weeks per calendar year unless a lower number of weeks worked per year is entered in the WKS/YR field.
B46: TOTAL HOURS PER WEEK: Enter total hours of work per week.
B47: WKS/YR: if less than full yr. Enter the number of total weeks per Funding Period that you anticipate the employee to work (if employee works a full year, then leave this blank).
B48: ANNUAL SALARY: Enter the annual base salary for the employee/position. The base salary does not include any Fringe Benefits, Overtime, or other non-wages compensation.
B49: FRINGE BENEFITS %: Enter the total fringe benefits percentage for the position.
B50: ANNUAL FRINGE BENEFITS: This is a display field and shows the calculated annual fringe benefits based on the percentage of annual salary entered.
B51: CONTRACT PROGRAM % OF TIME: Enter the percent of the position's time spent on each of the displayed contract programs.
B52: CONTRACT A & G % OF TIME: Enter the percent of the position's time allocable to Administrative & General charges, if any.
B53: JUSTIFICATION: Enter justification for the position (see agency specific instructions).
B55: BUDGET SUMMARY TAB
B57: This budget form, utilizing the new POS uniform chart of accounts (UCOA), is used to build the provider budget request by program for the contract. The UCOA is a menu of detailed accounts available for use. The UCOA consists of three sections; Income, Direct Expenses and Indirect Expenses. The UCOA conforms with the OPM POS Cost Standards.
B59: Once the State Agency approves and accepts the budget request, the approved budget information will be final and columns on the financial reporting and other tab(s) will automatically display the correct budget amounts. The Contract Budget tab (suitable for printing) will also be completely populated.
B61: Enter the following information for each program within this contract:
B62: INCOME
B63: 4100 CONTRACT FUNDING: DPH will have already populated data in this section. The subtotal of this income section equals the total amount of this contract.
B64: DIRECT EXPENSES
B65: All Line Items: Enter estimated expenses in the appropriate expense accounts. Please note that 5101 Salaries and Wages and 5200 Fringe Benefits are populated automatically with data from Schedule A Salaries tab.
B66: INDIRECT EXPENSES
B67: 7111 A&G SALARIES AND WAGES: Enter the A&G Salary and Wages.
B68: 7120 A&G FRINGE BENEFITS: Enter the A&G Fringe Benefits.
B69: 7130 ALL OTHER A&G: Enter all other estimated A&G Expenses (not included in 7111 A&G Salaries and Wages and 7120 A&G Fringe Benefits.)
B71: BUDGET JUSTIFICATION TAB
B73: The budget justification form serves as the budget narrative/justification for this contract. Only accounts that have budgeted amounts on the Budget Summary tab will be displayed on this form.
B75: Enter a justification for each budgeted account. Refer to State Agency specific guidance for a further explanation of what is required on this form.
B77: CONTRACT BUDGET TAB
B79: Once the contract budget has been negotiated and approved, DPH personnel run an approval process. The contract budget tab will be finalized, date stamped, and fully updated. The Contract Budget Tab is the approved Contract Budget that can be printed and included in the paper contract. This form will alway represent the current approved Contract Budget and only includes accounts (line items) that have dollar amounts associated with them.
B81: BUDGET REVISION TAB
B83: The budget revision form is used to submit budget revisions, as required by the OPM POS Budget Revision Policy. This form is also used to submit revised budgets required by DPH to process contract amendments that include additions, reductions or changes to the contract budget.
B85: Enter proposed revision amounts in the CHANGE +/- column(s ) for each program(s) being revised. The overall net effect of the revision for each contract program must equal zero unless other specific instruction are provided by DPH. If amounts are entered that do not equal zero, then the column calculated amounts will be displayed in red as an alert that something may need to be adjusted.
B87: Once the DPH receives and approves the budget revision, DPH personnel will run an approval program that automatically updates the budget column(s) on the Budget Summary tab, the approved budget column on the Financial Report tab(s), and the award amounts on the Contract Budget Tab. Each version of the budget (original and any subsequent revisions) is saved on its own tab as a history of budget versions.
B89: FR - FINANCIAL EXPENDITURE REPORT TAB(s)
B91: A Financial Expenditure Report tab is automatically created for each program listed on the Program Listing tab. The Financial Expenditure Rreports are designed to handle various reporting timeframes (e.g., monthly, quarterly, 8 month, final). The State agency will configure the workbook with the appropriate reporting timeframe based on the terms and conditions of the contract award.
B93: The approved budget column will be automatically populated from data on the Budget Summary tab.
B95: Enter the following information in the reporting period column when the Financial Expediture Report is due:
B96: 4100 CONTRACT FUNDING: Enter the amount of funding actually received from the state agency you are contracting with.
B97: 5000 DIRECT EXPENSES
B98: All Line Items: Enter actual direct expenses in the appropriate expense accounts.
B99: 7000 INDIRECT EXPENSES
B100: All Line Items: Enter actual indirect expenses in the appropriate expense accounts.
B102: There are several calculated columns displayed on the right hand side of the spreadsheet. These are offered as monitoring/management tools for the provider and state agency. They will help alert for a needed budget revision and provide information about contract funding depletion rates.
B104: SALARY DETAIL REPORT TAB
B106: This form is used to provide actual salaries and wages information by program. When DPH personnel run the budget acceptance procedure, information transfers to the Salary Detail Report for the Position, Name, Rate of Pay, Hours per Week, Annual Salary, Fringe Benefit Rate, and Annual Fringe Benefits. The Provider must enter the actual total Salary and Fringe benefits only for the Reporting Period in question. This spreadsheet allows a maximun of 700 lines.
B108: The number of available lines is controled from the Schedule A Salaries tab. At least two lines will appear on the Salary Detail Report tab for each line available on the Schedule A Salary tab. This allows additional positions than those budgeted to be reported to be reported. If more lines are needed increase the number of lines as instructed on the Schedlue A Salaries tab.
B110: Enter the following information for each employee (automatically populated from the Schedule A Salaries tab):
B111: PROGRAM TOTAL SALARY: Enter total salary paid to employee during the reporting period for each of the contract programs.
B112: PROGRAM TOTAL FRINGE BENEFIT: Enter total fringe benefits paid to employee during the reporting period for each of the contract programs.
B113: A & G TOTAL SALARY: Enter total A & G salary paid to employee during the reporting period
B114: A & G TOTAL FRINGE BENEFIT: Enter total A & G fringe benefits paid to employee during the reporting period
B115: COMMENTS / NOTES: Enter comments/notes for this position (see agency specific instructions)
B117: Enter the following information for each new employee (not previously recorded on Schedule A Salaries tab) after the last existing entry on the form:
B118: POSITION: Enter position title.
B119: NAME: Enter employee name. If State Agency policy allows reporting of multiple position on one line report as was done on Schedule A Salaries.
B120: RATE PER HOUR: This is a display field and shows the calculated rate of pay for the employee/position based on information entered. The formuala calcualtion uses a metric of 52.14 weeks per calendar year unless a lower number of weeks per year is entered in the WKS/YR field.
B121: TOTAL HOURS PER WEEK: Enter total hours of work per week. If State Agency policy allows grouping of multiple positions on a single line, enter as for Schedule A Salaries.
B122: WKS/YR: if less than full yr. Enter the number of total weeks you anticipate the employee/position to work (if employee works a full year, then leave this blank)
B123: ANNUAL SALARY: Enter the annual base salary for the employee/position. The base salary does not include any Fringe Benefits, Overtime, or other non-wages compensation.
B124: FRINGE BENEFITS %: Enter the total fringe benefits percentage.
B125: PROGRAM TOTAL SALARY: Enter total salary paid to employee during the reporting period for each of the contract programs.
B126: PROGRAM TOTAL FRINGE BENEFIT: Enter total fringe paid to employee during the reporting period for each of the contract programs.
B127: A & G TOTAL SALARY: Enter total A & G salary paid to employee during the reporting period.
B128: A & G TOTAL FRINGE BENEFIT: Enter total A & G fringe benefits paid to employee during the reporting period.
B129: COMMENTS / NOTES: Enter comments/notes for this position (see state agency specific instructions).
B131: RELATED PARTIES TAB
B133: This form is used to provide information regarding related parties transactions. Please refer to the OPM POS Cost Standards for additional information.
B135: Enter yes or no to the question regarding related party transactions. If yes, then provide the required information for associated costs reported on the Financial Report tab.
B137: Related parties disclosed on the Agency Information tab automatically populate the appropriate field on this form. If adjustments to the named related parties are required, the changes must be made on the Agency Information tab.
B139: Complete the remaining required information for each Related Party Transaction.

Sheet Provider Instructions - DSS (hidden)
B1: Provider Instructions
B3: Welcome to the State of Connecticut Purchase of Service contracts workbook. The purpose of this workbook is to streamline POS contract administration processes to include; budget formulation and approval, budget revisions/amendments and approvals, and financial reporting. The workbook is designed to provide a single point of entry for required contract information and once data is entered it automatically populates throughout the workbook utilizing formulas and macros.
B4: The new process requires one workbook per POS contract and the workbook will be transmitted back and forth between the state agency and provider throughout the term of the contract, as needed. The state agency will identify a standard naming convention for contract files. The workbook contains a Provider Instructions tab with state agency specific step-by-step instructions to guide you in completing the forms. An Accounts Definitions tab is also provided to assist you in completing the budget request.
B6: The state agency that you are contracting with has already pre-configured the workbook for you. Now that you (the provider) have received the workbook, there are several tabs (forms) that must be filled out. Please note that the provider is only responsible for filling out the fields/columns that are highlighted in two lighter yellows (as indicated below) or as otherwise instructed by the State Agency.
B8: Background shading for provider input
B9: Background shading for either provider or State Agency input depending on State Agency policy or contract needs
B10: Background shading for state agency input
B11: Background shading for optional state agency input
B13: PROVIDER INFORMATION TAB
B15: 1 SUBMISSION DATE Enter the date that you submit the completed workbook to the state agency
B16: 2 PROVIDER AGENCY Enter the legal name and address of the organization as filed with the Secretary of State. Also complete other requested information i.e., FEIN#,
B17: DUNS#, and the federal funding questions.
B18: 3 AGENCY DIRECTOR/CEO Enter the required fields
B19: 4 CONTACT PERSON - BOARD OF DIRECTORS Enter the required fields
B20: 5 CONTACT PERSON - PROGRAMMATIC Enter the required fields
B21: 6 CONTACT PERSON - FISCAL Enter the required fields
B22: 7 CONTACT PERSON - DATA REPORTING/MIS Enter the required fields
B23: 8 CONTACT PERSON - RFP Enter the required fields
B24: 9 AREA(S) SERVED Enter the individulal towns that you serve
B25: 10 IS LITIGATION PENDING? Select yes or no from the dropdown menu. If yes, provide an explanation in the space provided.
B26: 11 ACCREDITATION DSS does not require this information, leave it blank
B27: 12 RELATED PARTY TRANSACTIONS? Select yes or no from the dropdown menu. If yes, provide an explanation in the space provided.
B29: PROGRAM LISTING TAB
B31: The state agency has already populated the list of program names/abbreviations included in the POS contract. For each program listed, provide the required information in the columns shaded in light yellow (columns to the right). Programs identified on this form automatically populate column(s) on the Budget Summary tab. Financial reporting tab(s) are also created for each program identified.
B33: SCHEDULE A SALARIES TAB
B35: This form is used to provide estimated salaries and wages information by program. Summary information from this form automatically populates fields (Salaries & Wages, Fringe Benefits) on the Budget Summary tab. This spreadsheet allows up to 300 lines.
B37: Select Maximum Required Schedule Lines (located in the upper left hand portion of the form) If the form does not have enough lines for you to enter all positions to be budgeted you may select the number of lines you wish to display in the work space from the dropdown list.
B39: Enter the following information for each position:
B40: POSITION: Enter position title. This is required.
B41: NAME: Enter employee name. If the employee name is not known at the time of budget preparatio please enter TBD.
B42: RATE PER HOUR: This is a display field and shows the calculated hourly rate of pay based on the information entered. The Rate per Hour is calculated using a metric of 52.14 weeks per calendar year unless a lower number of weeks worked per year is entered in the WKS/YR field.
B43: TOTAL HOURS PER WEEK: Enter total hours of work per week. If State Agency policy allows grouping of multiple positions enter the total hours of all positions in the group i.e., ten (10) Nurse Consultants each working 40 hours per week would be entered as 400 hours.
B44: WKS/YR: if less than full yr. Enter the number of total weeks per Funding Period that you anticipate the employee to work (if employee works a full year, then leave this blank).
B45: ANNUAL SALARY: Enter the annual base salary for the employee/position. The base salary does not include any Fringe Benefits, Overtime, or other non-wages compensation.
B46: FRINGE BENEFITS %: Enter the total fringe benefits percentage for the position.
B47: ANNUAL FRINGE BENEFITS: This is a display field and shows the calculated annual fringe benefits based on the percentage of annual salary entered.
B48: CONTRACT PROGRAM % OF TIME: Enter the percent of the position's time spent on each of the displayed contract programs.
B49: CONTRACT A & G % OF TIME: Enter the percent of the position's time allocable to Administrative & General charges, if any.
B50: OTHER NON-CONTRACT FUNDING column: Enter total non-contract funding for the position (column is optional by state agency and will only appear if the state agency configuration requires this information. Refer to specific agency policy or instructions).
B51: JUSTIFICATION: Enter justification for the position (see agency specific instructions).
B53: BUDGET SUMMARY TAB
B55: This budget form, utilizing the new POS uniform chart of accounts (UCOA), is used to build the provider budget request by program for the contract. The UCOA is a menu of detailed accounts available for use. The UCOA consists of three sections; Income, Direct Expenses and Indirect Expenses. The UCOA conforms with the OPM POS Cost Standards.
B57: Once the State Agency approves and accepts the budget request, the approved budget information will be final and columns on the financial reporting and other tab(s) will automatically display the correct budget amounts. The Contract Budget tab (suitable for printing) will also be completely populated.
B59: Enter the following information for each program within this contract:
B60: INCOME
B61: 4100 CONTRACT FUNDING: The state agency will normally have already populated data in this section. The subtotal of this income section should equal the total amount of this contract. If the State Agency allows provider allocation of funding this information may be entered by providers. Please refer to agency specific guidance.
B62: 4200 OTHER STATE AGENCY FUNDING: If required by the state agency for the contract, enter funding amounts from other state agencies that support the programs funded in this contract.
B63: 4300 OTHER FUNDING: If required by the state agency for the contract, enter funding amounts from other sources that support the programs funded in this contract
B64: DIRECT EXPENSES
B65: All Line Items: Enter estimated expenses in the appropriate expense accounts. Please note that 5101 Salaries and Wages and 5200 Fringe Benefits are populated automatically with data from Schedule A Salaries tab.
B66: INDIRECT EXPENSES
B67: 7111 A&G SALARIES AND WAGES: Enter the A&G Salary and Wages.
B68: 7120 A&G FRINGE BENEFITS: Enter the A&G Fringe Benefits.
B69: 7130 ALL OTHER A&G: Enter all other estimated A&G Expenses (not included in 7111 A&G Salaries and Wages and 7120 A&G Fringe Benefits.)
B71: OTHER NON-CONTRACT FUNDING column (located on the right side of the spreadsheet): Enter total non-contract funding and expenses for the provider (column is optional by state agency and will only appear if required by state agency)
B73: BUDGET JUSTIFICATION TAB
B75: The budget justification form serves as the budget narrative/justification for this contract. Only accounts that have budgeted amounts on the Budget Summary tab will be displayed on this form.
B77: Enter a justification for each budgeted account. Refer to State Agency specific guidance for a further explanation of what is required on this form.
B79: CONTRACT BUDGET TAB
B81: Once the contract budget has been negotiated and approved, state agency personnel run an approval process. The contract budget tab will be finalized, date stamped, and fully updated. The Contract Budget Tab is the approved Contract Budget that can be printed and included in the paper contract. This form will alway represent the current approved Contract Budget and only includes accounts (line items) that have dollar amounts associated with them.
B83: BUDGET REVISION TAB
B85: The budget revision form is used to submit budget revisions, as required by the OPM POS Budget Revision Policy. This form is also used to submit revised budgets required for the state agency to process contract amendments that include additions, reductions or changes to the contract budget.
B87: Enter proposed revision amounts in the CHANGE +/- column(s ) for each program(s) being revised. The overall net effect of the revision for each contract program must equal zero unless other specific instruction are provided by the state agency. If amounts are entered that do not equal zero, then the column calculated amounts will be displayed in red as an alert that something may need to be adjusted.
B89: Once the state agency receives and approves the budget revision, state agency personnel will run an approval program that automatically updates the budget column(s) on the Budget Summary tab, the approved budget column on the Financial Report tab(s), and the award amounts on the Contract Budget Tab. Each version of the budget (original and any subsequent revisions) is saved on its own tab as a history of budget versions.
B91: FR - FINANCIAL EXPENDITURE REPORT TAB(s)
B93: A Financial Expenditure Report tab is automatically created for each program listed on the Program Listing tab. The Financial Expenditure Rreports are designed to handle various reporting timeframes (e.g., monthly, quarterly, 8 month, final). The State agency will configure the workbook with the appropriate reporting timeframe based on the terms and conditions of the contract award. The majority of DSS contracts will use quarterly reporting timeframes.
B95: The approved budget column will be automatically populated from data on the Budget Summary tab.
B97: Enter the following information in the reporting period column when the Financial Expediture Report is due:
B98: 4100 CONTRACT FUNDING: Enter the amount of funding actually received from the state agency you are contracting with.
B99: 4200 OTHER STATE AGENCY FUNDING: If required by the state agency, enter the funding received from state agencies, other than the contracting agency, in support of program activities.
B100: 4300 OTHER INCOME: If required by the State Agency, enter the funding received from all other sources in support of program activities.
B101: 5000 DIRECT EXPENSES
B102: All Line Items: Enter actual direct expenses in the appropriate expense accounts.
B103: 7000 INDIRECT EXPENSES
B104: All Line Items: Enter actual indirect expenses in the appropriate expense accounts.
B105: ADDITIONAL INCOME/EXPENSE column
B106: Enter the projected income and expenses to the end of the reporting year. This amount does not include what is already reported and will be added to the reported actual income /expense amounts in the reporting period column and then subtracted from the approved budget column to calculate a projected surplus or deficit for each account and in total. This section is optional per State Agency Requirements and will only appear if required by the contracting State Agency.
B108: There are several calculated columns displayed on the right hand side of the spreadsheet. These are offered as monitoring/management tools for the provider and state agency. They will help alert for a needed budget revision and provide information about contract funding depletion rates.
B110: SALARY DETAIL REPORT TAB
B112: This form is used to provide actual salaries and wages information by program. When state agency personnel run the budget acceptance procedure, information transfers to the Salary Detail Report for the Position, Name, Rate of Pay, Hours per Week, Annual Salary, Fringe Benefit Rate, and Annual Fringe Benefits. The Provider must enter the actual total Salary and Fringe benefits only for the Reporting Period in question. This spreadsheet allows a maximun of 700 lines.
B114: The number of available lines is controled from the Schedule A Salaries tab. At least two lines will appear on the Salary Detail Report tab for each line available on the Schedule A Salary tab. This allows additional positions than those budgeted to be reported to be reported. If more lines are needed increase the number of lines as instructed on the Schedlue A Salaries tab.
B116: Enter the following information for each employee (automatically populated from the Schedule A Salaries tab):
B117: PROGRAM TOTAL SALARY: Enter total salary paid to employee during the reporting period for each of the contract programs.
B118: PROGRAM TOTAL FRINGE BENEFIT: Enter total fringe benefits paid to employee during the reporting period for each of the contract programs.
B119: A & G TOTAL SALARY: Enter total A & G salary paid to employee during the reporting period
B120: A & G TOTAL FRINGE BENEFIT: Enter total A & G fringe benefits paid to employee during the reporting period
B121: OTHER NON-CONTRACT FUNDING column: Enter total non-contract funding supporting this position to ensure that the person is paid 100% based upon all funding arrangements.
B122: COMMENTS / NOTES: Enter comments/notes for this position.
B124: Enter the following information for each new employee (not previously recorded on Schedule A Salaries tab) after the last existing entry on the form:
B125: POSITION: Enter position title.
B126: NAME: Enter employee name. If State Agency policy allows reporting of multiple position on one line report as was done on Schedule A Salaries.
B127: RATE PER HOUR: This is a display field and shows the calculated rate of pay for the employee/position based on information entered. The formuala calcualtion uses a metric of 52.14 weeks per calendar year unless a lower number of weeks per year is entered in the WKS/YR field.
B128: TOTAL HOURS PER WEEK: Enter total hours of work per week. If State Agency policy allows grouping of multiple positions on a single line, enter as for Schedule A Salaries.
B129: WKS/YR: if less than full yr. Enter the number of total weeks you anticipate the employee/position to work (if employee works a full year, then leave this blank)
B130: ANNUAL SALARY: Enter the annual base salary for the employee/position. The base salary does not include any Fringe Benefits, Overtime, or other non-wages compensation.
B131: FRINGE BENEFITS %: Enter the total fringe benefits percentage.
B132: PROGRAM TOTAL SALARY: Enter total salary paid to employee during the reporting period for each of the contract programs.
B133: PROGRAM TOTAL FRINGE BENEFIT: Enter total fringe paid to employee during the reporting period for each of the contract programs.
B134: A & G TOTAL SALARY: Enter total A & G salary paid to employee during the reporting period.
B135: A & G TOTAL FRINGE BENEFIT: Enter total A & G fringe benefits paid to employee during the reporting period.
B136: OTHER NON-CONTRACT FUNDING column: Enter total non-contract funding supporting this position to ensure that the person is paid 100% based upon all funding arrangements.
B137: COMMENTS / NOTES: Enter comments/notes for this position.
B139: RELATED PARTIES TAB
B141: This form is used to provide information regarding related parties transactions. Please refer to the OPM POS Cost Standards for additional information.
B143: Enter yes or no to the question regarding related party transactions. If yes, then provide the required information for associated costs reported on the Financial Report tab.
B145: Related parties disclosed on the Agency Information tab automatically populate the appropriate field on this form. If adjustments to the named related parties are required, the changes must be made on the Agency Information tab.
B147: Complete the remaining required information for each Related Party Transaction.

Sheet Account Definitions
A2: Account Definitions
A4: 4000 | B4: INCOME
C6: Account Name | F6: Definition
B7: 4100 | C7: CONTRACT FUNDING | E7: SID | F7: Funding provided by the state agency with whom you are contracting. The subtotal of 4100 Contract Funding section should equal the total funding for the contract
C8: 4101 | D8: State Funds
C9: 4101 | D9: State Funds
C10: 4101 | D10: State Funds
C11: 4101 | D11: State Funds
C12: 4101 | D12: State Funds
C13: 4101 | D13: State Funds
C14: 4101 | D14: State Funds
C15: 4101 | D15: State Funds
C16: 4101 | D16: State Funds
C17: 4101 | D17: State Funds
C18: 4102 | D18: Federal/Other Funds | F18: Federal and other funding passed through the State agency to the provider
C19: 4102 | D19: Federal/Other Funds
C20: 4102 | D20: Federal/Other Funds
C21: 4102 | D21: Federal/Other Funds
C22: 4102 | D22: Federal/Other Funds
C23: 4102 | D23: Federal/Other Funds
C24: 4102 | D24: Federal/Other Funds
C25: 4102 | D25: Federal/Other Funds
C26: 4102 | D26: Federal/Other Funds
C27: 4102 | D27: Federal/Other Funds
B28: 4200 | C28: OTHER STATE AGENCY FUNDING | F28: Additional funding provided by other state agencies for programs funded within the contract
C29: 4201 | D29: Aging
C30: 4202 | D30: Children and Families
C31: 4203 | D31: Correction
C32: 4204 | D32: Developmental Services
C33: 4205 | D33: Education
C34: 4206 | D34: Energy and Environmental Protection
C35: 4207 | D35: Housing
C36: 4208 | D36: Labor
C37: 4209 | D37: Mental Health and Addiction Services
C38: 4210 | D38: Public Health
C39: 4211 | D39: Rehabilitation Services
C40: 4212 | D40: Social Services
C41: 4213 | D41: Court Support Services Division (CSSD)
C42: 4214 | D42: Other (specify in narrative)
C43: 4215 | D43: Other (specify in narrative)
B44: 4300 | C44: OTHER INCOME | F44: All other income (not in the above 4100 Contract Funding or 4200 Other State Agency Funding categories) for the programs funded within the contract
C45: 4301 | D45: Direct Federal Funds
C46: 4302 | D46: Direct Private Foundation Grants
C47: 4303 | D47: Municipal Funds | F47: Funds received from towns or cities
C48: 4304 | D48: Investment/Interest Income
C49: 4305 | D49: Client/Participant Fees | F49: Fees or subsidies collected directly from the client/participant
C50: 4306 | D50: In-Kind | F50: Non-cash contributions
C51: 4307 | D51: United Way
C52: 4308 | D52: Service Fees | F52: Per diem rate/fees
C53: 4309 | D53: Title XIX (Husky A) | F53: HUSKY A qualified reimbursement for certain services
C54: 4310 | D54: Husky B | F54: HUSKY B qualified reimbursement for cost-sharing (premiums, co-payments and co-insurance) for certain services
C55: 4311 | D55: Section 8 Vouchers
C56: 4312 | D56: Lia Medicaid
C57: 4313 | D57: Fundraising | F57: Fundraising is defined as the organization’s efforts to raise capital or obtain contributions (e.g., cash, non-cash assets, services, time, gifts, grants) through financial campaigns, endowment drives, or other forms of solicitation.
C58: 4314 | D58: Donations | F58: Donated goods is defined as items or merchandise furnished free of charge to the organization (such as expendable personal properties, supplies, or use of space). Donated services is defined as assistance given free of charge to the organization by professional or technical personnel, consultants, skilled or unskilled labor, or other volunteers.
C59: 4315 | D59: Insurance
C60: 4316 | D60: Other (specify in narrative)
C61: 4317 | D61: Other (specify in narrative)
C62: 4318 | D62: Other (specify in narrative)
C63: 4319 | D63: Other (specify in narrative)
A64: 5000 | B64: DIRECT EXPENSES
B65: 5100 | C65: SALARIES
C66: 5101 | D66: Staff Salaries & Wages | F66: Compensation for personal services is defined as all amounts paid currently or accrued by the organization for services of employees rendered during the period of performance of the State award. Includes per diem paid through payroll. Excludes overtime and non-routine compensation.
C67: 5102 | D67: Overtime | F67: Overtime is defined as work in excess of the maximum regular hours of work, extra-pay shifts, or multi-shift work in accordance with established, written organizational policies.
C68: 5103 | D68: Non-Routine Comp. (specify in narrative) | F68: Incentive compensation is defined as payments to employees based on established written organizational policies (e.g., cost reduction, efficient performance, suggestion awards, safety awards). Includes severance pay.
B69: 5200 | C69: FRINGE BENEFITS | F69: Employer contributions or expenses for social security, health insurance, retirement plans, workers’ compensation, short-term or long-term disability, life insurance, health savings account, training, or tuition reimbursement; employer contributions or expenses for social security, health insurance, retirement plans, workers’ compensation, short-term or long-term disability, life insurance, health savings account, training, or tuition reimbursement; provisions for a reserve under self-insurance for unemployment compensation, workers’ compensation, or health insurance;
B70: 5300 | C70: CONTRACTUAL SERVICES | F70: Professional and consultant services is defined as paid work performed by persons who are members of a particular profession or possess a special skill and who are not officers or employees of the organization
C71: 5301 | D71: Medical Professional
C72: 5302 | D72: Behavioral Health Professional
C73: 5303 | D73: Contracted Workers - Non-Payroll | F73: Includes per diem paid through a contract
C74: 5304 | D74: Other Contractual (specify in narrative)
B75: 5400 | C75: TRANSPORTATION
C76: 5401 | D76: Staff Travel Reimbursement | F76: Travel is defined as transportation, lodging, food, or related items connected with trips taken within the continental United States (domestic) or outside the continental United States (foreign) by employees who are on official business of the organization.
C77: 5402 | D77: Vehicle Leases
C78: 5403 | D78: Vehicle Maintenance
C79: 5404 | D79: Other Transportation (specify in narrative)
B80: 5500 | C80: MATERIALS AND SUPPLIES | F80: Materials and supplies is defined as commodities, goods, or other consumables obtained from outside suppliers and used in the performance of the State award.
C81: 5501 | D81: Food | F81: Food provided to clients in a state funded program.
C82: 5502 | D82: Lab & Medical Supplies | F82: Other than the costs associated with drug testing (see account 5805)
C83: 5503 | D83: Equipment (Less than $5,000) | F83: Equipment is defined as nonexpendable, tangible personal (non-real estate) property with a normal useful life of at least one year. Expenditures for equipment with an acquisition cost of $5,000 or greater are considered capital expenditures. The unamortized portion of any equipment written off as a result of a change in capitalization levels may be recovered by continuing to claim the depreciation on the equipment or by amortizing the amount to be written off over a period of years as agreed to by the awarding agency.
C84: 5504 | D84: Other Mtrls and Sppls (specify in narrative) | F84: Includes office and program supplies.
B85: 5600 | C85: FACILITIES
C86: 5601 | D86: Rent and Real Estate Taxes | F86: Fair market rate is defined as the rate determined to be reasonable in light of such factors as rental costs of comparable property, if any; market conditions in the area; alternatives available; and the type, life expectancy, condition, and value of the property leased. Taxes is defined as payments the organization is required to make that are paid or accrued in accordance with GAAP.
C87: 5602 | D87: Security | F87: Security is defined as the precautionary measures taken by the organization to guard or protect its clients, employees, or property against crime or other dangers.
C88: 5603 | D88: Maintenance & Repair - Facility and Plant | F88: Maintenance and repair is defined as: necessary preservation, care, or upkeep of buildings or equipment (including State property unless otherwise provided for) that neither add to the permanent value of the property nor appreciably prolong its intended life, but keep it in an efficient operating condition.
C89: 5604 | D89: Utilities | F89: Includes HVAC, light and power, water and sewer. Excludes communications (see account 5801)
C90: 5605 | D90: Other Facilities (specify in narrative)
B91: 5700 | C91: CAPITAL EXPENSES (> $5,000)
C92: 5701 | D92: Capital Equipment | F92: Expenditures for equipment with an acquisition cost of $5,000 or greater are considered capital expenditures and are unallowable, except with prior approval of the awarding agency
C93: 5702 | D93: Depreciation | F93: Depreciation is defined as a noncash expense that reduces the value of an asset as a result of wear and tear, age, or obsolescence. When the depreciation method is used for buildings, a building’s shell may be segregated from each building component (e.g., plumbing system, heating, air conditioning system) and each item depreciated over its estimated useful life; or the entire building (i.e., the shell and all components) may be treated as a single asset and depreciated over a single useful life.
C94: 5703 | D94: Other Capital (specify in narrative)
B95: 5800 | C95: OTHER EXPENSES
C96: 5801 | D96: Communications | F96: Communications is defined as wire line telecommunication services (e.g., corded or cordless telephones), wireless telecommunication services (e.g., cellular or digital phones, pagers, two-way radios), postage, e-mail services, internet services, web sites, or other electronic communication devices or services. Includes cable services.
C97: 5802 | D97: Insurance | F97: Insurance is defined as: protection against potential financial loss that the organization is required to carry; or any other such protection that the organization maintains in connection with the general conduct of its operations. The definition does not include insurance that represents fringe benefits for employees
C98: 5803 | D98: Housekeeping | F98: Costs associated with the cleanliness of the interior of a premise.
C99: 5804 | D99: Staff Training and Conferences | F99: Conferences and meetings is defined as conducting, sponsoring, or convening formal gatherings (e.g., forums, panels, roundtables, seminars, symposiums), including those related to the general administration of the organization. Training is defined as the preparation or provision of instruction, including, but not limited to, on-the job, classroom, or apprenticeship training designed to develop or improve employee job-related skills. Excludes staff travel for training (see account 5401).
C100: 5805 | D100: Drug Testing | F100: Client drug testing. Includes urinalysis, Breathalyzer, swabs.
C101: 5806 | D101: Other (specify in narrative)
B102: 5900 | C102: CLIENT SUBSIDIES | F102: Client support is defined as travel allowances, recreation expenses, participation incentives (such as movie passes) or other expenses to encourage or enable clients to attend program-related events.
C103: 5901 | D103: Transportation
C104: 5902 | D104: Nutrition/Food Vouchers
C105: 5903 | D105: Education
C106: 5904 | D106: Housing
C107: 5905 | D107: Personal Items
C108: 5906 | D108: Other Client Subsidies (specify in narrative)
C109: TOTAL DIRECT EXPENSES
A110: 7000 | B110: INDIRECT EXPENSES
B111: 7100 | C111: ADMINISTRATIVE & GENERAL | F111: A&G costs are those that have been incurred for common or joint objectives and cannot be readily identified with a particular final cost objective. Because of the diverse characteristics and accounting practices of organizations, it is not possible to specify the types of cost that may be classified as A&G costs in all situations. In addition, there is no universal definition of A&G costs in federal OMB circulars, GAAP, or other cost accounting standards. Therefore, for the purposes of these cost standards, A&G is defined as those costs that have been incurred for the overall executive and administrative offices of the organization or other expenses of a general nature that do not relate solely to any major cost objective of the organization. They are costs that by their nature are administrative in support of the overall organization. These costs must be identified and defined in the provider board approve cost allocation plan.
C112: 7110 | D112: Staff Salaries & Wages | F112: Staff salaries and wages allocable to A&G
C113: 7120 | D113: Fringe Benefits | F113: Fringe benefit costs allocable to A&G
D114: All Other A&G | F114: All other A& G costs not included in accounts 7110 or 7120. Includes, but is not limited to, operation and maintenance expenses, depreciation, and interest costs, etc.

Sheet PROVIDER INFORMATION
B2: ='AGENCY INFORMATION'!$E$9 -> Department of Mental Health and Addiction Services
B3: ='AGENCY INFORMATION'!$F$10 & IF(ISBLANK(VLOOKUP('AGENCY INFORMATION'!$E$9, Agency_Address, 3, FALSE)),"",", " & 'AGENCY INFORMATION'!$F$11) & ", " & 'AGENCY INFORMATION'!$F$12 -> 410 Capitol Avenue, Hartford, CT 06106
B4: Human Service Contract Provider General Information
C7: CONTRACT NUMBER: | D7: =IF(ISBLANK('CONTRACT INFORMATION'!$D$7),"",'CONTRACT INFORMATION'!$D$7) -> MHA0000
C8: CONTRACT PERIOD: | D8: =TEXT('CONTRACT INFORMATION'!$H$7,"mm/dd/yyyy") & " through " &TEXT('CONTRACT INFORMATION'!$K$7, "mm/dd/yyyy") -> 07/01/2011 through 06/30/2016
C9: FUNDING PERIOD: | D9: =TEXT('CONTRACT INFORMATION'!$H$8,"mm/dd/yyyy") & " through " &TEXT('CONTRACT INFORMATION'!$K$8, "mm/dd/yyyy") -> 07/01/2014 through 06/30/2015
B10: STATE FISCAL YR. (SFY): | D10: =Fiscal_Year -> 2015
B12: 1 | C12: SUBMISSION DATE: | H12: FUNDING START DATE:
C13: 2014-04-15 | H13: ='CONTRACT INFORMATION'!$H$8 -> 2014-07-01
B14: 2 | C14: PROVIDER AGENCY | D14: (Please enter the LEGAL NAME and address of organization as filed with the Secretary of State):
C15: LEGAL NAME: | D15: Lincoln Hospital Incorporated
C16: STREET ADDRESS: | D16: 1 Lincoln Rd
C17: TOWN/CITY/STATE/ZIP: | D17: Lincoln, CT 00000
C18: FEIN/SSN/Town Code: | F18: Fiscal Year End: | G18: June | H18: Set-Aside: | I18: None
C19: DUNS: | F19: Incorporated: | G19: Yes | H19: Org. Type: | I19: Non-Profit | J19: =IF(I19="Other", "Enter Type: ", "") -> 
C20: 80 percent or more of annual gross revenues are from U.S. federal contracts, subcontracts, loans, grants, sub grants, and/or cooperative agreements? | K20: No
C21: $25,000,000 or more in annual gross revenues are from U.S. federal contracts, subcontracts, loans, grants, sub grants, and/or cooperative agreements? | K21: No
B22: 3 | C22: AGENCY DIRECTOR/CEO: | H22: Telephone No: | I22: (XXX)-XXX-XXXX
C23: Name: | D23: John Smith | H23: Fax No:
C24: Title: | D24: President & CEO | H24: E-Mail: | I24: john.smith@linhosp.com
B25: 4 | C25: CONTACT PERSON - BOARD OF DIRECTORS: | H25: Telephone No:
C26: Name: | H26: Fax No:
C27: Title: | H27: E-Mail:
B28: 5 | C28: CONTACT PERSON - PROGRAMMATIC: | H28: Telephone No: | I28: (XXX)-XXX-XXXX
C29: Name: | D29: Joe Smith | H29: Fax No:
C30: Title: | D30: Directions of Operations | H30: E-Mail:
B31: 6 | C31: CONTACT PERSON - FISCAL: | H31: Telephone No: | I31: (XXX)-XXX-XXXX
C32: Name: | D32: Ron Smith | H32: Fax No:
C33: Title: | D33: Financial Analyst | H33: E-Mail:
B34: 7 | C34: CONTACT PERSON - DATA REPORTING/MIS: | H34: Telephone No:
C35: Name: | H35: Fax No:
C36: Title: | H36: E-Mail:
B37: 8 | C37: CONTACT PERSON - RFP: | H37: Telephone No:
C38: Name: | H38: Fax No:
C39: Title: | H39: E-Mail:
B40: 9 | C40: AREA(S) SERVED:
C41: STATEWIDE: | D41: No
C42: CATCHMENT AREAS (List): | F42: CITYS/TOWNS (List): | I42: REGIONS (List):
B48: 10 | C48: IS LITIGATION PENDING ON ANY OF THE APPLICANT ORGANIZATION’S PROGRAMS? IF YES, EXPLAIN? | I48: No
B58: 11 | C58: ACCREDITATION (List):
B60: 12 | C60: DOES YOUR ORGANIZATION HAVE ANY RELATED PARTY TRANSACTIONS? If YES, list all related parties under common control and the purpose for each. | K60: No
C61: RELATED PARTY: | G61: PURPOSE: <----------------------->
G62: <------------------>
G63: <------------------>
G64: <------------------>
G65: <------------------>
G66: <------------------>

Sheet PROGRAM LISTING
B2: ='AGENCY INFORMATION'!$E$9 -> Department of Mental Health and Addiction Services
B3: ='AGENCY INFORMATION'!$F$10 & IF(ISBLANK(VLOOKUP('AGENCY INFORMATION'!$E$9, Agency_Address, 3, FALSE)),"",", " & 'AGENCY INFORMATION'!$F$11) & ", " & 'AGENCY INFORMATION'!$F$12 -> 410 Capitol Avenue, Hartford, CT 06106
B4: Human Service Contract Program Listing
B7: CONTRACT NUMBER: | C7: =IF(ISBLANK('CONTRACT INFORMATION'!$D$7),"",'CONTRACT INFORMATION'!$D$7) -> MHA0000
B8: CONTRACT PERIOD: | C8: =TEXT('CONTRACT INFORMATION'!$H$7,"mm/dd/yyyy") & " through " &TEXT('CONTRACT INFORMATION'!$K$7, "mm/dd/yyyy") -> 07/01/2011 through 06/30/2016
B9: FUNDING PERIOD: | C9: =TEXT('CONTRACT INFORMATION'!$H$8,"mm/dd/yyyy") & " through " &TEXT('CONTRACT INFORMATION'!$K$8, "mm/dd/yyyy") -> 07/01/2014 through 06/30/2015
B10: STATE FISCAL YEAR (SFY): | C10: =Fiscal_Year -> 2015
A12: PROGRAM NUMBER | B12: PROGRAM NAME | C12: ABBREVIATION (This Entry is Required and Limited to 28 Characters) | D12: FUNDING PERIOD START (Enter if Different than Funding Period Above) | E12: FUNDING PERIOD END (Enter if Different than Funding Period Above) | F12: REPORTING REQUIREMENT (Enter if Different than Contract Reporting) | G12: Level of Care | H12: DDAP Code | I12: PROGRAM LOCATION (SPECIFIC ADDRESS WHERE SERVICES ARE DELIVERED) | J12: PROGRAM DIRECTOR/LIAISON | K12: TELEPHONE | L12: E-MAIL ADDRESS | M12: PROGRAM FISCAL LIAISON | N12: TELEPHONE | O12: E-MAIL ADDRESS | P12: DAYS & HOURS OF OPERATION
A14: 1 | B14: Chemical Abuse Program | C14: CAP | G14: AS OUTPATIENT | H14: L999999999 | I14: 440 North South Street, Lincoln, CT 00000 | J14: John Doe | K14: XXX_XXX_XXXX | L14: ABC@DEF | M14: James Doe | N14: XXX-XXX-XXXX | O14: ABC@DEF | P14: Monday through Friday 9am to 5pm
A15: 2
A16: 3
A17: 4
A18: 5
A19: 6
A20: 7
A21: 8
A22: 9
A23: 10
A24: 11
A25: 12
A26: 13
A27: 14
A28: 15
A29: 16
A30: 17
A31: 18
A32: 19
A33: 20
A34: 21
A35: 22
A36: 23
A37: 24
A38: 25
A39: 26
A40: 27
A41: 28
A42: 29
A43: 30
A44: 31
A45: 32
A46: 33
A47: 34
A48: 35
A49: 36
A50: 37
A51: 38
A52: 39
A53: 40

Sheet Schedule A Salaries
B2: ='AGENCY INFORMATION'!$E$9 -> Department of Mental Health and Addiction Services
B3: ='AGENCY INFORMATION'!$F$10 & IF(ISBLANK(VLOOKUP('AGENCY INFORMATION'!$E$9, Agency_Address, 3, FALSE)),"",", " & 'AGENCY INFORMATION'!$F$11) & ", " & 'AGENCY INFORMATION'!$F$12 -> 410 Capitol Avenue, Hartford, CT 06106
B4: Human Service Contract Position Schedule
B6: Select Maximum Required Schedule Lines:
B7: CONTRACT NUMBER: | C7: =IF(ISBLANK('CONTRACT INFORMATION'!$D$7),"",'CONTRACT INFORMATION'!$D$7) -> MHA0000 | E7: 25 Lines
B8: CONTRACT PERIOD: | C8: =TEXT('CONTRACT INFORMATION'!$H$7,"mm/dd/yyyy") & " through " &TEXT('CONTRACT INFORMATION'!$K$7, "mm/dd/yyyy") -> 07/01/2011 through 06/30/2016
B9: FUNDING PERIOD: | C9: =TEXT('CONTRACT INFORMATION'!$H$8,"mm/dd/yyyy") & " through " &TEXT('CONTRACT INFORMATION'!$K$8, "mm/dd/yyyy") -> 07/01/2014 through 06/30/2015
B10: STATE FISCAL YEAR (SFY): | C10: =Fiscal_Year -> 2015
B11: PROVIDER: | C11: =IF(ISBLANK('PROVIDER INFORMATION'!$D$15),"",'PROVIDER INFORMATION'!$D$15) -> Lincoln Hospital Incorporated
K12: Program/Service
B13: SALARIES/WAGES & FRINGE BENEFITS | K13: ='PROGRAM LISTING'!$C$14 -> CAP | N13: ='PROGRAM LISTING'!$C$15 -> 0 | Q13: ='PROGRAM LISTING'!$C$16 -> 0 | T13: ='PROGRAM LISTING'!$C$17 -> 0 | W13: ='PROGRAM LISTING'!$C$18 -> 0 | Z13: ='PROGRAM LISTING'!$C$19 -> 0 | AC13: ='PROGRAM LISTING'!$C$20 -> 0 | AF13: ='PROGRAM LISTING'!$C$21 -> 0 | AI13: ='PROGRAM LISTING'!$C$22 -> 0 | AL13: ='PROGRAM LISTING'!$C$23 -> 0 | AO13: ='PROGRAM LISTING'!$C$24 -> 0 | AR13: ='PROGRAM LISTING'!$C$25 -> 0 | AU13: ='PROGRAM LISTING'!$C$26 -> 0 | AX13: ='PROGRAM LISTING'!$C$27 -> 0 | BA13: ='PROGRAM LISTING'!$C$28 -> 0 | BD13: ='PROGRAM LISTING'!$C$29 -> 0 | BG13: ='PROGRAM LISTING'!$C$30 -> 0 | BJ13: ='PROGRAM LISTING'!$C$31 -> 0 | BM13: ='PROGRAM LISTING'!$C$32 -> 0 | BP13: ='PROGRAM LISTING'!$C$33 -> 0 | BS13: ='PROGRAM LISTING'!$C$34 -> 0 | BV13: ='PROGRAM LISTING'!$C$35 -> 0 | BY13: ='PROGRAM LISTING'!$C$36 -> 0 | CB13: ='PROGRAM LISTING'!$C$37 -> 0 | CE13: ='PROGRAM LISTING'!$C$38 -> 0 | CH13: ='PROGRAM LISTING'!$C$39 -> 0 | CK13: ='PROGRAM LISTING'!$C$40 -> 0 | CN13: ='PROGRAM LISTING'!$C$41 -> 0 | CQ13: ='PROGRAM LISTING'!$C$42 -> 0 | CT13: ='PROGRAM LISTING'!$C$43 -> 0 | CW13: ='PROGRAM LISTING'!$C$44 -> 0 | CZ13: ='PROGRAM LISTING'!$C$45 -> 0 | DC13: ='PROGRAM LISTING'!$C$46 -> 0 | DF13: ='PROGRAM LISTING'!$C$47 -> 0 | DI13: ='PROGRAM LISTING'!$C$48 -> 0 | DL13: ='PROGRAM LISTING'!$C$49 -> 0 | DO13: ='PROGRAM LISTING'!$C$50 -> 0 | DR13: ='PROGRAM LISTING'!$C$51 -> 0 | DU13: ='PROGRAM LISTING'!$C$52 -> 0 | DX13: ='PROGRAM LISTING'!$C$53 -> 0 | EA13: Administrative & General Expenses
K14: =IF(ISBLANK('PROGRAM LISTING'!$G14),"", 'PROGRAM LISTING'!$G14) -> AS OUTPATIENT | N14: =IF(ISBLANK('PROGRAM LISTING'!$G15),"", 'PROGRAM LISTING'!$G15) ->  | Q14: =IF(ISBLANK('PROGRAM LISTING'!$G16),"", 'PROGRAM LISTING'!$G16) ->  | T14: =IF(ISBLANK('PROGRAM LISTING'!$G17),"", 'PROGRAM LISTING'!$G17) ->  | W14: =IF(ISBLANK('PROGRAM LISTING'!$G18),"", 'PROGRAM LISTING'!$G18) ->  | Z14: =IF(ISBLANK('PROGRAM LISTING'!$G19),"", 'PROGRAM LISTING'!$G19) ->  | AC14: =IF(ISBLANK('PROGRAM LISTING'!$G20),"", 'PROGRAM LISTING'!$G20) ->  | AF14: =IF(ISBLANK('PROGRAM LISTING'!$G21),"", 'PROGRAM LISTING'!$G21) ->  | AI14: =IF(ISBLANK('PROGRAM LISTING'!$G22),"", 'PROGRAM LISTING'!$G22) ->  | AL14: =IF(ISBLANK('PROGRAM LISTING'!$G23),"", 'PROGRAM LISTING'!$G23) ->  | AO14: =IF(ISBLANK('PROGRAM LISTING'!$G24),"", 'PROGRAM LISTING'!$G24) ->  | AR14: =IF(ISBLANK('PROGRAM LISTING'!$G25),"", 'PROGRAM LISTING'!$G25) ->  | AU14: =IF(ISBLANK('PROGRAM LISTING'!$G26),"", 'PROGRAM LISTING'!$G26) ->  | AX14: =IF(ISBLANK('PROGRAM LISTING'!$G27),"", 'PROGRAM LISTING'!$G27) ->  | BA14: =IF(ISBLANK('PROGRAM LISTING'!$G28),"", 'PROGRAM LISTING'!$G28) ->  | BD14: =IF(ISBLANK('PROGRAM LISTING'!$G29),"", 'PROGRAM LISTING'!$G29) ->  | BG14: =IF(ISBLANK('PROGRAM LISTING'!$G30),"", 'PROGRAM LISTING'!$G30) ->  | BJ14: =IF(ISBLANK('PROGRAM LISTING'!$G31),"", 'PROGRAM LISTING'!$G31) ->  | BM14: =IF(ISBLANK('PROGRAM LISTING'!$G32),"", 'PROGRAM LISTING'!$G32) ->  | BP14: =IF(ISBLANK('PROGRAM LISTING'!$G33),"", 'PROGRAM LISTING'!$G33) ->  | BS14: =IF(ISBLANK('PROGRAM LISTING'!$G34),"", 'PROGRAM LISTING'!$G34) ->  | BV14: =IF(ISBLANK('PROGRAM LISTING'!$G35),"", 'PROGRAM LISTING'!$G35) ->  | BY14: =IF(ISBLANK('PROGRAM LISTING'!$G36),"", 'PROGRAM LISTING'!$G36) ->  | CB14: =IF(ISBLANK('PROGRAM LISTING'!$G37),"", 'PROGRAM LISTING'!$G37) ->  | CE14: =IF(ISBLANK('PROGRAM LISTING'!$G38),"", 'PROGRAM LISTING'!$G38) ->  | CH14: =IF(ISBLANK('PROGRAM LISTING'!$G39),"", 'PROGRAM LISTING'!$G39) ->  | CK14: =IF(ISBLANK('PROGRAM LISTING'!$G40),"", 'PROGRAM LISTING'!$G40) ->  | CN14: =IF(ISBLANK('PROGRAM LISTING'!$G41),"", 'PROGRAM LISTING'!$G41) ->  | CQ14: =IF(ISBLANK('PROGRAM LISTING'!$G42),"", 'PROGRAM LISTING'!$G42) ->  | CT14: =IF(ISBLANK('PROGRAM LISTING'!$G43),"", 'PROGRAM LISTING'!$G43) ->  | CW14: =IF(ISBLANK('PROGRAM LISTING'!$G44),"", 'PROGRAM LISTING'!$G44) ->  | CZ14: =IF(ISBLANK('PROGRAM LISTING'!$G45),"", 'PROGRAM LISTING'!$G45) ->  | DC14: =IF(ISBLANK('PROGRAM LISTING'!$G46),"", 'PROGRAM LISTING'!$G46) ->  | DF14: =IF(ISBLANK('PROGRAM LISTING'!$G47),"", 'PROGRAM LISTING'!$G47) ->  | DI14: =IF(ISBLANK('PROGRAM LISTING'!$G48),"", 'PROGRAM LISTING'!$G48) ->  | DL14: =IF(ISBLANK('PROGRAM LISTING'!$G49),"", 'PROGRAM LISTING'!$G49) ->  | DO14: =IF(ISBLANK('PROGRAM LISTING'!$G50),"", 'PROGRAM LISTING'!$G50) ->  | DR14: =IF(ISBLANK('PROGRAM LISTING'!$G51),"", 'PROGRAM LISTING'!$G51) ->  | DU14: =IF(ISBLANK('PROGRAM LISTING'!$G52),"", 'PROGRAM LISTING'!$G52) ->  | DX14: =IF(ISBLANK('PROGRAM LISTING'!$G53),"", 'PROGRAM LISTING'!$G53) -> 
K15: =IF(ISBLANK('PROGRAM LISTING'!$H14), "", "DDAP = " &'PROGRAM LISTING'!$H14) -> DDAP = L999999999 | N15: =IF(ISBLANK('PROGRAM LISTING'!$H15), "", "DDAP = " &'PROGRAM LISTING'!$H15) ->  | Q15: =IF(ISBLANK('PROGRAM LISTING'!$H16), "", "DDAP = " &'PROGRAM LISTING'!$H16) ->  | T15: =IF(ISBLANK('PROGRAM LISTING'!$H17), "", "DDAP = " &'PROGRAM LISTING'!$H17) ->  | W15: =IF(ISBLANK('PROGRAM LISTING'!$H18), "", "DDAP = " &'PROGRAM LISTING'!$H18) ->  | Z15: =IF(ISBLANK('PROGRAM LISTING'!$H19), "", "DDAP = " &'PROGRAM LISTING'!$H19) ->  | AC15: =IF(ISBLANK('PROGRAM LISTING'!$H20), "", "DDAP = " &'PROGRAM LISTING'!$H20) ->  | AF15: =IF(ISBLANK('PROGRAM LISTING'!$H21), "", "DDAP = " &'PROGRAM LISTING'!$H21) ->  | AI15: =IF(ISBLANK('PROGRAM LISTING'!$H22), "", "DDAP = " &'PROGRAM LISTING'!$H22) ->  | AL15: =IF(ISBLANK('PROGRAM LISTING'!$H23), "", "DDAP = " &'PROGRAM LISTING'!$H23) ->  | AO15: =IF(ISBLANK('PROGRAM LISTING'!$H24), "", "DDAP = " &'PROGRAM LISTING'!$H24) ->  | AR15: =IF(ISBLANK('PROGRAM LISTING'!$H25), "", "DDAP = " &'PROGRAM LISTING'!$H25) ->  | AU15: =IF(ISBLANK('PROGRAM LISTING'!$H26), "", "DDAP = " &'PROGRAM LISTING'!$H26) ->  | AX15: =IF(ISBLANK('PROGRAM LISTING'!$H27), "", "DDAP = " &'PROGRAM LISTING'!$H27) ->  | BA15: =IF(ISBLANK('PROGRAM LISTING'!$H28), "", "DDAP = " &'PROGRAM LISTING'!$H28) ->  | BD15: =IF(ISBLANK('PROGRAM LISTING'!$H29), "", "DDAP = " &'PROGRAM LISTING'!$H29) ->  | BG15: =IF(ISBLANK('PROGRAM LISTING'!$H30), "", "DDAP = " &'PROGRAM LISTING'!$H30) ->  | BJ15: =IF(ISBLANK('PROGRAM LISTING'!$H31), "", "DDAP = " &'PROGRAM LISTING'!$H31) ->  | BM15: =IF(ISBLANK('PROGRAM LISTING'!$H32), "", "DDAP = " &'PROGRAM LISTING'!$H32) ->  | BP15: =IF(ISBLANK('PROGRAM LISTING'!$H33), "", "DDAP = " &'PROGRAM LISTING'!$H33) ->  | BS15: =IF(ISBLANK('PROGRAM LISTING'!$H34), "", "DDAP = " &'PROGRAM LISTING'!$H34) ->  | BV15: =IF(ISBLANK('PROGRAM LISTING'!$H35), "", "DDAP = " &'PROGRAM LISTING'!$H35) ->  | BY15: =IF(ISBLANK('PROGRAM LISTING'!$H36), "", "DDAP = " &'PROGRAM LISTING'!$H36) ->  | CB15: =IF(ISBLANK('PROGRAM LISTING'!$H37), "", "DDAP = " &'PROGRAM LISTING'!$H37) ->  | CE15: =IF(ISBLANK('PROGRAM LISTING'!$H38), "", "DDAP = " &'PROGRAM LISTING'!$H38) ->  | CH15: =IF(ISBLANK('PROGRAM LISTING'!$H39), "", "DDAP = " &'PROGRAM LISTING'!$H39) ->  | CK15: =IF(ISBLANK('PROGRAM LISTING'!$H40), "", "DDAP = " &'PROGRAM LISTING'!$H40) ->  | CN15: =IF(ISBLANK('PROGRAM LISTING'!$H41), "", "DDAP = " &'PROGRAM LISTING'!$H41) ->  | CQ15: =IF(ISBLANK('PROGRAM LISTING'!$H42), "", "DDAP = " &'PROGRAM LISTING'!$H42) ->  | CT15: =IF(ISBLANK('PROGRAM LISTING'!$H43), "", "DDAP = " &'PROGRAM LISTING'!$H43) ->  | CW15: =IF(ISBLANK('PROGRAM LISTING'!$H44), "", "DDAP = " &'PROGRAM LISTING'!$H44) ->  | CZ15: =IF(ISBLANK('PROGRAM LISTING'!$H45), "", "DDAP = " &'PROGRAM LISTING'!$H45) ->  | DC15: =IF(ISBLANK('PROGRAM LISTING'!$H46), "", "DDAP = " &'PROGRAM LISTING'!$H46) ->  | DF15: =IF(ISBLANK('PROGRAM LISTING'!$H47), "", "DDAP = " &'PROGRAM LISTING'!$H47) ->  | DI15: =IF(ISBLANK('PROGRAM LISTING'!$H48), "", "DDAP = " &'PROGRAM LISTING'!$H48) ->  | DL15: =IF(ISBLANK('PROGRAM LISTING'!$H49), "", "DDAP = " &'PROGRAM LISTING'!$H49) ->  | DO15: =IF(ISBLANK('PROGRAM LISTING'!$H50), "", "DDAP = " &'PROGRAM LISTING'!$H50) ->  | DR15: =IF(ISBLANK('PROGRAM LISTING'!$H51), "", "DDAP = " &'PROGRAM LISTING'!$H51) ->  | DU15: =IF(ISBLANK('PROGRAM LISTING'!$H52), "", "DDAP = " &'PROGRAM LISTING'!$H52) ->  | DX15: =IF(ISBLANK('PROGRAM LISTING'!$H53), "", "DDAP = " &'PROGRAM LISTING'!$H53) -> 
B16: Position Title | C16: Name | D16: Degree/ License | E16: Rate Per Hour | F16: Total Hours Per Wk | G16: Wks/Yr (if less than full Yr) | H16: Base Annual Salary (Scheduled Wages Only) | I16: Fringe Benefits % | J16: Annual Fringe Benefits | K16: Contract Program % of Time | L16: Contract Total Salary | M16: Contract Total Fringe Benefit | N16: Contract Program % of Time | O16: Contract Total Salary | P16: Contract Total Fringe Benefit | Q16: Contract Program % of Time | R16: Contract Total Salary | S16: Contract Total Fringe Benefit | T16: Contract Program % of Time | U16: Contract Total Salary | V16: Contract Total Fringe Benefit | W16: Contract Program % of Time | X16: Contract Total Salary | Y16: Contract Total Fringe Benefit | Z16: Contract Program % of Time | AA16: Contract Total Salary | AB16: Contract Total Fringe Benefit | AC16: Contract Program % of Time | AD16: Contract Total Salary | AE16: Contract Total Fringe Benefit | AF16: Contract Program % of Time | AG16: Contract Total Salary | AH16: Contract Total Fringe Benefit | AI16: Contract Program % of Time | AJ16: Contract Total Salary | AK16: Contract Total Fringe Benefit | AL16: Contract Program % of Time | AM16: Contract Total Salary | AN16: Contract Total Fringe Benefit | AO16: Contract Program % of Time | AP16: Contract Total Salary | AQ16: Contract Total Fringe Benefit | AR16: Contract Program % of Time | AS16: Contract Total Salary | AT16: Contract Total Fringe Benefit | AU16: Contract Program % of Time | AV16: Contract Total Salary | AW16: Contract Total Fringe Benefit | AX16: Contract Program % of Time | AY16: Contract Total Salary | AZ16: Contract Total Fringe Benefit | BA16: Contract Program % of Time | BB16: Contract Total Salary | BC16: Contract Total Fringe Benefit | BD16: Contract Program % of Time | BE16: Contract Total Salary | BF16: Contract Total Fringe Benefit | BG16: Contract Program % of Time | BH16: Contract Total Salary | BI16: Contract Total Fringe Benefit | BJ16: Contract Program % of Time | BK16: Contract Total Salary | BL16: Contract Total Fringe Benefit | BM16: Contract Program % of Time | BN16: Contract Total Salary | BO16: Contract Total Fringe Benefit | BP16: Contract Program % of Time | BQ16: Contract Total Salary | BR16: Contract Total Fringe Benefit | BS16: Contract Program % of Time | BT16: Contract Total Salary | BU16: Contract Total Fringe Benefit | BV16: Contract Program % of Time | BW16: Contract Total Salary | BX16: Contract Total Fringe Benefit | BY16: Contract Program % of Time | BZ16: Contract Total Salary | CA16: Contract Total Fringe Benefit | CB16: Contract Program % of Time | CC16: Contract Total Salary | CD16: Contract Total Fringe Benefit | CE16: Contract Program % of Time | CF16: Contract Total Salary | CG16: Contract Total Fringe Benefit | CH16: Contract Program % of Time | CI16: Contract Total Salary | CJ16: Contract Total Fringe Benefit | CK16: Contract Program % of Time | CL16: Contract Total Salary | CM16: Contract Total Fringe Benefit | CN16: Contract Program % of Time | CO16: Contract Total Salary | CP16: Contract Total Fringe Benefit | CQ16: Contract Program % of Time | CR16: Contract Total Salary | CS16: Contract Total Fringe Benefit | CT16: Contract Program % of Time | CU16: Contract Total Salary | CV16: Contract Total Fringe Benefit | CW16: Contract Program % of Time | CX16: Contract Total Salary | CY16: Contract Total Fringe Benefit | CZ16: Contract Program % of Time | DA16: Contract Total Salary | DB16: Contract Total Fringe Benefit | DC16: Contract Program % of Time | DD16: Contract Total Salary | DE16: Contract Total Fringe Benefit | DF16: Contract Program % of Time | DG16: Contract Total Salary | DH16: Contract Total Fringe Benefit | DI16: Contract Program % of Time | DJ16: Contract Total Salary | DK16: Contract Total Fringe Benefit | DL16: Contract Program % of Time | DM16: Contract Total Salary | DN16: Contract Total Fringe Benefit | DO16: Contract Program % of Time | DP16: Contract Total Salary | DQ16: Contract Total Fringe Benefit | DR16: Contract Program % of Time | DS16: Contract Total Salary | DT16: Contract Total Fringe Benefit | DU16: Contract Program % of Time | DV16: Contract Total Salary | DW16: Contract Total Fringe Benefit | DX16: Contract Program % of Time | DY16: Contract Total Salary | DZ16: Contract Total Fringe Benefit | EA16: Contract A&G % of Time | EB16: Contract A&G Salary | EC16: Contract A&G Fringe Benefit | ED16: Total Contract Allocation | EE16: Subtotal of Contract Program Salary | EF16: Subtotal of Contract Program Fringe Bnft. | EG16: Subtotal of Program Personnel Expense | EH16: Subtotal of A&G Expense | EI16: CONTRACT TOTAL EXPENSE | EJ16: OTHER NON- CONTRACT FUNDING | EK16: TOTAL REPORTED EXPENSE | EL16: Justification
B17: Psychological Clinician | C17: John Smith | D17: LADC | E17: =IF(ISERROR(H17/IF(ISBLANK(G17), 52.14, G17)/F17), "", H17/IF(ISBLANK(G17), 52.14, G17)/F17) -> 30.95212409 | F17: 32 | H17: 51643 | I17: 0.28 | J17: =H17*I17 -> 14460.04 | K17: 0.5 | L17: =$H17*K17 -> 25821.5 | M17: =$J17*K17 -> 7230.02 | O17: =$H17*N17 -> 0 | P17: =$J17*N17 -> 0 | R17: =$H17*Q17 -> 0 | S17: =$J17*Q17 -> 0 | U17: =$H17*T17 -> 0 | V17: =$J17*T17 -> 0 | X17: =$H17*W17 -> 0 | Y17: =$J17*W17 -> 0 | AA17: =$H17*Z17 -> 0 | AB17: =$J17*Z17 -> 0 | AD17: =$H17*AC17 -> 0 | AE17: =$J17*AC17 -> 0 | AG17: =$H17*AF17 -> 0 | AH17: =$J17*AF17 -> 0 | AJ17: =$H17*AI17 -> 0 | AK17: =$J17*AI17 -> 0 | AM17: =$H17*AL17 -> 0 | AN17: =$J17*AL17 -> 0 | AP17: =$H17*AO17 -> 0 | AQ17: =$J17*AO17 -> 0 | AS17: =$H17*AR17 -> 0 | AT17: =$J17*AR17 -> 0 | AV17: =$H17*AU17 -> 0 | AW17: =$J17*AU17 -> 0 | AY17: =$H17*AX17 -> 0 | AZ17: =$J17*AX17 -> 0 | BB17: =$H17*BA17 -> 0 | BC17: =$J17*BA17 -> 0 | BE17: =$H17*BD17 -> 0 | BF17: =$J17*BD17 -> 0 | BH17: =$H17*BG17 -> 0 | BI17: =$J17*BG17 -> 0 | BK17: =$H17*BJ17 -> 0 | BL17: =$J17*BJ17 -> 0 | BN17: =$H17*BM17 -> 0 | BO17: =$J17*BM17 -> 0 | BQ17: =$H17*BP17 -> 0 | BR17: =$J17*BP17 -> 0 | BT17: =$H17*BS17 -> 0 | BU17: =$J17*BS17 -> 0 | BW17: =$H17*BV17 -> 0 | BX17: =$J17*BV17 -> 0 | BZ17: =$H17*BY17 -> 0 | CA17: =$J17*BY17 -> 0 | CC17: =$H17*CB17 -> 0 | CD17: =$J17*CB17 -> 0 | CF17: =$H17*CE17 -> 0 | CG17: =$J17*CE17 -> 0 | CI17: =$H17*CH17 -> 0 | CJ17: =$J17*CH17 -> 0 | CL17: =$H17*CK17 -> 0 | CM17: =$J17*CK17 -> 0 | CO17: =$H17*CN17 -> 0 | CP17: =$J17*CN17 -> 0 | CR17: =$H17*CQ17 -> 0 | CS17: =$J17*CQ17 -> 0 | CU17: =$H17*CT17 -> 0 | CV17: =$J17*CT17 -> 0 | CX17: =$H17*CW17 -> 0 | CY17: =$J17*CW17 -> 0 | DA17: =$H17*CZ17 -> 0 | DB17: =$J17*CZ17 -> 0 | DD17: =$H17*DC17 -> 0 | DE17: =$J17*DC17 -> 0 | DG17: =$H17*DF17 -> 0 | DH17: =$J17*DF17 -> 0 | DJ17: =$H17*DI17 -> 0 | DK17: =$J17*DI17 -> 0 | DM17: =$H17*DL17 -> 0 | DN17: =$J17*DL17 -> 0 | DP17: =$H17*DO17 -> 0 | DQ17: =$J17*DO17 -> 0 | DS17: =$H17*DR17 -> 0 | DT17: =$J17*DR17 -> 0 | DV17: =$H17*DU17 -> 0 | DW17: =$J17*DU17 -> 0 | DY17: =$H17*DX17 -> 0 | DZ17: =$J17*DX17 -> 0 | EB17: =$H17*EA17 -> 0 | EC17: =$J17*EA17 -> 0 | ED17: =K17+N17+Q17+T17+W17+Z17+AC17+AF17+AI17+AL17+AO17+AR17+AU17+AX17+BA17+BD17+BG17+BJ17+BM17+BP17+BS17+BV17+BY17+CB17+CE17+CH17+CK17+CN17+CQ17+CT17+CW17+CZ17+DC17+DF17+DI17+DL17+DO17+DR17+DU17+DX17+EA17 -> 0.5 | EE17: =L17+O17+R17+U17+X17+AA17+AD17+AG17+AJ17+AM17+AP17+AS17+AV17+AY17+BB17+BE17+BH17+BK17+BN17+BQ17+BT17+BW17+BZ17+CC17+CF17+CI17+CL17+CO17+CR17+CU17+CX17+DA17+DD17+DG17+DJ17+DM17+DP17+DS17+DV17+DY17 -> 25821.5 | EF17: =M17+P17+S17+V17+Y17+AB17+AE17+AH17+AK17+AN17+AQ17+AT17+AW17+AZ17+BC17+BF17+BI17+BL17+BO17+BR17+BU17+BX17+CA17+CD17+CG17+CJ17+CM17+CP17+CS17+CV17+CY17+DB17+DE17+DH17+DK17+DN17+DQ17+DT17+DW17+DZ17 -> 7230.02 | EG17: =EE17+EF17 -> 33051.52 | EH17: =SUM(EB17:EC17) -> 0 | EI17: =SUM(EG17:EH17) -> 33051.52 | EK17: =EI17+EJ17 -> 33051.52
B18: Social Worker | D18: LCSW | E18: =IF(ISERROR(H18/IF(ISBLANK(G18), 52.14, G18)/F18), "", H18/IF(ISBLANK(G18), 52.14, G18)/F18) -> 20.09493671 | F18: 36 | H18: 37719 | I18: 0.28 | J18: =H18*I18 -> 10561.32 | K18: 0.5 | L18: =$H18*K18 -> 18859.5 | M18: =$J18*K18 -> 5280.66 | O18: =$H18*N18 -> 0 | P18: =$J18*N18 -> 0 | R18: =$H18*Q18 -> 0 | S18: =$J18*Q18 -> 0 | U18: =$H18*T18 -> 0 | V18: =$J18*T18 -> 0 | X18: =$H18*W18 -> 0 | Y18: =$J18*W18 -> 0 | AA18: =$H18*Z18 -> 0 | AB18: =$J18*Z18 -> 0 | AD18: =$H18*AC18 -> 0 | AE18: =$J18*AC18 -> 0 | AG18: =$H18*AF18 -> 0 | AH18: =$J18*AF18 -> 0 | AJ18: =$H18*AI18 -> 0 | AK18: =$J18*AI18 -> 0 | AM18: =$H18*AL18 -> 0 | AN18: =$J18*AL18 -> 0 | AP18: =$H18*AO18 -> 0 | AQ18: =$J18*AO18 -> 0 | AS18: =$H18*AR18 -> 0 | AT18: =$J18*AR18 -> 0 | AV18: =$H18*AU18 -> 0 | AW18: =$J18*AU18 -> 0 | AY18: =$H18*AX18 -> 0 | AZ18: =$J18*AX18 -> 0 | BB18: =$H18*BA18 -> 0 | BC18: =$J18*BA18 -> 0 | BE18: =$H18*BD18 -> 0 | BF18: =$J18*BD18 -> 0 | BH18: =$H18*BG18 -> 0 | BI18: =$J18*BG18 -> 0 | BK18: =$H18*BJ18 -> 0 | BL18: =$J18*BJ18 -> 0 | BN18: =$H18*BM18 -> 0 | BO18: =$J18*BM18 -> 0 | BQ18: =$H18*BP18 -> 0 | BR18: =$J18*BP18 -> 0 | BT18: =$H18*BS18 -> 0 | BU18: =$J18*BS18 -> 0 | BW18: =$H18*BV18 -> 0 | BX18: =$J18*BV18 -> 0 | BZ18: =$H18*BY18 -> 0 | CA18: =$J18*BY18 -> 0 | CC18: =$H18*CB18 -> 0 | CD18: =$J18*CB18 -> 0 | CF18: =$H18*CE18 -> 0 | CG18: =$J18*CE18 -> 0 | CI18: =$H18*CH18 -> 0 | CJ18: =$J18*CH18 -> 0 | CL18: =$H18*CK18 -> 0 | CM18: =$J18*CK18 -> 0 | CO18: =$H18*CN18 -> 0 | CP18: =$J18*CN18 -> 0 | CR18: =$H18*CQ18 -> 0 | CS18: =$J18*CQ18 -> 0 | CU18: =$H18*CT18 -> 0 | CV18: =$J18*CT18 -> 0 | CX18: =$H18*CW18 -> 0 | CY18: =$J18*CW18 -> 0 | DA18: =$H18*CZ18 -> 0 | DB18: =$J18*CZ18 -> 0 | DD18: =$H18*DC18 -> 0 | DE18: =$J18*DC18 -> 0 | DG18: =$H18*DF18 -> 0 | DH18: =$J18*DF18 -> 0 | DJ18: =$H18*DI18 -> 0 | DK18: =$J18*DI18 -> 0 | DM18: =$H18*DL18 -> 0 | DN18: =$J18*DL18 -> 0 | DP18: =$H18*DO18 -> 0 | DQ18: =$J18*DO18 -> 0 | DS18: =$H18*DR18 -> 0 | DT18: =$J18*DR18 -> 0 | DV18: =$H18*DU18 -> 0 | DW18: =$J18*DU18 -> 0 | DY18: =$H18*DX18 -> 0 | DZ18: =$J18*DX18 -> 0 | EB18: =$H18*EA18 -> 0 | EC18: =$J18*EA18 -> 0 | ED18: =K18+N18+Q18+T18+W18+Z18+AC18+AF18+AI18+AL18+AO18+AR18+AU18+AX18+BA18+BD18+BG18+BJ18+BM18+BP18+BS18+BV18+BY18+CB18+CE18+CH18+CK18+CN18+CQ18+CT18+CW18+CZ18+DC18+DF18+DI18+DL18+DO18+DR18+DU18+DX18+EA18 -> 0.5 | EE18: =L18+O18+R18+U18+X18+AA18+AD18+AG18+AJ18+AM18+AP18+AS18+AV18+AY18+BB18+BE18+BH18+BK18+BN18+BQ18+BT18+BW18+BZ18+CC18+CF18+CI18+CL18+CO18+CR18+CU18+CX18+DA18+DD18+DG18+DJ18+DM18+DP18+DS18+DV18+DY18 -> 18859.5 | EF18: =M18+P18+S18+V18+Y18+AB18+AE18+AH18+AK18+AN18+AQ18+AT18+AW18+AZ18+BC18+BF18+BI18+BL18+BO18+BR18+BU18+BX18+CA18+CD18+CG18+CJ18+CM18+CP18+CS18+CV18+CY18+DB18+DE18+DH18+DK18+DN18+DQ18+DT18+DW18+DZ18 -> 5280.66 | EG18: =EE18+EF18 -> 24140.16 | EH18: =SUM(EB18:EC18) -> 0 | EI18: =SUM(EG18:EH18) -> 24140.16 | EK18: =EI18+EJ18 -> 24140.16
B19: Nurse | D19: RN | E19: 42.39547372 | F19: 32 | H19: 70736 | I19: 0.28 | J19: =H19*I19 -> 19806.08 | K19: 0.75 | L19: =$H19*K19 -> 53052 | M19: =$J19*K19 -> 14854.56 | O19: =$H19*N19 -> 0 | P19: =$J19*N19 -> 0 | R19: =$H19*Q19 -> 0 | S19: =$J19*Q19 -> 0 | U19: =$H19*T19 -> 0 | V19: =$J19*T19 -> 0 | X19: =$H19*W19 -> 0 | Y19: =$J19*W19 -> 0 | AA19: =$H19*Z19 -> 0 | AB19: =$J19*Z19 -> 0 | AD19: =$H19*AC19 -> 0 | AE19: =$J19*AC19 -> 0 | AG19: =$H19*AF19 -> 0 | AH19: =$J19*AF19 -> 0 | AJ19: =$H19*AI19 -> 0 | AK19: =$J19*AI19 -> 0 | AM19: =$H19*AL19 -> 0 | AN19: =$J19*AL19 -> 0 | AP19: =$H19*AO19 -> 0 | AQ19: =$J19*AO19 -> 0 | AS19: =$H19*AR19 -> 0 | AT19: =$J19*AR19 -> 0 | AV19: =$H19*AU19 -> 0 | AW19: =$J19*AU19 -> 0 | AY19: =$H19*AX19 -> 0 | AZ19: =$J19*AX19 -> 0 | BB19: =$H19*BA19 -> 0 | BC19: =$J19*BA19 -> 0 | BE19: =$H19*BD19 -> 0 | BF19: =$J19*BD19 -> 0 | BH19: =$H19*BG19 -> 0 | BI19: =$J19*BG19 -> 0 | BK19: =$H19*BJ19 -> 0 | BL19: =$J19*BJ19 -> 0 | BN19: =$H19*BM19 -> 0 | BO19: =$J19*BM19 -> 0 | BQ19: =$H19*BP19 -> 0 | BR19: =$J19*BP19 -> 0 | BT19: =$H19*BS19 -> 0 | BU19: =$J19*BS19 -> 0 | BW19: =$H19*BV19 -> 0 | BX19: =$J19*BV19 -> 0 | BZ19: =$H19*BY19 -> 0 | CA19: =$J19*BY19 -> 0 | CC19: =$H19*CB19 -> 0 | CD19: =$J19*CB19 -> 0 | CF19: =$H19*CE19 -> 0 | CG19: =$J19*CE19 -> 0 | CI19: =$H19*CH19 -> 0 | CJ19: =$J19*CH19 -> 0 | CL19: =$H19*CK19 -> 0 | CM19: =$J19*CK19 -> 0 | CO19: =$H19*CN19 -> 0 | CP19: =$J19*CN19 -> 0 | CR19: =$H19*CQ19 -> 0 | CS19: =$J19*CQ19 -> 0 | CU19: =$H19*CT19 -> 0 | CV19: =$J19*CT19 -> 0 | CX19: =$H19*CW19 -> 0 | CY19: =$J19*CW19 -> 0 | DA19: =$H19*CZ19 -> 0 | DB19: =$J19*CZ19 -> 0 | DD19: =$H19*DC19 -> 0 | DE19: =$J19*DC19 -> 0 | DG19: =$H19*DF19 -> 0 | DH19: =$J19*DF19 -> 0 | DJ19: =$H19*DI19 -> 0 | DK19: =$J19*DI19 -> 0 | DM19: =$H19*DL19 -> 0 | DN19: =$J19*DL19 -> 0 | DP19: =$H19*DO19 -> 0 | DQ19: =$J19*DO19 -> 0 | DS19: =$H19*DR19 -> 0 | DT19: =$J19*DR19 -> 0 | DV19: =$H19*DU19 -> 0 | DW19: =$J19*DU19 -> 0 | DY19: =$H19*DX19 -> 0 | DZ19: =$J19*DX19 -> 0 | EB19: =$H19*EA19 -> 0 | EC19: =$J19*EA19 -> 0 | ED19: =K19+N19+Q19+T19+W19+Z19+AC19+AF19+AI19+AL19+AO19+AR19+AU19+AX19+BA19+BD19+BG19+BJ19+BM19+BP19+BS19+BV19+BY19+CB19+CE19+CH19+CK19+CN19+CQ19+CT19+CW19+CZ19+DC19+DF19+DI19+DL19+DO19+DR19+DU19+DX19+EA19 -> 0.75 | EE19: =L19+O19+R19+U19+X19+AA19+AD19+AG19+AJ19+AM19+AP19+AS19+AV19+AY19+BB19+BE19+BH19+BK19+BN19+BQ19+BT19+BW19+BZ19+CC19+CF19+CI19+CL19+CO19+CR19+CU19+CX19+DA19+DD19+DG19+DJ19+DM19+DP19+DS19+DV19+DY19 -> 53052 | EF19: =M19+P19+S19+V19+Y19+AB19+AE19+AH19+AK19+AN19+AQ19+AT19+AW19+AZ19+BC19+BF19+BI19+BL19+BO19+BR19+BU19+BX19+CA19+CD19+CG19+CJ19+CM19+CP19+CS19+CV19+CY19+DB19+DE19+DH19+DK19+DN19+DQ19+DT19+DW19+DZ19 -> 14854.56 | EG19: =EE19+EF19 -> 67906.56 | EH19: =SUM(EB19:EC19) -> 0 | EI19: =SUM(EG19:EH19) -> 67906.56 | EK19: =EI19+EJ19 -> 67906.56
B20: Secretary | E20: 12.97372459 | F20: 40 | H20: 27058 | I20: 0.28 | J20: 7576.24 | K20: 0.1 | L20: 2705.8 | M20: 757.624 | O20: 0 | P20: 0 | R20: 0 | S20: 0 | U20: 0 | V20: 0 | X20: 0 | Y20: 0 | AA20: 0 | AB20: 0 | AD20: 0 | AE20: 0 | AG20: 0 | AH20: 0 | AJ20: 0 | AK20: 0 | AM20: 0 | AN20: 0 | AP20: 0 | AQ20: 0 | AS20: 0 | AT20: 0 | AV20: 0 | AW20: 0 | AY20: 0 | AZ20: 0 | BB20: 0 | BC20: 0 | BE20: 0 | BF20: 0 | BH20: 0 | BI20: 0 | BK20: 0 | BL20: 0 | BN20: 0 | BO20: 0 | BQ20: 0 | BR20: 0 | BT20: 0 | BU20: 0 | BW20: 0 | BX20: 0 | BZ20: 0 | CA20: 0 | CC20: 0 | CD20: 0 | CF20: 0 | CG20: 0 | CI20: 0 | CJ20: 0 | CL20: 0 | CM20: 0 | CO20: 0 | CP20: 0 | CR20: 0 | CS20: 0 | CU20: 0 | CV20: 0 | CX20: 0 | CY20: 0 | DA20: 0 | DB20: 0 | DD20: 0 | DE20: 0 | DG20: 0 | DH20: 0 | DJ20: 0 | DK20: 0 | DM20: 0 | DN20: 0 | DP20: 0 | DQ20: 0 | DS20: 0 | DT20: 0 | DV20: 0 | DW20: 0 | DY20: 0 | DZ20: 0 | EB20: 0 | EC20: 0 | ED20: 0.1 | EE20: 2705.8 | EF20: 757.624 | EG20: 3463.424 | EH20: 0 | EI20: 3463.424 | EK20: 3463.424
B21: Secretary | E21: 18.31271577 | F21: 40 | H21: 38193 | I21: 0.28 | J21: 10694.04 | K21: 0.65 | L21: 24825.45 | M21: 6951.126 | O21: 0 | P21: 0 | R21: 0 | S21: 0 | U21: 0 | V21: 0 | X21: 0 | Y21: 0 | AA21: 0 | AB21: 0 | AD21: 0 | AE21: 0 | AG21: 0 | AH21: 0 | AJ21: 0 | AK21: 0 | AM21: 0 | AN21: 0 | AP21: 0 | AQ21: 0 | AS21: 0 | AT21: 0 | AV21: 0 | AW21: 0 | AY21: 0 | AZ21: 0 | BB21: 0 | BC21: 0 | BE21: 0 | BF21: 0 | BH21: 0 | BI21: 0 | BK21: 0 | BL21: 0 | BN21: 0 | BO21: 0 | BQ21: 0 | BR21: 0 | BT21: 0 | BU21: 0 | BW21: 0 | BX21: 0 | BZ21: 0 | CA21: 0 | CC21: 0 | CD21: 0 | CF21: 0 | CG21: 0 | CI21: 0 | CJ21: 0 | CL21: 0 | CM21: 0 | CO21: 0 | CP21: 0 | CR21: 0 | CS21: 0 | CU21: 0 | CV21: 0 | CX21: 0 | CY21: 0 | DA21: 0 | DB21: 0 | DD21: 0 | DE21: 0 | DG21: 0 | DH21: 0 | DJ21: 0 | DK21: 0 | DM21: 0 | DN21: 0 | DP21: 0 | DQ21: 0 | DS21: 0 | DT21: 0 | DV21: 0 | DW21: 0 | DY21: 0 | DZ21: 0 | EB21: 0 | EC21: 0 | ED21: 0.65 | EE21: 24825.45 | EF21: 6951.126 | EG21: 31776.576 | EH21: 0 | EI21: 31776.576 | EK21: 31776.576
B22: Social Worker | D22: MSW | E22: 1.822017645 | F22: 36 | H22: 3420 | I22: 0.28 | J22: 957.6 | K22: 0.5 | L22: 1710 | M22: 478.8 | O22: 0 | P22: 0 | R22: 0 | S22: 0 | U22: 0 | V22: 0 | X22: 0 | Y22: 0 | AA22: 0 | AB22: 0 | AD22: 0 | AE22: 0 | AG22: 0 | AH22: 0 | AJ22: 0 | AK22: 0 | AM22: 0 | AN22: 0 | AP22: 0 | AQ22: 0 | AS22: 0 | AT22: 0 | AV22: 0 | AW22: 0 | AY22: 0 | AZ22: 0 | BB22: 0 | BC22: 0 | BE22: 0 | BF22: 0 | BH22: 0 | BI22: 0 | BK22: 0 | BL22: 0 | BN22: 0 | BO22: 0 | BQ22: 0 | BR22: 0 | BT22: 0 | BU22: 0 | BW22: 0 | BX22: 0 | BZ22: 0 | CA22: 0 | CC22: 0 | CD22: 0 | CF22: 0 | CG22: 0 | CI22: 0 | CJ22: 0 | CL22: 0 | CM22: 0 | CO22: 0 | CP22: 0 | CR22: 0 | CS22: 0 | CU22: 0 | CV22: 0 | CX22: 0 | CY22: 0 | DA22: 0 | DB22: 0 | DD22: 0 | DE22: 0 | DG22: 0 | DH22: 0 | DJ22: 0 | DK22: 0 | DM22: 0 | DN22: 0 | DP22: 0 | DQ22: 0 | DS22: 0 | DT22: 0 | DV22: 0 | DW22: 0 | DY22: 0 | DZ22: 0 | EB22: 0 | EC22: 0 | ED22: 0.5 | EE22: 1710 | EF22: 478.8 | EG22: 2188.8 | EH22: 0 | EI22: 2188.8 | EK22: 2188.8
B23: Doctor | D23: MD | E23: 89.75834292 | F23: 4 | H23: 18720 | I23: 0.28 | J23: 5241.6 | K23: 0.5 | L23: 9360 | M23: 2620.8 | O23: 0 | P23: 0 | R23: 0 | S23: 0 | U23: 0 | V23: 0 | X23: 0 | Y23: 0 | AA23: 0 | AB23: 0 | AD23: 0 | AE23: 0 | AG23: 0 | AH23: 0 | AJ23: 0 | AK23: 0 | AM23: 0 | AN23: 0 | AP23: 0 | AQ23: 0 | AS23: 0 | AT23: 0 | AV23: 0 | AW23: 0 | AY23: 0 | AZ23: 0 | BB23: 0 | BC23: 0 | BE23: 0 | BF23: 0 | BH23: 0 | BI23: 0 | BK23: 0 | BL23: 0 | BN23: 0 | BO23: 0 | BQ23: 0 | BR23: 0 | BT23: 0 | BU23: 0 | BW23: 0 | BX23: 0 | BZ23: 0 | CA23: 0 | CC23: 0 | CD23: 0 | CF23: 0 | CG23: 0 | CI23: 0 | CJ23: 0 | CL23: 0 | CM23: 0 | CO23: 0 | CP23: 0 | CR23: 0 | CS23: 0 | CU23: 0 | CV23: 0 | CX23: 0 | CY23: 0 | DA23: 0 | DB23: 0 | DD23: 0 | DE23: 0 | DG23: 0 | DH23: 0 | DJ23: 0 | DK23: 0 | DM23: 0 | DN23: 0 | DP23: 0 | DQ23: 0 | DS23: 0 | DT23: 0 | DV23: 0 | DW23: 0 | DY23: 0 | DZ23: 0 | EB23: 0 | EC23: 0 | ED23: 0.5 | EE23: 9360 | EF23: 2620.8 | EG23: 11980.8 | EH23: 0 | EI23: 11980.8 | EK23: 11980.8
B24: Supervisor | E24: 19.85423859 | F24: 40 | H24: 41408 | I24: 0.28 | J24: 11594.24 | K24: 0.15 | L24: 6211.2 | M24: 1739.136 | O24: 0 | P24: 0 | R24: 0 | S24: 0 | U24: 0 | V24: 0 | X24: 0 | Y24: 0 | AA24: 0 | AB24: 0 | AD24: 0 | AE24: 0 | AG24: 0 | AH24: 0 | AJ24: 0 | AK24: 0 | AM24: 0 | AN24: 0 | AP24: 0 | AQ24: 0 | AS24: 0 | AT24: 0 | AV24: 0 | AW24: 0 | AY24: 0 | AZ24: 0 | BB24: 0 | BC24: 0 | BE24: 0 | BF24: 0 | BH24: 0 | BI24: 0 | BK24: 0 | BL24: 0 | BN24: 0 | BO24: 0 | BQ24: 0 | BR24: 0 | BT24: 0 | BU24: 0 | BW24: 0 | BX24: 0 | BZ24: 0 | CA24: 0 | CC24: 0 | CD24: 0 | CF24: 0 | CG24: 0 | CI24: 0 | CJ24: 0 | CL24: 0 | CM24: 0 | CO24: 0 | CP24: 0 | CR24: 0 | CS24: 0 | CU24: 0 | CV24: 0 | CX24: 0 | CY24: 0 | DA24: 0 | DB24: 0 | DD24: 0 | DE24: 0 | DG24: 0 | DH24: 0 | DJ24: 0 | DK24: 0 | DM24: 0 | DN24: 0 | DP24: 0 | DQ24: 0 | DS24: 0 | DT24: 0 | DV24: 0 | DW24: 0 | DY24: 0 | DZ24: 0 | EB24: 0 | EC24: 0 | ED24: 0.15 | EE24: 6211.2 | EF24: 1739.136 | EG24: 7950.336 | EH24: 0 | EI24: 7950.336 | EK24: 7950.336
B25: Intake Triage | E25: 17.12408899 | F25: 40 | H25: 35714 | I25: 0.28 | J25: 9999.92 | K25: 0.13 | L25: 4642.82 | M25: 1299.9896 | O25: 0 | P25: 0 | R25: 0 | S25: 0 | U25: 0 | V25: 0 | X25: 0 | Y25: 0 | AA25: 0 | AB25: 0 | AD25: 0 | AE25: 0 | AG25: 0 | AH25: 0 | AJ25: 0 | AK25: 0 | AM25: 0 | AN25: 0 | AP25: 0 | AQ25: 0 | AS25: 0 | AT25: 0 | AV25: 0 | AW25: 0 | AY25: 0 | AZ25: 0 | BB25: 0 | BC25: 0 | BE25: 0 | BF25: 0 | BH25: 0 | BI25: 0 | BK25: 0 | BL25: 0 | BN25: 0 | BO25: 0 | BQ25: 0 | BR25: 0 | BT25: 0 | BU25: 0 | BW25: 0 | BX25: 0 | BZ25: 0 | CA25: 0 | CC25: 0 | CD25: 0 | CF25: 0 | CG25: 0 | CI25: 0 | CJ25: 0 | CL25: 0 | CM25: 0 | CO25: 0 | CP25: 0 | CR25: 0 | CS25: 0 | CU25: 0 | CV25: 0 | CX25: 0 | CY25: 0 | DA25: 0 | DB25: 0 | DD25: 0 | DE25: 0 | DG25: 0 | DH25: 0 | DJ25: 0 | DK25: 0 | DM25: 0 | DN25: 0 | DP25: 0 | DQ25: 0 | DS25: 0 | DT25: 0 | DV25: 0 | DW25: 0 | DY25: 0 | DZ25: 0 | EB25: 0 | EC25: 0 | ED25: 0.13 | EE25: 4642.82 | EF25: 1299.9896 | EG25: 5942.8096 | EH25: 0 | EI25: 5942.8096 | EK25: 5942.8096
B26: Financial Counselor | E26: 15.31070196 | F26: 40 | H26: 31932 | I26: 0.28 | J26: 8940.96 | K26: 0.2 | L26: 6386.4 | M26: 1788.192 | O26: 0 | P26: 0 | R26: 0 | S26: 0 | U26: 0 | V26: 0 | X26: 0 | Y26: 0 | AA26: 0 | AB26: 0 | AD26: 0 | AE26: 0 | AG26: 0 | AH26: 0 | AJ26: 0 | AK26: 0 | AM26: 0 | AN26: 0 | AP26: 0 | AQ26: 0 | AS26: 0 | AT26: 0 | AV26: 0 | AW26: 0 | AY26: 0 | AZ26: 0 | BB26: 0 | BC26: 0 | BE26: 0 | BF26: 0 | BH26: 0 | BI26: 0 | BK26: 0 | BL26: 0 | BN26: 0 | BO26: 0 | BQ26: 0 | BR26: 0 | BT26: 0 | BU26: 0 | BW26: 0 | BX26: 0 | BZ26: 0 | CA26: 0 | CC26: 0 | CD26: 0 | CF26: 0 | CG26: 0 | CI26: 0 | CJ26: 0 | CL26: 0 | CM26: 0 | CO26: 0 | CP26: 0 | CR26: 0 | CS26: 0 | CU26: 0 | CV26: 0 | CX26: 0 | CY26: 0 | DA26: 0 | DB26: 0 | DD26: 0 | DE26: 0 | DG26: 0 | DH26: 0 | DJ26: 0 | DK26: 0 | DM26: 0 | DN26: 0 | DP26: 0 | DQ26: 0 | DS26: 0 | DT26: 0 | DV26: 0 | DW26: 0 | DY26: 0 | DZ26: 0 | EB26: 0 | EC26: 0 | ED26: 0.2 | EE26: 6386.4 | EF26: 1788.192 | EG26: 8174.592 | EH26: 0 | EI26: 8174.592 | EK26: 8174.592
B27: Secretary | E27: 17.07757959 | F27: 40 | H27: 35617 | I27: 0.28 | J27: 9972.76 | K27: 0.4 | L27: 14246.8 | M27: 3989.104 | O27: 0 | P27: 0 | R27: 0 | S27: 0 | U27: 0 | V27: 0 | X27: 0 | Y27: 0 | AA27: 0 | AB27: 0 | AD27: 0 | AE27: 0 | AG27: 0 | AH27: 0 | AJ27: 0 | AK27: 0 | AM27: 0 | AN27: 0 | AP27: 0 | AQ27: 0 | AS27: 0 | AT27: 0 | AV27: 0 | AW27: 0 | AY27: 0 | AZ27: 0 | BB27: 0 | BC27: 0 | BE27: 0 | BF27: 0 | BH27: 0 | BI27: 0 | BK27: 0 | BL27: 0 | BN27: 0 | BO27: 0 | BQ27: 0 | BR27: 0 | BT27: 0 | BU27: 0 | BW27: 0 | BX27: 0 | BZ27: 0 | CA27: 0 | CC27: 0 | CD27: 0 | CF27: 0 | CG27: 0 | CI27: 0 | CJ27: 0 | CL27: 0 | CM27: 0 | CO27: 0 | CP27: 0 | CR27: 0 | CS27: 0 | CU27: 0 | CV27: 0 | CX27: 0 | CY27: 0 | DA27: 0 | DB27: 0 | DD27: 0 | DE27: 0 | DG27: 0 | DH27: 0 | DJ27: 0 | DK27: 0 | DM27: 0 | DN27: 0 | DP27: 0 | DQ27: 0 | DS27: 0 | DT27: 0 | DV27: 0 | DW27: 0 | DY27: 0 | DZ27: 0 | EB27: 0 | EC27: 0 | ED27: 0.4 | EE27: 14246.8 | EF27: 3989.104 | EG27: 18235.904 | EH27: 0 | EI27: 18235.904 | EK27: 18235.904
B28: Abuse Counselor | E28: 18.14772195 | F28: 9 | H28: 8516 | I28: 0.28 | J28: 2384.48 | K28: 1 | L28: 8516 | M28: 2384.48 | O28: 0 | P28: 0 | R28: 0 | S28: 0 | U28: 0 | V28: 0 | X28: 0 | Y28: 0 | AA28: 0 | AB28: 0 | AD28: 0 | AE28: 0 | AG28: 0 | AH28: 0 | AJ28: 0 | AK28: 0 | AM28: 0 | AN28: 0 | AP28: 0 | AQ28: 0 | AS28: 0 | AT28: 0 | AV28: 0 | AW28: 0 | AY28: 0 | AZ28: 0 | BB28: 0 | BC28: 0 | BE28: 0 | BF28: 0 | BH28: 0 | BI28: 0 | BK28: 0 | BL28: 0 | BN28: 0 | BO28: 0 | BQ28: 0 | BR28: 0 | BT28: 0 | BU28: 0 | BW28: 0 | BX28: 0 | BZ28: 0 | CA28: 0 | CC28: 0 | CD28: 0 | CF28: 0 | CG28: 0 | CI28: 0 | CJ28: 0 | CL28: 0 | CM28: 0 | CO28: 0 | CP28: 0 | CR28: 0 | CS28: 0 | CU28: 0 | CV28: 0 | CX28: 0 | CY28: 0 | DA28: 0 | DB28: 0 | DD28: 0 | DE28: 0 | DG28: 0 | DH28: 0 | DJ28: 0 | DK28: 0 | DM28: 0 | DN28: 0 | DP28: 0 | DQ28: 0 | DS28: 0 | DT28: 0 | DV28: 0 | DW28: 0 | DY28: 0 | DZ28: 0 | EB28: 0 | EC28: 0 | ED28: 1 | EE28: 8516 | EF28: 2384.48 | EG28: 10900.48 | EH28: 0 | EI28: 10900.48 | EK28: 10900.48
B29: Psychiatrist | D29: MD | E29: 129.6260069 | F29: 40 | H29: 270348 | I29: 0.28 | J29: 75697.44 | K29: 0.08 | L29: 21627.84 | M29: 6055.7952 | O29: 0 | P29: 0 | R29: 0 | S29: 0 | U29: 0 | V29: 0 | X29: 0 | Y29: 0 | AA29: 0 | AB29: 0 | AD29: 0 | AE29: 0 | AG29: 0 | AH29: 0 | AJ29: 0 | AK29: 0 | AM29: 0 | AN29: 0 | AP29: 0 | AQ29: 0 | AS29: 0 | AT29: 0 | AV29: 0 | AW29: 0 | AY29: 0 | AZ29: 0 | BB29: 0 | BC29: 0 | BE29: 0 | BF29: 0 | BH29: 0 | BI29: 0 | BK29: 0 | BL29: 0 | BN29: 0 | BO29: 0 | BQ29: 0 | BR29: 0 | BT29: 0 | BU29: 0 | BW29: 0 | BX29: 0 | BZ29: 0 | CA29: 0 | CC29: 0 | CD29: 0 | CF29: 0 | CG29: 0 | CI29: 0 | CJ29: 0 | CL29: 0 | CM29: 0 | CO29: 0 | CP29: 0 | CR29: 0 | CS29: 0 | CU29: 0 | CV29: 0 | CX29: 0 | CY29: 0 | DA29: 0 | DB29: 0 | DD29: 0 | DE29: 0 | DG29: 0 | DH29: 0 | DJ29: 0 | DK29: 0 | DM29: 0 | DN29: 0 | DP29: 0 | DQ29: 0 | DS29: 0 | DT29: 0 | DV29: 0 | DW29: 0 | DY29: 0 | DZ29: 0 | EB29: 0 | EC29: 0 | ED29: 0.08 | EE29: 21627.84 | EF29: 6055.7952 | EG29: 27683.6352 | EH29: 0 | EI29: 27683.6352 | EK29: 27683.6352
B30: Abuse Counselor | E30: 19.19831224 | F30: 2 | H30: 2002 | I30: 0.28 | J30: 560.56 | K30: 1 | L30: 2002 | M30: 560.56 | O30: 0 | P30: 0 | R30: 0 | S30: 0 | U30: 0 | V30: 0 | X30: 0 | Y30: 0 | AA30: 0 | AB30: 0 | AD30: 0 | AE30: 0 | AG30: 0 | AH30: 0 | AJ30: 0 | AK30: 0 | AM30: 0 | AN30: 0 | AP30: 0 | AQ30: 0 | AS30: 0 | AT30: 0 | AV30: 0 | AW30: 0 | AY30: 0 | AZ30: 0 | BB30: 0 | BC30: 0 | BE30: 0 | BF30: 0 | BH30: 0 | BI30: 0 | BK30: 0 | BL30: 0 | BN30: 0 | BO30: 0 | BQ30: 0 | BR30: 0 | BT30: 0 | BU30: 0 | BW30: 0 | BX30: 0 | BZ30: 0 | CA30: 0 | CC30: 0 | CD30: 0 | CF30: 0 | CG30: 0 | CI30: 0 | CJ30: 0 | CL30: 0 | CM30: 0 | CO30: 0 | CP30: 0 | CR30: 0 | CS30: 0 | CU30: 0 | CV30: 0 | CX30: 0 | CY30: 0 | DA30: 0 | DB30: 0 | DD30: 0 | DE30: 0 | DG30: 0 | DH30: 0 | DJ30: 0 | DK30: 0 | DM30: 0 | DN30: 0 | DP30: 0 | DQ30: 0 | DS30: 0 | DT30: 0 | DV30: 0 | DW30: 0 | DY30: 0 | DZ30: 0 | EB30: 0 | EC30: 0 | ED30: 1 | EE30: 2002 | EF30: 560.56 | EG30: 2562.56 | EH30: 0 | EI30: 2562.56 | EK30: 2562.56
B31: Director | D31: Other | E31: 48.41004987 | F31: 40 | H31: 100964 | I31: 0.28 | J31: 28269.92 | K31: 0.05 | L31: 5048.2 | M31: 1413.496 | O31: 0 | P31: 0 | R31: 0 | S31: 0 | U31: 0 | V31: 0 | X31: 0 | Y31: 0 | AA31: 0 | AB31: 0 | AD31: 0 | AE31: 0 | AG31: 0 | AH31: 0 | AJ31: 0 | AK31: 0 | AM31: 0 | AN31: 0 | AP31: 0 | AQ31: 0 | AS31: 0 | AT31: 0 | AV31: 0 | AW31: 0 | AY31: 0 | AZ31: 0 | BB31: 0 | BC31: 0 | BE31: 0 | BF31: 0 | BH31: 0 | BI31: 0 | BK31: 0 | BL31: 0 | BN31: 0 | BO31: 0 | BQ31: 0 | BR31: 0 | BT31: 0 | BU31: 0 | BW31: 0 | BX31: 0 | BZ31: 0 | CA31: 0 | CC31: 0 | CD31: 0 | CF31: 0 | CG31: 0 | CI31: 0 | CJ31: 0 | CL31: 0 | CM31: 0 | CO31: 0 | CP31: 0 | CR31: 0 | CS31: 0 | CU31: 0 | CV31: 0 | CX31: 0 | CY31: 0 | DA31: 0 | DB31: 0 | DD31: 0 | DE31: 0 | DG31: 0 | DH31: 0 | DJ31: 0 | DK31: 0 | DM31: 0 | DN31: 0 | DP31: 0 | DQ31: 0 | DS31: 0 | DT31: 0 | DV31: 0 | DW31: 0 | DY31: 0 | DZ31: 0 | EB31: 0 | EC31: 0 | ED31: 0.05 | EE31: 5048.2 | EF31: 1413.496 | EG31: 6461.696 | EH31: 0 | EI31: 6461.696 | EK31: 6461.696
J32: 0 | L32: 0 | M32: 0 | O32: 0 | P32: 0 | R32: 0 | S32: 0 | U32: 0 | V32: 0 | X32: 0 | Y32: 0 | AA32: 0 | AB32: 0 | AD32: 0 | AE32: 0 | AG32: 0 | AH32: 0 | AJ32: 0 | AK32: 0 | AM32: 0 | AN32: 0 | AP32: 0 | AQ32: 0 | AS32: 0 | AT32: 0 | AV32: 0 | AW32: 0 | AY32: 0 | AZ32: 0 | BB32: 0 | BC32: 0 | BE32: 0 | BF32: 0 | BH32: 0 | BI32: 0 | BK32: 0 | BL32: 0 | BN32: 0 | BO32: 0 | BQ32: 0 | BR32: 0 | BT32: 0 | BU32: 0 | BW32: 0 | BX32: 0 | BZ32: 0 | CA32: 0 | CC32: 0 | CD32: 0 | CF32: 0 | CG32: 0 | CI32: 0 | CJ32: 0 | CL32: 0 | CM32: 0 | CO32: 0 | CP32: 0 | CR32: 0 | CS32: 0 | CU32: 0 | CV32: 0 | CX32: 0 | CY32: 0 | DA32: 0 | DB32: 0 | DD32: 0 | DE32: 0 | DG32: 0 | DH32: 0 | DJ32: 0 | DK32: 0 | DM32: 0 | DN32: 0 | DP32: 0 | DQ32: 0 | DS32: 0 | DT32: 0 | DV32: 0 | DW32: 0 | DY32: 0 | DZ32: 0 | EB32: 0 | EC32: 0 | ED32: 0 | EE32: 0 | EF32: 0 | EG32: 0 | EH32: 0 | EI32: 0 | EK32: 0
J33: 0 | L33: 0 | M33: 0 | O33: 0 | P33: 0 | R33: 0 | S33: 0 | U33: 0 | V33: 0 | X33: 0 | Y33: 0 | AA33: 0 | AB33: 0 | AD33: 0 | AE33: 0 | AG33: 0 | AH33: 0 | AJ33: 0 | AK33: 0 | AM33: 0 | AN33: 0 | AP33: 0 | AQ33: 0 | AS33: 0 | AT33: 0 | AV33: 0 | AW33: 0 | AY33: 0 | AZ33: 0 | BB33: 0 | BC33: 0 | BE33: 0 | BF33: 0 | BH33: 0 | BI33: 0 | BK33: 0 | BL33: 0 | BN33: 0 | BO33: 0 | BQ33: 0 | BR33: 0 | BT33: 0 | BU33: 0 | BW33: 0 | BX33: 0 | BZ33: 0 | CA33: 0 | CC33: 0 | CD33: 0 | CF33: 0 | CG33: 0 | CI33: 0 | CJ33: 0 | CL33: 0 | CM33: 0 | CO33: 0 | CP33: 0 | CR33: 0 | CS33: 0 | CU33: 0 | CV33: 0 | CX33: 0 | CY33: 0 | DA33: 0 | DB33: 0 | DD33: 0 | DE33: 0 | DG33: 0 | DH33: 0 | DJ33: 0 | DK33: 0 | DM33: 0 | DN33: 0 | DP33: 0 | DQ33: 0 | DS33: 0 | DT33: 0 | DV33: 0 | DW33: 0 | DY33: 0 | DZ33: 0 | EB33: 0 | EC33: 0 | ED33: 0 | EE33: 0 | EF33: 0 | EG33: 0 | EH33: 0 | EI33: 0 | EK33: 0
J34: 0 | L34: 0 | M34: 0 | O34: 0 | P34: 0 | R34: 0 | S34: 0 | U34: 0 | V34: 0 | X34: 0 | Y34: 0 | AA34: 0 | AB34: 0 | AD34: 0 | AE34: 0 | AG34: 0 | AH34: 0 | AJ34: 0 | AK34: 0 | AM34: 0 | AN34: 0 | AP34: 0 | AQ34: 0 | AS34: 0 | AT34: 0 | AV34: 0 | AW34: 0 | AY34: 0 | AZ34: 0 | BB34: 0 | BC34: 0 | BE34: 0 | BF34: 0 | BH34: 0 | BI34: 0 | BK34: 0 | BL34: 0 | BN34: 0 | BO34: 0 | BQ34: 0 | BR34: 0 | BT34: 0 | BU34: 0 | BW34: 0 | BX34: 0 | BZ34: 0 | CA34: 0 | CC34: 0 | CD34: 0 | CF34: 0 | CG34: 0 | CI34: 0 | CJ34: 0 | CL34: 0 | CM34: 0 | CO34: 0 | CP34: 0 | CR34: 0 | CS34: 0 | CU34: 0 | CV34: 0 | CX34: 0 | CY34: 0 | DA34: 0 | DB34: 0 | DD34: 0 | DE34: 0 | DG34: 0 | DH34: 0 | DJ34: 0 | DK34: 0 | DM34: 0 | DN34: 0 | DP34: 0 | DQ34: 0 | DS34: 0 | DT34: 0 | DV34: 0 | DW34: 0 | DY34: 0 | DZ34: 0 | EB34: 0 | EC34: 0 | ED34: 0 | EE34: 0 | EF34: 0 | EG34: 0 | EH34: 0 | EI34: 0 | EK34: 0
J35: 0 | L35: 0 | M35: 0 | O35: 0 | P35: 0 | R35: 0 | S35: 0 | U35: 0 | V35: 0 | X35: 0 | Y35: 0 | AA35: 0 | AB35: 0 | AD35: 0 | AE35: 0 | AG35: 0 | AH35: 0 | AJ35: 0 | AK35: 0 | AM35: 0 | AN35: 0 | AP35: 0 | AQ35: 0 | AS35: 0 | AT35: 0 | AV35: 0 | AW35: 0 | AY35: 0 | AZ35: 0 | BB35: 0 | BC35: 0 | BE35: 0 | BF35: 0 | BH35: 0 | BI35: 0 | BK35: 0 | BL35: 0 | BN35: 0 | BO35: 0 | BQ35: 0 | BR35: 0 | BT35: 0 | BU35: 0 | BW35: 0 | BX35: 0 | BZ35: 0 | CA35: 0 | CC35: 0 | CD35: 0 | CF35: 0 | CG35: 0 | CI35: 0 | CJ35: 0 | CL35: 0 | CM35: 0 | CO35: 0 | CP35: 0 | CR35: 0 | CS35: 0 | CU35: 0 | CV35: 0 | CX35: 0 | CY35: 0 | DA35: 0 | DB35: 0 | DD35: 0 | DE35: 0 | DG35: 0 | DH35: 0 | DJ35: 0 | DK35: 0 | DM35: 0 | DN35: 0 | DP35: 0 | DQ35: 0 | DS35: 0 | DT35: 0 | DV35: 0 | DW35: 0 | DY35: 0 | DZ35: 0 | EB35: 0 | EC35: 0 | ED35: 0 | EE35: 0 | EF35: 0 | EG35: 0 | EH35: 0 | EI35: 0 | EK35: 0
J36: 0 | L36: 0 | M36: 0 | O36: 0 | P36: 0 | R36: 0 | S36: 0 | U36: 0 | V36: 0 | X36: 0 | Y36: 0 | AA36: 0 | AB36: 0 | AD36: 0 | AE36: 0 | AG36: 0 | AH36: 0 | AJ36: 0 | AK36: 0 | AM36: 0 | AN36: 0 | AP36: 0 | AQ36: 0 | AS36: 0 | AT36: 0 | AV36: 0 | AW36: 0 | AY36: 0 | AZ36: 0 | BB36: 0 | BC36: 0 | BE36: 0 | BF36: 0 | BH36: 0 | BI36: 0 | BK36: 0 | BL36: 0 | BN36: 0 | BO36: 0 | BQ36: 0 | BR36: 0 | BT36: 0 | BU36: 0 | BW36: 0 | BX36: 0 | BZ36: 0 | CA36: 0 | CC36: 0 | CD36: 0 | CF36: 0 | CG36: 0 | CI36: 0 | CJ36: 0 | CL36: 0 | CM36: 0 | CO36: 0 | CP36: 0 | CR36: 0 | CS36: 0 | CU36: 0 | CV36: 0 | CX36: 0 | CY36: 0 | DA36: 0 | DB36: 0 | DD36: 0 | DE36: 0 | DG36: 0 | DH36: 0 | DJ36: 0 | DK36: 0 | DM36: 0 | DN36: 0 | DP36: 0 | DQ36: 0 | DS36: 0 | DT36: 0 | DV36: 0 | DW36: 0 | DY36: 0 | DZ36: 0 | EB36: 0 | EC36: 0 | ED36: 0 | EE36: 0 | EF36: 0 | EG36: 0 | EH36: 0 | EI36: 0 | EK36: 0
J37: 0 | L37: 0 | M37: 0 | O37: 0 | P37: 0 | R37: 0 | S37: 0 | U37: 0 | V37: 0 | X37: 0 | Y37: 0 | AA37: 0 | AB37: 0 | AD37: 0 | AE37: 0 | AG37: 0 | AH37: 0 | AJ37: 0 | AK37: 0 | AM37: 0 | AN37: 0 | AP37: 0 | AQ37: 0 | AS37: 0 | AT37: 0 | AV37: 0 | AW37: 0 | AY37: 0 | AZ37: 0 | BB37: 0 | BC37: 0 | BE37: 0 | BF37: 0 | BH37: 0 | BI37: 0 | BK37: 0 | BL37: 0 | BN37: 0 | BO37: 0 | BQ37: 0 | BR37: 0 | BT37: 0 | BU37: 0 | BW37: 0 | BX37: 0 | BZ37: 0 | CA37: 0 | CC37: 0 | CD37: 0 | CF37: 0 | CG37: 0 | CI37: 0 | CJ37: 0 | CL37: 0 | CM37: 0 | CO37: 0 | CP37: 0 | CR37: 0 | CS37: 0 | CU37: 0 | CV37: 0 | CX37: 0 | CY37: 0 | DA37: 0 | DB37: 0 | DD37: 0 | DE37: 0 | DG37: 0 | DH37: 0 | DJ37: 0 | DK37: 0 | DM37: 0 | DN37: 0 | DP37: 0 | DQ37: 0 | DS37: 0 | DT37: 0 | DV37: 0 | DW37: 0 | DY37: 0 | DZ37: 0 | EB37: 0 | EC37: 0 | ED37: 0 | EE37: 0 | EF37: 0 | EG37: 0 | EH37: 0 | EI37: 0 | EK37: 0
J38: 0 | L38: 0 | M38: 0 | O38: 0 | P38: 0 | R38: 0 | S38: 0 | U38: 0 | V38: 0 | X38: 0 | Y38: 0 | AA38: 0 | AB38: 0 | AD38: 0 | AE38: 0 | AG38: 0 | AH38: 0 | AJ38: 0 | AK38: 0 | AM38: 0 | AN38: 0 | AP38: 0 | AQ38: 0 | AS38: 0 | AT38: 0 | AV38: 0 | AW38: 0 | AY38: 0 | AZ38: 0 | BB38: 0 | BC38: 0 | BE38: 0 | BF38: 0 | BH38: 0 | BI38: 0 | BK38: 0 | BL38: 0 | BN38: 0 | BO38: 0 | BQ38: 0 | BR38: 0 | BT38: 0 | BU38: 0 | BW38: 0 | BX38: 0 | BZ38: 0 | CA38: 0 | CC38: 0 | CD38: 0 | CF38: 0 | CG38: 0 | CI38: 0 | CJ38: 0 | CL38: 0 | CM38: 0 | CO38: 0 | CP38: 0 | CR38: 0 | CS38: 0 | CU38: 0 | CV38: 0 | CX38: 0 | CY38: 0 | DA38: 0 | DB38: 0 | DD38: 0 | DE38: 0 | DG38: 0 | DH38: 0 | DJ38: 0 | DK38: 0 | DM38: 0 | DN38: 0 | DP38: 0 | DQ38: 0 | DS38: 0 | DT38: 0 | DV38: 0 | DW38: 0 | DY38: 0 | DZ38: 0 | EB38: 0 | EC38: 0 | ED38: 0 | EE38: 0 | EF38: 0 | EG38: 0 | EH38: 0 | EI38: 0 | EK38: 0
J39: 0 | L39: 0 | M39: 0 | O39: 0 | P39: 0 | R39: 0 | S39: 0 | U39: 0 | V39: 0 | X39: 0 | Y39: 0 | AA39: 0 | AB39: 0 | AD39: 0 | AE39: 0 | AG39: 0 | AH39: 0 | AJ39: 0 | AK39: 0 | AM39: 0 | AN39: 0 | AP39: 0 | AQ39: 0 | AS39: 0 | AT39: 0 | AV39: 0 | AW39: 0 | AY39: 0 | AZ39: 0 | BB39: 0 | BC39: 0 | BE39: 0 | BF39: 0 | BH39: 0 | BI39: 0 | BK39: 0 | BL39: 0 | BN39: 0 | BO39: 0 | BQ39: 0 | BR39: 0 | BT39: 0 | BU39: 0 | BW39: 0 | BX39: 0 | BZ39: 0 | CA39: 0 | CC39: 0 | CD39: 0 | CF39: 0 | CG39: 0 | CI39: 0 | CJ39: 0 | CL39: 0 | CM39: 0 | CO39: 0 | CP39: 0 | CR39: 0 | CS39: 0 | CU39: 0 | CV39: 0 | CX39: 0 | CY39: 0 | DA39: 0 | DB39: 0 | DD39: 0 | DE39: 0 | DG39: 0 | DH39: 0 | DJ39: 0 | DK39: 0 | DM39: 0 | DN39: 0 | DP39: 0 | DQ39: 0 | DS39: 0 | DT39: 0 | DV39: 0 | DW39: 0 | DY39: 0 | DZ39: 0 | EB39: 0 | EC39: 0 | ED39: 0 | EE39: 0 | EF39: 0 | EG39: 0 | EH39: 0 | EI39: 0 | EK39: 0
J40: 0 | L40: 0 | M40: 0 | O40: 0 | P40: 0 | R40: 0 | S40: 0 | U40: 0 | V40: 0 | X40: 0 | Y40: 0 | AA40: 0 | AB40: 0 | AD40: 0 | AE40: 0 | AG40: 0 | AH40: 0 | AJ40: 0 | AK40: 0 | AM40: 0 | AN40: 0 | AP40: 0 | AQ40: 0 | AS40: 0 | AT40: 0 | AV40: 0 | AW40: 0 | AY40: 0 | AZ40: 0 | BB40: 0 | BC40: 0 | BE40: 0 | BF40: 0 | BH40: 0 | BI40: 0 | BK40: 0 | BL40: 0 | BN40: 0 | BO40: 0 | BQ40: 0 | BR40: 0 | BT40: 0 | BU40: 0 | BW40: 0 | BX40: 0 | BZ40: 0 | CA40: 0 | CC40: 0 | CD40: 0 | CF40: 0 | CG40: 0 | CI40: 0 | CJ40: 0 | CL40: 0 | CM40: 0 | CO40: 0 | CP40: 0 | CR40: 0 | CS40: 0 | CU40: 0 | CV40: 0 | CX40: 0 | CY40: 0 | DA40: 0 | DB40: 0 | DD40: 0 | DE40: 0 | DG40: 0 | DH40: 0 | DJ40: 0 | DK40: 0 | DM40: 0 | DN40: 0 | DP40: 0 | DQ40: 0 | DS40: 0 | DT40: 0 | DV40: 0 | DW40: 0 | DY40: 0 | DZ40: 0 | EB40: 0 | EC40: 0 | ED40: 0 | EE40: 0 | EF40: 0 | EG40: 0 | EH40: 0 | EI40: 0 | EK40: 0
J41: 0 | L41: 0 | M41: 0 | O41: 0 | P41: 0 | R41: 0 | S41: 0 | U41: 0 | V41: 0 | X41: 0 | Y41: 0 | AA41: 0 | AB41: 0 | AD41: 0 | AE41: 0 | AG41: 0 | AH41: 0 | AJ41: 0 | AK41: 0 | AM41: 0 | AN41: 0 | AP41: 0 | AQ41: 0 | AS41: 0 | AT41: 0 | AV41: 0 | AW41: 0 | AY41: 0 | AZ41: 0 | BB41: 0 | BC41: 0 | BE41: 0 | BF41: 0 | BH41: 0 | BI41: 0 | BK41: 0 | BL41: 0 | BN41: 0 | BO41: 0 | BQ41: 0 | BR41: 0 | BT41: 0 | BU41: 0 | BW41: 0 | BX41: 0 | BZ41: 0 | CA41: 0 | CC41: 0 | CD41: 0 | CF41: 0 | CG41: 0 | CI41: 0 | CJ41: 0 | CL41: 0 | CM41: 0 | CO41: 0 | CP41: 0 | CR41: 0 | CS41: 0 | CU41: 0 | CV41: 0 | CX41: 0 | CY41: 0 | DA41: 0 | DB41: 0 | DD41: 0 | DE41: 0 | DG41: 0 | DH41: 0 | DJ41: 0 | DK41: 0 | DM41: 0 | DN41: 0 | DP41: 0 | DQ41: 0 | DS41: 0 | DT41: 0 | DV41: 0 | DW41: 0 | DY41: 0 | DZ41: 0 | EB41: 0 | EC41: 0 | ED41: 0 | EE41: 0 | EF41: 0 | EG41: 0 | EH41: 0 | EI41: 0 | EK41: 0
J42: 0 | L42: 0 | M42: 0 | O42: 0 | P42: 0 | R42: 0 | S42: 0 | U42: 0 | V42: 0 | X42: 0 | Y42: 0 | AA42: 0 | AB42: 0 | AD42: 0 | AE42: 0 | AG42: 0 | AH42: 0 | AJ42: 0 | AK42: 0 | AM42: 0 | AN42: 0 | AP42: 0 | AQ42: 0 | AS42: 0 | AT42: 0 | AV42: 0 | AW42: 0 | AY42: 0 | AZ42: 0 | BB42: 0 | BC42: 0 | BE42: 0 | BF42: 0 | BH42: 0 | BI42: 0 | BK42: 0 | BL42: 0 | BN42: 0 | BO42: 0 | BQ42: 0 | BR42: 0 | BT42: 0 | BU42: 0 | BW42: 0 | BX42: 0 | BZ42: 0 | CA42: 0 | CC42: 0 | CD42: 0 | CF42: 0 | CG42: 0 | CI42: 0 | CJ42: 0 | CL42: 0 | CM42: 0 | CO42: 0 | CP42: 0 | CR42: 0 | CS42: 0 | CU42: 0 | CV42: 0 | CX42: 0 | CY42: 0 | DA42: 0 | DB42: 0 | DD42: 0 | DE42: 0 | DG42: 0 | DH42: 0 | DJ42: 0 | DK42: 0 | DM42: 0 | DN42: 0 | DP42: 0 | DQ42: 0 | DS42: 0 | DT42: 0 | DV42: 0 | DW42: 0 | DY42: 0 | DZ42: 0 | EB42: 0 | EC42: 0 | ED42: 0 | EE42: 0 | EF42: 0 | EG42: 0 | EH42: 0 | EI42: 0 | EK42: 0
J43: 0 | L43: 0 | M43: 0 | O43: 0 | P43: 0 | R43: 0 | S43: 0 | U43: 0 | V43: 0 | X43: 0 | Y43: 0 | AA43: 0 | AB43: 0 | AD43: 0 | AE43: 0 | AG43: 0 | AH43: 0 | AJ43: 0 | AK43: 0 | AM43: 0 | AN43: 0 | AP43: 0 | AQ43: 0 | AS43: 0 | AT43: 0 | AV43: 0 | AW43: 0 | AY43: 0 | AZ43: 0 | BB43: 0 | BC43: 0 | BE43: 0 | BF43: 0 | BH43: 0 | BI43: 0 | BK43: 0 | BL43: 0 | BN43: 0 | BO43: 0 | BQ43: 0 | BR43: 0 | BT43: 0 | BU43: 0 | BW43: 0 | BX43: 0 | BZ43: 0 | CA43: 0 | CC43: 0 | CD43: 0 | CF43: 0 | CG43: 0 | CI43: 0 | CJ43: 0 | CL43: 0 | CM43: 0 | CO43: 0 | CP43: 0 | CR43: 0 | CS43: 0 | CU43: 0 | CV43: 0 | CX43: 0 | CY43: 0 | DA43: 0 | DB43: 0 | DD43: 0 | DE43: 0 | DG43: 0 | DH43: 0 | DJ43: 0 | DK43: 0 | DM43: 0 | DN43: 0 | DP43: 0 | DQ43: 0 | DS43: 0 | DT43: 0 | DV43: 0 | DW43: 0 | DY43: 0 | DZ43: 0 | EB43: 0 | EC43: 0 | ED43: 0 | EE43: 0 | EF43: 0 | EG43: 0 | EH43: 0 | EI43: 0 | EK43: 0
J44: 0 | L44: 0 | M44: 0 | O44: 0 | P44: 0 | R44: 0 | S44: 0 | U44: 0 | V44: 0 | X44: 0 | Y44: 0 | AA44: 0 | AB44: 0 | AD44: 0 | AE44: 0 | AG44: 0 | AH44: 0 | AJ44: 0 | AK44: 0 | AM44: 0 | AN44: 0 | AP44: 0 | AQ44: 0 | AS44: 0 | AT44: 0 | AV44: 0 | AW44: 0 | AY44: 0 | AZ44: 0 | BB44: 0 | BC44: 0 | BE44: 0 | BF44: 0 | BH44: 0 | BI44: 0 | BK44: 0 | BL44: 0 | BN44: 0 | BO44: 0 | BQ44: 0 | BR44: 0 | BT44: 0 | BU44: 0 | BW44: 0 | BX44: 0 | BZ44: 0 | CA44: 0 | CC44: 0 | CD44: 0 | CF44: 0 | CG44: 0 | CI44: 0 | CJ44: 0 | CL44: 0 | CM44: 0 | CO44: 0 | CP44: 0 | CR44: 0 | CS44: 0 | CU44: 0 | CV44: 0 | CX44: 0 | CY44: 0 | DA44: 0 | DB44: 0 | DD44: 0 | DE44: 0 | DG44: 0 | DH44: 0 | DJ44: 0 | DK44: 0 | DM44: 0 | DN44: 0 | DP44: 0 | DQ44: 0 | DS44: 0 | DT44: 0 | DV44: 0 | DW44: 0 | DY44: 0 | DZ44: 0 | EB44: 0 | EC44: 0 | ED44: 0 | EE44: 0 | EF44: 0 | EG44: 0 | EH44: 0 | EI44: 0 | EK44: 0
J45: 0 | L45: 0 | M45: 0 | O45: 0 | P45: 0 | R45: 0 | S45: 0 | U45: 0 | V45: 0 | X45: 0 | Y45: 0 | AA45: 0 | AB45: 0 | AD45: 0 | AE45: 0 | AG45: 0 | AH45: 0 | AJ45: 0 | AK45: 0 | AM45: 0 | AN45: 0 | AP45: 0 | AQ45: 0 | AS45: 0 | AT45: 0 | AV45: 0 | AW45: 0 | AY45: 0 | AZ45: 0 | BB45: 0 | BC45: 0 | BE45: 0 | BF45: 0 | BH45: 0 | BI45: 0 | BK45: 0 | BL45: 0 | BN45: 0 | BO45: 0 | BQ45: 0 | BR45: 0 | BT45: 0 | BU45: 0 | BW45: 0 | BX45: 0 | BZ45: 0 | CA45: 0 | CC45: 0 | CD45: 0 | CF45: 0 | CG45: 0 | CI45: 0 | CJ45: 0 | CL45: 0 | CM45: 0 | CO45: 0 | CP45: 0 | CR45: 0 | CS45: 0 | CU45: 0 | CV45: 0 | CX45: 0 | CY45: 0 | DA45: 0 | DB45: 0 | DD45: 0 | DE45: 0 | DG45: 0 | DH45: 0 | DJ45: 0 | DK45: 0 | DM45: 0 | DN45: 0 | DP45: 0 | DQ45: 0 | DS45: 0 | DT45: 0 | DV45: 0 | DW45: 0 | DY45: 0 | DZ45: 0 | EB45: 0 | EC45: 0 | ED45: 0 | EE45: 0 | EF45: 0 | EG45: 0 | EH45: 0 | EI45: 0 | EK45: 0
J46: 0 | L46: 0 | M46: 0 | O46: 0 | P46: 0 | R46: 0 | S46: 0 | U46: 0 | V46: 0 | X46: 0 | Y46: 0 | AA46: 0 | AB46: 0 | AD46: 0 | AE46: 0 | AG46: 0 | AH46: 0 | AJ46: 0 | AK46: 0 | AM46: 0 | AN46: 0 | AP46: 0 | AQ46: 0 | AS46: 0 | AT46: 0 | AV46: 0 | AW46: 0 | AY46: 0 | AZ46: 0 | BB46: 0 | BC46: 0 | BE46: 0 | BF46: 0 | BH46: 0 | BI46: 0 | BK46: 0 | BL46: 0 | BN46: 0 | BO46: 0 | BQ46: 0 | BR46: 0 | BT46: 0 | BU46: 0 | BW46: 0 | BX46: 0 | BZ46: 0 | CA46: 0 | CC46: 0 | CD46: 0 | CF46: 0 | CG46: 0 | CI46: 0 | CJ46: 0 | CL46: 0 | CM46: 0 | CO46: 0 | CP46: 0 | CR46: 0 | CS46: 0 | CU46: 0 | CV46: 0 | CX46: 0 | CY46: 0 | DA46: 0 | DB46: 0 | DD46: 0 | DE46: 0 | DG46: 0 | DH46: 0 | DJ46: 0 | DK46: 0 | DM46: 0 | DN46: 0 | DP46: 0 | DQ46: 0 | DS46: 0 | DT46: 0 | DV46: 0 | DW46: 0 | DY46: 0 | DZ46: 0 | EB46: 0 | EC46: 0 | ED46: 0 | EE46: 0 | EF46: 0 | EG46: 0 | EH46: 0 | EI46: 0 | EK46: 0
J47: 0 | L47: 0 | M47: 0 | O47: 0 | P47: 0 | R47: 0 | S47: 0 | U47: 0 | V47: 0 | X47: 0 | Y47: 0 | AA47: 0 | AB47: 0 | AD47: 0 | AE47: 0 | AG47: 0 | AH47: 0 | AJ47: 0 | AK47: 0 | AM47: 0 | AN47: 0 | AP47: 0 | AQ47: 0 | AS47: 0 | AT47: 0 | AV47: 0 | AW47: 0 | AY47: 0 | AZ47: 0 | BB47: 0 | BC47: 0 | BE47: 0 | BF47: 0 | BH47: 0 | BI47: 0 | BK47: 0 | BL47: 0 | BN47: 0 | BO47: 0 | BQ47: 0 | BR47: 0 | BT47: 0 | BU47: 0 | BW47: 0 | BX47: 0 | BZ47: 0 | CA47: 0 | CC47: 0 | CD47: 0 | CF47: 0 | CG47: 0 | CI47: 0 | CJ47: 0 | CL47: 0 | CM47: 0 | CO47: 0 | CP47: 0 | CR47: 0 | CS47: 0 | CU47: 0 | CV47: 0 | CX47: 0 | CY47: 0 | DA47: 0 | DB47: 0 | DD47: 0 | DE47: 0 | DG47: 0 | DH47: 0 | DJ47: 0 | DK47: 0 | DM47: 0 | DN47: 0 | DP47: 0 | DQ47: 0 | DS47: 0 | DT47: 0 | DV47: 0 | DW47: 0 | DY47: 0 | DZ47: 0 | EB47: 0 | EC47: 0 | ED47: 0 | EE47: 0 | EF47: 0 | EG47: 0 | EH47: 0 | EI47: 0 | EK47: 0
J48: 0 | L48: 0 | M48: 0 | O48: 0 | P48: 0 | R48: 0 | S48: 0 | U48: 0 | V48: 0 | X48: 0 | Y48: 0 | AA48: 0 | AB48: 0 | AD48: 0 | AE48: 0 | AG48: 0 | AH48: 0 | AJ48: 0 | AK48: 0 | AM48: 0 | AN48: 0 | AP48: 0 | AQ48: 0 | AS48: 0 | AT48: 0 | AV48: 0 | AW48: 0 | AY48: 0 | AZ48: 0 | BB48: 0 | BC48: 0 | BE48: 0 | BF48: 0 | BH48: 0 | BI48: 0 | BK48: 0 | BL48: 0 | BN48: 0 | BO48: 0 | BQ48: 0 | BR48: 0 | BT48: 0 | BU48: 0 | BW48: 0 | BX48: 0 | BZ48: 0 | CA48: 0 | CC48: 0 | CD48: 0 | CF48: 0 | CG48: 0 | CI48: 0 | CJ48: 0 | CL48: 0 | CM48: 0 | CO48: 0 | CP48: 0 | CR48: 0 | CS48: 0 | CU48: 0 | CV48: 0 | CX48: 0 | CY48: 0 | DA48: 0 | DB48: 0 | DD48: 0 | DE48: 0 | DG48: 0 | DH48: 0 | DJ48: 0 | DK48: 0 | DM48: 0 | DN48: 0 | DP48: 0 | DQ48: 0 | DS48: 0 | DT48: 0 | DV48: 0 | DW48: 0 | DY48: 0 | DZ48: 0 | EB48: 0 | EC48: 0 | ED48: 0 | EE48: 0 | EF48: 0 | EG48: 0 | EH48: 0 | EI48: 0 | EK48: 0
J49: 0 | L49: 0 | M49: 0 | O49: 0 | P49: 0 | R49: 0 | S49: 0 | U49: 0 | V49: 0 | X49: 0 | Y49: 0 | AA49: 0 | AB49: 0 | AD49: 0 | AE49: 0 | AG49: 0 | AH49: 0 | AJ49: 0 | AK49: 0 | AM49: 0 | AN49: 0 | AP49: 0 | AQ49: 0 | AS49: 0 | AT49: 0 | AV49: 0 | AW49: 0 | AY49: 0 | AZ49: 0 | BB49: 0 | BC49: 0 | BE49: 0 | BF49: 0 | BH49: 0 | BI49: 0 | BK49: 0 | BL49: 0 | BN49: 0 | BO49: 0 | BQ49: 0 | BR49: 0 | BT49: 0 | BU49: 0 | BW49: 0 | BX49: 0 | BZ49: 0 | CA49: 0 | CC49: 0 | CD49: 0 | CF49: 0 | CG49: 0 | CI49: 0 | CJ49: 0 | CL49: 0 | CM49: 0 | CO49: 0 | CP49: 0 | CR49: 0 | CS49: 0 | CU49: 0 | CV49: 0 | CX49: 0 | CY49: 0 | DA49: 0 | DB49: 0 | DD49: 0 | DE49: 0 | DG49: 0 | DH49: 0 | DJ49: 0 | DK49: 0 | DM49: 0 | DN49: 0 | DP49: 0 | DQ49: 0 | DS49: 0 | DT49: 0 | DV49: 0 | DW49: 0 | DY49: 0 | DZ49: 0 | EB49: 0 | EC49: 0 | ED49: 0 | EE49: 0 | EF49: 0 | EG49: 0 | EH49: 0 | EI49: 0 | EK49: 0
J50: 0 | L50: 0 | M50: 0 | O50: 0 | P50: 0 | R50: 0 | S50: 0 | U50: 0 | V50: 0 | X50: 0 | Y50: 0 | AA50: 0 | AB50: 0 | AD50: 0 | AE50: 0 | AG50: 0 | AH50: 0 | AJ50: 0 | AK50: 0 | AM50: 0 | AN50: 0 | AP50: 0 | AQ50: 0 | AS50: 0 | AT50: 0 | AV50: 0 | AW50: 0 | AY50: 0 | AZ50: 0 | BB50: 0 | BC50: 0 | BE50: 0 | BF50: 0 | BH50: 0 | BI50: 0 | BK50: 0 | BL50: 0 | BN50: 0 | BO50: 0 | BQ50: 0 | BR50: 0 | BT50: 0 | BU50: 0 | BW50: 0 | BX50: 0 | BZ50: 0 | CA50: 0 | CC50: 0 | CD50: 0 | CF50: 0 | CG50: 0 | CI50: 0 | CJ50: 0 | CL50: 0 | CM50: 0 | CO50: 0 | CP50: 0 | CR50: 0 | CS50: 0 | CU50: 0 | CV50: 0 | CX50: 0 | CY50: 0 | DA50: 0 | DB50: 0 | DD50: 0 | DE50: 0 | DG50: 0 | DH50: 0 | DJ50: 0 | DK50: 0 | DM50: 0 | DN50: 0 | DP50: 0 | DQ50: 0 | DS50: 0 | DT50: 0 | DV50: 0 | DW50: 0 | DY50: 0 | DZ50: 0 | EB50: 0 | EC50: 0 | ED50: 0 | EE50: 0 | EF50: 0 | EG50: 0 | EH50: 0 | EI50: 0 | EK50: 0
J51: 0 | L51: 0 | M51: 0 | O51: 0 | P51: 0 | R51: 0 | S51: 0 | U51: 0 | V51: 0 | X51: 0 | Y51: 0 | AA51: 0 | AB51: 0 | AD51: 0 | AE51: 0 | AG51: 0 | AH51: 0 | AJ51: 0 | AK51: 0 | AM51: 0 | AN51: 0 | AP51: 0 | AQ51: 0 | AS51: 0 | AT51: 0 | AV51: 0 | AW51: 0 | AY51: 0 | AZ51: 0 | BB51: 0 | BC51: 0 | BE51: 0 | BF51: 0 | BH51: 0 | BI51: 0 | BK51: 0 | BL51: 0 | BN51: 0 | BO51: 0 | BQ51: 0 | BR51: 0 | BT51: 0 | BU51: 0 | BW51: 0 | BX51: 0 | BZ51: 0 | CA51: 0 | CC51: 0 | CD51: 0 | CF51: 0 | CG51: 0 | CI51: 0 | CJ51: 0 | CL51: 0 | CM51: 0 | CO51: 0 | CP51: 0 | CR51: 0 | CS51: 0 | CU51: 0 | CV51: 0 | CX51: 0 | CY51: 0 | DA51: 0 | DB51: 0 | DD51: 0 | DE51: 0 | DG51: 0 | DH51: 0 | DJ51: 0 | DK51: 0 | DM51: 0 | DN51: 0 | DP51: 0 | DQ51: 0 | DS51: 0 | DT51: 0 | DV51: 0 | DW51: 0 | DY51: 0 | DZ51: 0 | EB51: 0 | EC51: 0 | ED51: 0 | EE51: 0 | EF51: 0 | EG51: 0 | EH51: 0 | EI51: 0 | EK51: 0
J52: 0 | L52: 0 | M52: 0 | O52: 0 | P52: 0 | R52: 0 | S52: 0 | U52: 0 | V52: 0 | X52: 0 | Y52: 0 | AA52: 0 | AB52: 0 | AD52: 0 | AE52: 0 | AG52: 0 | AH52: 0 | AJ52: 0 | AK52: 0 | AM52: 0 | AN52: 0 | AP52: 0 | AQ52: 0 | AS52: 0 | AT52: 0 | AV52: 0 | AW52: 0 | AY52: 0 | AZ52: 0 | BB52: 0 | BC52: 0 | BE52: 0 | BF52: 0 | BH52: 0 | BI52: 0 | BK52: 0 | BL52: 0 | BN52: 0 | BO52: 0 | BQ52: 0 | BR52: 0 | BT52: 0 | BU52: 0 | BW52: 0 | BX52: 0 | BZ52: 0 | CA52: 0 | CC52: 0 | CD52: 0 | CF52: 0 | CG52: 0 | CI52: 0 | CJ52: 0 | CL52: 0 | CM52: 0 | CO52: 0 | CP52: 0 | CR52: 0 | CS52: 0 | CU52: 0 | CV52: 0 | CX52: 0 | CY52: 0 | DA52: 0 | DB52: 0 | DD52: 0 | DE52: 0 | DG52: 0 | DH52: 0 | DJ52: 0 | DK52: 0 | DM52: 0 | DN52: 0 | DP52: 0 | DQ52: 0 | DS52: 0 | DT52: 0 | DV52: 0 | DW52: 0 | DY52: 0 | DZ52: 0 | EB52: 0 | EC52: 0 | ED52: 0 | EE52: 0 | EF52: 0 | EG52: 0 | EH52: 0 | EI52: 0 | EK52: 0
J53: 0 | L53: 0 | M53: 0 | O53: 0 | P53: 0 | R53: 0 | S53: 0 | U53: 0 | V53: 0 | X53: 0 | Y53: 0 | AA53: 0 | AB53: 0 | AD53: 0 | AE53: 0 | AG53: 0 | AH53: 0 | AJ53: 0 | AK53: 0 | AM53: 0 | AN53: 0 | AP53: 0 | AQ53: 0 | AS53: 0 | AT53: 0 | AV53: 0 | AW53: 0 | AY53: 0 | AZ53: 0 | BB53: 0 | BC53: 0 | BE53: 0 | BF53: 0 | BH53: 0 | BI53: 0 | BK53: 0 | BL53: 0 | BN53: 0 | BO53: 0 | BQ53: 0 | BR53: 0 | BT53: 0 | BU53: 0 | BW53: 0 | BX53: 0 | BZ53: 0 | CA53: 0 | CC53: 0 | CD53: 0 | CF53: 0 | CG53: 0 | CI53: 0 | CJ53: 0 | CL53: 0 | CM53: 0 | CO53: 0 | CP53: 0 | CR53: 0 | CS53: 0 | CU53: 0 | CV53: 0 | CX53: 0 | CY53: 0 | DA53: 0 | DB53: 0 | DD53: 0 | DE53: 0 | DG53: 0 | DH53: 0 | DJ53: 0 | DK53: 0 | DM53: 0 | DN53: 0 | DP53: 0 | DQ53: 0 | DS53: 0 | DT53: 0 | DV53: 0 | DW53: 0 | DY53: 0 | DZ53: 0 | EB53: 0 | EC53: 0 | ED53: 0 | EE53: 0 | EF53: 0 | EG53: 0 | EH53: 0 | EI53: 0 | EK53: 0
J54: 0 | L54: 0 | M54: 0 | O54: 0 | P54: 0 | R54: 0 | S54: 0 | U54: 0 | V54: 0 | X54: 0 | Y54: 0 | AA54: 0 | AB54: 0 | AD54: 0 | AE54: 0 | AG54: 0 | AH54: 0 | AJ54: 0 | AK54: 0 | AM54: 0 | AN54: 0 | AP54: 0 | AQ54: 0 | AS54: 0 | AT54: 0 | AV54: 0 | AW54: 0 | AY54: 0 | AZ54: 0 | BB54: 0 | BC54: 0 | BE54: 0 | BF54: 0 | BH54: 0 | BI54: 0 | BK54: 0 | BL54: 0 | BN54: 0 | BO54: 0 | BQ54: 0 | BR54: 0 | BT54: 0 | BU54: 0 | BW54: 0 | BX54: 0 | BZ54: 0 | CA54: 0 | CC54: 0 | CD54: 0 | CF54: 0 | CG54: 0 | CI54: 0 | CJ54: 0 | CL54: 0 | CM54: 0 | CO54: 0 | CP54: 0 | CR54: 0 | CS54: 0 | CU54: 0 | CV54: 0 | CX54: 0 | CY54: 0 | DA54: 0 | DB54: 0 | DD54: 0 | DE54: 0 | DG54: 0 | DH54: 0 | DJ54: 0 | DK54: 0 | DM54: 0 | DN54: 0 | DP54: 0 | DQ54: 0 | DS54: 0 | DT54: 0 | DV54: 0 | DW54: 0 | DY54: 0 | DZ54: 0 | EB54: 0 | EC54: 0 | ED54: 0 | EE54: 0 | EF54: 0 | EG54: 0 | EH54: 0 | EI54: 0 | EK54: 0
J55: 0 | L55: 0 | M55: 0 | O55: 0 | P55: 0 | R55: 0 | S55: 0 | U55: 0 | V55: 0 | X55: 0 | Y55: 0 | AA55: 0 | AB55: 0 | AD55: 0 | AE55: 0 | AG55: 0 | AH55: 0 | AJ55: 0 | AK55: 0 | AM55: 0 | AN55: 0 | AP55: 0 | AQ55: 0 | AS55: 0 | AT55: 0 | AV55: 0 | AW55: 0 | AY55: 0 | AZ55: 0 | BB55: 0 | BC55: 0 | BE55: 0 | BF55: 0 | BH55: 0 | BI55: 0 | BK55: 0 | BL55: 0 | BN55: 0 | BO55: 0 | BQ55: 0 | BR55: 0 | BT55: 0 | BU55: 0 | BW55: 0 | BX55: 0 | BZ55: 0 | CA55: 0 | CC55: 0 | CD55: 0 | CF55: 0 | CG55: 0 | CI55: 0 | CJ55: 0 | CL55: 0 | CM55: 0 | CO55: 0 | CP55: 0 | CR55: 0 | CS55: 0 | CU55: 0 | CV55: 0 | CX55: 0 | CY55: 0 | DA55: 0 | DB55: 0 | DD55: 0 | DE55: 0 | DG55: 0 | DH55: 0 | DJ55: 0 | DK55: 0 | DM55: 0 | DN55: 0 | DP55: 0 | DQ55: 0 | DS55: 0 | DT55: 0 | DV55: 0 | DW55: 0 | DY55: 0 | DZ55: 0 | EB55: 0 | EC55: 0 | ED55: 0 | EE55: 0 | EF55: 0 | EG55: 0 | EH55: 0 | EI55: 0 | EK55: 0
J56: 0 | L56: 0 | M56: 0 | O56: 0 | P56: 0 | R56: 0 | S56: 0 | U56: 0 | V56: 0 | X56: 0 | Y56: 0 | AA56: 0 | AB56: 0 | AD56: 0 | AE56: 0 | AG56: 0 | AH56: 0 | AJ56: 0 | AK56: 0 | AM56: 0 | AN56: 0 | AP56: 0 | AQ56: 0 | AS56: 0 | AT56: 0 | AV56: 0 | AW56: 0 | AY56: 0 | AZ56: 0 | BB56: 0 | BC56: 0 | BE56: 0 | BF56: 0 | BH56: 0 | BI56: 0 | BK56: 0 | BL56: 0 | BN56: 0 | BO56: 0 | BQ56: 0 | BR56: 0 | BT56: 0 | BU56: 0 | BW56: 0 | BX56: 0 | BZ56: 0 | CA56: 0 | CC56: 0 | CD56: 0 | CF56: 0 | CG56: 0 | CI56: 0 | CJ56: 0 | CL56: 0 | CM56: 0 | CO56: 0 | CP56: 0 | CR56: 0 | CS56: 0 | CU56: 0 | CV56: 0 | CX56: 0 | CY56: 0 | DA56: 0 | DB56: 0 | DD56: 0 | DE56: 0 | DG56: 0 | DH56: 0 | DJ56: 0 | DK56: 0 | DM56: 0 | DN56: 0 | DP56: 0 | DQ56: 0 | DS56: 0 | DT56: 0 | DV56: 0 | DW56: 0 | DY56: 0 | DZ56: 0 | EB56: 0 | EC56: 0 | ED56: 0 | EE56: 0 | EF56: 0 | EG56: 0 | EH56: 0 | EI56: 0 | EK56: 0
J57: 0 | L57: 0 | M57: 0 | O57: 0 | P57: 0 | R57: 0 | S57: 0 | U57: 0 | V57: 0 | X57: 0 | Y57: 0 | AA57: 0 | AB57: 0 | AD57: 0 | AE57: 0 | AG57: 0 | AH57: 0 | AJ57: 0 | AK57: 0 | AM57: 0 | AN57: 0 | AP57: 0 | AQ57: 0 | AS57: 0 | AT57: 0 | AV57: 0 | AW57: 0 | AY57: 0 | AZ57: 0 | BB57: 0 | BC57: 0 | BE57: 0 | BF57: 0 | BH57: 0 | BI57: 0 | BK57: 0 | BL57: 0 | BN57: 0 | BO57: 0 | BQ57: 0 | BR57: 0 | BT57: 0 | BU57: 0 | BW57: 0 | BX57: 0 | BZ57: 0 | CA57: 0 | CC57: 0 | CD57: 0 | CF57: 0 | CG57: 0 | CI57: 0 | CJ57: 0 | CL57: 0 | CM57: 0 | CO57: 0 | CP57: 0 | CR57: 0 | CS57: 0 | CU57: 0 | CV57: 0 | CX57: 0 | CY57: 0 | DA57: 0 | DB57: 0 | DD57: 0 | DE57: 0 | DG57: 0 | DH57: 0 | DJ57: 0 | DK57: 0 | DM57: 0 | DN57: 0 | DP57: 0 | DQ57: 0 | DS57: 0 | DT57: 0 | DV57: 0 | DW57: 0 | DY57: 0 | DZ57: 0 | EB57: 0 | EC57: 0 | ED57: 0 | EE57: 0 | EF57: 0 | EG57: 0 | EH57: 0 | EI57: 0 | EK57: 0
J58: 0 | L58: 0 | M58: 0 | O58: 0 | P58: 0 | R58: 0 | S58: 0 | U58: 0 | V58: 0 | X58: 0 | Y58: 0 | AA58: 0 | AB58: 0 | AD58: 0 | AE58: 0 | AG58: 0 | AH58: 0 | AJ58: 0 | AK58: 0 | AM58: 0 | AN58: 0 | AP58: 0 | AQ58: 0 | AS58: 0 | AT58: 0 | AV58: 0 | AW58: 0 | AY58: 0 | AZ58: 0 | BB58: 0 | BC58: 0 | BE58: 0 | BF58: 0 | BH58: 0 | BI58: 0 | BK58: 0 | BL58: 0 | BN58: 0 | BO58: 0 | BQ58: 0 | BR58: 0 | BT58: 0 | BU58: 0 | BW58: 0 | BX58: 0 | BZ58: 0 | CA58: 0 | CC58: 0 | CD58: 0 | CF58: 0 | CG58: 0 | CI58: 0 | CJ58: 0 | CL58: 0 | CM58: 0 | CO58: 0 | CP58: 0 | CR58: 0 | CS58: 0 | CU58: 0 | CV58: 0 | CX58: 0 | CY58: 0 | DA58: 0 | DB58: 0 | DD58: 0 | DE58: 0 | DG58: 0 | DH58: 0 | DJ58: 0 | DK58: 0 | DM58: 0 | DN58: 0 | DP58: 0 | DQ58: 0 | DS58: 0 | DT58: 0 | DV58: 0 | DW58: 0 | DY58: 0 | DZ58: 0 | EB58: 0 | EC58: 0 | ED58: 0 | EE58: 0 | EF58: 0 | EG58: 0 | EH58: 0 | EI58: 0 | EK58: 0
J59: 0 | L59: 0 | M59: 0 | O59: 0 | P59: 0 | R59: 0 | S59: 0 | U59: 0 | V59: 0 | X59: 0 | Y59: 0 | AA59: 0 | AB59: 0 | AD59: 0 | AE59: 0 | AG59: 0 | AH59: 0 | AJ59: 0 | AK59: 0 | AM59: 0 | AN59: 0 | AP59: 0 | AQ59: 0 | AS59: 0 | AT59: 0 | AV59: 0 | AW59: 0 | AY59: 0 | AZ59: 0 | BB59: 0 | BC59: 0 | BE59: 0 | BF59: 0 | BH59: 0 | BI59: 0 | BK59: 0 | BL59: 0 | BN59: 0 | BO59: 0 | BQ59: 0 | BR59: 0 | BT59: 0 | BU59: 0 | BW59: 0 | BX59: 0 | BZ59: 0 | CA59: 0 | CC59: 0 | CD59: 0 | CF59: 0 | CG59: 0 | CI59: 0 | CJ59: 0 | CL59: 0 | CM59: 0 | CO59: 0 | CP59: 0 | CR59: 0 | CS59: 0 | CU59: 0 | CV59: 0 | CX59: 0 | CY59: 0 | DA59: 0 | DB59: 0 | DD59: 0 | DE59: 0 | DG59: 0 | DH59: 0 | DJ59: 0 | DK59: 0 | DM59: 0 | DN59: 0 | DP59: 0 | DQ59: 0 | DS59: 0 | DT59: 0 | DV59: 0 | DW59: 0 | DY59: 0 | DZ59: 0 | EB59: 0 | EC59: 0 | ED59: 0 | EE59: 0 | EF59: 0 | EG59: 0 | EH59: 0 | EI59: 0 | EK59: 0
J60: 0 | L60: 0 | M60: 0 | O60: 0 | P60: 0 | R60: 0 | S60: 0 | U60: 0 | V60: 0 | X60: 0 | Y60: 0 | AA60: 0 | AB60: 0 | AD60: 0 | AE60: 0 | AG60: 0 | AH60: 0 | AJ60: 0 | AK60: 0 | AM60: 0 | AN60: 0 | AP60: 0 | AQ60: 0 | AS60: 0 | AT60: 0 | AV60: 0 | AW60: 0 | AY60: 0 | AZ60: 0 | BB60: 0 | BC60: 0 | BE60: 0 | BF60: 0 | BH60: 0 | BI60: 0 | BK60: 0 | BL60: 0 | BN60: 0 | BO60: 0 | BQ60: 0 | BR60: 0 | BT60: 0 | BU60: 0 | BW60: 0 | BX60: 0 | BZ60: 0 | CA60: 0 | CC60: 0 | CD60: 0 | CF60: 0 | CG60: 0 | CI60: 0 | CJ60: 0 | CL60: 0 | CM60: 0 | CO60: 0 | CP60: 0 | CR60: 0 | CS60: 0 | CU60: 0 | CV60: 0 | CX60: 0 | CY60: 0 | DA60: 0 | DB60: 0 | DD60: 0 | DE60: 0 | DG60: 0 | DH60: 0 | DJ60: 0 | DK60: 0 | DM60: 0 | DN60: 0 | DP60: 0 | DQ60: 0 | DS60: 0 | DT60: 0 | DV60: 0 | DW60: 0 | DY60: 0 | DZ60: 0 | EB60: 0 | EC60: 0 | ED60: 0 | EE60: 0 | EF60: 0 | EG60: 0 | EH60: 0 | EI60: 0 | EK60: 0
J61: 0 | L61: 0 | M61: 0 | O61: 0 | P61: 0 | R61: 0 | S61: 0 | U61: 0 | V61: 0 | X61: 0 | Y61: 0 | AA61: 0 | AB61: 0 | AD61: 0 | AE61: 0 | AG61: 0 | AH61: 0 | AJ61: 0 | AK61: 0 | AM61: 0 | AN61: 0 | AP61: 0 | AQ61: 0 | AS61: 0 | AT61: 0 | AV61: 0 | AW61: 0 | AY61: 0 | AZ61: 0 | BB61: 0 | BC61: 0 | BE61: 0 | BF61: 0 | BH61: 0 | BI61: 0 | BK61: 0 | BL61: 0 | BN61: 0 | BO61: 0 | BQ61: 0 | BR61: 0 | BT61: 0 | BU61: 0 | BW61: 0 | BX61: 0 | BZ61: 0 | CA61: 0 | CC61: 0 | CD61: 0 | CF61: 0 | CG61: 0 | CI61: 0 | CJ61: 0 | CL61: 0 | CM61: 0 | CO61: 0 | CP61: 0 | CR61: 0 | CS61: 0 | CU61: 0 | CV61: 0 | CX61: 0 | CY61: 0 | DA61: 0 | DB61: 0 | DD61: 0 | DE61: 0 | DG61: 0 | DH61: 0 | DJ61: 0 | DK61: 0 | DM61: 0 | DN61: 0 | DP61: 0 | DQ61: 0 | DS61: 0 | DT61: 0 | DV61: 0 | DW61: 0 | DY61: 0 | DZ61: 0 | EB61: 0 | EC61: 0 | ED61: 0 | EE61: 0 | EF61: 0 | EG61: 0 | EH61: 0 | EI61: 0 | EK61: 0
J62: 0 | L62: 0 | M62: 0 | O62: 0 | P62: 0 | R62: 0 | S62: 0 | U62: 0 | V62: 0 | X62: 0 | Y62: 0 | AA62: 0 | AB62: 0 | AD62: 0 | AE62: 0 | AG62: 0 | AH62: 0 | AJ62: 0 | AK62: 0 | AM62: 0 | AN62: 0 | AP62: 0 | AQ62: 0 | AS62: 0 | AT62: 0 | AV62: 0 | AW62: 0 | AY62: 0 | AZ62: 0 | BB62: 0 | BC62: 0 | BE62: 0 | BF62: 0 | BH62: 0 | BI62: 0 | BK62: 0 | BL62: 0 | BN62: 0 | BO62: 0 | BQ62: 0 | BR62: 0 | BT62: 0 | BU62: 0 | BW62: 0 | BX62: 0 | BZ62: 0 | CA62: 0 | CC62: 0 | CD62: 0 | CF62: 0 | CG62: 0 | CI62: 0 | CJ62: 0 | CL62: 0 | CM62: 0 | CO62: 0 | CP62: 0 | CR62: 0 | CS62: 0 | CU62: 0 | CV62: 0 | CX62: 0 | CY62: 0 | DA62: 0 | DB62: 0 | DD62: 0 | DE62: 0 | DG62: 0 | DH62: 0 | DJ62: 0 | DK62: 0 | DM62: 0 | DN62: 0 | DP62: 0 | DQ62: 0 | DS62: 0 | DT62: 0 | DV62: 0 | DW62: 0 | DY62: 0 | DZ62: 0 | EB62: 0 | EC62: 0 | ED62: 0 | EE62: 0 | EF62: 0 | EG62: 0 | EH62: 0 | EI62: 0 | EK62: 0
J63: 0 | L63: 0 | M63: 0 | O63: 0 | P63: 0 | R63: 0 | S63: 0 | U63: 0 | V63: 0 | X63: 0 | Y63: 0 | AA63: 0 | AB63: 0 | AD63: 0 | AE63: 0 | AG63: 0 | AH63: 0 | AJ63: 0 | AK63: 0 | AM63: 0 | AN63: 0 | AP63: 0 | AQ63: 0 | AS63: 0 | AT63: 0 | AV63: 0 | AW63: 0 | AY63: 0 | AZ63: 0 | BB63: 0 | BC63: 0 | BE63: 0 | BF63: 0 | BH63: 0 | BI63: 0 | BK63: 0 | BL63: 0 | BN63: 0 | BO63: 0 | BQ63: 0 | BR63: 0 | BT63: 0 | BU63: 0 | BW63: 0 | BX63: 0 | BZ63: 0 | CA63: 0 | CC63: 0 | CD63: 0 | CF63: 0 | CG63: 0 | CI63: 0 | CJ63: 0 | CL63: 0 | CM63: 0 | CO63: 0 | CP63: 0 | CR63: 0 | CS63: 0 | CU63: 0 | CV63: 0 | CX63: 0 | CY63: 0 | DA63: 0 | DB63: 0 | DD63: 0 | DE63: 0 | DG63: 0 | DH63: 0 | DJ63: 0 | DK63: 0 | DM63: 0 | DN63: 0 | DP63: 0 | DQ63: 0 | DS63: 0 | DT63: 0 | DV63: 0 | DW63: 0 | DY63: 0 | DZ63: 0 | EB63: 0 | EC63: 0 | ED63: 0 | EE63: 0 | EF63: 0 | EG63: 0 | EH63: 0 | EI63: 0 | EK63: 0
J64: 0 | L64: 0 | M64: 0 | O64: 0 | P64: 0 | R64: 0 | S64: 0 | U64: 0 | V64: 0 | X64: 0 | Y64: 0 | AA64: 0 | AB64: 0 | AD64: 0 | AE64: 0 | AG64: 0 | AH64: 0 | AJ64: 0 | AK64: 0 | AM64: 0 | AN64: 0 | AP64: 0 | AQ64: 0 | AS64: 0 | AT64: 0 | AV64: 0 | AW64: 0 | AY64: 0 | AZ64: 0 | BB64: 0 | BC64: 0 | BE64: 0 | BF64: 0 | BH64: 0 | BI64: 0 | BK64: 0 | BL64: 0 | BN64: 0 | BO64: 0 | BQ64: 0 | BR64: 0 | BT64: 0 | BU64: 0 | BW64: 0 | BX64: 0 | BZ64: 0 | CA64: 0 | CC64: 0 | CD64: 0 | CF64: 0 | CG64: 0 | CI64: 0 | CJ64: 0 | CL64: 0 | CM64: 0 | CO64: 0 | CP64: 0 | CR64: 0 | CS64: 0 | CU64: 0 | CV64: 0 | CX64: 0 | CY64: 0 | DA64: 0 | DB64: 0 | DD64: 0 | DE64: 0 | DG64: 0 | DH64: 0 | DJ64: 0 | DK64: 0 | DM64: 0 | DN64: 0 | DP64: 0 | DQ64: 0 | DS64: 0 | DT64: 0 | DV64: 0 | DW64: 0 | DY64: 0 | DZ64: 0 | EB64: 0 | EC64: 0 | ED64: 0 | EE64: 0 | EF64: 0 | EG64: 0 | EH64: 0 | EI64: 0 | EK64: 0
J65: 0 | L65: 0 | M65: 0 | O65: 0 | P65: 0 | R65: 0 | S65: 0 | U65: 0 | V65: 0 | X65: 0 | Y65: 0 | AA65: 0 | AB65: 0 | AD65: 0 | AE65: 0 | AG65: 0 | AH65: 0 | AJ65: 0 | AK65: 0 | AM65: 0 | AN65: 0 | AP65: 0 | AQ65: 0 | AS65: 0 | AT65: 0 | AV65: 0 | AW65: 0 | AY65: 0 | AZ65: 0 | BB65: 0 | BC65: 0 | BE65: 0 | BF65: 0 | BH65: 0 | BI65: 0 | BK65: 0 | BL65: 0 | BN65: 0 | BO65: 0 | BQ65: 0 | BR65: 0 | BT65: 0 | BU65: 0 | BW65: 0 | BX65: 0 | BZ65: 0 | CA65: 0 | CC65: 0 | CD65: 0 | CF65: 0 | CG65: 0 | CI65: 0 | CJ65: 0 | CL65: 0 | CM65: 0 | CO65: 0 | CP65: 0 | CR65: 0 | CS65: 0 | CU65: 0 | CV65: 0 | CX65: 0 | CY65: 0 | DA65: 0 | DB65: 0 | DD65: 0 | DE65: 0 | DG65: 0 | DH65: 0 | DJ65: 0 | DK65: 0 | DM65: 0 | DN65: 0 | DP65: 0 | DQ65: 0 | DS65: 0 | DT65: 0 | DV65: 0 | DW65: 0 | DY65: 0 | DZ65: 0 | EB65: 0 | EC65: 0 | ED65: 0 | EE65: 0 | EF65: 0 | EG65: 0 | EH65: 0 | EI65: 0 | EK65: 0
J66: 0 | L66: 0 | M66: 0 | O66: 0 | P66: 0 | R66: 0 | S66: 0 | U66: 0 | V66: 0 | X66: 0 | Y66: 0 | AA66: 0 | AB66: 0 | AD66: 0 | AE66: 0 | AG66: 0 | AH66: 0 | AJ66: 0 | AK66: 0 | AM66: 0 | AN66: 0 | AP66: 0 | AQ66: 0 | AS66: 0 | AT66: 0 | AV66: 0 | AW66: 0 | AY66: 0 | AZ66: 0 | BB66: 0 | BC66: 0 | BE66: 0 | BF66: 0 | BH66: 0 | BI66: 0 | BK66: 0 | BL66: 0 | BN66: 0 | BO66: 0 | BQ66: 0 | BR66: 0 | BT66: 0 | BU66: 0 | BW66: 0 | BX66: 0 | BZ66: 0 | CA66: 0 | CC66: 0 | CD66: 0 | CF66: 0 | CG66: 0 | CI66: 0 | CJ66: 0 | CL66: 0 | CM66: 0 | CO66: 0 | CP66: 0 | CR66: 0 | CS66: 0 | CU66: 0 | CV66: 0 | CX66: 0 | CY66: 0 | DA66: 0 | DB66: 0 | DD66: 0 | DE66: 0 | DG66: 0 | DH66: 0 | DJ66: 0 | DK66: 0 | DM66: 0 | DN66: 0 | DP66: 0 | DQ66: 0 | DS66: 0 | DT66: 0 | DV66: 0 | DW66: 0 | DY66: 0 | DZ66: 0 | EB66: 0 | EC66: 0 | ED66: 0 | EE66: 0 | EF66: 0 | EG66: 0 | EH66: 0 | EI66: 0 | EK66: 0
J67: 0 | L67: 0 | M67: 0 | O67: 0 | P67: 0 | R67: 0 | S67: 0 | U67: 0 | V67: 0 | X67: 0 | Y67: 0 | AA67: 0 | AB67: 0 | AD67: 0 | AE67: 0 | AG67: 0 | AH67: 0 | AJ67: 0 | AK67: 0 | AM67: 0 | AN67: 0 | AP67: 0 | AQ67: 0 | AS67: 0 | AT67: 0 | AV67: 0 | AW67: 0 | AY67: 0 | AZ67: 0 | BB67: 0 | BC67: 0 | BE67: 0 | BF67: 0 | BH67: 0 | BI67: 0 | BK67: 0 | BL67: 0 | BN67: 0 | BO67: 0 | BQ67: 0 | BR67: 0 | BT67: 0 | BU67: 0 | BW67: 0 | BX67: 0 | BZ67: 0 | CA67: 0 | CC67: 0 | CD67: 0 | CF67: 0 | CG67: 0 | CI67: 0 | CJ67: 0 | CL67: 0 | CM67: 0 | CO67: 0 | CP67: 0 | CR67: 0 | CS67: 0 | CU67: 0 | CV67: 0 | CX67: 0 | CY67: 0 | DA67: 0 | DB67: 0 | DD67: 0 | DE67: 0 | DG67: 0 | DH67: 0 | DJ67: 0 | DK67: 0 | DM67: 0 | DN67: 0 | DP67: 0 | DQ67: 0 | DS67: 0 | DT67: 0 | DV67: 0 | DW67: 0 | DY67: 0 | DZ67: 0 | EB67: 0 | EC67: 0 | ED67: 0 | EE67: 0 | EF67: 0 | EG67: 0 | EH67: 0 | EI67: 0 | EK67: 0
J68: 0 | L68: 0 | M68: 0 | O68: 0 | P68: 0 | R68: 0 | S68: 0 | U68: 0 | V68: 0 | X68: 0 | Y68: 0 | AA68: 0 | AB68: 0 | AD68: 0 | AE68: 0 | AG68: 0 | AH68: 0 | AJ68: 0 | AK68: 0 | AM68: 0 | AN68: 0 | AP68: 0 | AQ68: 0 | AS68: 0 | AT68: 0 | AV68: 0 | AW68: 0 | AY68: 0 | AZ68: 0 | BB68: 0 | BC68: 0 | BE68: 0 | BF68: 0 | BH68: 0 | BI68: 0 | BK68: 0 | BL68: 0 | BN68: 0 | BO68: 0 | BQ68: 0 | BR68: 0 | BT68: 0 | BU68: 0 | BW68: 0 | BX68: 0 | BZ68: 0 | CA68: 0 | CC68: 0 | CD68: 0 | CF68: 0 | CG68: 0 | CI68: 0 | CJ68: 0 | CL68: 0 | CM68: 0 | CO68: 0 | CP68: 0 | CR68: 0 | CS68: 0 | CU68: 0 | CV68: 0 | CX68: 0 | CY68: 0 | DA68: 0 | DB68: 0 | DD68: 0 | DE68: 0 | DG68: 0 | DH68: 0 | DJ68: 0 | DK68: 0 | DM68: 0 | DN68: 0 | DP68: 0 | DQ68: 0 | DS68: 0 | DT68: 0 | DV68: 0 | DW68: 0 | DY68: 0 | DZ68: 0 | EB68: 0 | EC68: 0 | ED68: 0 | EE68: 0 | EF68: 0 | EG68: 0 | EH68: 0 | EI68: 0 | EK68: 0
J69: 0 | L69: 0 | M69: 0 | O69: 0 | P69: 0 | R69: 0 | S69: 0 | U69: 0 | V69: 0 | X69: 0 | Y69: 0 | AA69: 0 | AB69: 0 | AD69: 0 | AE69: 0 | AG69: 0 | AH69: 0 | AJ69: 0 | AK69: 0 | AM69: 0 | AN69: 0 | AP69: 0 | AQ69: 0 | AS69: 0 | AT69: 0 | AV69: 0 | AW69: 0 | AY69: 0 | AZ69: 0 | BB69: 0 | BC69: 0 | BE69: 0 | BF69: 0 | BH69: 0 | BI69: 0 | BK69: 0 | BL69: 0 | BN69: 0 | BO69: 0 | BQ69: 0 | BR69: 0 | BT69: 0 | BU69: 0 | BW69: 0 | BX69: 0 | BZ69: 0 | CA69: 0 | CC69: 0 | CD69: 0 | CF69: 0 | CG69: 0 | CI69: 0 | CJ69: 0 | CL69: 0 | CM69: 0 | CO69: 0 | CP69: 0 | CR69: 0 | CS69: 0 | CU69: 0 | CV69: 0 | CX69: 0 | CY69: 0 | DA69: 0 | DB69: 0 | DD69: 0 | DE69: 0 | DG69: 0 | DH69: 0 | DJ69: 0 | DK69: 0 | DM69: 0 | DN69: 0 | DP69: 0 | DQ69: 0 | DS69: 0 | DT69: 0 | DV69: 0 | DW69: 0 | DY69: 0 | DZ69: 0 | EB69: 0 | EC69: 0 | ED69: 0 | EE69: 0 | EF69: 0 | EG69: 0 | EH69: 0 | EI69: 0 | EK69: 0
J70: 0 | L70: 0 | M70: 0 | O70: 0 | P70: 0 | R70: 0 | S70: 0 | U70: 0 | V70: 0 | X70: 0 | Y70: 0 | AA70: 0 | AB70: 0 | AD70: 0 | AE70: 0 | AG70: 0 | AH70: 0 | AJ70: 0 | AK70: 0 | AM70: 0 | AN70: 0 | AP70: 0 | AQ70: 0 | AS70: 0 | AT70: 0 | AV70: 0 | AW70: 0 | AY70: 0 | AZ70: 0 | BB70: 0 | BC70: 0 | BE70: 0 | BF70: 0 | BH70: 0 | BI70: 0 | BK70: 0 | BL70: 0 | BN70: 0 | BO70: 0 | BQ70: 0 | BR70: 0 | BT70: 0 | BU70: 0 | BW70: 0 | BX70: 0 | BZ70: 0 | CA70: 0 | CC70: 0 | CD70: 0 | CF70: 0 | CG70: 0 | CI70: 0 | CJ70: 0 | CL70: 0 | CM70: 0 | CO70: 0 | CP70: 0 | CR70: 0 | CS70: 0 | CU70: 0 | CV70: 0 | CX70: 0 | CY70: 0 | DA70: 0 | DB70: 0 | DD70: 0 | DE70: 0 | DG70: 0 | DH70: 0 | DJ70: 0 | DK70: 0 | DM70: 0 | DN70: 0 | DP70: 0 | DQ70: 0 | DS70: 0 | DT70: 0 | DV70: 0 | DW70: 0 | DY70: 0 | DZ70: 0 | EB70: 0 | EC70: 0 | ED70: 0 | EE70: 0 | EF70: 0 | EG70: 0 | EH70: 0 | EI70: 0 | EK70: 0
J71: 0 | L71: 0 | M71: 0 | O71: 0 | P71: 0 | R71: 0 | S71: 0 | U71: 0 | V71: 0 | X71: 0 | Y71: 0 | AA71: 0 | AB71: 0 | AD71: 0 | AE71: 0 | AG71: 0 | AH71: 0 | AJ71: 0 | AK71: 0 | AM71: 0 | AN71: 0 | AP71: 0 | AQ71: 0 | AS71: 0 | AT71: 0 | AV71: 0 | AW71: 0 | AY71: 0 | AZ71: 0 | BB71: 0 | BC71: 0 | BE71: 0 | BF71: 0 | BH71: 0 | BI71: 0 | BK71: 0 | BL71: 0 | BN71: 0 | BO71: 0 | BQ71: 0 | BR71: 0 | BT71: 0 | BU71: 0 | BW71: 0 | BX71: 0 | BZ71: 0 | CA71: 0 | CC71: 0 | CD71: 0 | CF71: 0 | CG71: 0 | CI71: 0 | CJ71: 0 | CL71: 0 | CM71: 0 | CO71: 0 | CP71: 0 | CR71: 0 | CS71: 0 | CU71: 0 | CV71: 0 | CX71: 0 | CY71: 0 | DA71: 0 | DB71: 0 | DD71: 0 | DE71: 0 | DG71: 0 | DH71: 0 | DJ71: 0 | DK71: 0 | DM71: 0 | DN71: 0 | DP71: 0 | DQ71: 0 | DS71: 0 | DT71: 0 | DV71: 0 | DW71: 0 | DY71: 0 | DZ71: 0 | EB71: 0 | EC71: 0 | ED71: 0 | EE71: 0 | EF71: 0 | EG71: 0 | EH71: 0 | EI71: 0 | EK71: 0
J72: 0 | L72: 0 | M72: 0 | O72: 0 | P72: 0 | R72: 0 | S72: 0 | U72: 0 | V72: 0 | X72: 0 | Y72: 0 | AA72: 0 | AB72: 0 | AD72: 0 | AE72: 0 | AG72: 0 | AH72: 0 | AJ72: 0 | AK72: 0 | AM72: 0 | AN72: 0 | AP72: 0 | AQ72: 0 | AS72: 0 | AT72: 0 | AV72: 0 | AW72: 0 | AY72: 0 | AZ72: 0 | BB72: 0 | BC72: 0 | BE72: 0 | BF72: 0 | BH72: 0 | BI72: 0 | BK72: 0 | BL72: 0 | BN72: 0 | BO72: 0 | BQ72: 0 | BR72: 0 | BT72: 0 | BU72: 0 | BW72: 0 | BX72: 0 | BZ72: 0 | CA72: 0 | CC72: 0 | CD72: 0 | CF72: 0 | CG72: 0 | CI72: 0 | CJ72: 0 | CL72: 0 | CM72: 0 | CO72: 0 | CP72: 0 | CR72: 0 | CS72: 0 | CU72: 0 | CV72: 0 | CX72: 0 | CY72: 0 | DA72: 0 | DB72: 0 | DD72: 0 | DE72: 0 | DG72: 0 | DH72: 0 | DJ72: 0 | DK72: 0 | DM72: 0 | DN72: 0 | DP72: 0 | DQ72: 0 | DS72: 0 | DT72: 0 | DV72: 0 | DW72: 0 | DY72: 0 | DZ72: 0 | EB72: 0 | EC72: 0 | ED72: 0 | EE72: 0 | EF72: 0 | EG72: 0 | EH72: 0 | EI72: 0 | EK72: 0
J73: 0 | L73: 0 | M73: 0 | O73: 0 | P73: 0 | R73: 0 | S73: 0 | U73: 0 | V73: 0 | X73: 0 | Y73: 0 | AA73: 0 | AB73: 0 | AD73: 0 | AE73: 0 | AG73: 0 | AH73: 0 | AJ73: 0 | AK73: 0 | AM73: 0 | AN73: 0 | AP73: 0 | AQ73: 0 | AS73: 0 | AT73: 0 | AV73: 0 | AW73: 0 | AY73: 0 | AZ73: 0 | BB73: 0 | BC73: 0 | BE73: 0 | BF73: 0 | BH73: 0 | BI73: 0 | BK73: 0 | BL73: 0 | BN73: 0 | BO73: 0 | BQ73: 0 | BR73: 0 | BT73: 0 | BU73: 0 | BW73: 0 | BX73: 0 | BZ73: 0 | CA73: 0 | CC73: 0 | CD73: 0 | CF73: 0 | CG73: 0 | CI73: 0 | CJ73: 0 | CL73: 0 | CM73: 0 | CO73: 0 | CP73: 0 | CR73: 0 | CS73: 0 | CU73: 0 | CV73: 0 | CX73: 0 | CY73: 0 | DA73: 0 | DB73: 0 | DD73: 0 | DE73: 0 | DG73: 0 | DH73: 0 | DJ73: 0 | DK73: 0 | DM73: 0 | DN73: 0 | DP73: 0 | DQ73: 0 | DS73: 0 | DT73: 0 | DV73: 0 | DW73: 0 | DY73: 0 | DZ73: 0 | EB73: 0 | EC73: 0 | ED73: 0 | EE73: 0 | EF73: 0 | EG73: 0 | EH73: 0 | EI73: 0 | EK73: 0
J74: 0 | L74: 0 | M74: 0 | O74: 0 | P74: 0 | R74: 0 | S74: 0 | U74: 0 | V74: 0 | X74: 0 | Y74: 0 | AA74: 0 | AB74: 0 | AD74: 0 | AE74: 0 | AG74: 0 | AH74: 0 | AJ74: 0 | AK74: 0 | AM74: 0 | AN74: 0 | AP74: 0 | AQ74: 0 | AS74: 0 | AT74: 0 | AV74: 0 | AW74: 0 | AY74: 0 | AZ74: 0 | BB74: 0 | BC74: 0 | BE74: 0 | BF74: 0 | BH74: 0 | BI74: 0 | BK74: 0 | BL74: 0 | BN74: 0 | BO74: 0 | BQ74: 0 | BR74: 0 | BT74: 0 | BU74: 0 | BW74: 0 | BX74: 0 | BZ74: 0 | CA74: 0 | CC74: 0 | CD74: 0 | CF74: 0 | CG74: 0 | CI74: 0 | CJ74: 0 | CL74: 0 | CM74: 0 | CO74: 0 | CP74: 0 | CR74: 0 | CS74: 0 | CU74: 0 | CV74: 0 | CX74: 0 | CY74: 0 | DA74: 0 | DB74: 0 | DD74: 0 | DE74: 0 | DG74: 0 | DH74: 0 | DJ74: 0 | DK74: 0 | DM74: 0 | DN74: 0 | DP74: 0 | DQ74: 0 | DS74: 0 | DT74: 0 | DV74: 0 | DW74: 0 | DY74: 0 | DZ74: 0 | EB74: 0 | EC74: 0 | ED74: 0 | EE74: 0 | EF74: 0 | EG74: 0 | EH74: 0 | EI74: 0 | EK74: 0
J75: 0 | L75: 0 | M75: 0 | O75: 0 | P75: 0 | R75: 0 | S75: 0 | U75: 0 | V75: 0 | X75: 0 | Y75: 0 | AA75: 0 | AB75: 0 | AD75: 0 | AE75: 0 | AG75: 0 | AH75: 0 | AJ75: 0 | AK75: 0 | AM75: 0 | AN75: 0 | AP75: 0 | AQ75: 0 | AS75: 0 | AT75: 0 | AV75: 0 | AW75: 0 | AY75: 0 | AZ75: 0 | BB75: 0 | BC75: 0 | BE75: 0 | BF75: 0 | BH75: 0 | BI75: 0 | BK75: 0 | BL75: 0 | BN75: 0 | BO75: 0 | BQ75: 0 | BR75: 0 | BT75: 0 | BU75: 0 | BW75: 0 | BX75: 0 | BZ75: 0 | CA75: 0 | CC75: 0 | CD75: 0 | CF75: 0 | CG75: 0 | CI75: 0 | CJ75: 0 | CL75: 0 | CM75: 0 | CO75: 0 | CP75: 0 | CR75: 0 | CS75: 0 | CU75: 0 | CV75: 0 | CX75: 0 | CY75: 0 | DA75: 0 | DB75: 0 | DD75: 0 | DE75: 0 | DG75: 0 | DH75: 0 | DJ75: 0 | DK75: 0 | DM75: 0 | DN75: 0 | DP75: 0 | DQ75: 0 | DS75: 0 | DT75: 0 | DV75: 0 | DW75: 0 | DY75: 0 | DZ75: 0 | EB75: 0 | EC75: 0 | ED75: 0 | EE75: 0 | EF75: 0 | EG75: 0 | EH75: 0 | EI75: 0 | EK75: 0
J76: 0 | L76: 0 | M76: 0 | O76: 0 | P76: 0 | R76: 0 | S76: 0 | U76: 0 | V76: 0 | X76: 0 | Y76: 0 | AA76: 0 | AB76: 0 | AD76: 0 | AE76: 0 | AG76: 0 | AH76: 0 | AJ76: 0 | AK76: 0 | AM76: 0 | AN76: 0 | AP76: 0 | AQ76: 0 | AS76: 0 | AT76: 0 | AV76: 0 | AW76: 0 | AY76: 0 | AZ76: 0 | BB76: 0 | BC76: 0 | BE76: 0 | BF76: 0 | BH76: 0 | BI76: 0 | BK76: 0 | BL76: 0 | BN76: 0 | BO76: 0 | BQ76: 0 | BR76: 0 | BT76: 0 | BU76: 0 | BW76: 0 | BX76: 0 | BZ76: 0 | CA76: 0 | CC76: 0 | CD76: 0 | CF76: 0 | CG76: 0 | CI76: 0 | CJ76: 0 | CL76: 0 | CM76: 0 | CO76: 0 | CP76: 0 | CR76: 0 | CS76: 0 | CU76: 0 | CV76: 0 | CX76: 0 | CY76: 0 | DA76: 0 | DB76: 0 | DD76: 0 | DE76: 0 | DG76: 0 | DH76: 0 | DJ76: 0 | DK76: 0 | DM76: 0 | DN76: 0 | DP76: 0 | DQ76: 0 | DS76: 0 | DT76: 0 | DV76: 0 | DW76: 0 | DY76: 0 | DZ76: 0 | EB76: 0 | EC76: 0 | ED76: 0 | EE76: 0 | EF76: 0 | EG76: 0 | EH76: 0 | EI76: 0 | EK76: 0
J77: 0 | L77: 0 | M77: 0 | O77: 0 | P77: 0 | R77: 0 | S77: 0 | U77: 0 | V77: 0 | X77: 0 | Y77: 0 | AA77: 0 | AB77: 0 | AD77: 0 | AE77: 0 | AG77: 0 | AH77: 0 | AJ77: 0 | AK77: 0 | AM77: 0 | AN77: 0 | AP77: 0 | AQ77: 0 | AS77: 0 | AT77: 0 | AV77: 0 | AW77: 0 | AY77: 0 | AZ77: 0 | BB77: 0 | BC77: 0 | BE77: 0 | BF77: 0 | BH77: 0 | BI77: 0 | BK77: 0 | BL77: 0 | BN77: 0 | BO77: 0 | BQ77: 0 | BR77: 0 | BT77: 0 | BU77: 0 | BW77: 0 | BX77: 0 | BZ77: 0 | CA77: 0 | CC77: 0 | CD77: 0 | CF77: 0 | CG77: 0 | CI77: 0 | CJ77: 0 | CL77: 0 | CM77: 0 | CO77: 0 | CP77: 0 | CR77: 0 | CS77: 0 | CU77: 0 | CV77: 0 | CX77: 0 | CY77: 0 | DA77: 0 | DB77: 0 | DD77: 0 | DE77: 0 | DG77: 0 | DH77: 0 | DJ77: 0 | DK77: 0 | DM77: 0 | DN77: 0 | DP77: 0 | DQ77: 0 | DS77: 0 | DT77: 0 | DV77: 0 | DW77: 0 | DY77: 0 | DZ77: 0 | EB77: 0 | EC77: 0 | ED77: 0 | EE77: 0 | EF77: 0 | EG77: 0 | EH77: 0 | EI77: 0 | EK77: 0
J78: 0 | L78: 0 | M78: 0 | O78: 0 | P78: 0 | R78: 0 | S78: 0 | U78: 0 | V78: 0 | X78: 0 | Y78: 0 | AA78: 0 | AB78: 0 | AD78: 0 | AE78: 0 | AG78: 0 | AH78: 0 | AJ78: 0 | AK78: 0 | AM78: 0 | AN78: 0 | AP78: 0 | AQ78: 0 | AS78: 0 | AT78: 0 | AV78: 0 | AW78: 0 | AY78: 0 | AZ78: 0 | BB78: 0 | BC78: 0 | BE78: 0 | BF78: 0 | BH78: 0 | BI78: 0 | BK78: 0 | BL78: 0 | BN78: 0 | BO78: 0 | BQ78: 0 | BR78: 0 | BT78: 0 | BU78: 0 | BW78: 0 | BX78: 0 | BZ78: 0 | CA78: 0 | CC78: 0 | CD78: 0 | CF78: 0 | CG78: 0 | CI78: 0 | CJ78: 0 | CL78: 0 | CM78: 0 | CO78: 0 | CP78: 0 | CR78: 0 | CS78: 0 | CU78: 0 | CV78: 0 | CX78: 0 | CY78: 0 | DA78: 0 | DB78: 0 | DD78: 0 | DE78: 0 | DG78: 0 | DH78: 0 | DJ78: 0 | DK78: 0 | DM78: 0 | DN78: 0 | DP78: 0 | DQ78: 0 | DS78: 0 | DT78: 0 | DV78: 0 | DW78: 0 | DY78: 0 | DZ78: 0 | EB78: 0 | EC78: 0 | ED78: 0 | EE78: 0 | EF78: 0 | EG78: 0 | EH78: 0 | EI78: 0 | EK78: 0
J79: 0 | L79: 0 | M79: 0 | O79: 0 | P79: 0 | R79: 0 | S79: 0 | U79: 0 | V79: 0 | X79: 0 | Y79: 0 | AA79: 0 | AB79: 0 | AD79: 0 | AE79: 0 | AG79: 0 | AH79: 0 | AJ79: 0 | AK79: 0 | AM79: 0 | AN79: 0 | AP79: 0 | AQ79: 0 | AS79: 0 | AT79: 0 | AV79: 0 | AW79: 0 | AY79: 0 | AZ79: 0 | BB79: 0 | BC79: 0 | BE79: 0 | BF79: 0 | BH79: 0 | BI79: 0 | BK79: 0 | BL79: 0 | BN79: 0 | BO79: 0 | BQ79: 0 | BR79: 0 | BT79: 0 | BU79: 0 | BW79: 0 | BX79: 0 | BZ79: 0 | CA79: 0 | CC79: 0 | CD79: 0 | CF79: 0 | CG79: 0 | CI79: 0 | CJ79: 0 | CL79: 0 | CM79: 0 | CO79: 0 | CP79: 0 | CR79: 0 | CS79: 0 | CU79: 0 | CV79: 0 | CX79: 0 | CY79: 0 | DA79: 0 | DB79: 0 | DD79: 0 | DE79: 0 | DG79: 0 | DH79: 0 | DJ79: 0 | DK79: 0 | DM79: 0 | DN79: 0 | DP79: 0 | DQ79: 0 | DS79: 0 | DT79: 0 | DV79: 0 | DW79: 0 | DY79: 0 | DZ79: 0 | EB79: 0 | EC79: 0 | ED79: 0 | EE79: 0 | EF79: 0 | EG79: 0 | EH79: 0 | EI79: 0 | EK79: 0
J80: 0 | L80: 0 | M80: 0 | O80: 0 | P80: 0 | R80: 0 | S80: 0 | U80: 0 | V80: 0 | X80: 0 | Y80: 0 | AA80: 0 | AB80: 0 | AD80: 0 | AE80: 0 | AG80: 0 | AH80: 0 | AJ80: 0 | AK80: 0 | AM80: 0 | AN80: 0 | AP80: 0 | AQ80: 0 | AS80: 0 | AT80: 0 | AV80: 0 | AW80: 0 | AY80: 0 | AZ80: 0 | BB80: 0 | BC80: 0 | BE80: 0 | BF80: 0 | BH80: 0 | BI80: 0 | BK80: 0 | BL80: 0 | BN80: 0 | BO80: 0 | BQ80: 0 | BR80: 0 | BT80: 0 | BU80: 0 | BW80: 0 | BX80: 0 | BZ80: 0 | CA80: 0 | CC80: 0 | CD80: 0 | CF80: 0 | CG80: 0 | CI80: 0 | CJ80: 0 | CL80: 0 | CM80: 0 | CO80: 0 | CP80: 0 | CR80: 0 | CS80: 0 | CU80: 0 | CV80: 0 | CX80: 0 | CY80: 0 | DA80: 0 | DB80: 0 | DD80: 0 | DE80: 0 | DG80: 0 | DH80: 0 | DJ80: 0 | DK80: 0 | DM80: 0 | DN80: 0 | DP80: 0 | DQ80: 0 | DS80: 0 | DT80: 0 | DV80: 0 | DW80: 0 | DY80: 0 | DZ80: 0 | EB80: 0 | EC80: 0 | ED80: 0 | EE80: 0 | EF80: 0 | EG80: 0 | EH80: 0 | EI80: 0 | EK80: 0
J81: 0 | L81: 0 | M81: 0 | O81: 0 | P81: 0 | R81: 0 | S81: 0 | U81: 0 | V81: 0 | X81: 0 | Y81: 0 | AA81: 0 | AB81: 0 | AD81: 0 | AE81: 0 | AG81: 0 | AH81: 0 | AJ81: 0 | AK81: 0 | AM81: 0 | AN81: 0 | AP81: 0 | AQ81: 0 | AS81: 0 | AT81: 0 | AV81: 0 | AW81: 0 | AY81: 0 | AZ81: 0 | BB81: 0 | BC81: 0 | BE81: 0 | BF81: 0 | BH81: 0 | BI81: 0 | BK81: 0 | BL81: 0 | BN81: 0 | BO81: 0 | BQ81: 0 | BR81: 0 | BT81: 0 | BU81: 0 | BW81: 0 | BX81: 0 | BZ81: 0 | CA81: 0 | CC81: 0 | CD81: 0 | CF81: 0 | CG81: 0 | CI81: 0 | CJ81: 0 | CL81: 0 | CM81: 0 | CO81: 0 | CP81: 0 | CR81: 0 | CS81: 0 | CU81: 0 | CV81: 0 | CX81: 0 | CY81: 0 | DA81: 0 | DB81: 0 | DD81: 0 | DE81: 0 | DG81: 0 | DH81: 0 | DJ81: 0 | DK81: 0 | DM81: 0 | DN81: 0 | DP81: 0 | DQ81: 0 | DS81: 0 | DT81: 0 | DV81: 0 | DW81: 0 | DY81: 0 | DZ81: 0 | EB81: 0 | EC81: 0 | ED81: 0 | EE81: 0 | EF81: 0 | EG81: 0 | EH81: 0 | EI81: 0 | EK81: 0
E82: =IF(ISERROR(H82/IF(ISBLANK(G82), 52.14, G82)/F82), "", H82/IF(ISBLANK(G82), 52.14, G82)/F82) ->  | J82: 0 | L82: 0 | M82: 0 | O82: 0 | P82: 0 | R82: 0 | S82: 0 | U82: 0 | V82: 0 | X82: 0 | Y82: 0 | AA82: 0 | AB82: 0 | AD82: 0 | AE82: 0 | AG82: 0 | AH82: 0 | AJ82: 0 | AK82: 0 | AM82: 0 | AN82: 0 | AP82: 0 | AQ82: 0 | AS82: 0 | AT82: 0 | AV82: 0 | AW82: 0 | AY82: 0 | AZ82: 0 | BB82: 0 | BC82: 0 | BE82: 0 | BF82: 0 | BH82: 0 | BI82: 0 | BK82: 0 | BL82: 0 | BN82: 0 | BO82: 0 | BQ82: 0 | BR82: 0 | BT82: 0 | BU82: 0 | BW82: 0 | BX82: 0 | BZ82: 0 | CA82: 0 | CC82: 0 | CD82: 0 | CF82: 0 | CG82: 0 | CI82: 0 | CJ82: 0 | CL82: 0 | CM82: 0 | CO82: 0 | CP82: 0 | CR82: 0 | CS82: 0 | CU82: 0 | CV82: 0 | CX82: 0 | CY82: 0 | DA82: 0 | DB82: 0 | DD82: 0 | DE82: 0 | DG82: 0 | DH82: 0 | DJ82: 0 | DK82: 0 | DM82: 0 | DN82: 0 | DP82: 0 | DQ82: 0 | DS82: 0 | DT82: 0 | DV82: 0 | DW82: 0 | DY82: 0 | DZ82: 0 | EB82: 0 | EC82: 0 | ED82: 0 | EE82: 0 | EF82: 0 | EG82: 0 | EH82: 0 | EI82: 0 | EK82: 0
J83: =H83*I83 -> 0 | L83: =$H83*K83 -> 0 | M83: =$J83*K83 -> 0 | O83: =$H83*N83 -> 0 | P83: =$J83*N83 -> 0 | R83: =$H83*Q83 -> 0 | S83: =$J83*Q83 -> 0 | U83: =$H83*T83 -> 0 | V83: =$J83*T83 -> 0 | X83: =$H83*W83 -> 0 | Y83: =$J83*W83 -> 0 | AA83: =$H83*Z83 -> 0 | AB83: =$J83*Z83 -> 0 | AD83: =$H83*AC83 -> 0 | AE83: =$J83*AC83 -> 0 | AG83: =$H83*AF83 -> 0 | AH83: =$J83*AF83 -> 0 | AJ83: =$H83*AI83 -> 0 | AK83: =$J83*AI83 -> 0 | AM83: =$H83*AL83 -> 0 | AN83: =$J83*AL83 -> 0 | AP83: =$H83*AO83 -> 0 | AQ83: =$J83*AO83 -> 0 | AS83: =$H83*AR83 -> 0 | AT83: =$J83*AR83 -> 0 | AV83: =$H83*AU83 -> 0 | AW83: =$J83*AU83 -> 0 | AY83: =$H83*AX83 -> 0 | AZ83: =$J83*AX83 -> 0 | BB83: =$H83*BA83 -> 0 | BC83: =$J83*BA83 -> 0 | BE83: =$H83*BD83 -> 0 | BF83: =$J83*BD83 -> 0 | BH83: =$H83*BG83 -> 0 | BI83: =$J83*BG83 -> 0 | BK83: =$H83*BJ83 -> 0 | BL83: =$J83*BJ83 -> 0 | BN83: =$H83*BM83 -> 0 | BO83: =$J83*BM83 -> 0 | BQ83: =$H83*BP83 -> 0 | BR83: =$J83*BP83 -> 0 | BT83: =$H83*BS83 -> 0 | BU83: =$J83*BS83 -> 0 | BW83: =$H83*BV83 -> 0 | BX83: =$J83*BV83 -> 0 | BZ83: =$H83*BY83 -> 0 | CA83: =$J83*BY83 -> 0 | CC83: =$H83*CB83 -> 0 | CD83: =$J83*CB83 -> 0 | CF83: =$H83*CE83 -> 0 | CG83: =$J83*CE83 -> 0 | CI83: =$H83*CH83 -> 0 | CJ83: =$J83*CH83 -> 0 | CL83: =$H83*CK83 -> 0 | CM83: =$J83*CK83 -> 0 | CO83: =$H83*CN83 -> 0 | CP83: =$J83*CN83 -> 0 | CR83: =$H83*CQ83 -> 0 | CS83: =$J83*CQ83 -> 0 | CU83: =$H83*CT83 -> 0 | CV83: =$J83*CT83 -> 0 | CX83: =$H83*CW83 -> 0 | CY83: =$J83*CW83 -> 0 | DA83: =$H83*CZ83 -> 0 | DB83: =$J83*CZ83 -> 0 | DD83: =$H83*DC83 -> 0 | DE83: =$J83*DC83 -> 0 | DG83: =$H83*DF83 -> 0 | DH83: =$J83*DF83 -> 0 | DJ83: =$H83*DI83 -> 0 | DK83: =$J83*DI83 -> 0 | DM83: =$H83*DL83 -> 0 | DN83: =$J83*DL83 -> 0 | DP83: =$H83*DO83 -> 0 | DQ83: =$J83*DO83 -> 0 | DS83: =$H83*DR83 -> 0 | DT83: =$J83*DR83 -> 0 | DV83: =$H83*DU83 -> 0 | DW83: =$J83*DU83 -> 0 | DY83: =$H83*DX83 -> 0 | DZ83: =$J83*DX83 -> 0 | EB83: =$H83*EA83 -> 0 | EC83: =$J83*EA83 -> 0 | ED83: =K83+N83+Q83+T83+W83+Z83+AC83+AF83+AI83+AL83+AO83+AR83+AU83+AX83+BA83+BD83+BG83+BJ83+BM83+BP83+BS83+BV83+BY83+CB83+CE83+CH83+CK83+CN83+CQ83+CT83+CW83+CZ83+DC83+DF83+DI83+DL83+DO83+DR83+DU83+DX83+EA83 -> 0 | EE83: =L83+O83+R83+U83+X83+AA83+AD83+AG83+AJ83+AM83+AP83+AS83+AV83+AY83+BB83+BE83+BH83+BK83+BN83+BQ83+BT83+BW83+BZ83+CC83+CF83+CI83+CL83+CO83+CR83+CU83+CX83+DA83+DD83+DG83+DJ83+DM83+DP83+DS83+DV83+DY83 -> 0 | EF83: =M83+P83+S83+V83+Y83+AB83+AE83+AH83+AK83+AN83+AQ83+AT83+AW83+AZ83+BC83+BF83+BI83+BL83+BO83+BR83+BU83+BX83+CA83+CD83+CG83+CJ83+CM83+CP83+CS83+CV83+CY83+DB83+DE83+DH83+DK83+DN83+DQ83+DT83+DW83+DZ83 -> 0 | EG83: =EE83+EF83 -> 0 | EH83: =SUM(EB83:EC83) -> 0 | EI83: =SUM(EG83:EH83) -> 0 | EK83: =EI83+EJ83 -> 0
J84: 0 | L84: 0 | M84: 0 | O84: 0 | P84: 0 | R84: 0 | S84: 0 | U84: 0 | V84: 0 | X84: 0 | Y84: 0 | AA84: 0 | AB84: 0 | AD84: 0 | AE84: 0 | AG84: 0 | AH84: 0 | AJ84: 0 | AK84: 0 | AM84: 0 | AN84: 0 | AP84: 0 | AQ84: 0 | AS84: 0 | AT84: 0 | AV84: 0 | AW84: 0 | AY84: 0 | AZ84: 0 | BB84: 0 | BC84: 0 | BE84: 0 | BF84: 0 | BH84: 0 | BI84: 0 | BK84: 0 | BL84: 0 | BN84: 0 | BO84: 0 | BQ84: 0 | BR84: 0 | BT84: 0 | BU84: 0 | BW84: 0 | BX84: 0 | BZ84: 0 | CA84: 0 | CC84: 0 | CD84: 0 | CF84: 0 | CG84: 0 | CI84: 0 | CJ84: 0 | CL84: 0 | CM84: 0 | CO84: 0 | CP84: 0 | CR84: 0 | CS84: 0 | CU84: 0 | CV84: 0 | CX84: 0 | CY84: 0 | DA84: 0 | DB84: 0 | DD84: 0 | DE84: 0 | DG84: 0 | DH84: 0 | DJ84: 0 | DK84: 0 | DM84: 0 | DN84: 0 | DP84: 0 | DQ84: 0 | DS84: 0 | DT84: 0 | DV84: 0 | DW84: 0 | DY84: 0 | DZ84: 0 | EB84: 0 | EC84: 0 | ED84: 0 | EE84: 0 | EF84: 0 | EG84: 0 | EH84: 0 | EI84: 0 | EK84: 0
J85: 0 | L85: 0 | M85: 0 | O85: 0 | P85: 0 | R85: 0 | S85: 0 | U85: 0 | V85: 0 | X85: 0 | Y85: 0 | AA85: 0 | AB85: 0 | AD85: 0 | AE85: 0 | AG85: 0 | AH85: 0 | AJ85: 0 | AK85: 0 | AM85: 0 | AN85: 0 | AP85: 0 | AQ85: 0 | AS85: 0 | AT85: 0 | AV85: 0 | AW85: 0 | AY85: 0 | AZ85: 0 | BB85: 0 | BC85: 0 | BE85: 0 | BF85: 0 | BH85: 0 | BI85: 0 | BK85: 0 | BL85: 0 | BN85: 0 | BO85: 0 | BQ85: 0 | BR85: 0 | BT85: 0 | BU85: 0 | BW85: 0 | BX85: 0 | BZ85: 0 | CA85: 0 | CC85: 0 | CD85: 0 | CF85: 0 | CG85: 0 | CI85: 0 | CJ85: 0 | CL85: 0 | CM85: 0 | CO85: 0 | CP85: 0 | CR85: 0 | CS85: 0 | CU85: 0 | CV85: 0 | CX85: 0 | CY85: 0 | DA85: 0 | DB85: 0 | DD85: 0 | DE85: 0 | DG85: 0 | DH85: 0 | DJ85: 0 | DK85: 0 | DM85: 0 | DN85: 0 | DP85: 0 | DQ85: 0 | DS85: 0 | DT85: 0 | DV85: 0 | DW85: 0 | DY85: 0 | DZ85: 0 | EB85: 0 | EC85: 0 | ED85: 0 | EE85: 0 | EF85: 0 | EG85: 0 | EH85: 0 | EI85: 0 | EK85: 0
J86: 0 | L86: 0 | M86: 0 | O86: 0 | P86: 0 | R86: 0 | S86: 0 | U86: 0 | V86: 0 | X86: 0 | Y86: 0 | AA86: 0 | AB86: 0 | AD86: 0 | AE86: 0 | AG86: 0 | AH86: 0 | AJ86: 0 | AK86: 0 | AM86: 0 | AN86: 0 | AP86: 0 | AQ86: 0 | AS86: 0 | AT86: 0 | AV86: 0 | AW86: 0 | AY86: 0 | AZ86: 0 | BB86: 0 | BC86: 0 | BE86: 0 | BF86: 0 | BH86: 0 | BI86: 0 | BK86: 0 | BL86: 0 | BN86: 0 | BO86: 0 | BQ86: 0 | BR86: 0 | BT86: 0 | BU86: 0 | BW86: 0 | BX86: 0 | BZ86: 0 | CA86: 0 | CC86: 0 | CD86: 0 | CF86: 0 | CG86: 0 | CI86: 0 | CJ86: 0 | CL86: 0 | CM86: 0 | CO86: 0 | CP86: 0 | CR86: 0 | CS86: 0 | CU86: 0 | CV86: 0 | CX86: 0 | CY86: 0 | DA86: 0 | DB86: 0 | DD86: 0 | DE86: 0 | DG86: 0 | DH86: 0 | DJ86: 0 | DK86: 0 | DM86: 0 | DN86: 0 | DP86: 0 | DQ86: 0 | DS86: 0 | DT86: 0 | DV86: 0 | DW86: 0 | DY86: 0 | DZ86: 0 | EB86: 0 | EC86: 0 | ED86: 0 | EE86: 0 | EF86: 0 | EG86: 0 | EH86: 0 | EI86: 0 | EK86: 0
J87: 0 | L87: 0 | M87: 0 | O87: 0 | P87: 0 | R87: 0 | S87: 0 | U87: 0 | V87: 0 | X87: 0 | Y87: 0 | AA87: 0 | AB87: 0 | AD87: 0 | AE87: 0 | AG87: 0 | AH87: 0 | AJ87: 0 | AK87: 0 | AM87: 0 | AN87: 0 | AP87: 0 | AQ87: 0 | AS87: 0 | AT87: 0 | AV87: 0 | AW87: 0 | AY87: 0 | AZ87: 0 | BB87: 0 | BC87: 0 | BE87: 0 | BF87: 0 | BH87: 0 | BI87: 0 | BK87: 0 | BL87: 0 | BN87: 0 | BO87: 0 | BQ87: 0 | BR87: 0 | BT87: 0 | BU87: 0 | BW87: 0 | BX87: 0 | BZ87: 0 | CA87: 0 | CC87: 0 | CD87: 0 | CF87: 0 | CG87: 0 | CI87: 0 | CJ87: 0 | CL87: 0 | CM87: 0 | CO87: 0 | CP87: 0 | CR87: 0 | CS87: 0 | CU87: 0 | CV87: 0 | CX87: 0 | CY87: 0 | DA87: 0 | DB87: 0 | DD87: 0 | DE87: 0 | DG87: 0 | DH87: 0 | DJ87: 0 | DK87: 0 | DM87: 0 | DN87: 0 | DP87: 0 | DQ87: 0 | DS87: 0 | DT87: 0 | DV87: 0 | DW87: 0 | DY87: 0 | DZ87: 0 | EB87: 0 | EC87: 0 | ED87: 0 | EE87: 0 | EF87: 0 | EG87: 0 | EH87: 0 | EI87: 0 | EK87: 0
J88: 0 | L88: 0 | M88: 0 | O88: 0 | P88: 0 | R88: 0 | S88: 0 | U88: 0 | V88: 0 | X88: 0 | Y88: 0 | AA88: 0 | AB88: 0 | AD88: 0 | AE88: 0 | AG88: 0 | AH88: 0 | AJ88: 0 | AK88: 0 | AM88: 0 | AN88: 0 | AP88: 0 | AQ88: 0 | AS88: 0 | AT88: 0 | AV88: 0 | AW88: 0 | AY88: 0 | AZ88: 0 | BB88: 0 | BC88: 0 | BE88: 0 | BF88: 0 | BH88: 0 | BI88: 0 | BK88: 0 | BL88: 0 | BN88: 0 | BO88: 0 | BQ88: 0 | BR88: 0 | BT88: 0 | BU88: 0 | BW88: 0 | BX88: 0 | BZ88: 0 | CA88: 0 | CC88: 0 | CD88: 0 | CF88: 0 | CG88: 0 | CI88: 0 | CJ88: 0 | CL88: 0 | CM88: 0 | CO88: 0 | CP88: 0 | CR88: 0 | CS88: 0 | CU88: 0 | CV88: 0 | CX88: 0 | CY88: 0 | DA88: 0 | DB88: 0 | DD88: 0 | DE88: 0 | DG88: 0 | DH88: 0 | DJ88: 0 | DK88: 0 | DM88: 0 | DN88: 0 | DP88: 0 | DQ88: 0 | DS88: 0 | DT88: 0 | DV88: 0 | DW88: 0 | DY88: 0 | DZ88: 0 | EB88: 0 | EC88: 0 | ED88: 0 | EE88: 0 | EF88: 0 | EG88: 0 | EH88: 0 | EI88: 0 | EK88: 0
J89: 0 | L89: 0 | M89: 0 | O89: 0 | P89: 0 | R89: 0 | S89: 0 | U89: 0 | V89: 0 | X89: 0 | Y89: 0 | AA89: 0 | AB89: 0 | AD89: 0 | AE89: 0 | AG89: 0 | AH89: 0 | AJ89: 0 | AK89: 0 | AM89: 0 | AN89: 0 | AP89: 0 | AQ89: 0 | AS89: 0 | AT89: 0 | AV89: 0 | AW89: 0 | AY89: 0 | AZ89: 0 | BB89: 0 | BC89: 0 | BE89: 0 | BF89: 0 | BH89: 0 | BI89: 0 | BK89: 0 | BL89: 0 | BN89: 0 | BO89: 0 | BQ89: 0 | BR89: 0 | BT89: 0 | BU89: 0 | BW89: 0 | BX89: 0 | BZ89: 0 | CA89: 0 | CC89: 0 | CD89: 0 | CF89: 0 | CG89: 0 | CI89: 0 | CJ89: 0 | CL89: 0 | CM89: 0 | CO89: 0 | CP89: 0 | CR89: 0 | CS89: 0 | CU89: 0 | CV89: 0 | CX89: 0 | CY89: 0 | DA89: 0 | DB89: 0 | DD89: 0 | DE89: 0 | DG89: 0 | DH89: 0 | DJ89: 0 | DK89: 0 | DM89: 0 | DN89: 0 | DP89: 0 | DQ89: 0 | DS89: 0 | DT89: 0 | DV89: 0 | DW89: 0 | DY89: 0 | DZ89: 0 | EB89: 0 | EC89: 0 | ED89: 0 | EE89: 0 | EF89: 0 | EG89: 0 | EH89: 0 | EI89: 0 | EK89: 0
J90: 0 | L90: 0 | M90: 0 | O90: 0 | P90: 0 | R90: 0 | S90: 0 | U90: 0 | V90: 0 | X90: 0 | Y90: 0 | AA90: 0 | AB90: 0 | AD90: 0 | AE90: 0 | AG90: 0 | AH90: 0 | AJ90: 0 | AK90: 0 | AM90: 0 | AN90: 0 | AP90: 0 | AQ90: 0 | AS90: 0 | AT90: 0 | AV90: 0 | AW90: 0 | AY90: 0 | AZ90: 0 | BB90: 0 | BC90: 0 | BE90: 0 | BF90: 0 | BH90: 0 | BI90: 0 | BK90: 0 | BL90: 0 | BN90: 0 | BO90: 0 | BQ90: 0 | BR90: 0 | BT90: 0 | BU90: 0 | BW90: 0 | BX90: 0 | BZ90: 0 | CA90: 0 | CC90: 0 | CD90: 0 | CF90: 0 | CG90: 0 | CI90: 0 | CJ90: 0 | CL90: 0 | CM90: 0 | CO90: 0 | CP90: 0 | CR90: 0 | CS90: 0 | CU90: 0 | CV90: 0 | CX90: 0 | CY90: 0 | DA90: 0 | DB90: 0 | DD90: 0 | DE90: 0 | DG90: 0 | DH90: 0 | DJ90: 0 | DK90: 0 | DM90: 0 | DN90: 0 | DP90: 0 | DQ90: 0 | DS90: 0 | DT90: 0 | DV90: 0 | DW90: 0 | DY90: 0 | DZ90: 0 | EB90: 0 | EC90: 0 | ED90: 0 | EE90: 0 | EF90: 0 | EG90: 0 | EH90: 0 | EI90: 0 | EK90: 0
J91: 0 | L91: 0 | M91: 0 | O91: 0 | P91: 0 | R91: 0 | S91: 0 | U91: 0 | V91: 0 | X91: 0 | Y91: 0 | AA91: 0 | AB91: 0 | AD91: 0 | AE91: 0 | AG91: 0 | AH91: 0 | AJ91: 0 | AK91: 0 | AM91: 0 | AN91: 0 | AP91: 0 | AQ91: 0 | AS91: 0 | AT91: 0 | AV91: 0 | AW91: 0 | AY91: 0 | AZ91: 0 | BB91: 0 | BC91: 0 | BE91: 0 | BF91: 0 | BH91: 0 | BI91: 0 | BK91: 0 | BL91: 0 | BN91: 0 | BO91: 0 | BQ91: 0 | BR91: 0 | BT91: 0 | BU91: 0 | BW91: 0 | BX91: 0 | BZ91: 0 | CA91: 0 | CC91: 0 | CD91: 0 | CF91: 0 | CG91: 0 | CI91: 0 | CJ91: 0 | CL91: 0 | CM91: 0 | CO91: 0 | CP91: 0 | CR91: 0 | CS91: 0 | CU91: 0 | CV91: 0 | CX91: 0 | CY91: 0 | DA91: 0 | DB91: 0 | DD91: 0 | DE91: 0 | DG91: 0 | DH91: 0 | DJ91: 0 | DK91: 0 | DM91: 0 | DN91: 0 | DP91: 0 | DQ91: 0 | DS91: 0 | DT91: 0 | DV91: 0 | DW91: 0 | DY91: 0 | DZ91: 0 | EB91: 0 | EC91: 0 | ED91: 0 | EE91: 0 | EF91: 0 | EG91: 0 | EH91: 0 | EI91: 0 | EK91: 0
J92: 0 | L92: 0 | M92: 0 | O92: 0 | P92: 0 | R92: 0 | S92: 0 | U92: 0 | V92: 0 | X92: 0 | Y92: 0 | AA92: 0 | AB92: 0 | AD92: 0 | AE92: 0 | AG92: 0 | AH92: 0 | AJ92: 0 | AK92: 0 | AM92: 0 | AN92: 0 | AP92: 0 | AQ92: 0 | AS92: 0 | AT92: 0 | AV92: 0 | AW92: 0 | AY92: 0 | AZ92: 0 | BB92: 0 | BC92: 0 | BE92: 0 | BF92: 0 | BH92: 0 | BI92: 0 | BK92: 0 | BL92: 0 | BN92: 0 | BO92: 0 | BQ92: 0 | BR92: 0 | BT92: 0 | BU92: 0 | BW92: 0 | BX92: 0 | BZ92: 0 | CA92: 0 | CC92: 0 | CD92: 0 | CF92: 0 | CG92: 0 | CI92: 0 | CJ92: 0 | CL92: 0 | CM92: 0 | CO92: 0 | CP92: 0 | CR92: 0 | CS92: 0 | CU92: 0 | CV92: 0 | CX92: 0 | CY92: 0 | DA92: 0 | DB92: 0 | DD92: 0 | DE92: 0 | DG92: 0 | DH92: 0 | DJ92: 0 | DK92: 0 | DM92: 0 | DN92: 0 | DP92: 0 | DQ92: 0 | DS92: 0 | DT92: 0 | DV92: 0 | DW92: 0 | DY92: 0 | DZ92: 0 | EB92: 0 | EC92: 0 | ED92: 0 | EE92: 0 | EF92: 0 | EG92: 0 | EH92: 0 | EI92: 0 | EK92: 0
J93: 0 | L93: 0 | M93: 0 | O93: 0 | P93: 0 | R93: 0 | S93: 0 | U93: 0 | V93: 0 | X93: 0 | Y93: 0 | AA93: 0 | AB93: 0 | AD93: 0 | AE93: 0 | AG93: 0 | AH93: 0 | AJ93: 0 | AK93: 0 | AM93: 0 | AN93: 0 | AP93: 0 | AQ93: 0 | AS93: 0 | AT93: 0 | AV93: 0 | AW93: 0 | AY93: 0 | AZ93: 0 | BB93: 0 | BC93: 0 | BE93: 0 | BF93: 0 | BH93: 0 | BI93: 0 | BK93: 0 | BL93: 0 | BN93: 0 | BO93: 0 | BQ93: 0 | BR93: 0 | BT93: 0 | BU93: 0 | BW93: 0 | BX93: 0 | BZ93: 0 | CA93: 0 | CC93: 0 | CD93: 0 | CF93: 0 | CG93: 0 | CI93: 0 | CJ93: 0 | CL93: 0 | CM93: 0 | CO93: 0 | CP93: 0 | CR93: 0 | CS93: 0 | CU93: 0 | CV93: 0 | CX93: 0 | CY93: 0 | DA93: 0 | DB93: 0 | DD93: 0 | DE93: 0 | DG93: 0 | DH93: 0 | DJ93: 0 | DK93: 0 | DM93: 0 | DN93: 0 | DP93: 0 | DQ93: 0 | DS93: 0 | DT93: 0 | DV93: 0 | DW93: 0 | DY93: 0 | DZ93: 0 | EB93: 0 | EC93: 0 | ED93: 0 | EE93: 0 | EF93: 0 | EG93: 0 | EH93: 0 | EI93: 0 | EK93: 0
J94: 0 | L94: 0 | M94: 0 | O94: 0 | P94: 0 | R94: 0 | S94: 0 | U94: 0 | V94: 0 | X94: 0 | Y94: 0 | AA94: 0 | AB94: 0 | AD94: 0 | AE94: 0 | AG94: 0 | AH94: 0 | AJ94: 0 | AK94: 0 | AM94: 0 | AN94: 0 | AP94: 0 | AQ94: 0 | AS94: 0 | AT94: 0 | AV94: 0 | AW94: 0 | AY94: 0 | AZ94: 0 | BB94: 0 | BC94: 0 | BE94: 0 | BF94: 0 | BH94: 0 | BI94: 0 | BK94: 0 | BL94: 0 | BN94: 0 | BO94: 0 | BQ94: 0 | BR94: 0 | BT94: 0 | BU94: 0 | BW94: 0 | BX94: 0 | BZ94: 0 | CA94: 0 | CC94: 0 | CD94: 0 | CF94: 0 | CG94: 0 | CI94: 0 | CJ94: 0 | CL94: 0 | CM94: 0 | CO94: 0 | CP94: 0 | CR94: 0 | CS94: 0 | CU94: 0 | CV94: 0 | CX94: 0 | CY94: 0 | DA94: 0 | DB94: 0 | DD94: 0 | DE94: 0 | DG94: 0 | DH94: 0 | DJ94: 0 | DK94: 0 | DM94: 0 | DN94: 0 | DP94: 0 | DQ94: 0 | DS94: 0 | DT94: 0 | DV94: 0 | DW94: 0 | DY94: 0 | DZ94: 0 | EB94: 0 | EC94: 0 | ED94: 0 | EE94: 0 | EF94: 0 | EG94: 0 | EH94: 0 | EI94: 0 | EK94: 0
J95: 0 | L95: 0 | M95: 0 | O95: 0 | P95: 0 | R95: 0 | S95: 0 | U95: 0 | V95: 0 | X95: 0 | Y95: 0 | AA95: 0 | AB95: 0 | AD95: 0 | AE95: 0 | AG95: 0 | AH95: 0 | AJ95: 0 | AK95: 0 | AM95: 0 | AN95: 0 | AP95: 0 | AQ95: 0 | AS95: 0 | AT95: 0 | AV95: 0 | AW95: 0 | AY95: 0 | AZ95: 0 | BB95: 0 | BC95: 0 | BE95: 0 | BF95: 0 | BH95: 0 | BI95: 0 | BK95: 0 | BL95: 0 | BN95: 0 | BO95: 0 | BQ95: 0 | BR95: 0 | BT95: 0 | BU95: 0 | BW95: 0 | BX95: 0 | BZ95: 0 | CA95: 0 | CC95: 0 | CD95: 0 | CF95: 0 | CG95: 0 | CI95: 0 | CJ95: 0 | CL95: 0 | CM95: 0 | CO95: 0 | CP95: 0 | CR95: 0 | CS95: 0 | CU95: 0 | CV95: 0 | CX95: 0 | CY95: 0 | DA95: 0 | DB95: 0 | DD95: 0 | DE95: 0 | DG95: 0 | DH95: 0 | DJ95: 0 | DK95: 0 | DM95: 0 | DN95: 0 | DP95: 0 | DQ95: 0 | DS95: 0 | DT95: 0 | DV95: 0 | DW95: 0 | DY95: 0 | DZ95: 0 | EB95: 0 | EC95: 0 | ED95: 0 | EE95: 0 | EF95: 0 | EG95: 0 | EH95: 0 | EI95: 0 | EK95: 0
J96: 0 | L96: 0 | M96: 0 | O96: 0 | P96: 0 | R96: 0 | S96: 0 | U96: 0 | V96: 0 | X96: 0 | Y96: 0 | AA96: 0 | AB96: 0 | AD96: 0 | AE96: 0 | AG96: 0 | AH96: 0 | AJ96: 0 | AK96: 0 | AM96: 0 | AN96: 0 | AP96: 0 | AQ96: 0 | AS96: 0 | AT96: 0 | AV96: 0 | AW96: 0 | AY96: 0 | AZ96: 0 | BB96: 0 | BC96: 0 | BE96: 0 | BF96: 0 | BH96: 0 | BI96: 0 | BK96: 0 | BL96: 0 | BN96: 0 | BO96: 0 | BQ96: 0 | BR96: 0 | BT96: 0 | BU96: 0 | BW96: 0 | BX96: 0 | BZ96: 0 | CA96: 0 | CC96: 0 | CD96: 0 | CF96: 0 | CG96: 0 | CI96: 0 | CJ96: 0 | CL96: 0 | CM96: 0 | CO96: 0 | CP96: 0 | CR96: 0 | CS96: 0 | CU96: 0 | CV96: 0 | CX96: 0 | CY96: 0 | DA96: 0 | DB96: 0 | DD96: 0 | DE96: 0 | DG96: 0 | DH96: 0 | DJ96: 0 | DK96: 0 | DM96: 0 | DN96: 0 | DP96: 0 | DQ96: 0 | DS96: 0 | DT96: 0 | DV96: 0 | DW96: 0 | DY96: 0 | DZ96: 0 | EB96: 0 | EC96: 0 | ED96: 0 | EE96: 0 | EF96: 0 | EG96: 0 | EH96: 0 | EI96: 0 | EK96: 0
J97: 0 | L97: 0 | M97: 0 | O97: 0 | P97: 0 | R97: 0 | S97: 0 | U97: 0 | V97: 0 | X97: 0 | Y97: 0 | AA97: 0 | AB97: 0 | AD97: 0 | AE97: 0 | AG97: 0 | AH97: 0 | AJ97: 0 | AK97: 0 | AM97: 0 | AN97: 0 | AP97: 0 | AQ97: 0 | AS97: 0 | AT97: 0 | AV97: 0 | AW97: 0 | AY97: 0 | AZ97: 0 | BB97: 0 | BC97: 0 | BE97: 0 | BF97: 0 | BH97: 0 | BI97: 0 | BK97: 0 | BL97: 0 | BN97: 0 | BO97: 0 | BQ97: 0 | BR97: 0 | BT97: 0 | BU97: 0 | BW97: 0 | BX97: 0 | BZ97: 0 | CA97: 0 | CC97: 0 | CD97: 0 | CF97: 0 | CG97: 0 | CI97: 0 | CJ97: 0 | CL97: 0 | CM97: 0 | CO97: 0 | CP97: 0 | CR97: 0 | CS97: 0 | CU97: 0 | CV97: 0 | CX97: 0 | CY97: 0 | DA97: 0 | DB97: 0 | DD97: 0 | DE97: 0 | DG97: 0 | DH97: 0 | DJ97: 0 | DK97: 0 | DM97: 0 | DN97: 0 | DP97: 0 | DQ97: 0 | DS97: 0 | DT97: 0 | DV97: 0 | DW97: 0 | DY97: 0 | DZ97: 0 | EB97: 0 | EC97: 0 | ED97: 0 | EE97: 0 | EF97: 0 | EG97: 0 | EH97: 0 | EI97: 0 | EK97: 0
J98: 0 | L98: 0 | M98: 0 | O98: 0 | P98: 0 | R98: 0 | S98: 0 | U98: 0 | V98: 0 | X98: 0 | Y98: 0 | AA98: 0 | AB98: 0 | AD98: 0 | AE98: 0 | AG98: 0 | AH98: 0 | AJ98: 0 | AK98: 0 | AM98: 0 | AN98: 0 | AP98: 0 | AQ98: 0 | AS98: 0 | AT98: 0 | AV98: 0 | AW98: 0 | AY98: 0 | AZ98: 0 | BB98: 0 | BC98: 0 | BE98: 0 | BF98: 0 | BH98: 0 | BI98: 0 | BK98: 0 | BL98: 0 | BN98: 0 | BO98: 0 | BQ98: 0 | BR98: 0 | BT98: 0 | BU98: 0 | BW98: 0 | BX98: 0 | BZ98: 0 | CA98: 0 | CC98: 0 | CD98: 0 | CF98: 0 | CG98: 0 | CI98: 0 | CJ98: 0 | CL98: 0 | CM98: 0 | CO98: 0 | CP98: 0 | CR98: 0 | CS98: 0 | CU98: 0 | CV98: 0 | CX98: 0 | CY98: 0 | DA98: 0 | DB98: 0 | DD98: 0 | DE98: 0 | DG98: 0 | DH98: 0 | DJ98: 0 | DK98: 0 | DM98: 0 | DN98: 0 | DP98: 0 | DQ98: 0 | DS98: 0 | DT98: 0 | DV98: 0 | DW98: 0 | DY98: 0 | DZ98: 0 | EB98: 0 | EC98: 0 | ED98: 0 | EE98: 0 | EF98: 0 | EG98: 0 | EH98: 0 | EI98: 0 | EK98: 0
J99: 0 | L99: 0 | M99: 0 | O99: 0 | P99: 0 | R99: 0 | S99: 0 | U99: 0 | V99: 0 | X99: 0 | Y99: 0 | AA99: 0 | AB99: 0 | AD99: 0 | AE99: 0 | AG99: 0 | AH99: 0 | AJ99: 0 | AK99: 0 | AM99: 0 | AN99: 0 | AP99: 0 | AQ99: 0 | AS99: 0 | AT99: 0 | AV99: 0 | AW99: 0 | AY99: 0 | AZ99: 0 | BB99: 0 | BC99: 0 | BE99: 0 | BF99: 0 | BH99: 0 | BI99: 0 | BK99: 0 | BL99: 0 | BN99: 0 | BO99: 0 | BQ99: 0 | BR99: 0 | BT99: 0 | BU99: 0 | BW99: 0 | BX99: 0 | BZ99: 0 | CA99: 0 | CC99: 0 | CD99: 0 | CF99: 0 | CG99: 0 | CI99: 0 | CJ99: 0 | CL99: 0 | CM99: 0 | CO99: 0 | CP99: 0 | CR99: 0 | CS99: 0 | CU99: 0 | CV99: 0 | CX99: 0 | CY99: 0 | DA99: 0 | DB99: 0 | DD99: 0 | DE99: 0 | DG99: 0 | DH99: 0 | DJ99: 0 | DK99: 0 | DM99: 0 | DN99: 0 | DP99: 0 | DQ99: 0 | DS99: 0 | DT99: 0 | DV99: 0 | DW99: 0 | DY99: 0 | DZ99: 0 | EB99: 0 | EC99: 0 | ED99: 0 | EE99: 0 | EF99: 0 | EG99: 0 | EH99: 0 | EI99: 0 | EK99: 0
J100: 0 | L100: 0 | M100: 0 | O100: 0 | P100: 0 | R100: 0 | S100: 0 | U100: 0 | V100: 0 | X100: 0 | Y100: 0 | AA100: 0 | AB100: 0 | AD100: 0 | AE100: 0 | AG100: 0 | AH100: 0 | AJ100: 0 | AK100: 0 | AM100: 0 | AN100: 0 | AP100: 0 | AQ100: 0 | AS100: 0 | AT100: 0 | AV100: 0 | AW100: 0 | AY100: 0 | AZ100: 0 | BB100: 0 | BC100: 0 | BE100: 0 | BF100: 0 | BH100: 0 | BI100: 0 | BK100: 0 | BL100: 0 | BN100: 0 | BO100: 0 | BQ100: 0 | BR100: 0 | BT100: 0 | BU100: 0 | BW100: 0 | BX100: 0 | BZ100: 0 | CA100: 0 | CC100: 0 | CD100: 0 | CF100: 0 | CG100: 0 | CI100: 0 | CJ100: 0 | CL100: 0 | CM100: 0 | CO100: 0 | CP100: 0 | CR100: 0 | CS100: 0 | CU100: 0 | CV100: 0 | CX100: 0 | CY100: 0 | DA100: 0 | DB100: 0 | DD100: 0 | DE100: 0 | DG100: 0 | DH100: 0 | DJ100: 0 | DK100: 0 | DM100: 0 | DN100: 0 | DP100: 0 | DQ100: 0 | DS100: 0 | DT100: 0 | DV100: 0 | DW100: 0 | DY100: 0 | DZ100: 0 | EB100: 0 | EC100: 0 | ED100: 0 | EE100: 0 | EF100: 0 | EG100: 0 | EH100: 0 | EI100: 0 | EK100: 0
J101: 0 | L101: 0 | M101: 0 | O101: 0 | P101: 0 | R101: 0 | S101: 0 | U101: 0 | V101: 0 | X101: 0 | Y101: 0 | AA101: 0 | AB101: 0 | AD101: 0 | AE101: 0 | AG101: 0 | AH101: 0 | AJ101: 0 | AK101: 0 | AM101: 0 | AN101: 0 | AP101: 0 | AQ101: 0 | AS101: 0 | AT101: 0 | AV101: 0 | AW101: 0 | AY101: 0 | AZ101: 0 | BB101: 0 | BC101: 0 | BE101: 0 | BF101: 0 | BH101: 0 | BI101: 0 | BK101: 0 | BL101: 0 | BN101: 0 | BO101: 0 | BQ101: 0 | BR101: 0 | BT101: 0 | BU101: 0 | BW101: 0 | BX101: 0 | BZ101: 0 | CA101: 0 | CC101: 0 | CD101: 0 | CF101: 0 | CG101: 0 | CI101: 0 | CJ101: 0 | CL101: 0 | CM101: 0 | CO101: 0 | CP101: 0 | CR101: 0 | CS101: 0 | CU101: 0 | CV101: 0 | CX101: 0 | CY101: 0 | DA101: 0 | DB101: 0 | DD101: 0 | DE101: 0 | DG101: 0 | DH101: 0 | DJ101: 0 | DK101: 0 | DM101: 0 | DN101: 0 | DP101: 0 | DQ101: 0 | DS101: 0 | DT101: 0 | DV101: 0 | DW101: 0 | DY101: 0 | DZ101: 0 | EB101: 0 | EC101: 0 | ED101: 0 | EE101: 0 | EF101: 0 | EG101: 0 | EH101: 0 | EI101: 0 | EK101: 0
J102: 0 | L102: 0 | M102: 0 | O102: 0 | P102: 0 | R102: 0 | S102: 0 | U102: 0 | V102: 0 | X102: 0 | Y102: 0 | AA102: 0 | AB102: 0 | AD102: 0 | AE102: 0 | AG102: 0 | AH102: 0 | AJ102: 0 | AK102: 0 | AM102: 0 | AN102: 0 | AP102: 0 | AQ102: 0 | AS102: 0 | AT102: 0 | AV102: 0 | AW102: 0 | AY102: 0 | AZ102: 0 | BB102: 0 | BC102: 0 | BE102: 0 | BF102: 0 | BH102: 0 | BI102: 0 | BK102: 0 | BL102: 0 | BN102: 0 | BO102: 0 | BQ102: 0 | BR102: 0 | BT102: 0 | BU102: 0 | BW102: 0 | BX102: 0 | BZ102: 0 | CA102: 0 | CC102: 0 | CD102: 0 | CF102: 0 | CG102: 0 | CI102: 0 | CJ102: 0 | CL102: 0 | CM102: 0 | CO102: 0 | CP102: 0 | CR102: 0 | CS102: 0 | CU102: 0 | CV102: 0 | CX102: 0 | CY102: 0 | DA102: 0 | DB102: 0 | DD102: 0 | DE102: 0 | DG102: 0 | DH102: 0 | DJ102: 0 | DK102: 0 | DM102: 0 | DN102: 0 | DP102: 0 | DQ102: 0 | DS102: 0 | DT102: 0 | DV102: 0 | DW102: 0 | DY102: 0 | DZ102: 0 | EB102: 0 | EC102: 0 | ED102: 0 | EE102: 0 | EF102: 0 | EG102: 0 | EH102: 0 | EI102: 0 | EK102: 0
J103: 0 | L103: 0 | M103: 0 | O103: 0 | P103: 0 | R103: 0 | S103: 0 | U103: 0 | V103: 0 | X103: 0 | Y103: 0 | AA103: 0 | AB103: 0 | AD103: 0 | AE103: 0 | AG103: 0 | AH103: 0 | AJ103: 0 | AK103: 0 | AM103: 0 | AN103: 0 | AP103: 0 | AQ103: 0 | AS103: 0 | AT103: 0 | AV103: 0 | AW103: 0 | AY103: 0 | AZ103: 0 | BB103: 0 | BC103: 0 | BE103: 0 | BF103: 0 | BH103: 0 | BI103: 0 | BK103: 0 | BL103: 0 | BN103: 0 | BO103: 0 | BQ103: 0 | BR103: 0 | BT103: 0 | BU103: 0 | BW103: 0 | BX103: 0 | BZ103: 0 | CA103: 0 | CC103: 0 | CD103: 0 | CF103: 0 | CG103: 0 | CI103: 0 | CJ103: 0 | CL103: 0 | CM103: 0 | CO103: 0 | CP103: 0 | CR103: 0 | CS103: 0 | CU103: 0 | CV103: 0 | CX103: 0 | CY103: 0 | DA103: 0 | DB103: 0 | DD103: 0 | DE103: 0 | DG103: 0 | DH103: 0 | DJ103: 0 | DK103: 0 | DM103: 0 | DN103: 0 | DP103: 0 | DQ103: 0 | DS103: 0 | DT103: 0 | DV103: 0 | DW103: 0 | DY103: 0 | DZ103: 0 | EB103: 0 | EC103: 0 | ED103: 0 | EE103: 0 | EF103: 0 | EG103: 0 | EH103: 0 | EI103: 0 | EK103: 0
J104: 0 | L104: 0 | M104: 0 | O104: 0 | P104: 0 | R104: 0 | S104: 0 | U104: 0 | V104: 0 | X104: 0 | Y104: 0 | AA104: 0 | AB104: 0 | AD104: 0 | AE104: 0 | AG104: 0 | AH104: 0 | AJ104: 0 | AK104: 0 | AM104: 0 | AN104: 0 | AP104: 0 | AQ104: 0 | AS104: 0 | AT104: 0 | AV104: 0 | AW104: 0 | AY104: 0 | AZ104: 0 | BB104: 0 | BC104: 0 | BE104: 0 | BF104: 0 | BH104: 0 | BI104: 0 | BK104: 0 | BL104: 0 | BN104: 0 | BO104: 0 | BQ104: 0 | BR104: 0 | BT104: 0 | BU104: 0 | BW104: 0 | BX104: 0 | BZ104: 0 | CA104: 0 | CC104: 0 | CD104: 0 | CF104: 0 | CG104: 0 | CI104: 0 | CJ104: 0 | CL104: 0 | CM104: 0 | CO104: 0 | CP104: 0 | CR104: 0 | CS104: 0 | CU104: 0 | CV104: 0 | CX104: 0 | CY104: 0 | DA104: 0 | DB104: 0 | DD104: 0 | DE104: 0 | DG104: 0 | DH104: 0 | DJ104: 0 | DK104: 0 | DM104: 0 | DN104: 0 | DP104: 0 | DQ104: 0 | DS104: 0 | DT104: 0 | DV104: 0 | DW104: 0 | DY104: 0 | DZ104: 0 | EB104: 0 | EC104: 0 | ED104: 0 | EE104: 0 | EF104: 0 | EG104: 0 | EH104: 0 | EI104: 0 | EK104: 0
J105: 0 | L105: 0 | M105: 0 | O105: 0 | P105: 0 | R105: 0 | S105: 0 | U105: 0 | V105: 0 | X105: 0 | Y105: 0 | AA105: 0 | AB105: 0 | AD105: 0 | AE105: 0 | AG105: 0 | AH105: 0 | AJ105: 0 | AK105: 0 | AM105: 0 | AN105: 0 | AP105: 0 | AQ105: 0 | AS105: 0 | AT105: 0 | AV105: 0 | AW105: 0 | AY105: 0 | AZ105: 0 | BB105: 0 | BC105: 0 | BE105: 0 | BF105: 0 | BH105: 0 | BI105: 0 | BK105: 0 | BL105: 0 | BN105: 0 | BO105: 0 | BQ105: 0 | BR105: 0 | BT105: 0 | BU105: 0 | BW105: 0 | BX105: 0 | BZ105: 0 | CA105: 0 | CC105: 0 | CD105: 0 | CF105: 0 | CG105: 0 | CI105: 0 | CJ105: 0 | CL105: 0 | CM105: 0 | CO105: 0 | CP105: 0 | CR105: 0 | CS105: 0 | CU105: 0 | CV105: 0 | CX105: 0 | CY105: 0 | DA105: 0 | DB105: 0 | DD105: 0 | DE105: 0 | DG105: 0 | DH105: 0 | DJ105: 0 | DK105: 0 | DM105: 0 | DN105: 0 | DP105: 0 | DQ105: 0 | DS105: 0 | DT105: 0 | DV105: 0 | DW105: 0 | DY105: 0 | DZ105: 0 | EB105: 0 | EC105: 0 | ED105: 0 | EE105: 0 | EF105: 0 | EG105: 0 | EH105: 0 | EI105: 0 | EK105: 0
J106: 0 | L106: 0 | M106: 0 | O106: 0 | P106: 0 | R106: 0 | S106: 0 | U106: 0 | V106: 0 | X106: 0 | Y106: 0 | AA106: 0 | AB106: 0 | AD106: 0 | AE106: 0 | AG106: 0 | AH106: 0 | AJ106: 0 | AK106: 0 | AM106: 0 | AN106: 0 | AP106: 0 | AQ106: 0 | AS106: 0 | AT106: 0 | AV106: 0 | AW106: 0 | AY106: 0 | AZ106: 0 | BB106: 0 | BC106: 0 | BE106: 0 | BF106: 0 | BH106: 0 | BI106: 0 | BK106: 0 | BL106: 0 | BN106: 0 | BO106: 0 | BQ106: 0 | BR106: 0 | BT106: 0 | BU106: 0 | BW106: 0 | BX106: 0 | BZ106: 0 | CA106: 0 | CC106: 0 | CD106: 0 | CF106: 0 | CG106: 0 | CI106: 0 | CJ106: 0 | CL106: 0 | CM106: 0 | CO106: 0 | CP106: 0 | CR106: 0 | CS106: 0 | CU106: 0 | CV106: 0 | CX106: 0 | CY106: 0 | DA106: 0 | DB106: 0 | DD106: 0 | DE106: 0 | DG106: 0 | DH106: 0 | DJ106: 0 | DK106: 0 | DM106: 0 | DN106: 0 | DP106: 0 | DQ106: 0 | DS106: 0 | DT106: 0 | DV106: 0 | DW106: 0 | DY106: 0 | DZ106: 0 | EB106: 0 | EC106: 0 | ED106: 0 | EE106: 0 | EF106: 0 | EG106: 0 | EH106: 0 | EI106: 0 | EK106: 0
J107: 0 | L107: 0 | M107: 0 | O107: 0 | P107: 0 | R107: 0 | S107: 0 | U107: 0 | V107: 0 | X107: 0 | Y107: 0 | AA107: 0 | AB107: 0 | AD107: 0 | AE107: 0 | AG107: 0 | AH107: 0 | AJ107: 0 | AK107: 0 | AM107: 0 | AN107: 0 | AP107: 0 | AQ107: 0 | AS107: 0 | AT107: 0 | AV107: 0 | AW107: 0 | AY107: 0 | AZ107: 0 | BB107: 0 | BC107: 0 | BE107: 0 | BF107: 0 | BH107: 0 | BI107: 0 | BK107: 0 | BL107: 0 | BN107: 0 | BO107: 0 | BQ107: 0 | BR107: 0 | BT107: 0 | BU107: 0 | BW107: 0 | BX107: 0 | BZ107: 0 | CA107: 0 | CC107: 0 | CD107: 0 | CF107: 0 | CG107: 0 | CI107: 0 | CJ107: 0 | CL107: 0 | CM107: 0 | CO107: 0 | CP107: 0 | CR107: 0 | CS107: 0 | CU107: 0 | CV107: 0 | CX107: 0 | CY107: 0 | DA107: 0 | DB107: 0 | DD107: 0 | DE107: 0 | DG107: 0 | DH107: 0 | DJ107: 0 | DK107: 0 | DM107: 0 | DN107: 0 | DP107: 0 | DQ107: 0 | DS107: 0 | DT107: 0 | DV107: 0 | DW107: 0 | DY107: 0 | DZ107: 0 | EB107: 0 | EC107: 0 | ED107: 0 | EE107: 0 | EF107: 0 | EG107: 0 | EH107: 0 | EI107: 0 | EK107: 0
J108: 0 | L108: 0 | M108: 0 | O108: 0 | P108: 0 | R108: 0 | S108: 0 | U108: 0 | V108: 0 | X108: 0 | Y108: 0 | AA108: 0 | AB108: 0 | AD108: 0 | AE108: 0 | AG108: 0 | AH108: 0 | AJ108: 0 | AK108: 0 | AM108: 0 | AN108: 0 | AP108: 0 | AQ108: 0 | AS108: 0 | AT108: 0 | AV108: 0 | AW108: 0 | AY108: 0 | AZ108: 0 | BB108: 0 | BC108: 0 | BE108: 0 | BF108: 0 | BH108: 0 | BI108: 0 | BK108: 0 | BL108: 0 | BN108: 0 | BO108: 0 | BQ108: 0 | BR108: 0 | BT108: 0 | BU108: 0 | BW108: 0 | BX108: 0 | BZ108: 0 | CA108: 0 | CC108: 0 | CD108: 0 | CF108: 0 | CG108: 0 | CI108: 0 | CJ108: 0 | CL108: 0 | CM108: 0 | CO108: 0 | CP108: 0 | CR108: 0 | CS108: 0 | CU108: 0 | CV108: 0 | CX108: 0 | CY108: 0 | DA108: 0 | DB108: 0 | DD108: 0 | DE108: 0 | DG108: 0 | DH108: 0 | DJ108: 0 | DK108: 0 | DM108: 0 | DN108: 0 | DP108: 0 | DQ108: 0 | DS108: 0 | DT108: 0 | DV108: 0 | DW108: 0 | DY108: 0 | DZ108: 0 | EB108: 0 | EC108: 0 | ED108: 0 | EE108: 0 | EF108: 0 | EG108: 0 | EH108: 0 | EI108: 0 | EK108: 0
J109: 0 | L109: 0 | M109: 0 | O109: 0 | P109: 0 | R109: 0 | S109: 0 | U109: 0 | V109: 0 | X109: 0 | Y109: 0 | AA109: 0 | AB109: 0 | AD109: 0 | AE109: 0 | AG109: 0 | AH109: 0 | AJ109: 0 | AK109: 0 | AM109: 0 | AN109: 0 | AP109: 0 | AQ109: 0 | AS109: 0 | AT109: 0 | AV109: 0 | AW109: 0 | AY109: 0 | AZ109: 0 | BB109: 0 | BC109: 0 | BE109: 0 | BF109: 0 | BH109: 0 | BI109: 0 | BK109: 0 | BL109: 0 | BN109: 0 | BO109: 0 | BQ109: 0 | BR109: 0 | BT109: 0 | BU109: 0 | BW109: 0 | BX109: 0 | BZ109: 0 | CA109: 0 | CC109: 0 | CD109: 0 | CF109: 0 | CG109: 0 | CI109: 0 | CJ109: 0 | CL109: 0 | CM109: 0 | CO109: 0 | CP109: 0 | CR109: 0 | CS109: 0 | CU109: 0 | CV109: 0 | CX109: 0 | CY109: 0 | DA109: 0 | DB109: 0 | DD109: 0 | DE109: 0 | DG109: 0 | DH109: 0 | DJ109: 0 | DK109: 0 | DM109: 0 | DN109: 0 | DP109: 0 | DQ109: 0 | DS109: 0 | DT109: 0 | DV109: 0 | DW109: 0 | DY109: 0 | DZ109: 0 | EB109: 0 | EC109: 0 | ED109: 0 | EE109: 0 | EF109: 0 | EG109: 0 | EH109: 0 | EI109: 0 | EK109: 0
J110: 0 | L110: 0 | M110: 0 | O110: 0 | P110: 0 | R110: 0 | S110: 0 | U110: 0 | V110: 0 | X110: 0 | Y110: 0 | AA110: 0 | AB110: 0 | AD110: 0 | AE110: 0 | AG110: 0 | AH110: 0 | AJ110: 0 | AK110: 0 | AM110: 0 | AN110: 0 | AP110: 0 | AQ110: 0 | AS110: 0 | AT110: 0 | AV110: 0 | AW110: 0 | AY110: 0 | AZ110: 0 | BB110: 0 | BC110: 0 | BE110: 0 | BF110: 0 | BH110: 0 | BI110: 0 | BK110: 0 | BL110: 0 | BN110: 0 | BO110: 0 | BQ110: 0 | BR110: 0 | BT110: 0 | BU110: 0 | BW110: 0 | BX110: 0 | BZ110: 0 | CA110: 0 | CC110: 0 | CD110: 0 | CF110: 0 | CG110: 0 | CI110: 0 | CJ110: 0 | CL110: 0 | CM110: 0 | CO110: 0 | CP110: 0 | CR110: 0 | CS110: 0 | CU110: 0 | CV110: 0 | CX110: 0 | CY110: 0 | DA110: 0 | DB110: 0 | DD110: 0 | DE110: 0 | DG110: 0 | DH110: 0 | DJ110: 0 | DK110: 0 | DM110: 0 | DN110: 0 | DP110: 0 | DQ110: 0 | DS110: 0 | DT110: 0 | DV110: 0 | DW110: 0 | DY110: 0 | DZ110: 0 | EB110: 0 | EC110: 0 | ED110: 0 | EE110: 0 | EF110: 0 | EG110: 0 | EH110: 0 | EI110: 0 | EK110: 0
J111: 0 | L111: 0 | M111: 0 | O111: 0 | P111: 0 | R111: 0 | S111: 0 | U111: 0 | V111: 0 | X111: 0 | Y111: 0 | AA111: 0 | AB111: 0 | AD111: 0 | AE111: 0 | AG111: 0 | AH111: 0 | AJ111: 0 | AK111: 0 | AM111: 0 | AN111: 0 | AP111: 0 | AQ111: 0 | AS111: 0 | AT111: 0 | AV111: 0 | AW111: 0 | AY111: 0 | AZ111: 0 | BB111: 0 | BC111: 0 | BE111: 0 | BF111: 0 | BH111: 0 | BI111: 0 | BK111: 0 | BL111: 0 | BN111: 0 | BO111: 0 | BQ111: 0 | BR111: 0 | BT111: 0 | BU111: 0 | BW111: 0 | BX111: 0 | BZ111: 0 | CA111: 0 | CC111: 0 | CD111: 0 | CF111: 0 | CG111: 0 | CI111: 0 | CJ111: 0 | CL111: 0 | CM111: 0 | CO111: 0 | CP111: 0 | CR111: 0 | CS111: 0 | CU111: 0 | CV111: 0 | CX111: 0 | CY111: 0 | DA111: 0 | DB111: 0 | DD111: 0 | DE111: 0 | DG111: 0 | DH111: 0 | DJ111: 0 | DK111: 0 | DM111: 0 | DN111: 0 | DP111: 0 | DQ111: 0 | DS111: 0 | DT111: 0 | DV111: 0 | DW111: 0 | DY111: 0 | DZ111: 0 | EB111: 0 | EC111: 0 | ED111: 0 | EE111: 0 | EF111: 0 | EG111: 0 | EH111: 0 | EI111: 0 | EK111: 0
J112: 0 | L112: 0 | M112: 0 | O112: 0 | P112: 0 | R112: 0 | S112: 0 | U112: 0 | V112: 0 | X112: 0 | Y112: 0 | AA112: 0 | AB112: 0 | AD112: 0 | AE112: 0 | AG112: 0 | AH112: 0 | AJ112: 0 | AK112: 0 | AM112: 0 | AN112: 0 | AP112: 0 | AQ112: 0 | AS112: 0 | AT112: 0 | AV112: 0 | AW112: 0 | AY112: 0 | AZ112: 0 | BB112: 0 | BC112: 0 | BE112: 0 | BF112: 0 | BH112: 0 | BI112: 0 | BK112: 0 | BL112: 0 | BN112: 0 | BO112: 0 | BQ112: 0 | BR112: 0 | BT112: 0 | BU112: 0 | BW112: 0 | BX112: 0 | BZ112: 0 | CA112: 0 | CC112: 0 | CD112: 0 | CF112: 0 | CG112: 0 | CI112: 0 | CJ112: 0 | CL112: 0 | CM112: 0 | CO112: 0 | CP112: 0 | CR112: 0 | CS112: 0 | CU112: 0 | CV112: 0 | CX112: 0 | CY112: 0 | DA112: 0 | DB112: 0 | DD112: 0 | DE112: 0 | DG112: 0 | DH112: 0 | DJ112: 0 | DK112: 0 | DM112: 0 | DN112: 0 | DP112: 0 | DQ112: 0 | DS112: 0 | DT112: 0 | DV112: 0 | DW112: 0 | DY112: 0 | DZ112: 0 | EB112: 0 | EC112: 0 | ED112: 0 | EE112: 0 | EF112: 0 | EG112: 0 | EH112: 0 | EI112: 0 | EK112: 0
J113: 0 | L113: 0 | M113: 0 | O113: 0 | P113: 0 | R113: 0 | S113: 0 | U113: 0 | V113: 0 | X113: 0 | Y113: 0 | AA113: 0 | AB113: 0 | AD113: 0 | AE113: 0 | AG113: 0 | AH113: 0 | AJ113: 0 | AK113: 0 | AM113: 0 | AN113: 0 | AP113: 0 | AQ113: 0 | AS113: 0 | AT113: 0 | AV113: 0 | AW113: 0 | AY113: 0 | AZ113: 0 | BB113: 0 | BC113: 0 | BE113: 0 | BF113: 0 | BH113: 0 | BI113: 0 | BK113: 0 | BL113: 0 | BN113: 0 | BO113: 0 | BQ113: 0 | BR113: 0 | BT113: 0 | BU113: 0 | BW113: 0 | BX113: 0 | BZ113: 0 | CA113: 0 | CC113: 0 | CD113: 0 | CF113: 0 | CG113: 0 | CI113: 0 | CJ113: 0 | CL113: 0 | CM113: 0 | CO113: 0 | CP113: 0 | CR113: 0 | CS113: 0 | CU113: 0 | CV113: 0 | CX113: 0 | CY113: 0 | DA113: 0 | DB113: 0 | DD113: 0 | DE113: 0 | DG113: 0 | DH113: 0 | DJ113: 0 | DK113: 0 | DM113: 0 | DN113: 0 | DP113: 0 | DQ113: 0 | DS113: 0 | DT113: 0 | DV113: 0 | DW113: 0 | DY113: 0 | DZ113: 0 | EB113: 0 | EC113: 0 | ED113: 0 | EE113: 0 | EF113: 0 | EG113: 0 | EH113: 0 | EI113: 0 | EK113: 0
J114: 0 | L114: 0 | M114: 0 | O114: 0 | P114: 0 | R114: 0 | S114: 0 | U114: 0 | V114: 0 | X114: 0 | Y114: 0 | AA114: 0 | AB114: 0 | AD114: 0 | AE114: 0 | AG114: 0 | AH114: 0 | AJ114: 0 | AK114: 0 | AM114: 0 | AN114: 0 | AP114: 0 | AQ114: 0 | AS114: 0 | AT114: 0 | AV114: 0 | AW114: 0 | AY114: 0 | AZ114: 0 | BB114: 0 | BC114: 0 | BE114: 0 | BF114: 0 | BH114: 0 | BI114: 0 | BK114: 0 | BL114: 0 | BN114: 0 | BO114: 0 | BQ114: 0 | BR114: 0 | BT114: 0 | BU114: 0 | BW114: 0 | BX114: 0 | BZ114: 0 | CA114: 0 | CC114: 0 | CD114: 0 | CF114: 0 | CG114: 0 | CI114: 0 | CJ114: 0 | CL114: 0 | CM114: 0 | CO114: 0 | CP114: 0 | CR114: 0 | CS114: 0 | CU114: 0 | CV114: 0 | CX114: 0 | CY114: 0 | DA114: 0 | DB114: 0 | DD114: 0 | DE114: 0 | DG114: 0 | DH114: 0 | DJ114: 0 | DK114: 0 | DM114: 0 | DN114: 0 | DP114: 0 | DQ114: 0 | DS114: 0 | DT114: 0 | DV114: 0 | DW114: 0 | DY114: 0 | DZ114: 0 | EB114: 0 | EC114: 0 | ED114: 0 | EE114: 0 | EF114: 0 | EG114: 0 | EH114: 0 | EI114: 0 | EK114: 0
J115: 0 | L115: 0 | M115: 0 | O115: 0 | P115: 0 | R115: 0 | S115: 0 | U115: 0 | V115: 0 | X115: 0 | Y115: 0 | AA115: 0 | AB115: 0 | AD115: 0 | AE115: 0 | AG115: 0 | AH115: 0 | AJ115: 0 | AK115: 0 | AM115: 0 | AN115: 0 | AP115: 0 | AQ115: 0 | AS115: 0 | AT115: 0 | AV115: 0 | AW115: 0 | AY115: 0 | AZ115: 0 | BB115: 0 | BC115: 0 | BE115: 0 | BF115: 0 | BH115: 0 | BI115: 0 | BK115: 0 | BL115: 0 | BN115: 0 | BO115: 0 | BQ115: 0 | BR115: 0 | BT115: 0 | BU115: 0 | BW115: 0 | BX115: 0 | BZ115: 0 | CA115: 0 | CC115: 0 | CD115: 0 | CF115: 0 | CG115: 0 | CI115: 0 | CJ115: 0 | CL115: 0 | CM115: 0 | CO115: 0 | CP115: 0 | CR115: 0 | CS115: 0 | CU115: 0 | CV115: 0 | CX115: 0 | CY115: 0 | DA115: 0 | DB115: 0 | DD115: 0 | DE115: 0 | DG115: 0 | DH115: 0 | DJ115: 0 | DK115: 0 | DM115: 0 | DN115: 0 | DP115: 0 | DQ115: 0 | DS115: 0 | DT115: 0 | DV115: 0 | DW115: 0 | DY115: 0 | DZ115: 0 | EB115: 0 | EC115: 0 | ED115: 0 | EE115: 0 | EF115: 0 | EG115: 0 | EH115: 0 | EI115: 0 | EK115: 0
J116: 0 | L116: 0 | M116: 0 | O116: 0 | P116: 0 | R116: 0 | S116: 0 | U116: 0 | V116: 0 | X116: 0 | Y116: 0 | AA116: 0 | AB116: 0 | AD116: 0 | AE116: 0 | AG116: 0 | AH116: 0 | AJ116: 0 | AK116: 0 | AM116: 0 | AN116: 0 | AP116: 0 | AQ116: 0 | AS116: 0 | AT116: 0 | AV116: 0 | AW116: 0 | AY116: 0 | AZ116: 0 | BB116: 0 | BC116: 0 | BE116: 0 | BF116: 0 | BH116: 0 | BI116: 0 | BK116: 0 | BL116: 0 | BN116: 0 | BO116: 0 | BQ116: 0 | BR116: 0 | BT116: 0 | BU116: 0 | BW116: 0 | BX116: 0 | BZ116: 0 | CA116: 0 | CC116: 0 | CD116: 0 | CF116: 0 | CG116: 0 | CI116: 0 | CJ116: 0 | CL116: 0 | CM116: 0 | CO116: 0 | CP116: 0 | CR116: 0 | CS116: 0 | CU116: 0 | CV116: 0 | CX116: 0 | CY116: 0 | DA116: 0 | DB116: 0 | DD116: 0 | DE116: 0 | DG116: 0 | DH116: 0 | DJ116: 0 | DK116: 0 | DM116: 0 | DN116: 0 | DP116: 0 | DQ116: 0 | DS116: 0 | DT116: 0 | DV116: 0 | DW116: 0 | DY116: 0 | DZ116: 0 | EB116: 0 | EC116: 0 | ED116: 0 | EE116: 0 | EF116: 0 | EG116: 0 | EH116: 0 | EI116: 0 | EK116: 0
J117: 0 | L117: 0 | M117: 0 | O117: 0 | P117: 0 | R117: 0 | S117: 0 | U117: 0 | V117: 0 | X117: 0 | Y117: 0 | AA117: 0 | AB117: 0 | AD117: 0 | AE117: 0 | AG117: 0 | AH117: 0 | AJ117: 0 | AK117: 0 | AM117: 0 | AN117: 0 | AP117: 0 | AQ117: 0 | AS117: 0 | AT117: 0 | AV117: 0 | AW117: 0 | AY117: 0 | AZ117: 0 | BB117: 0 | BC117: 0 | BE117: 0 | BF117: 0 | BH117: 0 | BI117: 0 | BK117: 0 | BL117: 0 | BN117: 0 | BO117: 0 | BQ117: 0 | BR117: 0 | BT117: 0 | BU117: 0 | BW117: 0 | BX117: 0 | BZ117: 0 | CA117: 0 | CC117: 0 | CD117: 0 | CF117: 0 | CG117: 0 | CI117: 0 | CJ117: 0 | CL117: 0 | CM117: 0 | CO117: 0 | CP117: 0 | CR117: 0 | CS117: 0 | CU117: 0 | CV117: 0 | CX117: 0 | CY117: 0 | DA117: 0 | DB117: 0 | DD117: 0 | DE117: 0 | DG117: 0 | DH117: 0 | DJ117: 0 | DK117: 0 | DM117: 0 | DN117: 0 | DP117: 0 | DQ117: 0 | DS117: 0 | DT117: 0 | DV117: 0 | DW117: 0 | DY117: 0 | DZ117: 0 | EB117: 0 | EC117: 0 | ED117: 0 | EE117: 0 | EF117: 0 | EG117: 0 | EH117: 0 | EI117: 0 | EK117: 0
J118: 0 | L118: 0 | M118: 0 | O118: 0 | P118: 0 | R118: 0 | S118: 0 | U118: 0 | V118: 0 | X118: 0 | Y118: 0 | AA118: 0 | AB118: 0 | AD118: 0 | AE118: 0 | AG118: 0 | AH118: 0 | AJ118: 0 | AK118: 0 | AM118: 0 | AN118: 0 | AP118: 0 | AQ118: 0 | AS118: 0 | AT118: 0 | AV118: 0 | AW118: 0 | AY118: 0 | AZ118: 0 | BB118: 0 | BC118: 0 | BE118: 0 | BF118: 0 | BH118: 0 | BI118: 0 | BK118: 0 | BL118: 0 | BN118: 0 | BO118: 0 | BQ118: 0 | BR118: 0 | BT118: 0 | BU118: 0 | BW118: 0 | BX118: 0 | BZ118: 0 | CA118: 0 | CC118: 0 | CD118: 0 | CF118: 0 | CG118: 0 | CI118: 0 | CJ118: 0 | CL118: 0 | CM118: 0 | CO118: 0 | CP118: 0 | CR118: 0 | CS118: 0 | CU118: 0 | CV118: 0 | CX118: 0 | CY118: 0 | DA118: 0 | DB118: 0 | DD118: 0 | DE118: 0 | DG118: 0 | DH118: 0 | DJ118: 0 | DK118: 0 | DM118: 0 | DN118: 0 | DP118: 0 | DQ118: 0 | DS118: 0 | DT118: 0 | DV118: 0 | DW118: 0 | DY118: 0 | DZ118: 0 | EB118: 0 | EC118: 0 | ED118: 0 | EE118: 0 | EF118: 0 | EG118: 0 | EH118: 0 | EI118: 0 | EK118: 0
J119: 0 | L119: 0 | M119: 0 | O119: 0 | P119: 0 | R119: 0 | S119: 0 | U119: 0 | V119: 0 | X119: 0 | Y119: 0 | AA119: 0 | AB119: 0 | AD119: 0 | AE119: 0 | AG119: 0 | AH119: 0 | AJ119: 0 | AK119: 0 | AM119: 0 | AN119: 0 | AP119: 0 | AQ119: 0 | AS119: 0 | AT119: 0 | AV119: 0 | AW119: 0 | AY119: 0 | AZ119: 0 | BB119: 0 | BC119: 0 | BE119: 0 | BF119: 0 | BH119: 0 | BI119: 0 | BK119: 0 | BL119: 0 | BN119: 0 | BO119: 0 | BQ119: 0 | BR119: 0 | BT119: 0 | BU119: 0 | BW119: 0 | BX119: 0 | BZ119: 0 | CA119: 0 | CC119: 0 | CD119: 0 | CF119: 0 | CG119: 0 | CI119: 0 | CJ119: 0 | CL119: 0 | CM119: 0 | CO119: 0 | CP119: 0 | CR119: 0 | CS119: 0 | CU119: 0 | CV119: 0 | CX119: 0 | CY119: 0 | DA119: 0 | DB119: 0 | DD119: 0 | DE119: 0 | DG119: 0 | DH119: 0 | DJ119: 0 | DK119: 0 | DM119: 0 | DN119: 0 | DP119: 0 | DQ119: 0 | DS119: 0 | DT119: 0 | DV119: 0 | DW119: 0 | DY119: 0 | DZ119: 0 | EB119: 0 | EC119: 0 | ED119: 0 | EE119: 0 | EF119: 0 | EG119: 0 | EH119: 0 | EI119: 0 | EK119: 0
J120: 0 | L120: 0 | M120: 0 | O120: 0 | P120: 0 | R120: 0 | S120: 0 | U120: 0 | V120: 0 | X120: 0 | Y120: 0 | AA120: 0 | AB120: 0 | AD120: 0 | AE120: 0 | AG120: 0 | AH120: 0 | AJ120: 0 | AK120: 0 | AM120: 0 | AN120: 0 | AP120: 0 | AQ120: 0 | AS120: 0 | AT120: 0 | AV120: 0 | AW120: 0 | AY120: 0 | AZ120: 0 | BB120: 0 | BC120: 0 | BE120: 0 | BF120: 0 | BH120: 0 | BI120: 0 | BK120: 0 | BL120: 0 | BN120: 0 | BO120: 0 | BQ120: 0 | BR120: 0 | BT120: 0 | BU120: 0 | BW120: 0 | BX120: 0 | BZ120: 0 | CA120: 0 | CC120: 0 | CD120: 0 | CF120: 0 | CG120: 0 | CI120: 0 | CJ120: 0 | CL120: 0 | CM120: 0 | CO120: 0 | CP120: 0 | CR120: 0 | CS120: 0 | CU120: 0 | CV120: 0 | CX120: 0 | CY120: 0 | DA120: 0 | DB120: 0 | DD120: 0 | DE120: 0 | DG120: 0 | DH120: 0 | DJ120: 0 | DK120: 0 | DM120: 0 | DN120: 0 | DP120: 0 | DQ120: 0 | DS120: 0 | DT120: 0 | DV120: 0 | DW120: 0 | DY120: 0 | DZ120: 0 | EB120: 0 | EC120: 0 | ED120: 0 | EE120: 0 | EF120: 0 | EG120: 0 | EH120: 0 | EI120: 0 | EK120: 0
J121: 0 | L121: 0 | M121: 0 | O121: 0 | P121: 0 | R121: 0 | S121: 0 | U121: 0 | V121: 0 | X121: 0 | Y121: 0 | AA121: 0 | AB121: 0 | AD121: 0 | AE121: 0 | AG121: 0 | AH121: 0 | AJ121: 0 | AK121: 0 | AM121: 0 | AN121: 0 | AP121: 0 | AQ121: 0 | AS121: 0 | AT121: 0 | AV121: 0 | AW121: 0 | AY121: 0 | AZ121: 0 | BB121: 0 | BC121: 0 | BE121: 0 | BF121: 0 | BH121: 0 | BI121: 0 | BK121: 0 | BL121: 0 | BN121: 0 | BO121: 0 | BQ121: 0 | BR121: 0 | BT121: 0 | BU121: 0 | BW121: 0 | BX121: 0 | BZ121: 0 | CA121: 0 | CC121: 0 | CD121: 0 | CF121: 0 | CG121: 0 | CI121: 0 | CJ121: 0 | CL121: 0 | CM121: 0 | CO121: 0 | CP121: 0 | CR121: 0 | CS121: 0 | CU121: 0 | CV121: 0 | CX121: 0 | CY121: 0 | DA121: 0 | DB121: 0 | DD121: 0 | DE121: 0 | DG121: 0 | DH121: 0 | DJ121: 0 | DK121: 0 | DM121: 0 | DN121: 0 | DP121: 0 | DQ121: 0 | DS121: 0 | DT121: 0 | DV121: 0 | DW121: 0 | DY121: 0 | DZ121: 0 | EB121: 0 | EC121: 0 | ED121: 0 | EE121: 0 | EF121: 0 | EG121: 0 | EH121: 0 | EI121: 0 | EK121: 0
J122: 0 | L122: 0 | M122: 0 | O122: 0 | P122: 0 | R122: 0 | S122: 0 | U122: 0 | V122: 0 | X122: 0 | Y122: 0 | AA122: 0 | AB122: 0 | AD122: 0 | AE122: 0 | AG122: 0 | AH122: 0 | AJ122: 0 | AK122: 0 | AM122: 0 | AN122: 0 | AP122: 0 | AQ122: 0 | AS122: 0 | AT122: 0 | AV122: 0 | AW122: 0 | AY122: 0 | AZ122: 0 | BB122: 0 | BC122: 0 | BE122: 0 | BF122: 0 | BH122: 0 | BI122: 0 | BK122: 0 | BL122: 0 | BN122: 0 | BO122: 0 | BQ122: 0 | BR122: 0 | BT122: 0 | BU122: 0 | BW122: 0 | BX122: 0 | BZ122: 0 | CA122: 0 | CC122: 0 | CD122: 0 | CF122: 0 | CG122: 0 | CI122: 0 | CJ122: 0 | CL122: 0 | CM122: 0 | CO122: 0 | CP122: 0 | CR122: 0 | CS122: 0 | CU122: 0 | CV122: 0 | CX122: 0 | CY122: 0 | DA122: 0 | DB122: 0 | DD122: 0 | DE122: 0 | DG122: 0 | DH122: 0 | DJ122: 0 | DK122: 0 | DM122: 0 | DN122: 0 | DP122: 0 | DQ122: 0 | DS122: 0 | DT122: 0 | DV122: 0 | DW122: 0 | DY122: 0 | DZ122: 0 | EB122: 0 | EC122: 0 | ED122: 0 | EE122: 0 | EF122: 0 | EG122: 0 | EH122: 0 | EI122: 0 | EK122: 0
J123: 0 | L123: 0 | M123: 0 | O123: 0 | P123: 0 | R123: 0 | S123: 0 | U123: 0 | V123: 0 | X123: 0 | Y123: 0 | AA123: 0 | AB123: 0 | AD123: 0 | AE123: 0 | AG123: 0 | AH123: 0 | AJ123: 0 | AK123: 0 | AM123: 0 | AN123: 0 | AP123: 0 | AQ123: 0 | AS123: 0 | AT123: 0 | AV123: 0 | AW123: 0 | AY123: 0 | AZ123: 0 | BB123: 0 | BC123: 0 | BE123: 0 | BF123: 0 | BH123: 0 | BI123: 0 | BK123: 0 | BL123: 0 | BN123: 0 | BO123: 0 | BQ123: 0 | BR123: 0 | BT123: 0 | BU123: 0 | BW123: 0 | BX123: 0 | BZ123: 0 | CA123: 0 | CC123: 0 | CD123: 0 | CF123: 0 | CG123: 0 | CI123: 0 | CJ123: 0 | CL123: 0 | CM123: 0 | CO123: 0 | CP123: 0 | CR123: 0 | CS123: 0 | CU123: 0 | CV123: 0 | CX123: 0 | CY123: 0 | DA123: 0 | DB123: 0 | DD123: 0 | DE123: 0 | DG123: 0 | DH123: 0 | DJ123: 0 | DK123: 0 | DM123: 0 | DN123: 0 | DP123: 0 | DQ123: 0 | DS123: 0 | DT123: 0 | DV123: 0 | DW123: 0 | DY123: 0 | DZ123: 0 | EB123: 0 | EC123: 0 | ED123: 0 | EE123: 0 | EF123: 0 | EG123: 0 | EH123: 0 | EI123: 0 | EK123: 0
J124: 0 | L124: 0 | M124: 0 | O124: 0 | P124: 0 | R124: 0 | S124: 0 | U124: 0 | V124: 0 | X124: 0 | Y124: 0 | AA124: 0 | AB124: 0 | AD124: 0 | AE124: 0 | AG124: 0 | AH124: 0 | AJ124: 0 | AK124: 0 | AM124: 0 | AN124: 0 | AP124: 0 | AQ124: 0 | AS124: 0 | AT124: 0 | AV124: 0 | AW124: 0 | AY124: 0 | AZ124: 0 | BB124: 0 | BC124: 0 | BE124: 0 | BF124: 0 | BH124: 0 | BI124: 0 | BK124: 0 | BL124: 0 | BN124: 0 | BO124: 0 | BQ124: 0 | BR124: 0 | BT124: 0 | BU124: 0 | BW124: 0 | BX124: 0 | BZ124: 0 | CA124: 0 | CC124: 0 | CD124: 0 | CF124: 0 | CG124: 0 | CI124: 0 | CJ124: 0 | CL124: 0 | CM124: 0 | CO124: 0 | CP124: 0 | CR124: 0 | CS124: 0 | CU124: 0 | CV124: 0 | CX124: 0 | CY124: 0 | DA124: 0 | DB124: 0 | DD124: 0 | DE124: 0 | DG124: 0 | DH124: 0 | DJ124: 0 | DK124: 0 | DM124: 0 | DN124: 0 | DP124: 0 | DQ124: 0 | DS124: 0 | DT124: 0 | DV124: 0 | DW124: 0 | DY124: 0 | DZ124: 0 | EB124: 0 | EC124: 0 | ED124: 0 | EE124: 0 | EF124: 0 | EG124: 0 | EH124: 0 | EI124: 0 | EK124: 0
J125: 0 | L125: 0 | M125: 0 | O125: 0 | P125: 0 | R125: 0 | S125: 0 | U125: 0 | V125: 0 | X125: 0 | Y125: 0 | AA125: 0 | AB125: 0 | AD125: 0 | AE125: 0 | AG125: 0 | AH125: 0 | AJ125: 0 | AK125: 0 | AM125: 0 | AN125: 0 | AP125: 0 | AQ125: 0 | AS125: 0 | AT125: 0 | AV125: 0 | AW125: 0 | AY125: 0 | AZ125: 0 | BB125: 0 | BC125: 0 | BE125: 0 | BF125: 0 | BH125: 0 | BI125: 0 | BK125: 0 | BL125: 0 | BN125: 0 | BO125: 0 | BQ125: 0 | BR125: 0 | BT125: 0 | BU125: 0 | BW125: 0 | BX125: 0 | BZ125: 0 | CA125: 0 | CC125: 0 | CD125: 0 | CF125: 0 | CG125: 0 | CI125: 0 | CJ125: 0 | CL125: 0 | CM125: 0 | CO125: 0 | CP125: 0 | CR125: 0 | CS125: 0 | CU125: 0 | CV125: 0 | CX125: 0 | CY125: 0 | DA125: 0 | DB125: 0 | DD125: 0 | DE125: 0 | DG125: 0 | DH125: 0 | DJ125: 0 | DK125: 0 | DM125: 0 | DN125: 0 | DP125: 0 | DQ125: 0 | DS125: 0 | DT125: 0 | DV125: 0 | DW125: 0 | DY125: 0 | DZ125: 0 | EB125: 0 | EC125: 0 | ED125: 0 | EE125: 0 | EF125: 0 | EG125: 0 | EH125: 0 | EI125: 0 | EK125: 0
J126: 0 | L126: 0 | M126: 0 | O126: 0 | P126: 0 | R126: 0 | S126: 0 | U126: 0 | V126: 0 | X126: 0 | Y126: 0 | AA126: 0 | AB126: 0 | AD126: 0 | AE126: 0 | AG126: 0 | AH126: 0 | AJ126: 0 | AK126: 0 | AM126: 0 | AN126: 0 | AP126: 0 | AQ126: 0 | AS126: 0 | AT126: 0 | AV126: 0 | AW126: 0 | AY126: 0 | AZ126: 0 | BB126: 0 | BC126: 0 | BE126: 0 | BF126: 0 | BH126: 0 | BI126: 0 | BK126: 0 | BL126: 0 | BN126: 0 | BO126: 0 | BQ126: 0 | BR126: 0 | BT126: 0 | BU126: 0 | BW126: 0 | BX126: 0 | BZ126: 0 | CA126: 0 | CC126: 0 | CD126: 0 | CF126: 0 | CG126: 0 | CI126: 0 | CJ126: 0 | CL126: 0 | CM126: 0 | CO126: 0 | CP126: 0 | CR126: 0 | CS126: 0 | CU126: 0 | CV126: 0 | CX126: 0 | CY126: 0 | DA126: 0 | DB126: 0 | DD126: 0 | DE126: 0 | DG126: 0 | DH126: 0 | DJ126: 0 | DK126: 0 | DM126: 0 | DN126: 0 | DP126: 0 | DQ126: 0 | DS126: 0 | DT126: 0 | DV126: 0 | DW126: 0 | DY126: 0 | DZ126: 0 | EB126: 0 | EC126: 0 | ED126: 0 | EE126: 0 | EF126: 0 | EG126: 0 | EH126: 0 | EI126: 0 | EK126: 0
J127: 0 | L127: 0 | M127: 0 | O127: 0 | P127: 0 | R127: 0 | S127: 0 | U127: 0 | V127: 0 | X127: 0 | Y127: 0 | AA127: 0 | AB127: 0 | AD127: 0 | AE127: 0 | AG127: 0 | AH127: 0 | AJ127: 0 | AK127: 0 | AM127: 0 | AN127: 0 | AP127: 0 | AQ127: 0 | AS127: 0 | AT127: 0 | AV127: 0 | AW127: 0 | AY127: 0 | AZ127: 0 | BB127: 0 | BC127: 0 | BE127: 0 | BF127: 0 | BH127: 0 | BI127: 0 | BK127: 0 | BL127: 0 | BN127: 0 | BO127: 0 | BQ127: 0 | BR127: 0 | BT127: 0 | BU127: 0 | BW127: 0 | BX127: 0 | BZ127: 0 | CA127: 0 | CC127: 0 | CD127: 0 | CF127: 0 | CG127: 0 | CI127: 0 | CJ127: 0 | CL127: 0 | CM127: 0 | CO127: 0 | CP127: 0 | CR127: 0 | CS127: 0 | CU127: 0 | CV127: 0 | CX127: 0 | CY127: 0 | DA127: 0 | DB127: 0 | DD127: 0 | DE127: 0 | DG127: 0 | DH127: 0 | DJ127: 0 | DK127: 0 | DM127: 0 | DN127: 0 | DP127: 0 | DQ127: 0 | DS127: 0 | DT127: 0 | DV127: 0 | DW127: 0 | DY127: 0 | DZ127: 0 | EB127: 0 | EC127: 0 | ED127: 0 | EE127: 0 | EF127: 0 | EG127: 0 | EH127: 0 | EI127: 0 | EK127: 0
J128: 0 | L128: 0 | M128: 0 | O128: 0 | P128: 0 | R128: 0 | S128: 0 | U128: 0 | V128: 0 | X128: 0 | Y128: 0 | AA128: 0 | AB128: 0 | AD128: 0 | AE128: 0 | AG128: 0 | AH128: 0 | AJ128: 0 | AK128: 0 | AM128: 0 | AN128: 0 | AP128: 0 | AQ128: 0 | AS128: 0 | AT128: 0 | AV128: 0 | AW128: 0 | AY128: 0 | AZ128: 0 | BB128: 0 | BC128: 0 | BE128: 0 | BF128: 0 | BH128: 0 | BI128: 0 | BK128: 0 | BL128: 0 | BN128: 0 | BO128: 0 | BQ128: 0 | BR128: 0 | BT128: 0 | BU128: 0 | BW128: 0 | BX128: 0 | BZ128: 0 | CA128: 0 | CC128: 0 | CD128: 0 | CF128: 0 | CG128: 0 | CI128: 0 | CJ128: 0 | CL128: 0 | CM128: 0 | CO128: 0 | CP128: 0 | CR128: 0 | CS128: 0 | CU128: 0 | CV128: 0 | CX128: 0 | CY128: 0 | DA128: 0 | DB128: 0 | DD128: 0 | DE128: 0 | DG128: 0 | DH128: 0 | DJ128: 0 | DK128: 0 | DM128: 0 | DN128: 0 | DP128: 0 | DQ128: 0 | DS128: 0 | DT128: 0 | DV128: 0 | DW128: 0 | DY128: 0 | DZ128: 0 | EB128: 0 | EC128: 0 | ED128: 0 | EE128: 0 | EF128: 0 | EG128: 0 | EH128: 0 | EI128: 0 | EK128: 0
J129: 0 | L129: 0 | M129: 0 | O129: 0 | P129: 0 | R129: 0 | S129: 0 | U129: 0 | V129: 0 | X129: 0 | Y129: 0 | AA129: 0 | AB129: 0 | AD129: 0 | AE129: 0 | AG129: 0 | AH129: 0 | AJ129: 0 | AK129: 0 | AM129: 0 | AN129: 0 | AP129: 0 | AQ129: 0 | AS129: 0 | AT129: 0 | AV129: 0 | AW129: 0 | AY129: 0 | AZ129: 0 | BB129: 0 | BC129: 0 | BE129: 0 | BF129: 0 | BH129: 0 | BI129: 0 | BK129: 0 | BL129: 0 | BN129: 0 | BO129: 0 | BQ129: 0 | BR129: 0 | BT129: 0 | BU129: 0 | BW129: 0 | BX129: 0 | BZ129: 0 | CA129: 0 | CC129: 0 | CD129: 0 | CF129: 0 | CG129: 0 | CI129: 0 | CJ129: 0 | CL129: 0 | CM129: 0 | CO129: 0 | CP129: 0 | CR129: 0 | CS129: 0 | CU129: 0 | CV129: 0 | CX129: 0 | CY129: 0 | DA129: 0 | DB129: 0 | DD129: 0 | DE129: 0 | DG129: 0 | DH129: 0 | DJ129: 0 | DK129: 0 | DM129: 0 | DN129: 0 | DP129: 0 | DQ129: 0 | DS129: 0 | DT129: 0 | DV129: 0 | DW129: 0 | DY129: 0 | DZ129: 0 | EB129: 0 | EC129: 0 | ED129: 0 | EE129: 0 | EF129: 0 | EG129: 0 | EH129: 0 | EI129: 0 | EK129: 0
J130: 0 | L130: 0 | M130: 0 | O130: 0 | P130: 0 | R130: 0 | S130: 0 | U130: 0 | V130: 0 | X130: 0 | Y130: 0 | AA130: 0 | AB130: 0 | AD130: 0 | AE130: 0 | AG130: 0 | AH130: 0 | AJ130: 0 | AK130: 0 | AM130: 0 | AN130: 0 | AP130: 0 | AQ130: 0 | AS130: 0 | AT130: 0 | AV130: 0 | AW130: 0 | AY130: 0 | AZ130: 0 | BB130: 0 | BC130: 0 | BE130: 0 | BF130: 0 | BH130: 0 | BI130: 0 | BK130: 0 | BL130: 0 | BN130: 0 | BO130: 0 | BQ130: 0 | BR130: 0 | BT130: 0 | BU130: 0 | BW130: 0 | BX130: 0 | BZ130: 0 | CA130: 0 | CC130: 0 | CD130: 0 | CF130: 0 | CG130: 0 | CI130: 0 | CJ130: 0 | CL130: 0 | CM130: 0 | CO130: 0 | CP130: 0 | CR130: 0 | CS130: 0 | CU130: 0 | CV130: 0 | CX130: 0 | CY130: 0 | DA130: 0 | DB130: 0 | DD130: 0 | DE130: 0 | DG130: 0 | DH130: 0 | DJ130: 0 | DK130: 0 | DM130: 0 | DN130: 0 | DP130: 0 | DQ130: 0 | DS130: 0 | DT130: 0 | DV130: 0 | DW130: 0 | DY130: 0 | DZ130: 0 | EB130: 0 | EC130: 0 | ED130: 0 | EE130: 0 | EF130: 0 | EG130: 0 | EH130: 0 | EI130: 0 | EK130: 0
J131: 0 | L131: 0 | M131: 0 | O131: 0 | P131: 0 | R131: 0 | S131: 0 | U131: 0 | V131: 0 | X131: 0 | Y131: 0 | AA131: 0 | AB131: 0 | AD131: 0 | AE131: 0 | AG131: 0 | AH131: 0 | AJ131: 0 | AK131: 0 | AM131: 0 | AN131: 0 | AP131: 0 | AQ131: 0 | AS131: 0 | AT131: 0 | AV131: 0 | AW131: 0 | AY131: 0 | AZ131: 0 | BB131: 0 | BC131: 0 | BE131: 0 | BF131: 0 | BH131: 0 | BI131: 0 | BK131: 0 | BL131: 0 | BN131: 0 | BO131: 0 | BQ131: 0 | BR131: 0 | BT131: 0 | BU131: 0 | BW131: 0 | BX131: 0 | BZ131: 0 | CA131: 0 | CC131: 0 | CD131: 0 | CF131: 0 | CG131: 0 | CI131: 0 | CJ131: 0 | CL131: 0 | CM131: 0 | CO131: 0 | CP131: 0 | CR131: 0 | CS131: 0 | CU131: 0 | CV131: 0 | CX131: 0 | CY131: 0 | DA131: 0 | DB131: 0 | DD131: 0 | DE131: 0 | DG131: 0 | DH131: 0 | DJ131: 0 | DK131: 0 | DM131: 0 | DN131: 0 | DP131: 0 | DQ131: 0 | DS131: 0 | DT131: 0 | DV131: 0 | DW131: 0 | DY131: 0 | DZ131: 0 | EB131: 0 | EC131: 0 | ED131: 0 | EE131: 0 | EF131: 0 | EG131: 0 | EH131: 0 | EI131: 0 | EK131: 0
J132: 0 | L132: 0 | M132: 0 | O132: 0 | P132: 0 | R132: 0 | S132: 0 | U132: 0 | V132: 0 | X132: 0 | Y132: 0 | AA132: 0 | AB132: 0 | AD132: 0 | AE132: 0 | AG132: 0 | AH132: 0 | AJ132: 0 | AK132: 0 | AM132: 0 | AN132: 0 | AP132: 0 | AQ132: 0 | AS132: 0 | AT132: 0 | AV132: 0 | AW132: 0 | AY132: 0 | AZ132: 0 | BB132: 0 | BC132: 0 | BE132: 0 | BF132: 0 | BH132: 0 | BI132: 0 | BK132: 0 | BL132: 0 | BN132: 0 | BO132: 0 | BQ132: 0 | BR132: 0 | BT132: 0 | BU132: 0 | BW132: 0 | BX132: 0 | BZ132: 0 | CA132: 0 | CC132: 0 | CD132: 0 | CF132: 0 | CG132: 0 | CI132: 0 | CJ132: 0 | CL132: 0 | CM132: 0 | CO132: 0 | CP132: 0 | CR132: 0 | CS132: 0 | CU132: 0 | CV132: 0 | CX132: 0 | CY132: 0 | DA132: 0 | DB132: 0 | DD132: 0 | DE132: 0 | DG132: 0 | DH132: 0 | DJ132: 0 | DK132: 0 | DM132: 0 | DN132: 0 | DP132: 0 | DQ132: 0 | DS132: 0 | DT132: 0 | DV132: 0 | DW132: 0 | DY132: 0 | DZ132: 0 | EB132: 0 | EC132: 0 | ED132: 0 | EE132: 0 | EF132: 0 | EG132: 0 | EH132: 0 | EI132: 0 | EK132: 0
J133: 0 | L133: 0 | M133: 0 | O133: 0 | P133: 0 | R133: 0 | S133: 0 | U133: 0 | V133: 0 | X133: 0 | Y133: 0 | AA133: 0 | AB133: 0 | AD133: 0 | AE133: 0 | AG133: 0 | AH133: 0 | AJ133: 0 | AK133: 0 | AM133: 0 | AN133: 0 | AP133: 0 | AQ133: 0 | AS133: 0 | AT133: 0 | AV133: 0 | AW133: 0 | AY133: 0 | AZ133: 0 | BB133: 0 | BC133: 0 | BE133: 0 | BF133: 0 | BH133: 0 | BI133: 0 | BK133: 0 | BL133: 0 | BN133: 0 | BO133: 0 | BQ133: 0 | BR133: 0 | BT133: 0 | BU133: 0 | BW133: 0 | BX133: 0 | BZ133: 0 | CA133: 0 | CC133: 0 | CD133: 0 | CF133: 0 | CG133: 0 | CI133: 0 | CJ133: 0 | CL133: 0 | CM133: 0 | CO133: 0 | CP133: 0 | CR133: 0 | CS133: 0 | CU133: 0 | CV133: 0 | CX133: 0 | CY133: 0 | DA133: 0 | DB133: 0 | DD133: 0 | DE133: 0 | DG133: 0 | DH133: 0 | DJ133: 0 | DK133: 0 | DM133: 0 | DN133: 0 | DP133: 0 | DQ133: 0 | DS133: 0 | DT133: 0 | DV133: 0 | DW133: 0 | DY133: 0 | DZ133: 0 | EB133: 0 | EC133: 0 | ED133: 0 | EE133: 0 | EF133: 0 | EG133: 0 | EH133: 0 | EI133: 0 | EK133: 0
J134: 0 | L134: 0 | M134: 0 | O134: 0 | P134: 0 | R134: 0 | S134: 0 | U134: 0 | V134: 0 | X134: 0 | Y134: 0 | AA134: 0 | AB134: 0 | AD134: 0 | AE134: 0 | AG134: 0 | AH134: 0 | AJ134: 0 | AK134: 0 | AM134: 0 | AN134: 0 | AP134: 0 | AQ134: 0 | AS134: 0 | AT134: 0 | AV134: 0 | AW134: 0 | AY134: 0 | AZ134: 0 | BB134: 0 | BC134: 0 | BE134: 0 | BF134: 0 | BH134: 0 | BI134: 0 | BK134: 0 | BL134: 0 | BN134: 0 | BO134: 0 | BQ134: 0 | BR134: 0 | BT134: 0 | BU134: 0 | BW134: 0 | BX134: 0 | BZ134: 0 | CA134: 0 | CC134: 0 | CD134: 0 | CF134: 0 | CG134: 0 | CI134: 0 | CJ134: 0 | CL134: 0 | CM134: 0 | CO134: 0 | CP134: 0 | CR134: 0 | CS134: 0 | CU134: 0 | CV134: 0 | CX134: 0 | CY134: 0 | DA134: 0 | DB134: 0 | DD134: 0 | DE134: 0 | DG134: 0 | DH134: 0 | DJ134: 0 | DK134: 0 | DM134: 0 | DN134: 0 | DP134: 0 | DQ134: 0 | DS134: 0 | DT134: 0 | DV134: 0 | DW134: 0 | DY134: 0 | DZ134: 0 | EB134: 0 | EC134: 0 | ED134: 0 | EE134: 0 | EF134: 0 | EG134: 0 | EH134: 0 | EI134: 0 | EK134: 0
J135: 0 | L135: 0 | M135: 0 | O135: 0 | P135: 0 | R135: 0 | S135: 0 | U135: 0 | V135: 0 | X135: 0 | Y135: 0 | AA135: 0 | AB135: 0 | AD135: 0 | AE135: 0 | AG135: 0 | AH135: 0 | AJ135: 0 | AK135: 0 | AM135: 0 | AN135: 0 | AP135: 0 | AQ135: 0 | AS135: 0 | AT135: 0 | AV135: 0 | AW135: 0 | AY135: 0 | AZ135: 0 | BB135: 0 | BC135: 0 | BE135: 0 | BF135: 0 | BH135: 0 | BI135: 0 | BK135: 0 | BL135: 0 | BN135: 0 | BO135: 0 | BQ135: 0 | BR135: 0 | BT135: 0 | BU135: 0 | BW135: 0 | BX135: 0 | BZ135: 0 | CA135: 0 | CC135: 0 | CD135: 0 | CF135: 0 | CG135: 0 | CI135: 0 | CJ135: 0 | CL135: 0 | CM135: 0 | CO135: 0 | CP135: 0 | CR135: 0 | CS135: 0 | CU135: 0 | CV135: 0 | CX135: 0 | CY135: 0 | DA135: 0 | DB135: 0 | DD135: 0 | DE135: 0 | DG135: 0 | DH135: 0 | DJ135: 0 | DK135: 0 | DM135: 0 | DN135: 0 | DP135: 0 | DQ135: 0 | DS135: 0 | DT135: 0 | DV135: 0 | DW135: 0 | DY135: 0 | DZ135: 0 | EB135: 0 | EC135: 0 | ED135: 0 | EE135: 0 | EF135: 0 | EG135: 0 | EH135: 0 | EI135: 0 | EK135: 0
J136: 0 | L136: 0 | M136: 0 | O136: 0 | P136: 0 | R136: 0 | S136: 0 | U136: 0 | V136: 0 | X136: 0 | Y136: 0 | AA136: 0 | AB136: 0 | AD136: 0 | AE136: 0 | AG136: 0 | AH136: 0 | AJ136: 0 | AK136: 0 | AM136: 0 | AN136: 0 | AP136: 0 | AQ136: 0 | AS136: 0 | AT136: 0 | AV136: 0 | AW136: 0 | AY136: 0 | AZ136: 0 | BB136: 0 | BC136: 0 | BE136: 0 | BF136: 0 | BH136: 0 | BI136: 0 | BK136: 0 | BL136: 0 | BN136: 0 | BO136: 0 | BQ136: 0 | BR136: 0 | BT136: 0 | BU136: 0 | BW136: 0 | BX136: 0 | BZ136: 0 | CA136: 0 | CC136: 0 | CD136: 0 | CF136: 0 | CG136: 0 | CI136: 0 | CJ136: 0 | CL136: 0 | CM136: 0 | CO136: 0 | CP136: 0 | CR136: 0 | CS136: 0 | CU136: 0 | CV136: 0 | CX136: 0 | CY136: 0 | DA136: 0 | DB136: 0 | DD136: 0 | DE136: 0 | DG136: 0 | DH136: 0 | DJ136: 0 | DK136: 0 | DM136: 0 | DN136: 0 | DP136: 0 | DQ136: 0 | DS136: 0 | DT136: 0 | DV136: 0 | DW136: 0 | DY136: 0 | DZ136: 0 | EB136: 0 | EC136: 0 | ED136: 0 | EE136: 0 | EF136: 0 | EG136: 0 | EH136: 0 | EI136: 0 | EK136: 0
J137: 0 | L137: 0 | M137: 0 | O137: 0 | P137: 0 | R137: 0 | S137: 0 | U137: 0 | V137: 0 | X137: 0 | Y137: 0 | AA137: 0 | AB137: 0 | AD137: 0 | AE137: 0 | AG137: 0 | AH137: 0 | AJ137: 0 | AK137: 0 | AM137: 0 | AN137: 0 | AP137: 0 | AQ137: 0 | AS137: 0 | AT137: 0 | AV137: 0 | AW137: 0 | AY137: 0 | AZ137: 0 | BB137: 0 | BC137: 0 | BE137: 0 | BF137: 0 | BH137: 0 | BI137: 0 | BK137: 0 | BL137: 0 | BN137: 0 | BO137: 0 | BQ137: 0 | BR137: 0 | BT137: 0 | BU137: 0 | BW137: 0 | BX137: 0 | BZ137: 0 | CA137: 0 | CC137: 0 | CD137: 0 | CF137: 0 | CG137: 0 | CI137: 0 | CJ137: 0 | CL137: 0 | CM137: 0 | CO137: 0 | CP137: 0 | CR137: 0 | CS137: 0 | CU137: 0 | CV137: 0 | CX137: 0 | CY137: 0 | DA137: 0 | DB137: 0 | DD137: 0 | DE137: 0 | DG137: 0 | DH137: 0 | DJ137: 0 | DK137: 0 | DM137: 0 | DN137: 0 | DP137: 0 | DQ137: 0 | DS137: 0 | DT137: 0 | DV137: 0 | DW137: 0 | DY137: 0 | DZ137: 0 | EB137: 0 | EC137: 0 | ED137: 0 | EE137: 0 | EF137: 0 | EG137: 0 | EH137: 0 | EI137: 0 | EK137: 0
J138: 0 | L138: 0 | M138: 0 | O138: 0 | P138: 0 | R138: 0 | S138: 0 | U138: 0 | V138: 0 | X138: 0 | Y138: 0 | AA138: 0 | AB138: 0 | AD138: 0 | AE138: 0 | AG138: 0 | AH138: 0 | AJ138: 0 | AK138: 0 | AM138: 0 | AN138: 0 | AP138: 0 | AQ138: 0 | AS138: 0 | AT138: 0 | AV138: 0 | AW138: 0 | AY138: 0 | AZ138: 0 | BB138: 0 | BC138: 0 | BE138: 0 | BF138: 0 | BH138: 0 | BI138: 0 | BK138: 0 | BL138: 0 | BN138: 0 | BO138: 0 | BQ138: 0 | BR138: 0 | BT138: 0 | BU138: 0 | BW138: 0 | BX138: 0 | BZ138: 0 | CA138: 0 | CC138: 0 | CD138: 0 | CF138: 0 | CG138: 0 | CI138: 0 | CJ138: 0 | CL138: 0 | CM138: 0 | CO138: 0 | CP138: 0 | CR138: 0 | CS138: 0 | CU138: 0 | CV138: 0 | CX138: 0 | CY138: 0 | DA138: 0 | DB138: 0 | DD138: 0 | DE138: 0 | DG138: 0 | DH138: 0 | DJ138: 0 | DK138: 0 | DM138: 0 | DN138: 0 | DP138: 0 | DQ138: 0 | DS138: 0 | DT138: 0 | DV138: 0 | DW138: 0 | DY138: 0 | DZ138: 0 | EB138: 0 | EC138: 0 | ED138: 0 | EE138: 0 | EF138: 0 | EG138: 0 | EH138: 0 | EI138: 0 | EK138: 0
J139: 0 | L139: 0 | M139: 0 | O139: 0 | P139: 0 | R139: 0 | S139: 0 | U139: 0 | V139: 0 | X139: 0 | Y139: 0 | AA139: 0 | AB139: 0 | AD139: 0 | AE139: 0 | AG139: 0 | AH139: 0 | AJ139: 0 | AK139: 0 | AM139: 0 | AN139: 0 | AP139: 0 | AQ139: 0 | AS139: 0 | AT139: 0 | AV139: 0 | AW139: 0 | AY139: 0 | AZ139: 0 | BB139: 0 | BC139: 0 | BE139: 0 | BF139: 0 | BH139: 0 | BI139: 0 | BK139: 0 | BL139: 0 | BN139: 0 | BO139: 0 | BQ139: 0 | BR139: 0 | BT139: 0 | BU139: 0 | BW139: 0 | BX139: 0 | BZ139: 0 | CA139: 0 | CC139: 0 | CD139: 0 | CF139: 0 | CG139: 0 | CI139: 0 | CJ139: 0 | CL139: 0 | CM139: 0 | CO139: 0 | CP139: 0 | CR139: 0 | CS139: 0 | CU139: 0 | CV139: 0 | CX139: 0 | CY139: 0 | DA139: 0 | DB139: 0 | DD139: 0 | DE139: 0 | DG139: 0 | DH139: 0 | DJ139: 0 | DK139: 0 | DM139: 0 | DN139: 0 | DP139: 0 | DQ139: 0 | DS139: 0 | DT139: 0 | DV139: 0 | DW139: 0 | DY139: 0 | DZ139: 0 | EB139: 0 | EC139: 0 | ED139: 0 | EE139: 0 | EF139: 0 | EG139: 0 | EH139: 0 | EI139: 0 | EK139: 0
J140: 0 | L140: 0 | M140: 0 | O140: 0 | P140: 0 | R140: 0 | S140: 0 | U140: 0 | V140: 0 | X140: 0 | Y140: 0 | AA140: 0 | AB140: 0 | AD140: 0 | AE140: 0 | AG140: 0 | AH140: 0 | AJ140: 0 | AK140: 0 | AM140: 0 | AN140: 0 | AP140: 0 | AQ140: 0 | AS140: 0 | AT140: 0 | AV140: 0 | AW140: 0 | AY140: 0 | AZ140: 0 | BB140: 0 | BC140: 0 | BE140: 0 | BF140: 0 | BH140: 0 | BI140: 0 | BK140: 0 | BL140: 0 | BN140: 0 | BO140: 0 | BQ140: 0 | BR140: 0 | BT140: 0 | BU140: 0 | BW140: 0 | BX140: 0 | BZ140: 0 | CA140: 0 | CC140: 0 | CD140: 0 | CF140: 0 | CG140: 0 | CI140: 0 | CJ140: 0 | CL140: 0 | CM140: 0 | CO140: 0 | CP140: 0 | CR140: 0 | CS140: 0 | CU140: 0 | CV140: 0 | CX140: 0 | CY140: 0 | DA140: 0 | DB140: 0 | DD140: 0 | DE140: 0 | DG140: 0 | DH140: 0 | DJ140: 0 | DK140: 0 | DM140: 0 | DN140: 0 | DP140: 0 | DQ140: 0 | DS140: 0 | DT140: 0 | DV140: 0 | DW140: 0 | DY140: 0 | DZ140: 0 | EB140: 0 | EC140: 0 | ED140: 0 | EE140: 0 | EF140: 0 | EG140: 0 | EH140: 0 | EI140: 0 | EK140: 0
J141: 0 | L141: 0 | M141: 0 | O141: 0 | P141: 0 | R141: 0 | S141: 0 | U141: 0 | V141: 0 | X141: 0 | Y141: 0 | AA141: 0 | AB141: 0 | AD141: 0 | AE141: 0 | AG141: 0 | AH141: 0 | AJ141: 0 | AK141: 0 | AM141: 0 | AN141: 0 | AP141: 0 | AQ141: 0 | AS141: 0 | AT141: 0 | AV141: 0 | AW141: 0 | AY141: 0 | AZ141: 0 | BB141: 0 | BC141: 0 | BE141: 0 | BF141: 0 | BH141: 0 | BI141: 0 | BK141: 0 | BL141: 0 | BN141: 0 | BO141: 0 | BQ141: 0 | BR141: 0 | BT141: 0 | BU141: 0 | BW141: 0 | BX141: 0 | BZ141: 0 | CA141: 0 | CC141: 0 | CD141: 0 | CF141: 0 | CG141: 0 | CI141: 0 | CJ141: 0 | CL141: 0 | CM141: 0 | CO141: 0 | CP141: 0 | CR141: 0 | CS141: 0 | CU141: 0 | CV141: 0 | CX141: 0 | CY141: 0 | DA141: 0 | DB141: 0 | DD141: 0 | DE141: 0 | DG141: 0 | DH141: 0 | DJ141: 0 | DK141: 0 | DM141: 0 | DN141: 0 | DP141: 0 | DQ141: 0 | DS141: 0 | DT141: 0 | DV141: 0 | DW141: 0 | DY141: 0 | DZ141: 0 | EB141: 0 | EC141: 0 | ED141: 0 | EE141: 0 | EF141: 0 | EG141: 0 | EH141: 0 | EI141: 0 | EK141: 0
J142: 0 | L142: 0 | M142: 0 | O142: 0 | P142: 0 | R142: 0 | S142: 0 | U142: 0 | V142: 0 | X142: 0 | Y142: 0 | AA142: 0 | AB142: 0 | AD142: 0 | AE142: 0 | AG142: 0 | AH142: 0 | AJ142: 0 | AK142: 0 | AM142: 0 | AN142: 0 | AP142: 0 | AQ142: 0 | AS142: 0 | AT142: 0 | AV142: 0 | AW142: 0 | AY142: 0 | AZ142: 0 | BB142: 0 | BC142: 0 | BE142: 0 | BF142: 0 | BH142: 0 | BI142: 0 | BK142: 0 | BL142: 0 | BN142: 0 | BO142: 0 | BQ142: 0 | BR142: 0 | BT142: 0 | BU142: 0 | BW142: 0 | BX142: 0 | BZ142: 0 | CA142: 0 | CC142: 0 | CD142: 0 | CF142: 0 | CG142: 0 | CI142: 0 | CJ142: 0 | CL142: 0 | CM142: 0 | CO142: 0 | CP142: 0 | CR142: 0 | CS142: 0 | CU142: 0 | CV142: 0 | CX142: 0 | CY142: 0 | DA142: 0 | DB142: 0 | DD142: 0 | DE142: 0 | DG142: 0 | DH142: 0 | DJ142: 0 | DK142: 0 | DM142: 0 | DN142: 0 | DP142: 0 | DQ142: 0 | DS142: 0 | DT142: 0 | DV142: 0 | DW142: 0 | DY142: 0 | DZ142: 0 | EB142: 0 | EC142: 0 | ED142: 0 | EE142: 0 | EF142: 0 | EG142: 0 | EH142: 0 | EI142: 0 | EK142: 0
J143: 0 | L143: 0 | M143: 0 | O143: 0 | P143: 0 | R143: 0 | S143: 0 | U143: 0 | V143: 0 | X143: 0 | Y143: 0 | AA143: 0 | AB143: 0 | AD143: 0 | AE143: 0 | AG143: 0 | AH143: 0 | AJ143: 0 | AK143: 0 | AM143: 0 | AN143: 0 | AP143: 0 | AQ143: 0 | AS143: 0 | AT143: 0 | AV143: 0 | AW143: 0 | AY143: 0 | AZ143: 0 | BB143: 0 | BC143: 0 | BE143: 0 | BF143: 0 | BH143: 0 | BI143: 0 | BK143: 0 | BL143: 0 | BN143: 0 | BO143: 0 | BQ143: 0 | BR143: 0 | BT143: 0 | BU143: 0 | BW143: 0 | BX143: 0 | BZ143: 0 | CA143: 0 | CC143: 0 | CD143: 0 | CF143: 0 | CG143: 0 | CI143: 0 | CJ143: 0 | CL143: 0 | CM143: 0 | CO143: 0 | CP143: 0 | CR143: 0 | CS143: 0 | CU143: 0 | CV143: 0 | CX143: 0 | CY143: 0 | DA143: 0 | DB143: 0 | DD143: 0 | DE143: 0 | DG143: 0 | DH143: 0 | DJ143: 0 | DK143: 0 | DM143: 0 | DN143: 0 | DP143: 0 | DQ143: 0 | DS143: 0 | DT143: 0 | DV143: 0 | DW143: 0 | DY143: 0 | DZ143: 0 | EB143: 0 | EC143: 0 | ED143: 0 | EE143: 0 | EF143: 0 | EG143: 0 | EH143: 0 | EI143: 0 | EK143: 0
J144: 0 | L144: 0 | M144: 0 | O144: 0 | P144: 0 | R144: 0 | S144: 0 | U144: 0 | V144: 0 | X144: 0 | Y144: 0 | AA144: 0 | AB144: 0 | AD144: 0 | AE144: 0 | AG144: 0 | AH144: 0 | AJ144: 0 | AK144: 0 | AM144: 0 | AN144: 0 | AP144: 0 | AQ144: 0 | AS144: 0 | AT144: 0 | AV144: 0 | AW144: 0 | AY144: 0 | AZ144: 0 | BB144: 0 | BC144: 0 | BE144: 0 | BF144: 0 | BH144: 0 | BI144: 0 | BK144: 0 | BL144: 0 | BN144: 0 | BO144: 0 | BQ144: 0 | BR144: 0 | BT144: 0 | BU144: 0 | BW144: 0 | BX144: 0 | BZ144: 0 | CA144: 0 | CC144: 0 | CD144: 0 | CF144: 0 | CG144: 0 | CI144: 0 | CJ144: 0 | CL144: 0 | CM144: 0 | CO144: 0 | CP144: 0 | CR144: 0 | CS144: 0 | CU144: 0 | CV144: 0 | CX144: 0 | CY144: 0 | DA144: 0 | DB144: 0 | DD144: 0 | DE144: 0 | DG144: 0 | DH144: 0 | DJ144: 0 | DK144: 0 | DM144: 0 | DN144: 0 | DP144: 0 | DQ144: 0 | DS144: 0 | DT144: 0 | DV144: 0 | DW144: 0 | DY144: 0 | DZ144: 0 | EB144: 0 | EC144: 0 | ED144: 0 | EE144: 0 | EF144: 0 | EG144: 0 | EH144: 0 | EI144: 0 | EK144: 0
J145: 0 | L145: 0 | M145: 0 | O145: 0 | P145: 0 | R145: 0 | S145: 0 | U145: 0 | V145: 0 | X145: 0 | Y145: 0 | AA145: 0 | AB145: 0 | AD145: 0 | AE145: 0 | AG145: 0 | AH145: 0 | AJ145: 0 | AK145: 0 | AM145: 0 | AN145: 0 | AP145: 0 | AQ145: 0 | AS145: 0 | AT145: 0 | AV145: 0 | AW145: 0 | AY145: 0 | AZ145: 0 | BB145: 0 | BC145: 0 | BE145: 0 | BF145: 0 | BH145: 0 | BI145: 0 | BK145: 0 | BL145: 0 | BN145: 0 | BO145: 0 | BQ145: 0 | BR145: 0 | BT145: 0 | BU145: 0 | BW145: 0 | BX145: 0 | BZ145: 0 | CA145: 0 | CC145: 0 | CD145: 0 | CF145: 0 | CG145: 0 | CI145: 0 | CJ145: 0 | CL145: 0 | CM145: 0 | CO145: 0 | CP145: 0 | CR145: 0 | CS145: 0 | CU145: 0 | CV145: 0 | CX145: 0 | CY145: 0 | DA145: 0 | DB145: 0 | DD145: 0 | DE145: 0 | DG145: 0 | DH145: 0 | DJ145: 0 | DK145: 0 | DM145: 0 | DN145: 0 | DP145: 0 | DQ145: 0 | DS145: 0 | DT145: 0 | DV145: 0 | DW145: 0 | DY145: 0 | DZ145: 0 | EB145: 0 | EC145: 0 | ED145: 0 | EE145: 0 | EF145: 0 | EG145: 0 | EH145: 0 | EI145: 0 | EK145: 0
E146: =IF(ISERROR(H146/IF(ISBLANK(G146), 52.14, G146)/F146), "", H146/IF(ISBLANK(G146), 52.14, G146)/F146) ->  | J146: 0 | L146: 0 | M146: 0 | O146: 0 | P146: 0 | R146: 0 | S146: 0 | U146: 0 | V146: 0 | X146: 0 | Y146: 0 | AA146: 0 | AB146: 0 | AD146: 0 | AE146: 0 | AG146: 0 | AH146: 0 | AJ146: 0 | AK146: 0 | AM146: 0 | AN146: 0 | AP146: 0 | AQ146: 0 | AS146: 0 | AT146: 0 | AV146: 0 | AW146: 0 | AY146: 0 | AZ146: 0 | BB146: 0 | BC146: 0 | BE146: 0 | BF146: 0 | BH146: 0 | BI146: 0 | BK146: 0 | BL146: 0 | BN146: 0 | BO146: 0 | BQ146: 0 | BR146: 0 | BT146: 0 | BU146: 0 | BW146: 0 | BX146: 0 | BZ146: 0 | CA146: 0 | CC146: 0 | CD146: 0 | CF146: 0 | CG146: 0 | CI146: 0 | CJ146: 0 | CL146: 0 | CM146: 0 | CO146: 0 | CP146: 0 | CR146: 0 | CS146: 0 | CU146: 0 | CV146: 0 | CX146: 0 | CY146: 0 | DA146: 0 | DB146: 0 | DD146: 0 | DE146: 0 | DG146: 0 | DH146: 0 | DJ146: 0 | DK146: 0 | DM146: 0 | DN146: 0 | DP146: 0 | DQ146: 0 | DS146: 0 | DT146: 0 | DV146: 0 | DW146: 0 | DY146: 0 | DZ146: 0 | EB146: 0 | EC146: 0 | ED146: 0 | EE146: 0 | EF146: 0 | EG146: 0 | EH146: 0 | EI146: 0 | EK146: 0
J147: =H147*I147 -> 0 | L147: =$H147*K147 -> 0 | M147: =$J147*K147 -> 0 | O147: =$H147*N147 -> 0 | P147: =$J147*N147 -> 0 | R147: =$H147*Q147 -> 0 | S147: =$J147*Q147 -> 0 | U147: =$H147*T147 -> 0 | V147: =$J147*T147 -> 0 | X147: =$H147*W147 -> 0 | Y147: =$J147*W147 -> 0 | AA147: =$H147*Z147 -> 0 | AB147: =$J147*Z147 -> 0 | AD147: =$H147*AC147 -> 0 | AE147: =$J147*AC147 -> 0 | AG147: =$H147*AF147 -> 0 | AH147: =$J147*AF147 -> 0 | AJ147: =$H147*AI147 -> 0 | AK147: =$J147*AI147 -> 0 | AM147: =$H147*AL147 -> 0 | AN147: =$J147*AL147 -> 0 | AP147: =$H147*AO147 -> 0 | AQ147: =$J147*AO147 -> 0 | AS147: =$H147*AR147 -> 0 | AT147: =$J147*AR147 -> 0 | AV147: =$H147*AU147 -> 0 | AW147: =$J147*AU147 -> 0 | AY147: =$H147*AX147 -> 0 | AZ147: =$J147*AX147 -> 0 | BB147: =$H147*BA147 -> 0 | BC147: =$J147*BA147 -> 0 | BE147: =$H147*BD147 -> 0 | BF147: =$J147*BD147 -> 0 | BH147: =$H147*BG147 -> 0 | BI147: =$J147*BG147 -> 0 | BK147: =$H147*BJ147 -> 0 | BL147: =$J147*BJ147 -> 0 | BN147: =$H147*BM147 -> 0 | BO147: =$J147*BM147 -> 0 | BQ147: =$H147*BP147 -> 0 | BR147: =$J147*BP147 -> 0 | BT147: =$H147*BS147 -> 0 | BU147: =$J147*BS147 -> 0 | BW147: =$H147*BV147 -> 0 | BX147: =$J147*BV147 -> 0 | BZ147: =$H147*BY147 -> 0 | CA147: =$J147*BY147 -> 0 | CC147: =$H147*CB147 -> 0 | CD147: =$J147*CB147 -> 0 | CF147: =$H147*CE147 -> 0 | CG147: =$J147*CE147 -> 0 | CI147: =$H147*CH147 -> 0 | CJ147: =$J147*CH147 -> 0 | CL147: =$H147*CK147 -> 0 | CM147: =$J147*CK147 -> 0 | CO147: =$H147*CN147 -> 0 | CP147: =$J147*CN147 -> 0 | CR147: =$H147*CQ147 -> 0 | CS147: =$J147*CQ147 -> 0 | CU147: =$H147*CT147 -> 0 | CV147: =$J147*CT147 -> 0 | CX147: =$H147*CW147 -> 0 | CY147: =$J147*CW147 -> 0 | DA147: =$H147*CZ147 -> 0 | DB147: =$J147*CZ147 -> 0 | DD147: =$H147*DC147 -> 0 | DE147: =$J147*DC147 -> 0 | DG147: =$H147*DF147 -> 0 | DH147: =$J147*DF147 -> 0 | DJ147: =$H147*DI147 -> 0 | DK147: =$J147*DI147 -> 0 | DM147: =$H147*DL147 -> 0 | DN147: =$J147*DL147 -> 0 | DP147: =$H147*DO147 -> 0 | DQ147: =$J147*DO147 -> 0 | DS147: =$H147*DR147 -> 0 | DT147: =$J147*DR147 -> 0 | DV147: =$H147*DU147 -> 0 | DW147: =$J147*DU147 -> 0 | DY147: =$H147*DX147 -> 0 | DZ147: =$J147*DX147 -> 0 | EB147: =$H147*EA147 -> 0 | EC147: =$J147*EA147 -> 0 | ED147: =K147+N147+Q147+T147+W147+Z147+AC147+AF147+AI147+AL147+AO147+AR147+AU147+AX147+BA147+BD147+BG147+BJ147+BM147+BP147+BS147+BV147+BY147+CB147+CE147+CH147+CK147+CN147+CQ147+CT147+CW147+CZ147+DC147+DF147+DI147+DL147+DO147+DR147+DU147+DX147+EA147 -> 0 | EE147: =L147+O147+R147+U147+X147+AA147+AD147+AG147+AJ147+AM147+AP147+AS147+AV147+AY147+BB147+BE147+BH147+BK147+BN147+BQ147+BT147+BW147+BZ147+CC147+CF147+CI147+CL147+CO147+CR147+CU147+CX147+DA147+DD147+DG147+DJ147+DM147+DP147+DS147+DV147+DY147 -> 0 | EF147: =M147+P147+S147+V147+Y147+AB147+AE147+AH147+AK147+AN147+AQ147+AT147+AW147+AZ147+BC147+BF147+BI147+BL147+BO147+BR147+BU147+BX147+CA147+CD147+CG147+CJ147+CM147+CP147+CS147+CV147+CY147+DB147+DE147+DH147+DK147+DN147+DQ147+DT147+DW147+DZ147 -> 0 | EG147: =EE147+EF147 -> 0 | EH147: =SUM(EB147:EC147) -> 0 | EI147: =SUM(EG147:EH147) -> 0 | EK147: =EI147+EJ147 -> 0
J148: 0 | L148: 0 | M148: 0 | O148: 0 | P148: 0 | R148: 0 | S148: 0 | U148: 0 | V148: 0 | X148: 0 | Y148: 0 | AA148: 0 | AB148: 0 | AD148: 0 | AE148: 0 | AG148: 0 | AH148: 0 | AJ148: 0 | AK148: 0 | AM148: 0 | AN148: 0 | AP148: 0 | AQ148: 0 | AS148: 0 | AT148: 0 | AV148: 0 | AW148: 0 | AY148: 0 | AZ148: 0 | BB148: 0 | BC148: 0 | BE148: 0 | BF148: 0 | BH148: 0 | BI148: 0 | BK148: 0 | BL148: 0 | BN148: 0 | BO148: 0 | BQ148: 0 | BR148: 0 | BT148: 0 | BU148: 0 | BW148: 0 | BX148: 0 | BZ148: 0 | CA148: 0 | CC148: 0 | CD148: 0 | CF148: 0 | CG148: 0 | CI148: 0 | CJ148: 0 | CL148: 0 | CM148: 0 | CO148: 0 | CP148: 0 | CR148: 0 | CS148: 0 | CU148: 0 | CV148: 0 | CX148: 0 | CY148: 0 | DA148: 0 | DB148: 0 | DD148: 0 | DE148: 0 | DG148: 0 | DH148: 0 | DJ148: 0 | DK148: 0 | DM148: 0 | DN148: 0 | DP148: 0 | DQ148: 0 | DS148: 0 | DT148: 0 | DV148: 0 | DW148: 0 | DY148: 0 | DZ148: 0 | EB148: 0 | EC148: 0 | ED148: 0 | EE148: 0 | EF148: 0 | EG148: 0 | EH148: 0 | EI148: 0 | EK148: 0
J149: 0 | L149: 0 | M149: 0 | O149: 0 | P149: 0 | R149: 0 | S149: 0 | U149: 0 | V149: 0 | X149: 0 | Y149: 0 | AA149: 0 | AB149: 0 | AD149: 0 | AE149: 0 | AG149: 0 | AH149: 0 | AJ149: 0 | AK149: 0 | AM149: 0 | AN149: 0 | AP149: 0 | AQ149: 0 | AS149: 0 | AT149: 0 | AV149: 0 | AW149: 0 | AY149: 0 | AZ149: 0 | BB149: 0 | BC149: 0 | BE149: 0 | BF149: 0 | BH149: 0 | BI149: 0 | BK149: 0 | BL149: 0 | BN149: 0 | BO149: 0 | BQ149: 0 | BR149: 0 | BT149: 0 | BU149: 0 | BW149: 0 | BX149: 0 | BZ149: 0 | CA149: 0 | CC149: 0 | CD149: 0 | CF149: 0 | CG149: 0 | CI149: 0 | CJ149: 0 | CL149: 0 | CM149: 0 | CO149: 0 | CP149: 0 | CR149: 0 | CS149: 0 | CU149: 0 | CV149: 0 | CX149: 0 | CY149: 0 | DA149: 0 | DB149: 0 | DD149: 0 | DE149: 0 | DG149: 0 | DH149: 0 | DJ149: 0 | DK149: 0 | DM149: 0 | DN149: 0 | DP149: 0 | DQ149: 0 | DS149: 0 | DT149: 0 | DV149: 0 | DW149: 0 | DY149: 0 | DZ149: 0 | EB149: 0 | EC149: 0 | ED149: 0 | EE149: 0 | EF149: 0 | EG149: 0 | EH149: 0 | EI149: 0 | EK149: 0
J150: 0 | L150: 0 | M150: 0 | O150: 0 | P150: 0 | R150: 0 | S150: 0 | U150: 0 | V150: 0 | X150: 0 | Y150: 0 | AA150: 0 | AB150: 0 | AD150: 0 | AE150: 0 | AG150: 0 | AH150: 0 | AJ150: 0 | AK150: 0 | AM150: 0 | AN150: 0 | AP150: 0 | AQ150: 0 | AS150: 0 | AT150: 0 | AV150: 0 | AW150: 0 | AY150: 0 | AZ150: 0 | BB150: 0 | BC150: 0 | BE150: 0 | BF150: 0 | BH150: 0 | BI150: 0 | BK150: 0 | BL150: 0 | BN150: 0 | BO150: 0 | BQ150: 0 | BR150: 0 | BT150: 0 | BU150: 0 | BW150: 0 | BX150: 0 | BZ150: 0 | CA150: 0 | CC150: 0 | CD150: 0 | CF150: 0 | CG150: 0 | CI150: 0 | CJ150: 0 | CL150: 0 | CM150: 0 | CO150: 0 | CP150: 0 | CR150: 0 | CS150: 0 | CU150: 0 | CV150: 0 | CX150: 0 | CY150: 0 | DA150: 0 | DB150: 0 | DD150: 0 | DE150: 0 | DG150: 0 | DH150: 0 | DJ150: 0 | DK150: 0 | DM150: 0 | DN150: 0 | DP150: 0 | DQ150: 0 | DS150: 0 | DT150: 0 | DV150: 0 | DW150: 0 | DY150: 0 | DZ150: 0 | EB150: 0 | EC150: 0 | ED150: 0 | EE150: 0 | EF150: 0 | EG150: 0 | EH150: 0 | EI150: 0 | EK150: 0
J151: 0 | L151: 0 | M151: 0 | O151: 0 | P151: 0 | R151: 0 | S151: 0 | U151: 0 | V151: 0 | X151: 0 | Y151: 0 | AA151: 0 | AB151: 0 | AD151: 0 | AE151: 0 | AG151: 0 | AH151: 0 | AJ151: 0 | AK151: 0 | AM151: 0 | AN151: 0 | AP151: 0 | AQ151: 0 | AS151: 0 | AT151: 0 | AV151: 0 | AW151: 0 | AY151: 0 | AZ151: 0 | BB151: 0 | BC151: 0 | BE151: 0 | BF151: 0 | BH151: 0 | BI151: 0 | BK151: 0 | BL151: 0 | BN151: 0 | BO151: 0 | BQ151: 0 | BR151: 0 | BT151: 0 | BU151: 0 | BW151: 0 | BX151: 0 | BZ151: 0 | CA151: 0 | CC151: 0 | CD151: 0 | CF151: 0 | CG151: 0 | CI151: 0 | CJ151: 0 | CL151: 0 | CM151: 0 | CO151: 0 | CP151: 0 | CR151: 0 | CS151: 0 | CU151: 0 | CV151: 0 | CX151: 0 | CY151: 0 | DA151: 0 | DB151: 0 | DD151: 0 | DE151: 0 | DG151: 0 | DH151: 0 | DJ151: 0 | DK151: 0 | DM151: 0 | DN151: 0 | DP151: 0 | DQ151: 0 | DS151: 0 | DT151: 0 | DV151: 0 | DW151: 0 | DY151: 0 | DZ151: 0 | EB151: 0 | EC151: 0 | ED151: 0 | EE151: 0 | EF151: 0 | EG151: 0 | EH151: 0 | EI151: 0 | EK151: 0
J152: 0 | L152: 0 | M152: 0 | O152: 0 | P152: 0 | R152: 0 | S152: 0 | U152: 0 | V152: 0 | X152: 0 | Y152: 0 | AA152: 0 | AB152: 0 | AD152: 0 | AE152: 0 | AG152: 0 | AH152: 0 | AJ152: 0 | AK152: 0 | AM152: 0 | AN152: 0 | AP152: 0 | AQ152: 0 | AS152: 0 | AT152: 0 | AV152: 0 | AW152: 0 | AY152: 0 | AZ152: 0 | BB152: 0 | BC152: 0 | BE152: 0 | BF152: 0 | BH152: 0 | BI152: 0 | BK152: 0 | BL152: 0 | BN152: 0 | BO152: 0 | BQ152: 0 | BR152: 0 | BT152: 0 | BU152: 0 | BW152: 0 | BX152: 0 | BZ152: 0 | CA152: 0 | CC152: 0 | CD152: 0 | CF152: 0 | CG152: 0 | CI152: 0 | CJ152: 0 | CL152: 0 | CM152: 0 | CO152: 0 | CP152: 0 | CR152: 0 | CS152: 0 | CU152: 0 | CV152: 0 | CX152: 0 | CY152: 0 | DA152: 0 | DB152: 0 | DD152: 0 | DE152: 0 | DG152: 0 | DH152: 0 | DJ152: 0 | DK152: 0 | DM152: 0 | DN152: 0 | DP152: 0 | DQ152: 0 | DS152: 0 | DT152: 0 | DV152: 0 | DW152: 0 | DY152: 0 | DZ152: 0 | EB152: 0 | EC152: 0 | ED152: 0 | EE152: 0 | EF152: 0 | EG152: 0 | EH152: 0 | EI152: 0 | EK152: 0
J153: 0 | L153: 0 | M153: 0 | O153: 0 | P153: 0 | R153: 0 | S153: 0 | U153: 0 | V153: 0 | X153: 0 | Y153: 0 | AA153: 0 | AB153: 0 | AD153: 0 | AE153: 0 | AG153: 0 | AH153: 0 | AJ153: 0 | AK153: 0 | AM153: 0 | AN153: 0 | AP153: 0 | AQ153: 0 | AS153: 0 | AT153: 0 | AV153: 0 | AW153: 0 | AY153: 0 | AZ153: 0 | BB153: 0 | BC153: 0 | BE153: 0 | BF153: 0 | BH153: 0 | BI153: 0 | BK153: 0 | BL153: 0 | BN153: 0 | BO153: 0 | BQ153: 0 | BR153: 0 | BT153: 0 | BU153: 0 | BW153: 0 | BX153: 0 | BZ153: 0 | CA153: 0 | CC153: 0 | CD153: 0 | CF153: 0 | CG153: 0 | CI153: 0 | CJ153: 0 | CL153: 0 | CM153: 0 | CO153: 0 | CP153: 0 | CR153: 0 | CS153: 0 | CU153: 0 | CV153: 0 | CX153: 0 | CY153: 0 | DA153: 0 | DB153: 0 | DD153: 0 | DE153: 0 | DG153: 0 | DH153: 0 | DJ153: 0 | DK153: 0 | DM153: 0 | DN153: 0 | DP153: 0 | DQ153: 0 | DS153: 0 | DT153: 0 | DV153: 0 | DW153: 0 | DY153: 0 | DZ153: 0 | EB153: 0 | EC153: 0 | ED153: 0 | EE153: 0 | EF153: 0 | EG153: 0 | EH153: 0 | EI153: 0 | EK153: 0
J154: 0 | L154: 0 | M154: 0 | O154: 0 | P154: 0 | R154: 0 | S154: 0 | U154: 0 | V154: 0 | X154: 0 | Y154: 0 | AA154: 0 | AB154: 0 | AD154: 0 | AE154: 0 | AG154: 0 | AH154: 0 | AJ154: 0 | AK154: 0 | AM154: 0 | AN154: 0 | AP154: 0 | AQ154: 0 | AS154: 0 | AT154: 0 | AV154: 0 | AW154: 0 | AY154: 0 | AZ154: 0 | BB154: 0 | BC154: 0 | BE154: 0 | BF154: 0 | BH154: 0 | BI154: 0 | BK154: 0 | BL154: 0 | BN154: 0 | BO154: 0 | BQ154: 0 | BR154: 0 | BT154: 0 | BU154: 0 | BW154: 0 | BX154: 0 | BZ154: 0 | CA154: 0 | CC154: 0 | CD154: 0 | CF154: 0 | CG154: 0 | CI154: 0 | CJ154: 0 | CL154: 0 | CM154: 0 | CO154: 0 | CP154: 0 | CR154: 0 | CS154: 0 | CU154: 0 | CV154: 0 | CX154: 0 | CY154: 0 | DA154: 0 | DB154: 0 | DD154: 0 | DE154: 0 | DG154: 0 | DH154: 0 | DJ154: 0 | DK154: 0 | DM154: 0 | DN154: 0 | DP154: 0 | DQ154: 0 | DS154: 0 | DT154: 0 | DV154: 0 | DW154: 0 | DY154: 0 | DZ154: 0 | EB154: 0 | EC154: 0 | ED154: 0 | EE154: 0 | EF154: 0 | EG154: 0 | EH154: 0 | EI154: 0 | EK154: 0
J155: 0 | L155: 0 | M155: 0 | O155: 0 | P155: 0 | R155: 0 | S155: 0 | U155: 0 | V155: 0 | X155: 0 | Y155: 0 | AA155: 0 | AB155: 0 | AD155: 0 | AE155: 0 | AG155: 0 | AH155: 0 | AJ155: 0 | AK155: 0 | AM155: 0 | AN155: 0 | AP155: 0 | AQ155: 0 | AS155: 0 | AT155: 0 | AV155: 0 | AW155: 0 | AY155: 0 | AZ155: 0 | BB155: 0 | BC155: 0 | BE155: 0 | BF155: 0 | BH155: 0 | BI155: 0 | BK155: 0 | BL155: 0 | BN155: 0 | BO155: 0 | BQ155: 0 | BR155: 0 | BT155: 0 | BU155: 0 | BW155: 0 | BX155: 0 | BZ155: 0 | CA155: 0 | CC155: 0 | CD155: 0 | CF155: 0 | CG155: 0 | CI155: 0 | CJ155: 0 | CL155: 0 | CM155: 0 | CO155: 0 | CP155: 0 | CR155: 0 | CS155: 0 | CU155: 0 | CV155: 0 | CX155: 0 | CY155: 0 | DA155: 0 | DB155: 0 | DD155: 0 | DE155: 0 | DG155: 0 | DH155: 0 | DJ155: 0 | DK155: 0 | DM155: 0 | DN155: 0 | DP155: 0 | DQ155: 0 | DS155: 0 | DT155: 0 | DV155: 0 | DW155: 0 | DY155: 0 | DZ155: 0 | EB155: 0 | EC155: 0 | ED155: 0 | EE155: 0 | EF155: 0 | EG155: 0 | EH155: 0 | EI155: 0 | EK155: 0
J156: 0 | L156: 0 | M156: 0 | O156: 0 | P156: 0 | R156: 0 | S156: 0 | U156: 0 | V156: 0 | X156: 0 | Y156: 0 | AA156: 0 | AB156: 0 | AD156: 0 | AE156: 0 | AG156: 0 | AH156: 0 | AJ156: 0 | AK156: 0 | AM156: 0 | AN156: 0 | AP156: 0 | AQ156: 0 | AS156: 0 | AT156: 0 | AV156: 0 | AW156: 0 | AY156: 0 | AZ156: 0 | BB156: 0 | BC156: 0 | BE156: 0 | BF156: 0 | BH156: 0 | BI156: 0 | BK156: 0 | BL156: 0 | BN156: 0 | BO156: 0 | BQ156: 0 | BR156: 0 | BT156: 0 | BU156: 0 | BW156: 0 | BX156: 0 | BZ156: 0 | CA156: 0 | CC156: 0 | CD156: 0 | CF156: 0 | CG156: 0 | CI156: 0 | CJ156: 0 | CL156: 0 | CM156: 0 | CO156: 0 | CP156: 0 | CR156: 0 | CS156: 0 | CU156: 0 | CV156: 0 | CX156: 0 | CY156: 0 | DA156: 0 | DB156: 0 | DD156: 0 | DE156: 0 | DG156: 0 | DH156: 0 | DJ156: 0 | DK156: 0 | DM156: 0 | DN156: 0 | DP156: 0 | DQ156: 0 | DS156: 0 | DT156: 0 | DV156: 0 | DW156: 0 | DY156: 0 | DZ156: 0 | EB156: 0 | EC156: 0 | ED156: 0 | EE156: 0 | EF156: 0 | EG156: 0 | EH156: 0 | EI156: 0 | EK156: 0
J157: 0 | L157: 0 | M157: 0 | O157: 0 | P157: 0 | R157: 0 | S157: 0 | U157: 0 | V157: 0 | X157: 0 | Y157: 0 | AA157: 0 | AB157: 0 | AD157: 0 | AE157: 0 | AG157: 0 | AH157: 0 | AJ157: 0 | AK157: 0 | AM157: 0 | AN157: 0 | AP157: 0 | AQ157: 0 | AS157: 0 | AT157: 0 | AV157: 0 | AW157: 0 | AY157: 0 | AZ157: 0 | BB157: 0 | BC157: 0 | BE157: 0 | BF157: 0 | BH157: 0 | BI157: 0 | BK157: 0 | BL157: 0 | BN157: 0 | BO157: 0 | BQ157: 0 | BR157: 0 | BT157: 0 | BU157: 0 | BW157: 0 | BX157: 0 | BZ157: 0 | CA157: 0 | CC157: 0 | CD157: 0 | CF157: 0 | CG157: 0 | CI157: 0 | CJ157: 0 | CL157: 0 | CM157: 0 | CO157: 0 | CP157: 0 | CR157: 0 | CS157: 0 | CU157: 0 | CV157: 0 | CX157: 0 | CY157: 0 | DA157: 0 | DB157: 0 | DD157: 0 | DE157: 0 | DG157: 0 | DH157: 0 | DJ157: 0 | DK157: 0 | DM157: 0 | DN157: 0 | DP157: 0 | DQ157: 0 | DS157: 0 | DT157: 0 | DV157: 0 | DW157: 0 | DY157: 0 | DZ157: 0 | EB157: 0 | EC157: 0 | ED157: 0 | EE157: 0 | EF157: 0 | EG157: 0 | EH157: 0 | EI157: 0 | EK157: 0
